Workbook

Sheet Design Regulator
A1: LM65680/60/40/-Q1 65V 8A/6A/4A Buck Converter Design Tool
N2: http://www.ti.com/product/lm5175
A3: About | C3: xx | F3: = Input Box | N3: TERMS OF USE
A5: Step 1: Operating Specifications
D6: Input Voltage – Min, VIN(min) | E6: 12 | F6: V
D7: Input Voltage – Nom, VIN(nom) | E7: 24 | F7: V
D8: Input Voltage – Max, VIN(max) | E8: 65 | F8: V
D9: Output Voltage, VOUT | E9: 5.001 | F9: V
D10: Full Load Output Current, IOUT | E10: 8 | F10: A
D11: Switching Frequency, FSW | E11: 400 | F11: kHz
D12: Frequency Set Resistor, RRT | E12: ='Variable Management'!C444 -> 40.2 | F12: kΩ
D13: Ambient Operating Temperature, TA | E13: 30 | F13: °C
D14: Estimated IC Junction Temperature, TJ | E14: ='Variable Management'!B387 -> 85.56382555 | F14: °C
A16: Step 2: Buck Inductance
D17: Inductance for Ideal Slope Comp | E17: =Lopt*1000000 -> 4.673831776 | F17: µH
D18: Inductance for 35% Ripple Current at VIN(nom) | E18: ='Variable Management'!B41*1000000 -> 3.534746987 | F18: µH
D19: Buck Inductance, LO | E19: 3.3 | F19: µH
D20: Inductor DCR at 25°C | E20: 5.9 | F20: mΩ
D21: DIL as a % of Full Load at VIN(nom) | E21: ='Variable Management'!B68*100 -> 37.84357315 | F21: %
D22: Min. Inductor Sat Current Rating, ILO(SAT) | E22: =PEAK_CURRENT_LIMIT -> 10.7 | F22: A
D23: VIN(min) | E23: ='Variable Management'!B85 -> 9.584711117 | F23: A
C24: IOUT(typ) at OCP Inception: | D24: VIN(nom) | E24: ='Variable Management'!B86 -> 9.186257074 | F24: A
D25: VIN(max) | E25: ='Variable Management'!B87 -> 8.934924523 | F25: A
D26: Estimate Inductor Core Loss at VIN(nom) | E26: 0.54 | F26: W
D27: Total Inductor Loss at Full Load and VIN(nom) | E27: ='Variable Management'!B73 -> 0.9593054841 | F27: W
A30: Step 3: IC Power Loss
D31: IC Thermal Impedance, qJA | E31: 20 | F31: °C/W
D32: IC Power Dissipation, PD | E32: ='Variable Management'!B385 -> 2.778191277 | F32: W
D33: =CHOOSE(MODE, "Total DC/DC Regulator Power Loss","Total Per-phase Power Loss ") -> Total DC/DC Regulator Power Loss | E33: =E32 + 'Variable Management'!B73 -> 3.737496761 | F33: W
D34: Estimated IC Junction Temperature, TJ | E34: ='Variable Management'!B387 -> 85.56382555 | F34: °C
E35: =CHOOSE(Ext_BIAS, IF(OR(Vout>28, Vout<4.5), "* Tie BIAS to a 5V External Supply", "* Tie BIAS to VOUT"), "* Tie BIAS to GND") -> * Tie BIAS to VOUT
A37: Step 4: Output Capacitors
D38: Output Voltage Ripple Spec | E38: 50 | F38: mVPK-PK
D39: Effective COUT Value to Meet Ripple Spec | E39: ='Variable Management'!B111 -> 18.92178658 | F39: µF
D40: VOUT Deviation for 50% IOUT Load Step | E40: 600 | F40: mV
D41: Effective COUT Value for Load Transient Spec | E41: ='Variable Management'!B117 -> 8.798240352 | F41: µF
D42: Output Capacitance (derated), COUT | E42: 132 | F42: µF
D43: Output Capacitor ESR | E43: 5 | F43: mΩ | P43: =IF(SCH_MODE=1, "** Tie VCCX to GND if not used **", "") -> 
D44: Resulting Output Voltage Ripple (max) | E44: ='Variable Management'!B124*1000 -> 16.74850967 | F44: mVPK-PK
D45: Output Capacitor RMS Current (max) | E45: ='Variable Management'!B104 -> 1.019066802 | F45: ARMS
A47: Step 5: Input Capacitors
D48: Input Voltage Ripple Spec | E48: 480 | F48: mVPK-PK
D49: Minimum Input Capacitance | E49: ='Variable Management'!B152 -> 10.1545361 | F49: µF
D50: Input Capacitance (derated), CIN | E50: 20 | F50: µF
D51: Maximum Permitted ESR | E51: ='Variable Management'!B159 -> 25.92250631 | F51: mΩ
D52: Input Capacitor ESR | E52: 2 | F52: mΩ
D53: Resulting Input Voltage Ripple (max) | E53: ='Variable Management'!B186*1000 -> 261.9394442 | F53: mVPK-PK
D54: Input Capacitor RMS Current (max) | E54: ='Variable Management'!B141 -> 4 | F54: ARMS
A56: Step 6: Output Voltage Setting
D57: =CHOOSE(VOUT_setting, "Upper Feedback Resistor","","","") -> Upper Feedback Resistor | E57: 100 | F57: kΩ
D58: =CHOOSE(VOUT_setting, "Lower Feedback Resistor (E96)", "* Tie FB to VCC for 5V Fixed Output", "* Tie FB to GND for 3.3V Fixed Output") -> Lower Feedback Resistor (E96) | E58: =IF(Vout<Vref, "N/A", IF(Vout=Vref,"OPEN",Rfb2_u/1000)) -> 19.1 | F58: =IF(Vout=Vref,"","kΩ") -> kΩ
D59: =CHOOSE(VOUT_setting, "Actual Output Voltage Setpoint", "", "") -> Actual Output Voltage Setpoint | E59: =IF(Vout<Vref, "N/A", IF(Vout=Vref, "0.8", 0.8/E58*(E57+E58))) -> 4.988481675 | F59: V
D60: Feedforward Capacitance, CFF | E60: 10 | F60: pF
A63: Step 7: Compensation
D64: CNFG/SYNCOUT Resistor, RCNFG | E64: =IF(COMP_TYPE=2, "", "49.9") -> 49.9 | F64: kΩ
D65: Desired Crossover Frequency | E65: 40 | F65: =" kHz " -> kHz
D66: =IF(COMP_TYPE=2, "Tie CNFG/SYNCOUT to VCC", "") -> 
A67: Compensation Components
B68: Calculated / | C68: Std Values | E68: =C68 -> Std Values
A69: RCOMP | B69: =Rcea1/1000 -> 15.07180018 | C69: ='Standard Value Calculator'!S32 -> 15 | E69: =C69 -> 15 | F69: kΩ
A70: CCOMP | B70: =Cc1ea*1000000000 -> 2.639945815 | C70: ='Standard Value Calculator'!S33 -> 2.7 | E70: =C70 -> 2.7 | F70: nF
A71: CHF | B71: =IF(Cc2ea<0, "N/A", Cc2ea*1000000000000) -> 22.87778696 | C71: ='Standard Value Calculator'!S34 -> 22 | E71: =C71 -> 22 | F71: pF
A73: Pole/Zero Frequencies
D74: Load Pole Frequency, FP-LOAD | E74: =Fp_dominant/1000 -> 2.327399453 | F74: kHz
D75: Output Cap ESR Zero Frequency, FZ-ESR | E75: =Fesr/1000 -> 241.1438534 | F75: kHz
D76: Error Amp Dominant Pole Frequency, FP-EA | E76: =Fp1_u -> 0.1178890139 | F76: Hz
D77: Compensator Zero Frequency, FZ-COMP | E77: =Fz1_u/1000 -> 3.929751686 | F77: kHz
D78: Compensator Pole Frequency, FP-COMP | E78: =Fp2_u/1000 -> 204.3547528 | F78: kHz
A80: Step 8: VIN UVLO, FPWM/AUTO and Soft start
D83: VIN UVLO Turn-on Threshold | E83: 24 | F83: V
D84: VIN UVLO Upper Resistor, RUV1 | E84: 301 | F84: kΩ
D85: VIN UVLO Lower Resistor, RUV2 | E85: ='Variable Management'!B215 -> 16.53846154 | F85: kΩ
D86: Actual VIN UVLO Turn-On Threshold | E86: ='Variable Management'!B218 -> 24.0530303 | F86: V
D87: Actual VIN UVLO Turn-Off Threshold | E87: ='Variable Management'!B219 -> 19.24242424 | F87: V
D88: =CHOOSE(MODE_SYNC, "* Tie MODE/SYNC to VCC", "* Tie MODE/SYNC to GND", "* Tie a SYNC signal to MODE/SYNC") -> * Tie MODE/SYNC to VCC
D89: Soft-start Time | E89: 3 | F89: ms
D90: Soft-start Capacitor | E90: =Css_u*1000000000 -> 47 | F90: nF
A92: Step 9: EMI Mitigation: DRSS and Slew-Rate Control
D95: DRSS & SR-Control Select Resistor, RDRSS | E95: =IF(DRSS=1, IF(SLEW_RATE_CONTROL=1, "OPEN", "150"), IF(SLEW_RATE_CONTROL=1, "49.9", "0")) -> 0 | F95: kΩ
D96: =IF(DRSS=1, IF(SLEW_RATE_CONTROL=1, "* Leave the DRSS/MCOMM pin open", ""), IF(SLEW_RATE_CONTROL=1, "", "Tie DRSS/MCOMM to GND")) -> Tie DRSS/MCOMM to GND

Sheet Input Filters (hidden)
A1: LM(2)5149-Q1 Synchronous Buck Controller Design Tool
O2: http://www.ti.com/product/lm5175
A3: About | C3: xx | F3: = Input Box | O3: TERMS OF USE
E7: AEF | M7: Passive
B9: Design tab - LAEF | C9: ='Design Regulator'!#REF! & " µH" ->  | F9: LAEF | G9: 1 | H9: µH | J9: Suggested LIN Inductor | K9: 0.1-10 | L9: µH | N9: Chosen LIN | O9: 0.68 | P9: µH
B10: Design tab - CINJ | C10: ='Design Regulator'!#REF! & " µF" ->  | F10: CINJ | G10: 1 | H10: µF | J10: Suggested CF | K10: 0.1-10 | L10: µF | N10: Chosen CF | O10: 0.47 | P10: µF
B11: Design tab - CDAMP | C11: ='Design Regulator'!#REF! & " µF" ->  | F11: CDAMP | G11: 1 | H11: µF | J11: Suggested CDAMP | K11: 1-10 | L11: µF | N11: Chosen CDAMP | O11: 1 | P11: µF
B12: Design tab - RDAMP | C12: ='Design Regulator'!#REF! & " Ω" ->  | F12: RDAMP | G12: 10 | H12: Ω | J12: Suggested RDAMP | K12: =Rdamp_PassiveStd ->  | L12: Ω | N12: Chosen RDAMP | O12: 0.35 | P12: Ω
C14: VIN Ripple at Fsw | F14: =VinRipple_dBuV -> 108.364018 | G14: dBµV | H14: VIN Ripple | I14: =VinRipple_dBuV -> 108.364018 | J14: dBµV
D16: AEF Attenuation at Fsw | E16: =-'Input Filter Calculations'!AM97 ->  | F16: dB | L16: Passive Attenuation at Fsw | M16: =-'Input Filter Calculations'!AA97 -> 12.14126087 | N16: dB
D17: AEF EMI at Fsw | E17: =VinRipple_dBuV-E16 ->  | F17: dB-µV | L17: Passive EMI at Fsw | M17: =VinRipple_dBuV-M16 -> 96.22275716 | N17: dB-µV

Sheet Design Input Filter (hidden)
A1: LM5149-Q1 Synchronous Buck Controller Design Tool
O2: http://www.ti.com/product/lm5175
A3: About | C3: xx | F3: = Input Box | O3: TERMS OF USE
B7: Choose Filter
B8: Suggested Inductor | C8: =CHOOSE(INFILTER_TYPE,"","0.01-1","0.1-10") ->  | D8: µH | F8: Chosen Inductor | G8: 1 | H8: µH
B9: =CHOOSE(INFILTER_TYPE,"","Suggested Cinj","Suggested Cf") ->  | C9: =CHOOSE(INFILTER_TYPE,"",'Standard Value Calculator'!S24,'Standard Value Calculator'!S23) ->  | D9: µF | F9: =CHOOSE(INFILTER_TYPE,"","Chosen Cinj","Chosen Cf") ->  | G9: 0.068 | H9: µF
B10: Suggested Cdamp | C10: =CHOOSE(INFILTER_TYPE,"",CHOOSE(OSC,"DNP",'Standard Value Calculator'!S25),'Standard Value Calculator'!S28) ->  | D10: µF | F10: Chosen Cdamp | G10: 0.033 | H10: µF
B11: Suggested Rdamp | C11: =CHOOSE(INFILTER_TYPE,"",'Standard Value Calculator'!S26,Rdamp_PassiveStd) ->  | D11: Ω | F11: Chosen Rdamp | G11: 43.2 | H11: Ω
F12: Filter Attenuation | G12: =-'Variable Management'!B331 -> 0 | H12: dB
F13: VIN Ripple | G13: =VinRipple_dBuV -> 108.364018 | H13: dB-µV
F14: Fsw Conducted EMC | G14: ='Variable Management'!B332 -> 108.364018 | H14: dB-µV

Sheet BOM & Schematic
A34: ** Tie MODE/SYNC to VCC for FPWM, to GND for AUTO **
A35: ** Tie BIAS to GND if not used **
A36: ="Vin = "&VIN_min&"V to "&VIN_max&"V, Vout = "& Vout &"V, Iout = " &Iout & "A, Fsw = " & Fsw/1000 &"kHz" -> Vin = 12V to 65V, Vout = 5.001V, Iout = 8A, Fsw = 400kHz
A37: High-Efficiency Synchronous Buck Regulator BOM
A38: Count | B38: Ref Des | C38: Value | D38: Description | H38: Size | I38: Part Number | J38: MFR
A39: 1 | B39: CBOOT | C39: 0.1 | D39: =C39 -> 0.1 | H39: 0603 | I39: Std | J39: Std
A40: 1 | B40: CCOMP | C40: ='Design Regulator'!E70 -> 2.7 | D40: 2.7 | H40: 0603 | I40: Std | J40: Std
A41: 1 | B41: CHF | C41: ='Design Regulator'!E71 -> 22 | D41: 22 | H41: 0603 | I41: Std | J41: Std
A42: =ROUNDUP('Design Regulator'!E50/10,0) -> 2 | B42: CIN | C42: 10 | D42: =C42 -> 10 | H42: 1210 | I42: Std | J42: Std
A43: =ROUNDUP('Design Regulator'!E42/47,0) -> 3 | B43: COUT | C43: 47 | D43: =C43 -> 47 | H43: 1210 | I43: Std | J43: Std
A44: 1 | B44: CVCC | C44: 1 | D44: 1 | H44: 0603 | I44: Std | J44: Std
A45: 1 | B45: LO | C45: ='Design Regulator'!E19 -> 3.3 | D45: ="Inductor, "&Lf*1000000&"µH, "&Rdcr*1000&"mΩ, >"&ROUNDUP(PEAK_CURRENT_LIMIT*1.1,0)&"A" -> Inductor, 3.3µH, 5.9mΩ, >12A | H45: - | I45: - | J45: Various
A46: 1 | B46: RCOMP | C46: ='Design Regulator'!E69 -> 15 | D46: =C46 -> 15 | H46: 0603 | I46: Std | J46: Std
A47: 1 | B47: RRT | C47: ='Design Regulator'!E12 -> 40.2 | D47: 40.2 | H47: 0603 | I47: Std | J47: Std
A48: 1 | B48: RFB1 | C48: ='Design Regulator'!E57 -> 100 | D48: =C48 -> 100 | H48: 0603 | I48: Std | J48: Std
A49: 1 | B49: RFB2 | C49: ='Design Regulator'!E58 -> 19.1 | D49: =C49 -> 19.1 | H49: 0603 | I49: Std | J49: Std
A50: 1 | B50: RPG | C50: 100 | D50: 100 | H50: 0603 | I50: Std | J50: Std
A51: 1 | B51: RCNFG | C51: 49.9 | D51: 49.9 | H51: 0603 | I51: Std | J51: Std
A52: 1 | B52: U1 | C52: ='Variable Management'!R23 -> LM65680 | D52: =CHOOSE(VARIANT, "IC, LM65640 Synchronous Buck Converter, 3.5V–65V Input, 4A Output", "IC, LM65660 Synchronous Buck Converter, 3.5V–65V Input, 6A Output", "IC, LM65680 Synchronous Buck Converter, 3.5V–65V Input, 8A Output") -> IC, LM65680 Synchronous Buck Converter, 3.5V–65V Input, 8A Output | H52: eQFN-26 | I52: =CHOOSE(VARIANT, "LM65640RZYR", "LM65660RZYR", "LM65680RZYR") -> LM65680RZYR | J52: TI
A55: NOTES:
A56: ** Choose an inductor with saturation current higher than the peak inductor current at the OCP setpoint for all input voltages and operating temperatures **
A57: ** Derate the input and output nameplate capacitances for applied voltage and temperature, particularly with ceramics **

Sheet EVM
A1: LM65640/60/80 65V, 4A/6A/8A Synchronous Buck Converter Design Tool
B6: LM65680 EVM PCB layout (SR111A)

Sheet Variable Management (hidden)
A1: EXCEL Variables Names/Calculations
B2: Input from user =
B3: Output =
B4: Constant
A5: Variable Name | B5: Value | C5: STD Units | E5: Notes | I5: Iteration
A6: Step 1: Operational Specs
A7: VIN_min | B7: ='Design Regulator'!E6 -> 12 | C7: V | D7: Minimum input voltage | I7: 1
A8: VIN_nom | B8: ='Design Regulator'!E7 -> 24 | C8: V | D8: Nominal input voltage | N8: =CHOOSE(MODE, "Bode Plot", "Bode Plot - 2 Ph") -> Bode Plot | O8: 1 | R8: Single phase | S8: 1 | V8: FPWM mode | W8: 1 | Y8: DRSS Enabled | Z8: 1
A9: VIN_max | B9: ='Design Regulator'!E8 -> 65 | C9: V | D9: Maximum input voltage | N9: =IF(MODE=1, "AEF Gain", "N/A - Do Not Use") -> AEF Gain | O9: 2 | R9: Two phases | S9: 2 | V9: AUTO mode | W9: 2 | Y9: DRSS Disabled | Z9: 2
N10: BODE_PLOT_TYPE | O10: 1 | R10: Number of Phases | S10: 1 | V10: External SYNC | W10: 3 | Y10: DRSS Yes/No | Z10: 2
A11: Vout | B11: ='Design Regulator'!E9 -> 5.001 | C11: V | D11: Output voltage | R11: MODE | S11: =IF(Number_of_Phases = 1, 1, 2) -> 1 | V11: FPWM/AUTO | W11: 1
A12: Iout | B12: ='Design Regulator'!E10 -> 8 | C12: A | D12: Output current | I12: 1
I13: 1 | K13: Adjustable | L13: 1 | N13: =IF(VOUT_setting=1, "No CFF", "") -> No CFF | O13: 1 | V13: BIAS Connected | W13: 1 | Y13: Slew-Rate Control ON | Z13: 1
A14: Rout | B14: =Vout/Iout -> 0.625125 | C14: W | D14: Load resistance | K14: 5V | L14: 2 | N14: =IF(VOUT_setting=1, "Use CFF", "") -> Use CFF | O14: 2 | V14: No BIAS | W14: 2 | Y14: Slew-Rate Control OFF | Z14: 2
A15: Pout | B15: =Vout*Iout -> 40.008 | C15: W | D15: Output power | K15: 3.3V | L15: 3 | N15: NO_FF_CAP | O15: 1 | V15: Ext_BIAS | W15: 1 | Y15: SLEW_RATE_CONTROL | Z15: 2
K16: Output Voltage Setting | L16: =IF(Vout=5, 2, IF(Vout=3.3, 3, 1)) -> 1 | O16: =IF(O15=1, TRUE, FALSE) -> TRUE | V16: VOUT suitable to power BIAS | W16: =OR(Vout<=28, Vout>=4.5) -> TRUE
A17: Efficiency | B17: 0.9 | D17: Estimate of efficiency | K17: Adjustable Output | L17: =IF(VOUT_setting=1, TRUE, FALSE) -> TRUE
A18: Pin | B18: =Pout/Efficiency -> 44.45333333 | C18: W | D18: Calculate input power assuming finite efficiency
R19: LM65640 - 4A Out | S19: 1 | V19: VIN UVLO Divider – Yes | W19: 1 | Y19: External Compensation | Z19: 1
A20: Iin_Vinmin | B20: =Pin/VIN_min -> 3.704444444 | C20: A | R20: LM65660 - 6A Out | S20: 2 | V20: VIN UVLO Divider – No | W20: 2 | Y20: =IF(MODE=1, "Internal Compensation", "Int. Compensation – N/A") -> Internal Compensation | Z20: 2
A21: Iin_Vinnom | B21: =Pin/VIN_nom -> 1.852222222 | C21: A | D21: Input currents at min, nom, max Vin | L21: SCH_AdjVout_ExtCOMP | M21: 1 | R21: LM65680 - 8A Out | S21: 3 | V21: UVLO_TYPE | W21: 1 | Z21: 1
A22: Iin_Vinmax | B22: =Pin/VIN_max -> 0.6838974359 | C22: A | L22: SCH_FixedVout_ExtCOMP | M22: 2 | R22: More GPNs??? | S22: 4 | Y22: COMP_TYPE | Z22: =IF(MODE = 1, Z21, 1) -> 1 | AA22: Forced "external compensation" if MODE = 2
L23: SCH_AdjVout_Cff_ExtCOMP | M23: 3 | P23: VARIANT | R23: =CHOOSE(VARIANT, "LM65640", "LM65660", "LM65680", "LM25148-Q1") -> LM65680 | S23: 3
A24: 400kHz or 2.2MHz | B24: =OR(Fsw=400000, Fsw = 2200000) -> TRUE | L24: SCH_AdjVout_ExtCOMP_ENhigh | M24: 4
A25: Fsw | B25: ='Design Regulator'!E11*1000 -> 400000 | C25: Hz | D25: Nominal switching frequency - determines RT resistor (SYNCIN must be 80-120% of this) | L25: SCH_FixedVout_ExtCOMP_ENhigh | M25: 5 | P25: Iout(max) per IC | R25: =CHOOSE(VARIANT, 4, 6, 8) -> 8 | S25: A | V25: No Input Filter | W25: 1
A26: RT resistor to AGND | B26: =16.4/(Fsw/1000000)-0.633 -> 40.367 | C26: kΩ | D26: =IF(Fsw=400000,"(Or tie RT to VCC)",IF(Fsw=2200000," (Or tie RT to GND)","")) -> (Or tie RT to VCC) | L26: SCH_AdjVout_Cff_ExtCOMP_ENhigh | M26: 6 | P26: IOUT-MAX | R26: =CHOOSE(VARIANT, 4, 6, 8)*Number_of_Phases -> 8 | S26: A | V26: Passive LC Filter | W26: 2
I27: 1 | L27: SCH_AdjVout_IntCOMP | M27: 7 | P27: VOUT-MAX | R27: =CHOOSE(VARIANT, 60, 60, 60, 36) -> 60 | S27: V | V27: INFILTER_TYPE | W27: 1
A28: Tsw | B28: =1/Fsw -> 2.5e-06 | C28: sec | D28: Switching period | L28: SCH_FixedVout_IntCOMP | M28: 8 | P28: VIN-MIN | R28: 3 | S28: V
A29: Vref | B29: 0.8 | C29: V | D29: FB reference voltage | L29: SCH_AdjVout_Cff_IntCOMP | M29: 9 | P29: VIN-MAX | R29: =CHOOSE(VARIANT, 65, 65, 65, 42) -> 65 | S29: V
A30: Rt | B30: ='Standard Value Calculator'!S12/1000 -> 40.2 | C30: kΩ | D30: Frequency set resistor | F30: =IF(OR((Fsw=440000),(Fsw=2200000)),"N/A",Rfadj/1000) -> 0.0402 | L30: SCH_AdjVout_IntCOMP_ENhigh | M30: 10
L31: SCH_FixedVout_IntCOMP_ENhigh | M31: 11
L32: SCH_AdjVout_Cff_IntCOMP_ENhigh | M32: 12
A33: Step 2: Buck Inductor | B33: Channel 1 | L33: Schematic setting | M33: =IF(COMP_TYPE=1, IF(UVLO_TYPE=1, IF(VOUT_setting=1, IF(NO_FF_CAP=1, 1, 3), 2), IF(VOUT_setting=1, IF(NO_FF_CAP=1, 4, 6), 5)), IF(COMP_TYPE=2, IF(UVLO_TYPE=1, IF(VOUT_setting=1, IF(NO_FF_CAP=1, 7, 9), 8), IF(VOUT_setting=1, IF(NO_FF_CAP=1, 10, 12), 11)))) -> 1
A34: Don1 | B34: =Vout/VIN_nom -> 0.208375 | D34: Ideal Duty Cycle at VIN(nom)
A35: Doff1 | B35: =1-34:34 -> 0.791625 | D35: Ideal 1- Duty Cycle at VIN(nom)
A37: D_Vinmin | B37: =Vout/VIN_min -> 0.41675
A38: D_Vinnom | B38: =Vout/VIN_nom -> 0.208375
A39: D_Vinmax | B39: =Vout/VIN_max -> 0.07693846154
A41: L_Vinnom | B41: =(VIN_nom-Vout)*D1_Vinnom/(Fsw*Iout/Number_of_Phases*35%) -> 3.534746987e-06 | C41: H | D41: Calculated inductance for 35% ripple at VIN(nom)
A42: L_slopecomp | B42: =Vout/Se_ext -> 4.673831776e-06 | C42: H | D42: Calculated inductance based on one times inductor downslope
A44: Lopt | B44: =B42 -> 4.673831776e-06 | C44: H | D44: Slope comp
A46: Lo | B46: ='Design Regulator'!E19/1000000 -> 3.3e-06 | C46: H | D46: Chosen inductance
A47: Rdcr | B47: ='Design Regulator'!E20/1000 -> 0.0059 | C47: W | D47: Chosen inductor DCR
A49: Don2 | B49: =(Vout+Iout*(Rdcr+Rs))/(Vin+Iout*Rs) -> 0.2103416667
A50: Doff2 | B50: =1-_Don2 -> 0.7896583333
A52: D_Vinmin_2 | B52: =CHOOSE(MODE, (Vout+Iout*(Rdcr+Rs))/(VIN_min+Iout*Rs), (Vout+Iout/Number_of_Phases*(Rdcr+Rs))/(VIN_min+Iout/Number_of_Phases*Rs)) -> 0.4206833333 | D52: Duty cycles adjusted for DCR/shunt voltage drops
A53: D_Vinnom_2 | B53: =CHOOSE(MODE, (Vout+Iout*(Rdcr+Rs))/(VIN_nom+Iout*Rs), (Vout+Iout/Number_of_Phases*(Rdcr+Rs))/(VIN_nom+Iout/Number_of_Phases*Rs)) -> 0.2103416667 | D53: need to include RDS(on) later
A54: D_Vinmax_2 | B54: =CHOOSE(MODE, (Vout+Iout*(Rdcr+Rs))/(VIN_max+Iout*Rs), (Vout+Iout/Number_of_Phases*(Rdcr+Rs))/(VIN_max+Iout/Number_of_Phases*Rs)) -> 0.07766461538
A56: Iripple_Vinmin | B56: =(VIN_min-Vout)*D1_Vinmin_2/(Fsw*Lf) -> 2.230577765 | C56: A
A57: Iripple_Vinnom | B57: =(VIN_nom-Vout)*D1_Vinnom_2/(Fsw*Lf) -> 3.027485852 | C57: A
A58: Iripple_Vinmax | B58: =(VIN_max-Vout)*D1_Vinmax_2/(Fsw*Lf) -> 3.530150953 | C58: A
A60: Ishunt_rms_Vinmin | B60: =SQRT((Iout/Number_of_Phases)^2+(Iripple_Vinmin^2)/12) -> 8.025872108 | C60: A
A61: Ishunt_rms_Vinnom | B61: =SQRT((Iout/Number_of_Phases)^2+(Iripple_Vinnom^2)/12) -> 8.04759628 | C61: A
A62: Ishunt_rms_Vinmax | B62: =SQRT((Iout/Number_of_Phases)^2+(Iripple_Vinmax^2)/12) -> 8.064644887 | C62: A
A63: Max shunt power loss at full load | B63: =B61^2*Rs -> 0 | C63: W
A65: Max inductor ripple current | B65: =MAX(B56:B58) -> 3.530150953 | C65: A | D65: Ripple current at Vin(max)
B67: =B56/(Iout/Number_of_Phases) -> 0.2788222206
A68: % ripple current | B68: =B57/(Iout/Number_of_Phases) -> 0.3784357315
B69: =B58/(Iout/Number_of_Phases) -> 0.4412688692
A71: Inductor core loss estimate - Vin(nom) | B71: ='Design Regulator'!E26 -> 0.54 | C71: W
A72: Inductor copper loss at full load | B72: ='Efficiency Calculations'!S109 -> 0.3823183134 | C72: W
A73: Total inductor loss at full load | B73: ='Efficiency Calculations'!U109 -> 0.9593054841 | C73: W | D73: =Core_Loss+B72 -> 0.9223183134 | E73: W | F73: Copper + core loss at 25°C
D74: =B73 -> 0.9593054841 | E74: W | F74: Total loss including effect of the DCR tempco
A75: Inductor copper temerature | B75: 100 | C75: °C | D75: =D74-D73 -> 0.03698717065 | E75: W | F75: Impact of DCR tempco
A76: Inductor DCR at hot | B76: =Rdcr*(1+0.0039*(B75-25)) -> 0.00762575 | C76: W
A79: Step 3: Current Limit
A81: Rs | B81: 0 | C81: W | F81: Selected (starndard value) current limit sense resistor
A83: Current limit - peak | B83: =CHOOSE(VARIANT, 6.1, 8.2, 10.7) -> 10.7 | C83: A | D83: Min spec | F83: Peak inductor current at current limit inception = min inductor sat current
A85: Iout_OCP_Vinmin | B85: =Number_of_Phases*(PEAK_CURRENT_LIMIT-Iripple_Vinmin/2) -> 9.584711117 | C85: A | F85: Current limit setpoints (i.e. IOUT) after the inductor is selected
A86: Iout_OCP_Vinnom | B86: =Number_of_Phases*(PEAK_CURRENT_LIMIT-Iripple_Vinnom/2) -> 9.186257074 | C86: A
A87: Iout_OCP_Vinmax | B87: =Number_of_Phases*(PEAK_CURRENT_LIMIT-Iripple_Vinmax/2) -> 8.934924523 | C87: A
A89: Irms_OCP_Vinmin | B89: =SQRT((Iout_OCP_Vinmin/Number_of_Phases)^2+(Iripple_Vinmin^2)/12) -> 9.606316167 | C89: A | F89: RMS values for power loss calculations
A90: Irms_OCP_Vinnom | B90: =SQRT((Iout_OCP_Vinnom/Number_of_Phases)^2+(Iripple_Vinnom^2)/12) -> 9.227736717 | C90: A
A91: Irms_OCP_Vinmax | B91: =SQRT((Iout_OCP_Vinmax/Number_of_Phases)^2+(Iripple_Vinmax^2)/12) -> 8.992851238 | C91: A
A94: Step 4: Output Capacitor
A96: Number of phases | B96: =Number_of_Phases -> 1
A97: Ripple current normalization factor at Vin-min | B97: =Number_of_Phases*((D1_Vinmin_2-m_Vin_min/Number_of_Phases)*(((m_Vin_min+1)/Number_of_Phases)-D1_Vinmin_2))/((1-D1_Vinmin_2)*D1_Vinmin_2) -> 1
A98: Ripple current normalization factor at Vin-nom | B98: =Number_of_Phases*((D1_Vinnom_2-m_Vin_nom/Number_of_Phases)*(((m_Vin_nom+1)/Number_of_Phases)-D1_Vinnom_2))/((1-D1_Vinnom_2)*D1_Vinnom_2) -> 1
A99: Ripple current normalization factor at Vin-max | B99: =Number_of_Phases*((D1_Vinmax_2-m_Vin_max/Number_of_Phases)*(((m_Vin_max+1)/Number_of_Phases)-D1_Vinmax_2))/((1-D1_Vinmax_2)*D1_Vinmax_2) -> 1
A101: Icoutrms_VINmin | B101: =Iripple_Vinmin*B97/SQRT(12) -> 0.6439123366 | C101: A | F101: Output cap RMS current
A102: Icoutrms_VINnom | B102: =Iripple_Vinnom*B98/SQRT(12) -> 0.8739598859 | C102: A
A103: Icoutrms_VINmax | B103: =Iripple_Vinmax*B99/SQRT(12) -> 1.019066802 | C103: A
A104: Max RMS current in Cout | B104: =MAX(B101:B103) -> 1.019066802 | C104: A
A106: Vripple1 | B106: ='Design Regulator'!E38/1000 -> 0.05 | C106: V | F106: Output voltage ripple spec (pk-pk)
A108: Output Ripple Spec (pk-pk) | B108: =Vo1_ripple*1000 -> 50 | C108: mV | F108: Vout ripple spec at Vin(nom)
A110: Coutmin | B110: =Iripple_Vinnom/(Fsw*8*Vo1_ripple) -> 1.892178658e-05 | C110: F | F110: Minimum output capacitnace | H110: =Vo2_ripple -> 0 | I110: 1
A111: Reported Coutmin | B111: =IF(Cout_min*1000000<2, 2.2,Cout_min*1000000) -> 18.92178658 | C111: uF
A113: Load transient deviation | B113: ='Design Regulator'!E40/1000 -> 0.6 | C113: V
A114: Current step for load transient | B114: =Iout/2 -> 4 | C114: A
A115: Inductor current slope for load-on transient | B115: =(VIN_nom-Vout)/Lo/1000000 -> 5.757272727 | C115: A/µs
A116: Inductor current slope for load-off transient | B116: =Vout/Lo/1000000 -> 1.515454545 | C116: A/µs | F116: Take the min of the IL on/off slew rates - this will be the load off for D < 50%, load on for D > 50%
A117: Cout for load transient | B117: =0.5*(B114/Number_of_Phases)^2/MIN(B115,B116)/B113*Number_of_Phases -> 8.798240352 | C117: uF
A119: Cout | B119: ='Design Regulator'!E42/1000000 -> 0.000132 | C119: F | F119: Chosen output capacitance | I119: 1
A120: Resrmax | B120: =SQRT((Vo1_ripple/Iripple_Vinnom)^2-(1/(Fsw*Cout*8))^2) -> 0.01634479164 | C120: W | F120: Max ESR before ripple exceeds Vripple1 | I120: 1
A122: Reported Cout ESR max | B122: =IF(OR(CoutEsrMax>0.3, CoutEsrMax<0, (ISERROR(CoutEsrMax))), "N/A", CoutEsrMax*1000) -> 16.34479164 | C122: mΩ
A123: Resr_Cout | B123: ='Design Regulator'!E43/1000 -> 0.005 | C123: W | F123: Chosen ESR | I123: 1 | K123: =ISERROR(CoutEsrMax) -> FALSE | L123: =ISERROR(B122) -> FALSE
A124: Vripple | B124: =Iripple_Vinnom*B98*SQRT(Resr_Cout^2+(1/(8*Fsw*Number_of_Phases*Cout))^2) -> 0.01674850967 | C124: Vp-p | L124: =OR(CoutEsrMax>0.3,CoutEsrMax<0) -> FALSE
K125: =OR(TRUE, FALSE, TRUE) -> TRUE
A126: Step 5: Input Capacitor
A128: Duty cycle at Vin-min | B128: =D1_Vinmin_2 -> 0.4206833333
A129: Duty cycle at Vin-nom | B129: =D1_Vinnom_2 -> 0.2103416667
A130: Duty cycle at Vin-max | B130: =D1_Vinmax_2 -> 0.07766461538
A131: Number of phases | B131: =Number_of_Phases -> 1
A132: Floor(N*D) at Vin-min | B132: =FLOOR(Number_of_Phases*D1_Vinmin, 1) -> 0
A133: Floor(N*D) at Vin-nom | B133: =FLOOR(Number_of_Phases*D1_Vinnom, 1) -> 0 | E133: =Number_of_Phases*D1_Vinnom -> 0.208375 | F133: N*D | G133: =FLOOR(Number_of_Phases*D1_Vinnom,1) -> 0 | H133: floor(N*D)
A134: Floor(N*D) at Vin-max | B134: =FLOOR(Number_of_Phases*D1_Vinmax, 1) -> 0
A136: Icinrms_VINmin | B136: =Iout*SQRT((D1_Vinmin_2-m_Vin_min/Number_of_Phases)*(((m_Vin_min+1)/Number_of_Phases)-D1_Vinmin_2)) -> 3.949350257 | C136: ARMS | E136: Calculate input cap rms current with one output unloaded
A137: Icinrms_VINnom | B137: =Iout*SQRT((D1_Vinnom_2-m_Vin_nom/Number_of_Phases)*(((m_Vin_nom+1)/Number_of_Phases)-D1_Vinnom_2)) -> 3.26041028 | C137: ARMS | D137: =D1_Vinmin -> 0.41675
A138: Icinrms_VINmax | B138: =Iout*SQRT((D1_Vinmax_2-m_Vin_max/Number_of_Phases)*(((m_Vin_max+1)/Number_of_Phases)-D1_Vinmax_2)) -> 2.141144709 | C138: ARMS | D138: =D1_Vinmax -> 0.07693846154
A139: Max RMS current in Cin | B139: =MAX(B136:B138) -> 3.949350257 | C139: ARMS
A140: Dcrit values | B140: =1/(2*Number_of_Phases) -> 0.5 | C140: =3/(2*Number_of_Phases) -> 1.5
A141: Icinrms - max at Dcrit | B141: =Iout/2/Number_of_Phases -> 4 | C141: ARMS
A142: Final result | B142: =IF(D1_Vinmin<0.5, B139, B141) -> 3.949350257 | C142: ARMS | D142: …report this
A145: Vinripple1 | B145: ='Design Regulator'!E48/1000 -> 0.48 | C145: Vp-p | F145: Input voltage ripple spec (pk-pk)
A147: Cinmin_Vinmin | B147: =Iout*D1_Vinmin_2*(1-D1_Vinmin_2)/(Vinripple1*Fsw) -> 1.01545361e-05 | C147: F | D147: Single phase | F147: Calculate cap at Vinmin and 50% duty cycle (Vin = 2*Vout)
A148: Cinmin_Vinnom | B148: =Iout*D1_Vinnom_2*(1-D1_Vinnom_2)/(Vinripple1*Fsw) -> 6.92075208e-06 | C148: F
A149: Cinmin_Vinmax | B149: =Iout*D1_Vinmax_2*(1-D1_Vinmax_2)/(Vinripple1*Fsw) -> 2.984700954e-06 | C149: F | D149: =D1_Vinmin_2 -> 0.4206833333
A150: Cinmin_50%D | B150: =Iout*0.5*(1-0.5)/(Vinripple1*Fsw) -> 1.041666667e-05 | C150: F | F150: Buck 50% typically worst case
A151: Cinmin | B151: =IF(D1_Vinmin<0.5, B147,B150) -> 1.01545361e-05 | C151: F
A152: Reported Cinmin | B152: =IF(Cinmin*1000000<2.2, 2.2,Cinmin*1000000) -> 10.1545361 | C152: uF | F152: …report this
A154: Cin | B154: ='Design Regulator'!E50/1000000 -> 2e-05 | C154: F | F154: Input capacitance
A155: CinEsrMax_Vinmin | B155: =-(Iout*D1_Vinmin_2*(1-D1_Vinmin_2)/(Cin*Fsw)-Vinripple1)/(Iout+Iripple_Vinmin/2) -> 0.02592250631 | C155: W
A156: CinEsrMax_Vinmax | B156: =-(Iout*D1_Vinmax*(1-D1_Vinmax)/(Cin*Fsw)-Vinripple1)/(Iout+Iripple_Vinmax/2) -> 0.04188201784 | C156: W
A157: CinEsrMax_50%D | B157: =-(Iout*0.5*(1-0.5)/(Cin*Fsw)-Vinripple1)/(Iout+Iripple_Vinmax/2) -> 0.02355332537 | C157: W | F157: Calculate ESR at Vinmax and 50% duty cycle (Vin = 2*Vout)
A158: CinEsrMax | B158: =IF(D1_Vinmin<0.5, B155,B157) -> 0.02592250631 | C158: W
A159: Reported Cin ESR max - single phase | B159: =IF(OR(CinEsrMax>0.3, CinEsrMax<0), "N/A",CinEsrMax*1000) -> 25.92250631 | C159: mΩ | F159: …report this
A161: Vinripple2_Vinmin | B161: =Iout*D1_Vinmin_2*(1-D1_Vinmin_2)/(Cin*Fsw)+(Iout +Iripple_Vinmin/2)*RCinEsr -> 0.2619394442 | C161: Vp-p
A162: Vinripple2_Vinnom | B162: =Iout*D1_Vinnom_2*(1-D1_Vinnom_2)/(Cin*Fsw)+(Iout +Iripple_Vinnom/2)*RCinEsr -> 0.1851255358 | C162: Vp-p
A163: Vinripple2_Vinmax | B163: =Iout*D1_Vinmax_2*(1-D1_Vinmax_2)/(Cin*Fsw)+(Iout +Iripple_Vinmax/2)*RCinEsr -> 0.09116297386 | C163: Vp-p
A164: Vinripple2_50%D | B164: =Iout*0.5*(1-0.5)/(Cin*Fsw)+(Iout +Iripple_Vinmax/2)*RCinEsr -> 0.269530151 | C164: Vp-p | F164: Calculate ripple at Vinmax and 50% duty cycle (Vin = 2*Vout)
A165: Vinripple2 - single phase | B165: =IF(D1_Vinmin<0.5, B161,B164) -> 0.2619394442 | C165: Vp-p | F165: …report highest of these
A168: Number of phases | B168: =Number_of_Phases -> 1
A169: DmaxRipple = 1/2N or D_Vinmin | B169: =1/2/Number_of_Phases -> 0.5
A171: Cinmin_DmaxRipple_multiphase | B171: =Iout*(FLOOR(Number_of_Phases*D_Cinmaxripple, 1)/Number_of_Phases-D_Cinmaxripple)*(D_Cinmaxripple-((FLOOR(Number_of_Phases*D_Cinmaxripple, 1)+1)/Number_of_Phases))/(Vinripple1*Fsw) -> 1.041666667e-05 | C171: F
B172: =B171*1000000 -> 10.41666667 | C172: uF
A173: Reported Cin-min | B173: =IF(Number_of_Phases=1, B152, B172) -> 10.1545361 | C173: uF
A175: CinEsrMax_DmaxRipple | B175: =(Vinripple1-(Iout*(FLOOR(Number_of_Phases*D_Cinmaxripple, 1)/Number_of_Phases-D_Cinmaxripple)*(D_Cinmaxripple-((FLOOR(Number_of_Phases*D_Cinmaxripple, 1)+1)/Number_of_Phases))/(Cin*Fsw)))/(Iout/Number_of_Phases) -> 0.02875 | C175: W
A177: Reported ESR | B177: =IF(Number_of_Phases=1, IF(OR(B158>0.3, B158<0), "N/A",B158*1000), IF(OR(B199>0.3, B199<0), "N/A",B199*1000)) -> 25.92250631 | C177: mΩ
A178: RCinESR | B178: ='Design Regulator'!E52/1000 -> 0.002 | C178: W
A180: Vinripple2_Vinmin | B180: =Iout*(FLOOR(Number_of_Phases*D1_Vinmin_2, 1)/Number_of_Phases-D1_Vinmin_2)*(D1_Vinmin_2-((FLOOR(Number_of_Phases*D1_Vinmin_2, 1)+1)/Number_of_Phases))/(Cin*Fsw)+Iout/Number_of_Phases*RCinEsr -> 0.2597088664 | C180: Vp-p | F180: Using new expression for multiphase pkpk voltage ripple
A181: Vinripple2_Vinnom | B181: =Iout*(FLOOR(Number_of_Phases*D1_Vinnom_2, 1)/Number_of_Phases-D1_Vinnom_2)*(D1_Vinnom_2-((FLOOR(Number_of_Phases*D1_Vinnom_2, 1)+1)/Number_of_Phases))/(Cin*Fsw)+Iout/Number_of_Phases*RCinEsr -> 0.1820980499 | C181: Vp-p | F181: Using new expression for multiphase pkpk voltage ripple
A182: Vinripple2_Vinmax | B182: =Iout*(FLOOR(Number_of_Phases*D1_Vinmax_2, 1)/Number_of_Phases-D1_Vinmax_2)*(D1_Vinmax_2-((FLOOR(Number_of_Phases*D1_Vinmax_2, 1)+1)/Number_of_Phases))/(Cin*Fsw)+Iout/Number_of_Phases*RCinEsr -> 0.0876328229 | C182: Vp-p | F182: Using new expression for multiphase pkpk voltage ripple
A184: Vinripple_D_Cinmaxripple | B184: =Iout*(FLOOR(Number_of_Phases*D_Cinmaxripple, 1)/Number_of_Phases-D_Cinmaxripple)*(D_Cinmaxripple-((FLOOR(Number_of_Phases*D_Cinmaxripple, 1)+1)/Number_of_Phases))/(Cin*Fsw)+Iout/Number_of_Phases*RCinEsr -> 0.266 | C184: Vp-p
A186: Reported ripple | B186: =IF(Number_of_Phases=1, B165,B184) -> 0.2619394442 | C186: Vp-p
A190: Step 6a: Soft Start
A191: Required soft-start time, tss | B191: ='Design Regulator'!E89/1000 -> 0.003 | C191: s | D191: Required soft-start time
A192: Load cap current during soft start, Iout-ss | B192: =Cout*Vout/Tss -> 0.220044 | C192: A
A193: Css charging current, Iss | B193: =0.00002*Number_of_Phases -> 2e-05 | C193: A | D193: Css charging current
A194: Calculated SS cap, Css | B194: =0.00002*Number_of_Phases*Tss/1.2 -> 5e-08 | C194: F
A195: Standard value, Css_u | B195: ='Standard Value Calculator'!B4 -> 4.7e-08 | C195: F
A198: Step 6b: Other Components - DRSS, MODE, FB
A199: Tres | B199: ='Design Regulator'!E85/1000 -> 0.01653846154 | C199: s | D199: Hiccup time - not applicable here
A200: Cres | B200: =0.00002*Tres/1.2 -> 2.756410256e-07 | C200: F
A201: Cres_u | B201: ='Standard Value Calculator'!G4 -> 2.7e-07 | C201: F
A203: RPG | B203: 100 | C203: kΩ
A204: RFB | D204: Tie to VCC or GND for 5V amd 3.3V output, respectively
A205: MODE/SYNC | D205: Tie to VCC or GND for FPWM/AUTO, respectively
A206: DRSS/MCOMM pin | B206: =IF(DRSS=1, IF(SLEW_RATE_CONTROL=1, "Leave open", "Connect 150kΩ to GND"), IF(SLEW_RATE_CONTROL=1, "Connect 49.9kΩ to GND", "Tie to GND")) -> Tie to GND | D206: Text for schematic
A207: DRSS modulation frequency | B207: 6 | C207: kHz
A209: CNFG/SYNCOUT pin | B209: =IF(COMP_TYPE=1, "Connect 49.9kΩ to GND", "Tie to VCC") -> Connect 49.9kΩ to GND | D209: Text for schematic
A210: Two-phase operation | B210: =IF(MODE=1, "", "* Tie CONFIG/CLKOUT to MODE/SYNC of the secondary IC. Also, tie COMP, DRSS/MODECOMM and SS to the respective pins of the secondary IC.") -> 
A212: EN rising threshold voltage | B212: 1.25 | C212: V
A213: VIN turn ON voltage | B213: ='Design Regulator'!E83 -> 24 | C213: V
A214: Upper EN resistor | B214: ='Design Regulator'!E84 -> 301 | C214: kW
A215: Lower EN resister | B215: =1.25*B214/(B213-1.25) -> 16.53846154 | C215: kW
A216: Standard upper FB resistor | B216: ='Standard Value Calculator'!S14 -> 301 | C216: kW
A217: Standard lower EN resistor | B217: ='Standard Value Calculator'!S13 -> 16.5 | C217: kW
A218: Actual VIN UVLO turn-on threshold | B218: =1.25/B217*(B214+B217) -> 24.0530303 | C218: V
A219: Actual VIN UVLO turn-off threshold | B219: =1/B217*(B214+B217) -> 19.24242424 | C219: V
A220: VIN UVLO hysteresis voltage | B220: =B218-B219 -> 4.810606061 | C220: V
A223: Step 7: Compensation
A224: Pi | B224: 3.14159265 | D224: p
A225: GM2 | B225: =CHOOSE(VARIANT, 10.24, 13.86, 18.6) -> 18.6 | C225: A/V
A226: Ri | B226: =1/B225 -> 0.05376344086 | C226: W | F226: Current Sense effective resistance = 1/GM2
A227: gm | B227: =IF(COMP_TYPE=1, 0.00094, 0.00001568) -> 0.00094 | C227: S | F227: Error Amp Transconductance
A229: Slope comp | B229: =CHOOSE(VARIANT, 1.525, 2.05, 2.675) -> 2.675 | C229: A/cyc | F229: Depends on the current trim…slope comp = ILIM_pk/4
A230: Se | B230: =B229*Fsw -> 1070000 | C230: A/s | D230: =Se_ext*0.000001 -> 1.07 | E230: A/µs | F230: Slope comp slope - referred to inductor current
A231: Sn | B231: =(Vin-Vout)/Lf -> 5757272.727 | C231: A/s | D231: =Sn*0.000001 -> 5.757272727 | E231: A/µs | F231: On-time slope
A232: Sf | B232: =Vout/Lf -> 1515454.545 | C232: A/s | D232: =Sf*0.000001 -> 1.515454545 | E232: A/µs | F232: Off-time slope
A234: Se_int | B234: =Se_ext*Ri/1000 -> 57.52688172 | C234: mV/μs | F234: Slope comp slope - referred to IC
A235: Sn_int | B235: =Sn*Ri/1000 -> 309.5307918 | C235: mV/μs | F235: etc
A236: Sf_int | B236: =Sf*Ri/1000 -> 81.47605083 | C236: mV/μs | F236: etc
A238: mc_buck | B238: =1+Se_ext/Sn -> 1.185851887 | F238: mc = 1 + Se/Sn for peak current-mode buck
A239: k_buck | B239: =mc_buck*(1-D1_Vinnom_2) -> 0.9364178246 | F239: mc*(1-d)
A241: mc | B241: =1+Se_ext/Sn -> 1.185851887
A242: k | B242: =mc_buck*(1-D1_Vinnom_2) -> 0.9364178246
A243: Q | B243: =1/Pi/(k-0.5) -> 0.7293695825 | F243: 1/(Pi*(k-0.5)) | H243: Q = 2/Pi = 0.636 gives ideal one-cycle damping
A245: Error Amp (EA)
A246: GBW | B246: 5 | C246: MHz | F246: EA gain-bandwidth product
A247: Cbw | B247: =gm/(2*Pi*GBW*1000000) -> 2.992112934e-11 | C247: F | F247: EA effective bandwidth limiting capacitance = gm/(2*Pi*GBW)
A248: CparaEA - output parasitics | B248: 5e-13 | C248: F
A249: Ceain - output parasitics | B249: 4e-13 | C249: F
A250: FBpara - FB pin parasitics | B250: 5e-12 | C250: F
A251: COMP pin parasitics | B251: 2e-12 | C251: F
A252: RoEA | B252: 500000000 | C252: W | F252: EA output resistance
A253: Aea - error amp open-loop gain | B253: =gm*RoEA -> 470000 | C253: V/V | D253: =gm -> 0.00094 | F253: EA DC gain = gm*RoEA
A254: Afb | B254: =Vref/Vout -> 0.1599680064 | C254: V/V | D254: =IF(VOUT_setting=1,Vref/Vout,SQRT((1+(Fcross*zterm1)^2)/((1+Afbr-pterm4*(Fcross)^2)^2+(Fcross*pterm3)^2))) -> 0.1599680064 | F254: Feedback gain from Vout to FB
A255: Buffer Gain (LSGain) | B255: 0.787 | C255: V/V | F255: * Need to add this to all the gain-related expressions
A257: Acs | B257: =1/Ri -> 18.6 | F257: Acs = 1/Ri
A258: Am_buck | B258: =(Ro/Number_of_Phases)/Ri/((1+Ro/Number_of_Phases*(k-0.5)/(Fsw*Lf))) -> 9.635809762
... 148 more rows

Sheet Schematic Management (hidden)
N1: 3.3V or 5V fixed (FB1/2)
A2: =CHOOSE(SCH_SETTING, "SCH_AdjVout_ExtCOMP", "SCH_FixedVout_ExtCOMP", "SCH_AdjVout_Cff_ExtCOMP", "Sch_AdjVout_ExtCOMP_ENhigh", "SCH_FixedVout_ExtCOMP_ENhigh", "SCH_AdjVout_Cff_ExtCOMP_ENhigh", "SCH_AdjVout_IntCOMP", "SCH_FixedVout_IntCOMP", "SCH_AdjVout_Cff_IntCOMP", "SCH_AdjVout_IntCOMP_ENhigh", "SCH_FixedVout_IntCOMP_ENhigh", "SCH_AdjVout_Cff_IntCOMP_ENhigh") -> SCH_AdjVout_ExtCOMP | N2: With/without VOUT connected to VCCX

Sheet Stability Calculations (hidden)
B2: Divider Network & EA Poles/Zeros | E2: Modulator | J2: Power Stage Poles/Zeros | M2: Complex Pole Pair | P2: Feedback natural frequencies | S2: Total System
B3: Afb | C3: =Afb -> 0.1599680064 | D3: V/V | E3: Acs | F3: =Acs -> 18.6 | G3: A/V | H3: gm | I3: =gm -> 0.00094 | J3: z_ESR | K3: =Fesr -> 241143.8534 | L3: Hz | M3: p3 | N3: =Fsw/2 -> 200000 | O3: Hz | P3: zterm1 | Q3: =((1/wffHz)+(1/wfftHz)) -> 2.305952064e-07 | S3: Adc | T3: =AEA*Afb*Am*BufferGain -> 570156.3164 | U3: V/V
B4: EA zero, z1 | C4: =Fz1_u -> 3929.751686 | D4: Hz | E4: Am | F4: =Am -> 9.635809762 | G4: V/V | J4: p_dom | K4: =Fp_dominant -> 2327.399453 | L4: Hz | M4: pterm1 | N4: =Q*pole3 -> 145873.9165 | P4: pterm3 | Q4: =((1/wfbtHz)+(1/wffHz)+(1/wfftHz)+(Afbr/wffHz)) -> 6.513792579e-06 | S4: Crossover | T4: =AO7 -> 39.5845 | U4: kHz
B5: EA pole, p1 | C5: =Fp1_u -> 0.1178890139 | D5: Hz | E5: Q | F5: =Q -> 0.7293695825 | M5: pterm2 | N5: =pole3^2 -> 40000000000 | P5: pterm4 | Q5: =1/(wffHz*wfbtHz) -> 1.448857923e-17 | S5: Phase margin | T5: =AO9 -> 66.2174257 | U5: °
B6: Aea | C6: =AEA -> 470000 | D6: V/V | E6: mc | F6: =mc -> 1.185851887 | H6: FF zero | I6: =Fz_ff -> 1000000000 | P6: Afbr | Q6: =Rfb1_u/Rfb2_u -> 5.235602094 | S6: radconv | T6: =180/Pi -> 57.29577958 | AN6: XOVER SEARCH
B7: EA pole, p2 | C7: =Fp2_u -> 204354.7528 | D7: Hz | E7: k | F7: =k -> 0.9364178246 | H7: FF pole | I7: =Fp_ff -> 1000000000 | AN7: xover | AO7: =SUM(AN12:AN613)/1000 -> 39.5845
B8: EA input para pole | C8: =IF(VOUT_setting = 1, 1/(2*Pi*(((Rfb1_u*Rfb2_u)/(Rfb1_u+Rfb2_u))*(FBpara+Ceain))), 1/(2*Pi*(((Rfb1_u*Rfb2_u)/(Rfb1_u+Rfb2_u))*Ceain))) -> 1837827.588 | D8: Hz | E8: P_Extra | F8: 800000 | G8: Hz
AN9: phase margin | AO9: =SUM(AO13:AO613) -> 66.2174257
A10: Freq (Hz) | B10: Freq (kHz) | C10: Power Stage | G10: Error Amplifier and Compensation | O10: Fixed VOUT Feedback Gain | S10: FF Cap Gain | W10: Sampling Double Pole | Y10: Extra Parasitic Pole | AA10: System Response | AH10: ERROR AMP Response | AK10: PLANT Response
C11: p_dom | E11: z_ESR | G11: p1 | I11: z1 | K11: p2 | M11: pEA_in | O11: z1 | Q11: p1p2 | S11: Fz_ff | U11: Fp_ff | W11: p3 | Y11: p_extra
C12: Gain(V/V) | D12: Phase(rad) | E12: Gain(V/V) | F12: Phase(rad) | G12: Gain(V/V) | H12: Phase(rad) | I12: Gain(V/V) | J12: Phase(rad) | K12: Gain(V/V) | L12: Phase(rad) | M12: Gain(V/V) | N12: Phase(rad) | O12: Gain(V/V) | P12: Phase(rad) | Q12: Gain(V/V) | R12: Phase(rad) | S12: Gain(V/V) | T12: Phase(rad) | U12: Gain(V/V) | V12: Phase(rad) | W12: Gain(V/V) | X12: Phase(rad) | Y12: Gain(V/V) | Z12: Phase(rad) | AA12: Gain (dB) | AB12: Phase (°) | AC12: Phase Margin (°) | AF12: Fsquare | AH12: Gain(dB) | AI12: Phase(Deg) | AK12: Gain(dB) | AL12: Phase(Deg)
A13: 1 | B13: =A13/1000 -> 0.001 | C13: =SQRT(1+(A13/pole1)^2) -> 1.000000092 | D13: =ATAN(A13/pole1) -> 0.0004296640773 | E13: =SQRT(1+(A13/Zero1)^2) -> 1 | F13: =ATAN(A13/Zero1) -> 4.146902298e-06 | G13: =SQRT(1+(A13/Pole2)^2) -> 8.541295742 | H13: =ATAN(A13/Pole2) -> 1.453448937 | I13: =SQRT(1+(A13/Zero2)^2) -> 1.000000032 | J13: =ATAN(A13/Zero2) -> 0.0002544689992 | K13: =SQRT(1+(A13/pole4)^2) -> 1 | L13: =ATAN(A13/pole4) -> 4.893451149e-06 | M13: =SQRT(1+(A13/pEA_in)^2) -> 1 | N13: =ATAN(A13/pEA_in) -> 5.441206816e-07 | O13: =IF(VOUT_setting<4,1,SQRT(1+(A13*zterm1)^2)) -> 1 | P13: =IF(VOUT_setting<4,0,ATAN(((A13*zterm1)))) -> 0 | Q13: =IF(VOUT_setting<4,1,SQRT((1+Afbr-pterm4*(A13)^2)^2+(A13*$Q$4)^2)) -> 1 | R13: =IF(VOUT_setting<4,0,ATAN(A13*$Q$4/(1+Afbr-$Q$5*(A13)^2))) -> 0 | S13: =IF(NO_FF_CAP=1, 1, SQRT(1+(A13/Fz_ff)^2)) -> 1 | T13: =IF(NO_FF_CAP=1, 0, ATAN(A13/Fz_ff)) -> 0 | U13: =IF(NO_FF_CAP=1, 1, SQRT(1+(A13/Fp_ff)^2)) -> 1 | V13: =IF(NO_FF_CAP=1, 0, ATAN(A13/Fp_ff)) -> 0 | W13: =SQRT((1-(AF13/pterm2))^2+(A13/pterm1)^2) -> 1 | X13: =IF((ATAN((A13/pterm1)/(1-A13^2/pterm2))>0),ATAN((A13/pterm1)/(1-A13^2/pterm2)),PI()+ATAN((A13/pterm1)/(1-A13^2/pterm2))) -> 6.855235151e-06 | Y13: =SQRT(1+(A13/P_para)^2) -> 1 | Z13: =ATAN(A13/P_para) -> 1.25e-06 | AA13: =20*LOG10(((E13*I13*S13)/(C13*G13*W13*K13*Y13*M13*U13))*Adc) -> 96.48940309 | AB13: =((F13+J13+T13)-(D13+H13+X13+L13+Z13+N13+V13))*radconv -> -83.28706621 | AC13: =IF(AB13>0,AB13,AB13+180) -> 96.71293379 | AE13: =IF(AA13<0,A13,1000000000) -> 1000000000 | AF13: =A13^2 -> 1 | AH13: =20*LOG10((I13/(G13*K13))*AEA) -> 94.81148225 | AI13: =(J13-(H13+L13))*radconv -> -83.2621903 | AK13: =20*LOG10((E13*M13/(C13*W13))*Acs*Am) -> 45.06802243 | AL13: =(F13+N13-(D13+X13))*radconv -> -0.02474193849 | AN13: =SUM((AA14<0)*(AA13>0))*A13 -> 0 | AO13: =IF(AN13>0,AC11,0) -> 0
A14: 1.0965 | B14: =A14/1000 -> 0.0010965 | C14: 1.000000111 | D14: 0.0004711266549 | E14: 1 | F14: 4.54707837e-06 | G14: 9.354723649 | H14: 1.463693816 | I14: 1.000000039 | J14: 0.0002790252564 | K14: 1 | L14: 5.365669185e-06 | M14: 1 | N14: 5.966283274e-07 | O14: 1 | P14: 0 | Q14: 1 | R14: 0 | S14: 1 | T14: 0 | U14: 1 | V14: 0 | W14: 1 | X14: 7.516765343e-06 | Y14: 1 | Z14: 1.370625e-06 | AA14: 95.69925893 | AB14: -83.87507517 | AC14: 96.12492483 | AE14: 1000000000 | AF14: 1.20231225 | AH14: 94.02133825 | AI14: -83.84779874 | AK14: 45.06802226 | AL14: -0.02712953522 | AN14: 0 | AO14: 0
A15: 1.2023 | B15: 0.0012023 | C15: 1.000000133 | D15: 0.0005165851059 | E15: 1 | F15: 4.985820633e-06 | G15: 10.2474846 | H15: 1.473055855 | I15: 1.000000047 | J15: 0.0003059480747 | K15: 1 | L15: 5.883396316e-06 | M15: 1 | N15: 6.541962955e-07 | O15: 1 | P15: 0 | Q15: 1 | R15: 0 | S15: 1 | T15: 0 | U15: 1 | V15: 0 | W15: 1 | X15: 8.242049222e-06 | Y15: 1 | Z15: 1.502875e-06 | AA15: 94.90753256 | AB15: -84.41259946 | AC15: 95.58740054 | AE15: 1000000000 | AF15: 1.44552529 | AH15: 93.22961208 | AI15: -84.38269115 | AK15: 45.06802207 | AL15: -0.02974723183 | AN15: 0 | AO15: 0
A16: 1.3183 | B16: 0.0013183 | C16: 1.00000016 | D16: 0.0005664261273 | E16: 1 | F16: 5.466861299e-06 | G16: 11.22717524 | H16: 1.481608534 | I16: 1.000000056 | J16: 0.0003354664762 | K16: 1 | L16: 6.45103665e-06 | M16: 1 | N16: 7.173142946e-07 | O16: 1 | P16: 0 | Q16: 1 | R16: 0 | S16: 1 | T16: 0 | U16: 1 | V16: 0 | W16: 1 | X16: 9.037256499e-06 | Y16: 1 | Z16: 1.647875e-06 | AA16: 94.11446787 | AB16: -84.90385872 | AC16: 95.09614128 | AE16: 1000000000 | AF16: 1.73791489 | AH16: 92.43654762 | AI16: -84.87106481 | AK16: 45.06802184 | AL16: -0.03261729603 | AN16: 0 | AO16: 0
A17: 1.4454 | B17: 0.0014454 | C17: 1.000000193 | D17: 0.0006210364157 | E17: 1 | F17: 5.993932581e-06 | G17: 12.30139761 | H17: 1.48941495 | I17: 1.000000068 | J17: 0.0003678094827 | K17: 1 | L17: 7.072994291e-06 | M17: 1 | N17: 7.864720333e-07 | O17: 1 | P17: 0 | Q17: 1 | R17: 0 | S17: 1 | T17: 0 | U17: 1 | V17: 0 | W17: 1 | X17: 9.908556887e-06 | Y17: 1 | Z17: 1.80675e-06 | AA17: 93.32078859 | AB17: -85.35247763 | AC17: 94.64752237 | AE17: 1000000000 | AF17: 2.08918116 | AH17: 91.64286862 | AI17: -85.316522 | AK17: 45.06802155 | AL17: -0.03576199551 | AN17: 0 | AO17: 0
A18: 1.5849 | B18: 0.0015849 | C18: 1.000000232 | D18: 0.0006809745327 | E18: 1 | F18: 6.572425452e-06 | G18: 13.48114083 | H18: 1.496550434 | I18: 1.000000081 | J18: 0.0004033079036 | K18: 1 | L18: 7.755630726e-06 | M18: 1 | N18: 8.623768683e-07 | O18: 1 | P18: 0 | Q18: 1 | R18: 0 | S18: 1 | T18: 0 | U18: 1 | V18: 0 | W18: 1 | X18: 1.086486219e-05 | Y18: 1 | Z18: 1.981125e-06 | AA18: 92.52534458 | AB18: -85.76278616 | AC18: 94.23721384 | AE18: 1000000000 | AF18: 2.51190801 | AH18: 90.84742495 | AI18: -85.72336033 | AK18: 45.06802121 | AL18: -0.03921349468 | AN18: 0 | AO18: 0
A19: 1.7378 | B19: 0.0017378 | C19: 1.000000279 | D19: 0.0007466701407 | E19: 1 | F19: 7.206486813e-06 | G19: 14.77486353 | H19: 1.503062025 | I19: 1.000000098 | J19: 0.0004422162075 | K19: 1 | L19: 8.503839407e-06 | M19: 1 | N19: 9.455729206e-07 | O19: 1 | P19: 0 | Q19: 1 | R19: 0 | S19: 1 | T19: 0 | U19: 1 | V19: 0 | W19: 1 | X19: 1.191302765e-05 | Y19: 1 | Z19: 2.17225e-06 | AA19: 91.72940766 | AB19: -86.13748994 | AC19: 93.86251006 | AE19: 1000000000 | AF19: 3.01994884 | AH19: 90.05148844 | AI19: -86.09426059 | AK19: 45.06802081 | AL19: -0.04299653539 | AN19: 0 | AO19: 0
A20: 1.9055 | B20: 0.0019055 | C20: 1.000000335 | D20: 0.0008187247667 | E20: 1 | F20: 7.901922329e-06 | G20: 16.19441217 | H20: 1.509007323 | I20: 1.000000118 | J20: 0.0004848906504 | K20: 1 | L20: 9.324471164e-06 | M20: 1 | N20: 1.036821959e-06 | O20: 1 | P20: 0 | Q20: 1 | R20: 0 | S20: 1 | T20: 0 | U20: 1 | V20: 0 | W20: 1 | X20: 1.306265058e-05 | Y20: 1 | Z20: 2.381875e-06 | AA20: 90.93257314 | AB20: -86.47990406 | AC20: 93.52009594 | AE20: 1000000000 | AF20: 3.63093025 | AH20: 89.25465441 | AI20: -86.43250302 | AK20: 45.06802032 | AL20: -0.04714575619 | AN20: 0 | AO20: 0
A21: 2.0893 | B21: 0.0020893 | C21: 1.000000403 | D21: 0.0008976969707 | E21: 1 | F21: 8.664122971e-06 | G21: 17.75079152 | H21: 1.51443097 | I21: 1.000000141 | J21: 0.0005316620413 | K21: 1 | L21: 1.022388749e-05 | M21: 1 | N21: 1.13683134e-06 | O21: 1 | P21: 0 | Q21: 1 | R21: 0 | S21: 1 | T21: 0 | U21: 1 | V21: 0 | W21: 1 | X21: 1.43226428e-05 | Y21: 1 | Z21: 2.611625e-06 | AA21: 90.13552206 | AB21: -86.79260004 | AC21: 93.20739996 | AE21: 1000000000 | AF21: 4.36517449 | AH21: 88.45760392 | AI21: -86.74062681 | AK21: 45.06801973 | AL21: -0.05169332143 | AN21: 0 | AO21: 0
A22: 2.2909 | B22: 0.0022909 | C22: 1.000000484 | D22: 0.0009843171773 | E22: 1 | F22: 9.500138474e-06 | G22: 19.45839722 | H22: 1.519381984 | I22: 1.00000017 | J22: 0.0005829629767 | K22: 1 | L22: 1.121040724e-05 | M22: 1 | N22: 1.24652607e-06 | O22: 1 | P22: 0 | Q22: 1 | R22: 0 | S22: 1 | T22: 0 | U22: 1 | V22: 0 | W22: 1 | X22: 1.570465821e-05 | Y22: 1 | Z22: 2.863625e-06 | AA22: 89.33773477 | AB22: -87.07840444 | AC22: 92.92159556 | AE22: 1000000000 | AF22: 5.24822281 | AH22: 87.65981734 | AI22: -87.02141623 | AK22: 45.06801902 | AL22: -0.05668129214 | AN22: 0 | AO22: 0
A23: 2.5119 | B23: 0.0025119 | C23: 1.000000582 | D23: 0.001079272843 | E23: 1 | F23: 1.041660388e-05 | G23: 21.33078216 | H23: 1.523898531 | I23: 1.000000204 | J23: 0.0006392006057 | K23: 1 | L23: 1.229185994e-05 | M23: 1 | N23: 1.36677674e-06 | O23: 1 | P23: 0 | Q23: 1 | R23: 0 | S23: 1 | T23: 0 | U23: 1 | V23: 0 | W23: 1 | X23: 1.721966518e-05 | Y23: 1 | Z23: 3.139875e-06 | AA23: 88.53973991 | AB23: -87.3395209 | AC23: 92.6604791 | AE23: 1000000000 | AF23: 6.30964161 | AH23: 86.86182332 | AI23: -87.27703512 | AK23: 45.06801817 | AL23: -0.06214925508 | AN23: 0 | AO23: 0
A24: 2.7542 | B24: 0.0027542 | C24: 1.0000007 | D24: 0.001183380322 | E24: 1 | F24: 1.142139831e-05 | G24: 23.38404383 | H24: 1.528019079 | I24: 1.000000246 | J24: 0.0007008584179 | K24: 1 | L24: 1.347754315e-05 | M24: 1 | N24: 1.498617181e-06 | O24: 1 | P24: 0 | Q24: 1 | R24: 0 | S24: 1 | T24: 0 | U24: 1 | V24: 0 | W24: 1 | X24: 1.888068865e-05 | Y24: 1 | Z24: 3.44275e-06 | AA24: 87.74148252 | AB24: -87.5781735 | AC24: 92.4218265 | AE24: 1000000000 | AF24: 7.58561764 | AH24: 86.06356696 | AI24: -87.50966029 | AK24: 45.06801715 | AL24: -0.06814421951 | AN24: 0 | AO24: 0
A25: 3.02 | B25: 0.00302 | C25: 1.000000842 | D25: 0.001297584865 | E25: 1 | F25: 1.252364494e-05 | G25: 25.63682558 | H25: 1.531780039 | I25: 1.000000295 | J25: 0.0007684962428 | K25: 1 | L25: 1.477822247e-05 | M25: 1 | N25: 1.643244459e-06 | O25: 1 | P25: 0 | Q25: 1 | R25: 0 | S25: 1 | T25: 0 | U25: 1 | V25: 0 | W25: 1 | X25: 2.070281016e-05 | Y25: 1 | Z25: 3.775e-06 | AA25: 86.94258908 | AB25: -87.79647184 | AC25: 92.20352816 | AE25: 1000000000 | AF25: 9.1204 | AH25: 85.26467475 | AI25: -87.72134663 | AK25: 45.06801592 | AL25: -0.07472061708 | AN25: 0 | AO25: 0
A26: 3.3113 | B26: 0.0033113 | C26: 1.000001012 | D26: 0.001422745787 | E26: 1 | F26: 1.373163758e-05 | G26: 28.10607851 | H26: 1.535209324 | I26: 1.000000355 | J26: 0.0008426230157 | K26: 1 | L26: 1.620368479e-05 | M26: 1 | N26: 1.801746813e-06 | O26: 1 | P26: 0 | Q26: 1 | R26: 0 | S26: 1 | T26: 0 | U26: 1 | V26: 0 | W26: 1 | X26: 2.269974016e-05 | Y26: 1 | Z26: 4.139125e-06 | AA26: 86.14386799 | AB26: -87.99603623 | AC26: 92.00396377 | AE26: 1000000000 | AF26: 10.96470769 | AH26: 84.46595514 | AI26: -87.91366468 | AK26: 45.06801444 | AL26: -0.08192793093 | AN26: 0 | AO26: 0
A27: 3.6308 | B27: 0.0036308 | C27: 1.000001217 | D27: 0.001560023162 | E27: 1 | F27: 1.505657286e-05 | G27: 30.81468963 | H27: 1.538338573 | I27: 1.000000427 | J27: 0.0009239257992 | K27: 1 | L27: 1.776714243e-05 | M27: 1 | N27: 1.975593371e-06 | O27: 1 | P27: 0 | Q27: 1 | R27: 0 | S27: 1 | T27: 0 | U27: 1 | V27: 0 | W27: 1 | X27: 2.488998779e-05 | Y27: 1 | Z27: 4.5385e-06 | AA27: 85.34471598 | AB27: -88.17870812 | AC27: 91.82129188 | AE27: 1000000000 | AF27: 13.18270864 | AH27: 83.66680491 | AI27: -88.08838874 | AK27: 45.06801266 | AL27: -0.08983296325 | AN27: 0 | AO27: 0
A28: 3.9811 | B28: 0.0039811 | C28: 1.000001463 | D28: 0.001710534095 | E28: 1 | F28: 1.650923274e-05 | G28: 33.78470105 | H28: 1.541192807 | I28: 1.000000513 | J28: 0.001013066208 | K28: 1 | L28: 1.948131837e-05 | M28: 1 | N28: 2.166198846e-06 | O28: 1 | P28: 0 | Q28: 1 | R28: 0 | S28: 1 | T28: 0 | U28: 1 | V28: 0 | W28: 1 | X28: 2.729137666e-05 | Y28: 1 | Z28: 4.976375e-06 | AA28: 84.54546894 | AB28: -88.34594852 | AC28: 91.65405148 | AE28: 1000000000 | AF28: 15.84915721 | AH28: 82.86756001 | AI28: -88.24691512 | AK28: 45.06801052 | AL28: -0.09850004176 | AN28: 0 | AO28: 0
A29: 4.3652 | B29: 0.0043652 | C29: 1.000001759 | D29: 0.001875567546 | E29: 1 | F29: 1.810205791e-05 | G29: 37.04154826 | H29: 1.543796335 | I29: 1.000000617 | J29: 0.001110807642 | K29: 1 | L29: 2.136089295e-05 | M29: 1 | N29: 2.3751956e-06 | O29: 1 | P29: 0 | Q29: 1 | R29: 0 | S29: 1 | T29: 0 | U29: 1 | V29: 0 | W29: 1 | X29: 2.992447249e-05 | Y29: 1 | Z29: 5.4565e-06 | AA29: 83.74608626 | AB29: -88.49918201 | AC29: 91.50081799 | AE29: 1000000000 | AF29: 19.05497104 | AH29: 82.0681799 | AI29: -88.39059381 | AK29: 45.06800795 | AL29: -0.1080033905 | AN29: 0 | AO29: 0
A30: 4.7863 | B30: 0.0047863 | C30: 1.000002115 | D30: 0.0020564984 | E30: 1 | F30: 1.984831847e-05 | G30: 40.61236459 | H30: 1.546170795 | I30: 1.000000742 | J30: 0.001217964395 | K30: 1 | L30: 2.342152523e-05 | M30: 1 | N30: 2.604324819e-06 | O30: 1 | P30: 0 | Q30: 1 | R30: 0 | S30: 1 | T30: 0 | U30: 1 | V30: 0 | W30: 1 | X30: 3.281121201e-05 | Y30: 1 | Z30: 5.982875e-06 | AA30: 82.94670135 | AB30: -88.6396822 | AC30: 91.3603178 | AE30: 1000000000 | AF30: 22.90866769 | AH30: 81.26879807 | AI30: -88.52061879 | AK30: 45.06800486 | AL30: -0.1184221813 | AN30: 0 | AO30: 0
A31: 5.2481 | B31: 0.0052481 | C31: 1.000002542 | D31: 0.002254916361 | E31: 1 | F31: 2.176335795e-05 | G31: 44.5285251 | H31: 1.548336924 | I31: 1.000000892 | J31: 0.001335477989 | K31: 1 | L31: 2.568132097e-05 | M31: 1 | N31: 2.855599749e-06 | O31: 1 | P31: 0 | Q31: 1 | R31: 0 | S31: 1 | T31: 0 | U31: 1 | V31: 0 | W31: 1 | X31: 3.59769596e-05 | Y31: 1 | Z31: 6.560125e-06 | AA31: 82.14709825 | AB31: -88.76867635 | AC31: 91.23132365 | AE31: 1000000000 | AF31: 27.54255361 | AH31: 80.46919869 | AI31: -88.6381253 | AK31: 45.06800115 | AL31: -0.1298479564 | AN31: 0 | AO31: 0
A32: 5.7544 | B32: 0.0057544 | C32: 1.000003057 | D32: 0.00247245408 | E32: 1 | F32: 2.386293458e-05 | G32: 48.82225463 | H32: 1.550312432 | I32: 1.000001072 | J32: 0.001464315394 | K32: 1 | L32: 2.815887528e-05 | M32: 1 | N32: 3.13108805e-06 | O32: 1 | P32: 0 | Q32: 1 | R32: 0 | S32: 1 | T32: 0 | U32: 1 | V32: 0 | W32: 1 | X32: 3.944776516e-05 | Y32: 1 | Z32: 7.193e-06 | AA32: 81.34750493 | AB32: -88.88721932 | AC32: 91.11278068 | AE32: 1000000000 | AF32: 33.11311936 | AH32: 79.66960984 | AI32: -88.74407367 | AK32: 45.06799668 | AL32: -0.1423747309 | AN32: 0 | AO32: 0
A33: 6.3096 | B33: 0.0063096 | C33: 1.000003675 | D33: 0.002711001987 | E33: 1 | F33: 2.616529473e-05 | G33: 53.53086788 | H33: 1.55211443 | I33: 1.000001289 | J33: 0.001605596252 | K33: 1 | L33: 3.087571936e-05 | M33: 1 | N33: 3.433183853e-06 | O33: 1 | P33: 0 | Q33: 1 | R33: 0 | S33: 1 | T33: 0 | U33: 1 | V33: 0 | W33: 0.9999999999 | X33: 4.325379172e-05 | Y33: 1 | Z33: 7.887e-06 | AA33: 80.54777239 | AB33: -88.99633807 | AC33: 91.00366193 | AE33: 1000000000 | AF33: 39.81105216 | AH33: 78.86988266 | AI33: -88.8393814 | AK33: 45.06799131 | AL33: -0.1561113641 | AN33: 0 | AO33: 0
A34: 6.9183 | B34: 0.0069183 | C34: 1.000004418 | D34: 0.002972536414 | E34: 1 | F34: 2.868951416e-05 | G34: 58.69337712 | H34: 1.553757805 | I34: 1.00000155 | J34: 0.001760491096 | K34: 1.000000001 | L34: 3.385436307e-05 | M34: 1 | N34: 3.764390112e-06 | O34: 1 | P34: 0 | Q34: 1 | R34: 0 | S34: 1 | T34: 0 | U34: 1 | V34: 0 | W34: 0.9999999999 | X34: 4.742657337e-05 | Y34: 1 | Z34: 8.647875e-06 | AA34: 79.74807191 | AB34: -89.09693423 | AC34: 90.90306577 | AE34: 1000000000 | AF34: 47.86287489 | AH34: 78.07018864 | AI34: -88.92483571 | AK34: 45.06798486 | AL34: -0.1711716619 | AN34: 0 | AO34: 0
A35: 7.5858 | B35: 0.0075858 | C35: 1.000005312 | D35: 0.003259334416 | E35: 1 | F35: 3.145757144e-05 | G35: 64.35473277 | H35: 1.555256829 | I35: 1.000001863 | J35: 0.001930348578 | K35: 1.000000001 | L35: 3.712074171e-05 | M35: 1 | N35: 4.127590667e-06 | O35: 1 | P35: 0 | Q35: 1 | R35: 0 | S35: 1 | T35: 0 | U35: 1 | V35: 0 | W35: 0.9999999999 | X35: 5.200244283e-05 | Y35: 1 | Z35: 9.48225e-06 | AA35: 78.94823902 | AB35: -89.18988151 | AC35: 90.81011849 | AE35: 1000000000 | AF35: 57.54436164 | AH35: 77.27036351 | AI35: -89.00117848 | AK35: 45.0679771 | AL35: -0.1876867472 | AN35: 0 | AO35: 0
A36: 8.3176 | B36: 0.0083176 | C36: 1.000006386 | D36: 0.003573758935 | E36: 1.000000001 | F36: 3.449227454e-05 | G36: 70.56158271 | H36: 1.556623835 | I36: 1.00000224 | J36: 0.002116568232 | K36: 1.000000001 | L36: 4.070176925e-05 | M36: 1 | N36: 4.525778182e-06 | O36: 1 | P36: 0 | Q36: 1 | R36: 0 | S36: 1 | T36: 0 | U36: 1 | V36: 0 | W36: 0.9999999999 | X36: 5.701910393e-05 | Y36: 1 | Z36: 1.0397e-05 | AA36: 78.14847652 | AB36: -89.27594474 | AC36: 90.72405526 | AE36: 1000000000 | AF36: 69.18246976 | AH36: 76.47061034 | AI36: -89.06903773 | AK36: 45.06796777 | AL36: -0.2057926884 | AN36: 0 | AO36: 0
A37: 9.1201 | B37: 0.0091201 | C37: 1.000007678 | D37: 0.003918559535 | E37: 1.000000001 | F37: 3.782016363e-05 | G37: 77.3682093 | H37: 1.557870761 | I37: 1.000002693 | J37: 0.002320778603 | K37: 1.000000001 | L37: 4.462876379e-05 | M37: 1 | N37: 4.962435029e-06 | O37: 1 | P37: 0 | Q37: 1 | R37: 0 | S37: 1 | T37: 0 | U37: 1 | V37: 0 | W37: 0.9999999999 | X37: 6.252043015e-05 | Y37: 1 | Z37: 1.1400125e-05 | AA37: 77.3485846 | AB37: -89.35587563 | AC37: 90.64412437 | AE37: 1000000000 | AF37: 83.17622401 | AH37: 75.67072964 | AI37: -89.12900598 | AK37: 45.06795655 | AL37: -0.2256478179 | AN37: 0 | AO37: 0
A38: 10 | B38: 0.01 | C38: 1.000009231 | D38: 0.004296614597 | E38: 1.000000001 | F38: 4.146902296e-05 | G38: 84.83144049 | H38: 1.559007971 | I38: 1.000003238 | J38: 0.002544684554 | K38: 1.000000001 | L38: 4.893451145e-05 | M38: 1 | N38: 5.441206816e-06 | O38: 1 | P38: 0 | Q38: 1 | R38: 0 | S38: 1 | T38: 0 | U38: 1 | V38: 0 | W38: 0.9999999998 | X38: 6.855235157e-05 | Y38: 1 | Z38: 1.25e-05 | AA38: 76.54868991 | AB38: -89.43033875 | AC38: 90.56966125 | AE38: 1000000000 | AF38: 100 | AH38: 74.87084844 | AI38: -89.18158115 | AK38: 45.06794306 | AL38: -0.2474178851 | AN38: 0 | AO38: 0
A39: 10.965 | B39: 0.010965 | C39: 1.000011098 | D39: 0.004711232041 | E39: 1.000000001 | F39: 4.547078367e-05 | G39: 93.01658699 | H39: 1.560045349 | I39: 1.000003893 | J39: 0.002790245395 | K39: 1.000000001 | L39: 5.36566918e-05 | M39: 1 | N39: 5.966283274e-06 | O39: 1 | P39: 0 | Q39: 1 | R39: 0 | S39: 1 | T39: 0 | U39: 1 | V39: 0 | W39: 0.9999999998 | X39: 7.516765351e-05 | Y39: 1 | Z39: 1.370625e-05 | AA39: 75.74860821 | AB39: -89.49998183 | AC39: 90.50001817 | AE39: 1000000000 | AF39: 120.231225 | AH39: 74.07078296 | AI39: -89.22721946 | AK39: 45.06792684 | AL39: -0.271293375 | AN39: 0 | AO39: 0
A40: 12.023 | B40: 0.012023 | C40: 1.000013343 | D40: 0.005165805568 | E40: 1.000000001 | F40: 4.985820629e-05 | G40: 101.9906568 | H40: 1.56099135 | I40: 1.00000468 | J40: 0.003059471297 | K40: 1.000000002 | L40: 5.88339631e-05 | M40: 1 | N40: 6.541962955e-06 | O40: 1 | P40: 0 | Q40: 1 | R40: 0 | S40: 1 | T40: 0 | U40: 1 | V40: 0 | W40: 0.9999999998 | X40: 8.242049233e-05 | Y40: 1 | Z40: 1.502875e-05 | AA40: 74.94859578 | AB40: -89.56537291 | AC40: 90.43462709 | AE40: 1000000000 | AF40: 144.552529 | AH40: 73.27079003 | AI40: -89.26629246 | AK40: 45.06790735 | AL40: -0.2974697118 | AN40: 0 | AO40: 0
A41: 13.183 | B41: 0.013183 | C41: 1.000016042 | D41: 0.005664201303 | E41: 1.000000001 | F41: 5.466861294e-05 | G41: 111.8299888 | H41: 1.561854062 | I41: 1.000005627 | J41: 0.003354652304 | K41: 1.000000002 | L41: 6.451036641e-05 | M41: 1 | N41: 7.173142946e-06 | O41: 1 | P41: 0 | Q41: 1 | R41: 0 | S41: 1 | T41: 0 | U41: 1 | V41: 0 | W41: 0.9999999997 | X41: 9.037256514e-05 | Y41: 1 | Z41: 1.647875e-05 | AA41: 74.14862271 | AB41: -89.62707051 | AC41: 90.37292949 | AE41: 1000000000 | AF41: 173.791489 | AH41: 72.47084039 | AI41: -89.29913485 | AK41: 45.06788391 | AL41: -0.3261695243 | AN41: 0 | AO41: 0
A42: 14.454 | B42: 0.014454 | C42: 1.000019284 | D42: 0.006210285115 | E42: 1.000000002 | F42: 5.993932574e-05 | G42: 122.6109225 | H42: 1.562640356 | I42: 1.000006764 | J42: 0.003678078407 | K42: 1.000000003 | L42: 7.072994279e-05 | M42: 1 | N42: 7.864720332e-06 | O42: 1 | P42: 0 | Q42: 1 | R42: 0 | S42: 1 | T42: 0 | U42: 1 | V42: 0 | W42: 0.9999999997 | X42: 9.908556906e-05 | Y42: 1 | Z42: 1.80675e-05 | AA42: 73.34918685 | AB42: -89.68556341 | AC42: 90.31443659 | AE42: 1000000000 | AF42: 208.918116 | AH42: 71.67143269 | AI42: -89.32601156 | AK42: 45.06785575 | AL42: -0.3576154263 | AN42: 0 | AO42: 0
A43: 15.849 | B43: 0.015849 | C43: 1.000023186 | D43: 0.006809641121 | E43: 1.000000002 | F43: 6.572425443e-05 | G43: 134.4437273 | H43: 1.563358202 | I43: 1.000008133 | J43: 0.004033057388 | K43: 1.000000003 | L43: 7.755630711e-05 | M43: 1 | N43: 8.623768683e-06 | O43: 1 | P43: 0 | Q43: 1 | R43: 0 | S43: 1 | T43: 0 | U43: 1 | V43: 0 | W43: 0.9999999996 | X43: 0.0001086486222 | Y43: 1 | Z43: 1.981125e-05 | AA43: 72.54893716 | AB43: -89.74144571 | AC43: 90.25855429 | AE43: 1000000000 | AF43: 251.190801 | AH43: 70.87121689 | AI43: -89.34719343 | AK43: 45.06782186 | AL43: -0.3921289762 | AN43: 0 | AO43: 0
A44: 17.378 | B44: 0.017378 | C44: 1.000027875 | D44: 0.007466564039 | E44: 1.000000003 | F44: 7.206486801e-05 | G44: 147.4132261 | H44: 1.564012623 | I44: 1.000009778 | J44: 0.004422133537 | K44: 1.000000004 | L44: 8.503839386e-05 | M44: 1 | N44: 9.455729205e-06 | O44: 1 | P44: 0 | Q44: 1 | R44: 0 | S44: 1 | T44: 0 | U44: 1 | V44: 0 | W44: 0.9999999995 | X44: 0.0001191302768 | Y44: 1 | Z44: 2.17225e-05 | AA44: 71.74899258 | AB44: -89.79511089 | AC44: 90.20488911 | AE44: 1000000000 | AF44: 301.994884 | AH44: 70.07131304 | AI44: -89.36282525 | AK44: 45.06778114 | AL44: -0.4299574833 | AN44: 0 | AO44: 0
A45: 19.055 | B45: 0.019055 | C45: 1.000033515 | D45: 0.00818706657 | E45: 1.000000003 | F45: 7.901922312e-05 | G45: 161.6381717 | H45: 1.56460963 | I45: 1.000011756 | J45: 0.004848868882 | K45: 1.000000004 | L45: 9.324471137e-05 | M45: 1 | N45: 1.036821959e-05 | O45: 1 | P45: 0 | Q45: 1 | R45: 0 | S45: 1 | T45: 0 | U45: 1 | V45: 0 | W45: 0.9999999995 | X45: 0.0001306265062 | Y45: 1 | Z45: 2.381875e-05 | AA45: 70.94881121 | AB45: -89.8470513 | AC45: 90.1529487 | AE45: 1000000000 | AF45: 363.093025 | AH45: 69.27118064 | AI45: -89.37305129 | AK45: 45.06773216 | AL45: -0.4714471859 | AN45: 0 | AO45: =IF(AN45>0,AC43,0) -> 0
A46: 20.893 | B46: 0.020893 | C46: 1.000040292 | D46: 0.008976730991 | E46: 1.000000004 | F46: 8.66412295e-05 | G46: 177.228835 | H46: 1.565153874 | I46: 1.000014133 | J46: 0.005316570821 | K46: 1.000000005 | L46: 0.0001022388745 | M46: 1 | N46: 1.13683134e-05 | O46: 1 | P46: 0 | Q46: 1 | R46: 0 | S46: 1 | T46: 0 | U46: 1 | V46: 0 | W46: 0.9999999993 | X46: 0.0001432264286 | Y46: 1 | Z46: 2.611624999e-05 | AA46: 70.14896393 | AB46: -89.89767077 | AC46: 90.10232923 | AE46: 1000000000 | AF46: 436.517449 | AH46: 68.47139222 | AI46: -89.37795217 | AK46: 45.0676733 | AL46: -0.5169195369 | AN46: 0 | AO46: 0
A47: 22.909 | B47: 0.022909 | C47: 1.000048443 | D47: 0.009842857075 | E47: 1.000000005 | F47: 9.500138446e-05 | G47: 194.3294168 | H47: 1.565650403 | I47: 1.000016992 | J47: 0.00582956439 | K47: 1.000000006 | L47: 0.0001121040719 | M47: 1 | N47: 1.24652607e-05 | O47: 1 | P47: 0 | Q47: 1 | R47: 0 | S47: 1 | T47: 0 | U47: 1 | V47: 0 | W47: 0.9999999992 | X47: 0.0001570465828 | Y47: 1 | Z47: 2.863624999e-05 | AA47: 69.34883467 | AB47: -89.94743807 | AC47: 90.05256193 | AE47: 1000000000 | AF47: 524.822281 | AH47: 67.67133375 | AI47: -89.37757403 | AK47: 45.06760252 | AL47: -0.5667948906 | AN47: 0 | AO47: 0
A48: 25.119 | B48: 0.025119 | C48: 1.00005824 | D48: 0.01079231359 | E48: 1.000000005 | F48: 0.0001041660384 | G48: 213.0756362 | H48: 1.56610314 | I48: 1.000020429 | J48: 0.006391919876 | K48: 1.000000008 | L48: 0.0001229185988 | M48: 1 | N48: 1.36677674e-05 | O48: 1 | P48: 0 | Q48: 1 | R48: 0 | S48: 1 | T48: 0 | U48: 1 | V48: 0 | W48: 0.9999999991 | X48: 0.0001721966528 | Y48: 1 | Z48: 3.139874999e-05 | AA48: 68.5488745 | AB48: -89.99674703 | AC48: 90.00325297 | AE48: 1000000000 | AF48: 630.964161 | AH48: 66.87145866 | AI48: -89.37191302 | AK48: 45.06751743 | AL48: -0.6214687825 | AN48: 0 | AO48: 0
A49: 27.542 | B49: 0.027542 | C49: 1.000070017 | D49: 0.01183325639 | E49: 1.000000007 | F49: 0.0001142139826 | G49: 233.6286596 | H49: 1.566516017 | I49: 1.00002456 | J49: 0.007008470575 | K49: 1.000000009 | L49: 0.0001347754307 | M49: 1 | N49: 1.498617181e-05 | O49: 1 | P49: 0 | Q49: 1 | R49: 0 | S49: 1 | T49: 0 | U49: 1 | V49: 0 | W49: 0.9999999989 | X49: 0.0001888068879 | Y49: 1.000000001 | Z49: 3.442749999e-05 | AA49: 67.74896162 | AB49: -90.04602339 | AC49: 89.95397661 | AE49: 1000000000 | AF49: 758.561764 | AH49: 66.07164805 | AI49: -89.36092269 | AK49: 45.06741516 | AL49: -0.6814108642 | AN49: 0 | AO49: 0
A50: 30.2 | B50: 0.0302 | C50: 1.000084183 | D50: 0.01297512775 | E50: 1.000000008 | F50: 0.0001252364487 | G50: 256.1751014 | H50: 1.566892737 | I50: 1.000029529 | J50: 0.007684812658 | K50: 1.000000011 | L50: 0.0001477822236 | M50: 1 | N50: 1.643244458e-05 | O50: 1 | P50: 0 | Q50: 1 | R50: 0 | S50: 1 | T50: 0 | U50: 1 | V50: 0 | W50: 0.9999999986 | X50: 0.0002070281033 | Y50: 1.000000001 | Z50: 3.774999998e-05 | AA50: 66.94866575 | AB50: -90.09571164 | AC50: 89.90428836 | AE50: 1000000000 | AF50: 912.04 | AH50: 65.27147521 | AI50: -89.34450084 | AK50: 45.06729214 | AL50: -0.7471648662 | AN50: 0 | AO50: 0
A51: 33.113 | B51: 0.033113 | C51: 1.000101205 | D51: 0.0142265076 | E51: 1.000000009 | F51: 0.0001373163749 | G51: 280.8846114 | H51: 1.567236138 | I51: 1.0000355 | J51: 0.008426032735 | K51: 1.000000013 | L51: 0.0001620368465 | M51: 1 | N51: 1.801746813e-05 | O51: 1 | P51: 0 | Q51: 1 | R51: 0 | S51: 1 | T51: 0 | U51: 1 | V51: 0 | W51: 0.9999999984 | X51: 0.0002269974039 | Y51: 1.000000001 | Z51: 4.139124998e-05 | AA51: 66.14874917 | AB51: -90.14618531 | AC51: 89.85381469 | AE51: 1000000000 | AF51: 1096.470769 | AH51: 64.47170646 | AI51: -89.32252425 | AK51: 45.06714431 | AL51: -0.8192248634 | AN51: 0 | AO51: 0
A52: 36.308 | B52: 0.036308 | C52: 1.000121676 | D52: 0.01559897893 | E52: 1.000000011 | F52: 0.0001505657275 | G52: 307.9862167 | H52: 1.567549423 | I52: 1.000042681 | J52: 0.009238997734 | K52: 1.000000016 | L52: 0.0001776714224 | M52: 1 | N52: 1.975593371e-05 | O52: 1 | P52: 0 | Q52: 1 | R52: 0 | S52: 1 | T52: 0 | U52: 1 | V52: 0 | W52: 0.999999998 | X52: 0.0002488998809 | Y52: 1.000000001 | Z52: 4.538499997e-05 | AA52: 65.34856706 | AB52: -90.19791253 | AC52: 89.80208747 | AE52: 1000000000 | AF52: 1318.270864 | AH52: 63.67170212 | AI52: -89.29479044 | AK52: 45.06696654 | AL52: -0.8982578588 | AN52: 0 | AO52: 0
A53: 39.811 | B53: 0.039811 | C53: 1.000146286 | D53: 0.01710368962 | E53: 1.000000014 | F53: 0.0001650923259 | G53: 337.7004627 | H53: 1.567835118 | I53: 1.000051314 | J53: 0.01013031899 | K53: 1.000000019 | L53: 0.0001948131812 | M53: 1 | N53: 2.166198845e-05 | O53: 1 | P53: 0 | Q53: 1 | R53: 0 | S53: 1 | T53: 0 | U53: 1 | V53: 0 | W53: 0.9999999976 | X53: 0.0002729137706 | Y53: 1.000000001 | Z53: 4.976374996e-05 | AA53: 64.54842081 | AB53: -90.25131214 | AC53: 89.74868786 | AE53: 1000000000 | AF53: 1584.915721 | AH53: 62.87176957 | AI53: -89.26107281 | AK53: 45.06675284 | AL53: -0.9849058038 | AN53: 0 | AO53: 0
A54: 43.652 | B54: 0.043652 | C54: 1.000175873 | D54: 0.01875349865 | E54: 1.000000016 | F54: 0.0001810205771 | G54: 370.2818248 | H54: 1.568095678 | I54: 1.000061693 | J54: 0.01110762415 | K54: 1.000000023 | L54: 0.0002136089263 | M54: 1 | N54: 2.375195599e-05 | O54: 1 | P54: 0 | Q54: 1 | R54: 0 | S54: 1 | T54: 0 | U54: 1 | V54: 0 | W54: 0.9999999971 | X54: 0.0002992447301 | Y54: 1.000000001 | Z54: 5.456499995e-05 | AA54: 63.74823921 | AB54: -90.30684052 | AC54: 89.69315948 | AE54: 1000000000 | AF54: 1905.497104 | AH54: 62.0718449 | AI54: -89.22108322 | AK54: 45.06649592 | AL54: -1.079909183 | AN54: 0 | AO54: 0
A55: 47.863 | B55: 0.047863 | C55: 1.000211438 | D55: 0.02056211461 | E55: 1.00000002 | F55: 0.0001984831821 | G55: 406.0017435 | H55: 1.568333281 | I55: 1.000074169 | J55: 0.01217904776 | K55: 1.000000027 | L55: 0.0002342152481 | M55: 1 | N55: 2.604324818e-05 | O55: 1 | P55: 0 | Q55: 1 | R55: 0 | S55: 1 | T55: 0 | U55: 1 | V55: 0 | W55: 0.9999999966 | X55: 0.000328112127 | Y55: 1.000000002 | Z55: 5.982874993e-05 | AA55: 62.94812864 | AB55: -90.36495915 | AC55: 89.63504085 | AE55: 1000000000 | AF55: 2290.866769 | AH55: 61.27204315 | AI55: -89.17448947 | AK55: 45.0661871 | AL55: -1.18405741 | AN55: 0 | AO55: 0
A56: 52.481 | B56: 0.052481 | C56: 1.000254201 | D56: 0.02254538115 | E56: 1.000000024 | F56: 0.0002176335761 | G56: 445.1740724 | H56: 1.568550013 | I56: 1.000089171 | J56: 0.01335399397 | K56: 1.000000033 | L56: 0.0002568132041 | M56: 1 | N56: 2.855599749e-05 | O56: 1 | P56: 0 | Q56: 1 | R56: 0 | S56: 1 | T56: 0 | U56: 1 | V56: 0 | W56: 0.9999999959 | X56: 0.0003597696052 | Y56: 1.000000002 | Z56: 6.560124991e-05 | AA56: 62.1478483 | AB56: -90.42617639 | AC56: 89.57382361 | AE56: 1000000000 | AF56: 2754.255361 | AH56: 60.47213412 | AI56: -89.1208826 | AK56: 45.06581579 | AL56: -1.298262846 | AN56: 0 | AO56: 0
A57: 57.544 | B57: 0.057544 | C57: 1.000305606 | D57: 0.02471955494 | E57: 1.000000028 | F57: 0.0002386293413 | G57: 488.1211476 | H57: 1.568747654 | I57: 1.000107205 | J57: 0.01464211793 | K57: 1.00000004 | L57: 0.0002815887455 | M57: 1 | N57: 3.131088049e-05 | O57: 1 | P57: 0 | Q57: 1 | R57: 0 | S57: 1 | T57: 0 | U57: 1 | V57: 0 | W57: 0.999999995 | X57: 0.0003944776637 | Y57: 1.000000003 | Z57: 7.192999988e-05 | AA57: 61.34760331 | AB57: -90.49099295 | AC57: 89.50900705 | AE57: 1000000000 | AF57: 3311.311936 | AH57: 59.67233547 | AI57: -89.05982206 | AK57: 45.06536947 | AL57: -1.423461641 | AN57: 0 | AO57: 0
A58: 63.096 | B58: 0.063096 | C58: 1.000367411 | D58: 0.02710344763 | E58: 1.000000034 | F58: 0.0002616529414 | G58: 535.2162008 | H58: 1.568927922 | I58: 1.000128889 | J58: 0.01605459682 | K58: 1.000000048 | L58: 0.0003087571839 | M58: 1.000000001 | N58: 3.433183852e-05 | O58: 1 | P58: 0 | Q58: 1 | R58: 0 | S58: 1 | T58: 0 | U58: 1 | V58: 0 | W58: 0.999999994 | X58: 0.0004325379332 | Y58: 1.000000003 | Z58: 7.886999984e-05 | AA58: 60.54722242 | AB58: -90.55996837 | AC58: 89.44003163 | AE58: 1000000000 | AF58: 3981.105216 | AH58: 58.87249117 | AI58: -88.99077823 | AK58: 45.06483288 | AL58: -1.560737081 | AN58: 0 | AO58: 0
A59: 69.183 | B59: 0.069183 | C59: 1.000441704 | D59: 0.02971670116 | E59: 1.000000041 | F59: 0.0002868951338 | G59: 586.8494286 | H59: 1.569092311 | I59: 1.000154955 | J59: 0.0176031107 | K59: 1.000000057 | L59: 0.0003385436179 | M59: 1.000000001 | N59: 3.76439011e-05 | O59: 1 | P59: 0 | Q59: 1 | R59: 0 | S59: 1 | T59: 0 | U59: 1 | V59: 0 | W59: 0.9999999928 | X59: 0.0004742657546 | Y59: 1.000000004 | Z59: 8.647874978e-05 | AA59: 59.74685504 | AB59: -90.63366919 | AC59: 89.36633081 | AE59: 1000000000 | AF59: 4786.287489 | AH59: 58.07276876 | AI59: -88.91318038 | AK59: 45.06418791 | AL59: -1.711220269 | AN59: 0 | AO59: 0
A60: 75.858 | B60: 0.075858 | C60: 1.000531026 | D60: 0.03258192522 | E60: 1.000000049 | F60: 0.0003145757041 | G60: 643.4704057 | H60: 1.569242253 | I60: 1.000186295 | J60: 0.01930111263 | K60: 1.000000069 | L60: 0.0003712074002 | M60: 1.000000001 | N60: 4.127590664e-05 | O60: 1 | P60: 0 | Q60: 1 | R60: 0 | S60: 1 | T60: 0 | U60: 1 | V60: 0 | W60: 0.9999999914 | X60: 0.000520024456 | Y60: 1.000000004 | Z60: 9.482249972e-05 | AA60: 58.94631389 | AB60: -90.71273058 | AC60: 89.28726942 | AE60: 1000000000 | AF60: 5754.436164 | AH60: 57.273003 | AI60: -88.82635456 | AK60: 45.06341253 | AL60: -1.876213217 | AN60: 0 | AO60: 0
A61: 83.176 | B61: 0.083176 | C61: 1.000638389 | D61: 0.03572253856 | E61: 1.000000059 | F61: 0.0003449227319 | G61: 705.5456721 | H61: 1.569378984 | I61: 1.000223969 | J61: 0.02116255412 | K61: 1.000000083 | L61: 0.0004070176703 | M61: 1.000000001 | N61: 4.525778179e-05 | O61: 1 | P61: 0 | Q61: 1 | R61: 0 | S61: 1 | T61: 0 | U61: 1 | V61: 0 | W61: 0.9999999896 | X61: 0.0005701910757 | Y61: 1.000000005 | Z61: 0.0001039699996 | AA61: 58.14577793 | AB61: -90.79779542 | AC61: 89.20220458 | AE61: 1000000000 | AF61: 6918.246976 | AH61: 56.47339894 | AI61: -88.72958768 | AK61: 45.06248063 | AL61: -2.057064541 | AN61: 0 | AO61: 0
A62: 91.201 | B62: 0.091201 | C62: 1.000767469 | D62: 0.03916575744 | E62: 1.000000072 | F62: 0.0003782016184 | G62: 773.6181106 | H62: 1.569503699 | I62: 1.000269265 | J62: 0.02320366244 | K62: 1.0000001 | L62: 0.0004462876086 | M62: 1.000000001 | N62: 4.962435025e-05 | O62: 1 | P62: 0 | Q62: 1 | R62: 0 | S62: 1 | T62: 0 | U62: 1 | V62: 0 | W62: 0.9999999875 | X62: 0.0006252043495 | Y62: 1.000000006 | Z62: 0.0001140012495 | AA62: 57.34502094 | AB62: -90.88959633 | AC62: 89.11040367 | AE62: 1000000000 | AF62: 8317.622401 | AH62: 55.67376223 | AI62: -88.62203645 | AK62: 45.06136038 | AL62: -2.255341553 | AN62: 0 | AO62: 0
A63: 100 | B63: 0.1 | C63: 1.000922631 | D63: 0.04293999935 | E63: 1.000000086 | F63: 0.000414690206 | G63: 848.2560518 | H63: 1.569617437 | I63: 1.00032372 | J63: 0.02544140993 | K63: 1.00000012 | L63: 0.0004893450758 | M63: 1.000000001 | N63: 5.441206811e-05 | O63: 1 | P63: 0 | Q63: 1 | R63: 0 | S63: 1 | T63: 0 | U63: 1 | V63: 0 | W63: 0.999999985 | X63: 0.0006855235791 | Y63: 1.000000008 | Z63: 0.0001249999993 | AA63: 56.54414039 | AB63: -90.9888846 | AC63: 89.0111154 | AE63: 1000000000 | AF63: 10000 | AH63: 54.87422812 | AI63: -88.5028067 | AK63: 45.06001395 | AL63: -2.472680765 | AN63: 0 | AO63: 0
A64: 109.65 | B64: 0.10965 | C64: 1.001109187 | D64: 0.04707785817 | E64: 1.000000103 | F64: 0.0004547078056 | G64: 930.1126521 | H64: 1.569721188 | I64: 1.0003892 | J64: 0.02789528856 | K64: 1.000000144 | L64: 0.000536566867 | M64: 1.000000002 | N64: 5.966283267e-05 | O64: 1 | P64: 0 | Q64: 1 | R64: 0 | S64: 1 | T64: 0 | U64: 1 | V64: 0 | W64: 0.9999999819 | X64: 0.0007516766187 | Y64: 1.000000009 | Z64: 0.0001370624991 | AA64: 55.74291842 | AB64: -91.09650908 | AC64: 88.90349092 | AE64: 1000000000 | AF64: 12023.1225 | AH64: 54.07462476 | AI64: -88.3708599 | AK64: 45.05839537 | AL64: -2.710959216 | AN64: 0 | AO64: 0
A65: 120.23 | B65: 0.12023 | C65: 1.001333412 | D65: 0.05161263662 | E65: 1.000000124 | F65: 0.000498582022 | G65: 1019.858033 | H65: 1.569815798 | I65: 1.000467912 | J65: 0.03058526778 | K65: 1.000000173 | L65: 0.0005883395638 | M65: 1.000000002 | N65: 6.541962946e-05 | O65: 1 | P65: 0 | Q65: 1 | R65: 0 | S65: 1 | T65: 0 | U65: 1 | V65: 0 | W65: 0.9999999783 | X65: 0.0008242050334 | Y65: 1.000000011 | Z65: 0.0001502874989 | AA65: 54.94157315 | AB65: -91.21332474 | AC65: 88.78667526 | AE65: 1000000000 | AF65: 14455.2529 | AH65: 53.27522452 | AI65: -88.22512255 | AK65: 45.05645036 | AL65: -2.972094807 | AN65: 0 | AO65: 0
A66: 131.83 | B66: 0.13183 | C66: 1.001602908 | D66: 0.05658215801 | E66: 1.000000149 | F66: 0.0005466860755 | G66: 1118.255623 | H66: 1.569902077 | I66: 1.000562531 | J66: 0.03353407316 | K66: 1.000000208 | L66: 0.0006451035755 | M66: 1.000000003 | N66: 7.173142934e-05 | O66: 1 | P66: 0 | Q66: 1 | R66: 0 | S66: 1 | T66: 0 | U66: 1 | V66: 0 | W66: 0.9999999739 | X66: 0.0009037257966 | Y66: 1.000000014 | Z66: 0.0001647874985 | AA66: 54.14002973 | AB66: -91.34029146 | AC66: 88.65970854 | AE66: 1000000000 | AF66: 17379.1489 | AH66: 52.47601824 | AI66: -88.0643642 | AK66: 45.05411324 | AL66: -3.258265814 | AN66: 0 | AO66: 0
A67: 144.54 | B67: 0.14454 | C67: 1.001926576 | D67: 0.06202399204 | E67: 1.00000018 | F67: 0.0005993931864 | G67: 1226.068853 | H67: 1.569980712 | I67: 1.000676191 | J67: 0.03676437716 | K67: 1.00000025 | L67: 0.0007072993111 | M67: 1.000000003 | N67: 7.864720316e-05 | O67: 1 | P67: 0 | Q67: 1 | R67: 0 | S67: 1 | T67: 0 | U67: 1 | V67: 0 | W67: 0.9999999686 | X67: 0.0009908558819 | Y67: 1.000000016 | Z67: 0.000180674998 | AA67: 53.3387345 | AB67: -91.47835063 | AC67: 88.52164937 | AE67: 1000000000 | AF67: 20891.8116 | AH67: 51.67752912 | AI67: -87.88735042 | AK67: 45.05130716 | AL67: -3.571635984 | AN67: 0 | AO67: 0
A68: 158.49 | B68: 0.15849 | C68: 1.00231595 | D68: 0.06799249372 | E68: 1.000000216 | F68: 0.0006572424506 | G68: 1344.400454 | H68: 1.570052501 | I68: 1.000812956 | J68: 0.04030894687 | K68: 1.000000301 | L68: 0.0007755629171 | M68: 1.000000004 | N68: 8.623768662e-05 | O68: 1 | P68: 0 | Q68: 1 | R68: 0 | S68: 1 | T68: 0 | U68: 1 | V68: 0 | W68: 0.9999999622 | X68: 0.001086486474 | Y68: 1.00000002 | Z68: 0.0001981124974 | AA68: 52.53627072 | AB68: -91.62885483 | AC68: 88.37114517 | AE68: 1000000000 | AF68: 25119.0801 | AH68: 50.87843991 | AI68: -87.69228596 | AK68: 45.04793263 | AL68: -3.915335749 | AN68: 0 | AO68: 0
A69: 173.78 | B69: 0.17378 | C69: 1.002783708 | D69: 0.07452872993 | E69: 1.00000026 | F69: 0.0007206485566 | G69: 1474.098682 | H69: 1.570117946 | I69: 1.000977298 | J69: 0.04419283151 | K69: 1.000000362 | L69: 0.0008503837357 | M69: 1.000000004 | N69: 9.455729177e-05 | O69: 1 | P69: 0 | Q69: 1 | R69: 0 | S69: 1 | T69: 0 | U69: 1 | V69: 0 | W69: 0.9999999546 | X69: 0.0011913031 | Y69: 1.000000024 | Z69: 0.0002172249966 | AA69: 51.73368608 | AB69: -91.79280443 | AC69: 88.20719557 | AE69: 1000000000 | AF69: 30199.4884 | AH69: 50.07990742 | AI69: -87.47779242 | AK69: 45.04388053 | AL69: -4.291730468 | AN69: 0 | AO69: 0
A70: 190.55 | B70: 0.19055 | C70: 1.003345955 | D70: 0.08169029387 | E70: 1.000000312 | F70: 0.0007901920684 | G70: 1616.351093 | H70: 1.570177649 | I70: 1.001174905 | J70: 0.04845112002 | K70: 1.000000435 | L70: 0.0009324468462 | M70: 1.000000005 | N70: 0.0001036821955 | O70: 1 | P70: 0 | Q70: 1 | R70: 0 | S70: 1 | T70: 0 | U70: 1 | V70: 0 | W70: 0.9999999454 | X70: 0.001306265501 | Y70: 1.000000028 | Z70: 0.0002381874955 | AA70: 50.93034891 | AB70: -91.97159866 | AC70: 88.02840134 | AE70: 1000000000 | AF70: 36309.3025 | AH70: 49.28143846 | AI70: -87.24193307 | AK70: 45.03901238 | AL70: -4.704137349 | AN70: 0 | AO70: 0
A71: 208.93 | B71: 0.20893 | C71: 1.004021216 | D71: 0.08952974096 | E71: 1.000000375 | F71: 0.0008664120803 | G71: 1772.26042 | H71: 1.570232076 | I71: 1.001412326 | J71: 0.05311619992 | K71: 1.000000523 | L71: 0.001022388392 | M71: 1.000000006 | N71: 0.0001136831335 | O71: 1 | P71: 0 | Q71: 1 | R71: 0 | S71: 1 | T71: 0 | U71: 1 | V71: 0 | W71: 0.9999999344 | X71: 0.001432264864 | Y71: 1.000000034 | Z71: 0.0002611624941 | AA71: 50.12672782 | AB71: -92.1664897 | AC71: 87.8335103 | AE71: 1000000000 | AF71: 43651.7449 | AH71: 48.4836605 | AI71: -86.98291535 | AK71: 45.03316931 | AL71: -5.155583716 | AN71: 0 | AO71: 0
A72: 229.09 | B72: 0.22909 | C72: 1.004832727 | D72: 0.09811568936 | E72: 1.000000451 | F72: 0.0009500135616 | G72: 1943.268696 | H72: 1.57028173 | I72: 1.001697788 | J72: 0.05823039941 | K72: 1.000000628 | L72: 0.001121040254 | M72: 1.000000008 | N72: 0.0001246526063 | O72: 1 | P72: 0 | Q72: 1 | R72: 0 | S72: 1 | T72: 0 | U72: 1 | V72: 0 | W72: 0.9999999211 | X72: 0.00157046659 | Y72: 1.000000041 | Z72: 0.0002863624922 | AA72: 49.3220793 | AB72: -92.3791043 | AC72: 87.6208957 | AE72: 1000000000 | AF72: 52482.2281 | AH72: 47.6860289 | AI72: -86.69839062 | AK72: 45.02615247 | AL72: -5.650022182 | AN72: 0 | AO72: 0
A73: 251.19 | B73: 0.25119 | C73: 1.005807292 | D73: 0.1075111739 | E73: 1.000000543 | F73: 0.001041660011 | G73: 2130.733131 | H73: 1.570327005 | I73: 1.002040805 | J73: 0.06383322772 | K73: 1.000000755 | L73: 0.001229185375 | M73: 1.000000009 | N73: 0.0001366776732 | O73: 1 | P73: 0 | Q73: 1 | R73: 0 | S73: 1 | T73: 0 | U73: 1 | V73: 0 | W73: 0.9999999052 | X73: 0.001721967532 | Y73: 1.000000049 | Z73: 0.0003139874897 | AA73: 48.51670864 | AB73: -92.61089901 | AC73: 87.38910099 | AE73: 1000000000 | AF73: 63096.4161 | AH73: 46.88907757 | AI73: -86.38616252 | AK73: 45.01773325 | AL73: -6.19108422 | AN73: 0 | AO73: 0
A74: 275.42 | B74: 0.27542 | C74: 1.006977608 | D74: 0.1177902846 | E74: 1.000000652 | F74: 0.001142139334 | G74: 2336.265409 | H74: 1.570368293 | I74: 1.002453005 | J74: 0.06997143575 | K74: 1.000000908 | L74: 0.001347753499 | M74: 1.000000011 | N74: 0.000149861717 | O74: 1 | P74: 0 | Q74: 1 | R74: 0 | S74: 1 | T74: 0 | U74: 1 | V74: 0 | W74: 0.999999886 | X74: 0.001888070202 | Y74: 1.000000059 | Z74: 0.0003442749864 | AA74: 47.71031755 | AB74: -92.86356503 | AC74: 87.13643497 | AE74: 1000000000 | AF74: 75856.1764 | AH74: 46.09278613 | AI74: -86.04362821 | AK74: 45.00763372 | AL74: -6.783038429 | AN74: 0 | AO74: 0
A75: 302 | B75: 0.302 | C75: 1.0083835 | D75: 0.1290375686 | E75: 1.000000784 | F75: 0.001252363839 | G75: 2561.731692 | H75: 1.570405966 | I75: 1.002948586 | J75: 0.07669888533 | K75: 1.000001092 | L75: 0.001477821171 | M75: 1.000000014 | N75: 0.0001643244444 | O75: 1 | P75: 0 | Q75: 1 | R75: 0 | S75: 1 | T75: 0 | U75: 1 | V75: 0 | W75: 0.9999998629 | X75: 0.002070282778 | Y75: 1.000000071 | Z75: 0.0003774999821 | AA75: 46.90226255 | AB75: -93.1390002 | AC75: 86.8609998 | AE75: 1000000000 | AF75: 91204 | AH75: 45.29684827 | AI75: -85.66778456 | AK75: 44.99551673 | AL75: -7.430756293 | AN75: 0 | AO75: 0
A76: 331.13 | B76: 0.33113 | C76: 1.010070336 | D76: 0.1413261893 | E76: 1.000000943 | F76: 0.001373162895 | G76: 2808.828491 | H76: 1.570440306 | I76: 1.00354379 | J76: 0.08406374206 | K76: 1.000001313 | L76: 0.001620367061 | M76: 1.000000016 | N76: 0.0001801746794 | O76: 1 | P76: 0 | Q76: 1 | R76: 0 | S76: 1 | T76: 0 | U76: 1 | V76: 0 | W76: 0.9999998352 | X76: 0.002269976339 | Y76: 1.000000086 | Z76: 0.0004139124764 | AA76: 46.09306592 | AB76: -93.4387607 | AC76: 86.5612393 | AE76: 1000000000 | AF76: 109647.0769 | AH76: 44.50216788 | AI76: -85.2559442 | AK76: 44.98100066 | AL76: -8.138454567 | AN76: 0 | AO76: 0
A77: 363.08 | B77: 0.36308 | C77: =SQRT(1+(A77/pole1)^2) -> 1.012095234 | D77: =ATAN(A77/pole1) -> 0.1547550754 | E77: =SQRT(1+(A77/Zero1)^2) -> 1.000001134 | F77: =ATAN(A77/Zero1) -> 0.001505656149 | G77: =SQRT(1+(A77/Pole2)^2) -> 3079.846095 | H77: =ATAN(A77/Pole2) -> 1.570471635 | I77: =SQRT(1+(A77/Zero2)^2) -> 1.004259127 | J77: =ATAN(A77/Zero2) -> 0.0921310447 | K77: =SQRT(1+(A77/pole4)^2) -> 1.000001578 | L77: =ATAN(A77/pole4) -> 0.001776712374 | M77: =SQRT(1+(A77/pEA_in)^2) -> 1.00000002 | N77: =ATAN(A77/pEA_in) -> 0.0001975593345 | O77: =IF(VOUT_setting<4,1,SQRT(1+(A77*zterm1)^2)) -> 1 | P77: =IF(VOUT_setting<4,0,ATAN(((A77*zterm1)))) -> 0 | Q77: =IF(VOUT_setting<4,1,SQRT((1+Afbr-pterm4*(A77)^2)^2+(A77*$Q$4)^2)) -> 1 | R77: =IF(VOUT_setting<4,0,ATAN(A77*$Q$4/(1+Afbr-$Q$5*(A77)^2))) -> 0 | S77: =IF(NO_FF_CAP=1, 1, SQRT(1+(A77/Fz_ff)^2)) -> 1 | T77: =IF(NO_FF_CAP=1, 0, ATAN(A77/Fz_ff)) -> 0 | U77: =IF(NO_FF_CAP=1, 1, SQRT(1+(A77/Fp_ff)^2)) -> 1 | V77: =IF(NO_FF_CAP=1, 0, ATAN(A77/Fp_ff)) -> 0 | W77: =SQRT((1-(AF77/pterm2))^2+(A77/pterm1)^2) -> 0.9999998019 | X77: =IF((ATAN((A77/pterm1)/(1-A77^2/pterm2))>0),ATAN((A77/pterm1)/(1-A77^2/pterm2)),PI()+ATAN((A77/pterm1)/(1-A77^2/pterm2))) -> 0.002489001842 | Y77: =SQRT(1+(A77/P_para)^2) -> 1.000000103 | Z77: =ATAN(A77/P_para) -> 0.0004538499688 | AA77: =20*LOG10(((E77*I77*S77)/(C77*G77*W77*K77*Y77*M77*U77))*Adc) -> 45.28178345 | AB77: =((F77+J77+T77)-(D77+H77+X77+L77+Z77+N77+V77))*radconv -> -93.76495199 | AC77: =IF(AB77>0,AB77,AB77+180) -> 86.23504801 | AE77: =IF(AA77<0,A77,1000000000) -> 1000000000 | AF77: =A77^2 -> 131827.0864 | AH77: =20*LOG10((I77/(G77*K77))*AEA) -> 43.7082789 | AI77: =(J77-(H77+L77))*radconv -> -84.80447474 | AK77: =20*LOG10((E77*M77/(C77*W77))*Acs*Am) -> 44.96360737 | AL77: =(F77+N77-(D77+X77))*radconv -> -8.911834932 | AN77: =SUM((AA78<0)*(AA77>0))*A77 -> 0 | AO77: =IF(AN77>0,AC75,0) -> 0
A78: 398.11 | B78: =A78/1000 -> 0.39811 | C78: 1.014524187 | D78: 0.1694139618 | E78: 1.000001363 | F78: 0.001650921774 | G78: 3376.989969 | H78: 1.570500205 | I78: 1.00511842 | J78: 0.1009622027 | K78: 1.000001898 | L78: 0.001948129372 | M78: 1.000000023 | N78: 0.0002166198812 | O78: 1 | P78: 0 | Q78: 1 | R78: 0 | S78: 1 | T78: 0 | U78: 1 | V78: 0 | W78: 0.9999997618 | X78: 0.002729141704 | Y78: 1.000000124 | Z78: 0.0004976374589 | AA78: 44.46837606 | AB78: -94.11935145 | AC78: 85.88064855 | AE78: 1000000000 | AF78: 158491.5721 | AH78: 42.9156899 | AI78: -84.30994506 | AK78: 44.94278923 | AL78: -9.756071058 | AN78: 0 | AO78: 0
A79: 436.52 | B79: 0.43652 | C79: 1.017436789 | D79: 0.185402989 | E79: 1.000001638 | F79: 0.001810203814 | G79: 3702.80488 | H79: 1.570526261 | I79: 1.006150558 | J79: 0.1106272894 | K79: 1.000002281 | L79: 0.002136086047 | M79: 1.000000028 | N79: 0.0002375195555 | O79: 1 | P79: 0 | Q79: 1 | R79: 0 | S79: 1 | T79: 0 | U79: 1 | V79: 0 | W79: 0.9999997136 | X79: 0.002992452571 | Y79: 1.000000149 | Z79: 0.0005456499458 | AA79: 43.65236833 | AB79: -94.50385738 | AC79: 85.49614262 | AE79: 1000000000 | AF79: 190549.7104 | AH79: 42.12458025 | AI79: -83.76843841 | AK79: 44.91789146 | AL79: -10.67693779 | AN79: 0 | AO79: 0
A80: 478.63 | B80: 0.47863 | C80: 1.020927018 | D80: 0.2028224271 | E80: 1.00000197 | F80: 0.00198482924 | G80: 4060.005243 | H80: 1.570550022 | I80: 1.007389888 | J80: 0.1211995452 | K80: 1.000002743 | L80: 0.002342148241 | M80: 1.000000034 | N80: 0.000260432476 | O80: 1 | P80: 0 | Q80: 1 | R80: 0 | S80: 1 | T80: 0 | U80: 1 | V80: 0 | W80: 0.9999996557 | X80: 0.003281128217 | Y80: 1.000000179 | Z80: 0.0005982874286 | AA80: 42.83339914 | AB80: -94.92020321 | AC80: 85.07979679 | AE80: 1000000000 | AF80: 229086.6769 | AH80: 41.33535319 | AI80: -83.17586064 | AK80: 44.88814968 | AL80: -11.68021986 | AN80: 0 | AO80: 0
A81: 524.81 | B81: 0.52481 | C81: 1.025108116 | D81: 0.221782703 | E81: 1.000002368 | F81: 0.002176332359 | G81: 4451.729605 | H81: 1.570571695 | I81: 1.008878108 | J81: 0.1327623239 | K81: 1.000003298 | L81: 0.002568126452 | M81: 1.000000041 | N81: 0.0002855599672 | O81: 1 | P81: 0 | Q81: 1 | R81: 0 | S81: 1 | T81: 0 | U81: 1 | V81: 0 | W81: 0.9999995861 | X81: 0.00359770521 | Y81: 1.000000215 | Z81: 0.0006560124059 | AA81: 42.01067706 | AB81: -95.37015127 | AC81: 84.62984873 | AE81: 1000000000 | AF81: 275425.5361 | AH81: 40.54812692 | AI81: -82.52755161 | AK81: 44.85265431 | AL81: -12.77229015 | AN81: 0 | AO81: 0
A82: 575.44 | B82: 0.57544 | C82: 1.030111907 | D82: 0.2423849052 | E82: 1.000002847 | F82: 0.002386288929 | G82: 4881.201335 | H82: 1.570591459 | I82: 1.01066425 | J82: 0.1453982993 | K82: 1.000003965 | L82: 0.002815880087 | M82: 1.000000049 | N82: 0.0003131087948 | O82: 1 | P82: 0 | Q82: 1 | R82: 0 | S82: 1 | T82: 0 | U82: 1 | V82: 0 | W82: 0.9999995024 | X82: 0.003944788709 | Y82: 1.000000259 | Z82: 0.0007192998759 | AA82: 41.18378625 | AB82: -95.85497141 | AC82: 84.14502859 | AE82: 1000000000 | AF82: 331131.1936 | AH82: 39.76352637 | AI82: -81.81889119 | AK82: 44.81036456 | AL82: -13.95898775 | AN82: 0 | AO82: 0
A83: 630.96 | B83: 0.63096 | C83: 1.036096365 | D83: 0.2647376128 | E83: 1.000003423 | F83: 0.002616523503 | G83: 5352.152759 | H83: 1.570609486 | I83: 1.0128077 | J83: 0.1592010054 | K83: 1.000004767 | L83: 0.003087562126 | M83: 1.000000059 | N83: 0.0003433183718 | O83: 1 | P83: 0 | Q83: 1 | R83: 0 | S83: 1 | T83: 0 | U83: 1 | V83: 0 | W83: 0.9999994017 | X83: 0.004325395246 | Y83: 1.000000311 | Z83: 0.0007886998365 | AA83: 40.35183599 | AB83: -96.3757724 | AC83: 83.6242276 | AE83: 1000000000 | AF83: 398110.5216 | AH83: 38.98188564 | AI83: -81.04465348 | AK83: 44.76005567 | AL83: -15.24658836 | AN83: 0 | AO83: 0
A84: 691.83 | B84: 0.69183 | C84: 1.043245056 | D84: 0.2889361032 | E84: 1.000004115 | F84: 0.002868943546 | G84: 5868.485851 | H84: 1.570625925 | I84: 1.015378428 | J84: 0.1742635965 | K84: 1.000005731 | L84: 0.003385423375 | M84: 1.000000071 | N84: 0.0003764389934 | O84: 1 | P84: 0 | Q84: 1 | R84: 0 | S84: 1 | T84: 0 | U84: 1 | V84: 0 | W84: 0.9999992808 | X84: 0.004742678525 | Y84: 1.000000374 | Z84: 0.0008647872844 | AA84: 39.51417786 | AB84: -96.93293208 | AC84: 83.06706792 | AE84: 1000000000 | AF84: 478628.7489 | AH84: 38.2039448 | AI84: -80.19963866 | AK84: 44.70033913 | AL84: -16.64060802 | AN84: 0 | AO84: 0
A85: 758.58 | B85: 0.75858 | C85: 1.051776288 | D85: 0.3150769767 | E85: 1.000004948 | F85: 0.003145746769 | G85: 6434.696364 | H85: 1.570640919 | I85: 1.018460873 | J85: 0.1906896567 | K85: 1.00000689 | L85: 0.003712057123 | M85: 1.000000085 | N85: 0.0004127590432 | O85: 1 | P85: 0 | Q85: 1 | R85: 0 | S85: 1 | T85: 0 | U85: 1 | V85: 0 | W85: 0.9999991353 | X85: 0.005200272216 | Y85: 1.00000045 | Z85: 0.0009482247158 | AA85: 38.66972309 | AB85: -97.52634384 | AC85: 82.47365616 | AE85: 1000000000 | AF85: 575443.6164 | AH85: 37.43022312 | AI85: -79.27806858 | AK85: 44.62960694 | AL85: -18.14664729 | AN85: 0 | AO85: 0
A86: 831.76 | B86: 0.83176 | C86: 1.061940967 | D86: 0.343231949 | E86: 1.000005949 | F86: 0.003449213777 | G86: 7055.449705 | H86: 1.570654592 | I86: 1.022153973 | J86: 0.2085788102 | K86: 1.000008283 | L86: 0.004070154452 | M86: 1.000000102 | N86: 0.0004525777873 | O86: 1 | P86: 0 | Q86: 1 | R86: 0 | S86: 1 | T86: 0 | U86: 1 | V86: 0 | W86: 0.9999989604 | X86: 0.005701947214 | Y86: 1.00000054 | Z86: 0.001039699625 | AA86: 37.81768688 | AB86: -98.15471187 | AC86: 81.84528813 | AE86: 1000000000 | AF86: 691824.6976 | AH86: 36.66171763 | AI86: -78.27439646 | AK86: 44.54607732 | AL86: -19.76888342 | AN86: 0 | AO86: 0
A87: 912.01 | B87: 0.91201 | C87: 1.074035689 | D87: 0.3734677307 | E87: 1.000007152 | F87: 0.003781998333 | G87: 7736.174707 | H87: 1.570667064 | I87: 1.026576995 | J87: 0.2280413495 | K87: 1.000009959 | L87: 0.004462846753 | M87: 1.000000123 | N87: 0.0004962434621 | O87: 1 | P87: 0 | Q87: 1 | R87: 0 | S87: 1 | T87: 0 | U87: 1 | V87: 0 | W87: 0.9999987502 | X87: 0.006252091555 | Y87: 1.00000065 | Z87: 0.001140012006 | AA87: 36.95678949 | AB87: -98.8158905 | AC87: 81.1841095 | AE87: 1000000000 | AF87: 831762.2401 | AH87: 35.89917584 | AI87: -77.18248928 | AK87: 44.44772302 | AL87: -21.51121804 | AN87: 0 | AO87: 0
A88: 1000 | B88: 1 | C88: 1.088398476 | D88: 0.4058145431 | E88: 1.000008598 | F88: 0.004146878527 | G88: 8482.554683 | H88: 1.570678438 | I88: 1.031869408 | J88: 0.2491803422 | K88: 1.000011973 | L88: 0.00489341209 | M88: 1.000000148 | N88: 0.0005441206279 | O88: 1 | P88: 0 | Q88: 1 | R88: 0 | S88: 1 | T88: 0 | U88: 1 | V88: 0 | W88: 0.9999984974 | X88: 0.006855299145 | Y88: 1.000000781 | Z88: 0.001249999349 | AA88: 36.08605735 | AB88: -99.50607264 | AC88: 80.49392736 | AE88: 1000000000 | AF88: 1000000 | AH88: 35.14381454 | AI88: -75.99663546 | AK88: 44.33235375 | AL88: -23.37546586 | AN88: 0 | AO88: 0
A89: 1096.5 | B89: 1.0965 | C89: 1.105423158 | D89: 0.4402833223 | E89: 1.000010338 | F89: 0.004547047032 | G89: 9301.121199 | H89: 1.570688813 | I89: 1.038198005 | J89: 0.2721046017 | K89: 1.000014395 | L89: 0.005365617693 | M89: 1.000000178 | N89: 0.0005966282566 | O89: 1 | P89: 0 | Q89: 1 | R89: 0 | S89: 1 | T89: 0 | U89: 1 | V89: 0 | W89: 0.9999981935 | X89: 0.007516849709 | Y89: 1.000000939 | Z89: 0.001370624142 | AA89: 35.20417611 | AB89: -100.2200706 | AC89: 79.77992942 | AE89: 1000000000 | AF89: 1202312.25 | AH89: 34.39672986 | AI89: -74.71082197 | AK89: 44.19755909 | AL89: -25.36234907 | AN89: 0 | AO89: 0
A90: 1202.3 | B90: 1.2023 | C90: 1.125548852 | D90: 0.4768275259 | E90: 1.000012429 | F90: 0.00498577932 | G90: 10198.57547 | H90: 1.570698274 | I90: 1.04575534 | J90: 0.2969047797 | K90: 1.000017307 | L90: 0.005883328435 | M90: 1.000000214 | N90: 0.0006541962022 | O90: 1 | P90: 0 | Q90: 1 | R90: 0 | S90: 1 | T90: 0 | U90: 1 | V90: 0 | W90: 0.9999978282 | X90: 0.008242160441 | Y90: 1.000001129 | Z90: 0.001502873869 | AA90: 34.31036817 | AB90: -100.9504539 | AC90: 79.04954612 | AE90: 1000000000 | AF90: 1445525.29 | AH90: 33.65961836 | AI90: -73.32008116 | AK90: 44.04086492 | AL90: -27.46929903 | AN90: 0 | AO90: =IF(AN90>0,AC90,0) -> 0
A91: 1318.3 | B91: 1.3183 | C91: 1.149277437 | D91: 0.515366961 | E91: 1.000014943 | F91: 0.005466806839 | G91: 11182.55181 | H91: 1.570706902 | I91: 1.054769058 | J91: 0.3236691642 | K91: 1.000020808 | L91: 0.006450947163 | M91: 1.000000257 | N91: 0.0007173141716 | O91: 1 | P91: 0 | Q91: 1 | R91: 0 | S91: 1 | T91: 0 | U91: 1 | V91: 0 | W91: 0.9999973891 | X91: 0.009037403116 | Y91: 1.000001358 | Z91: 0.001647873508 | AA91: 33.40366815 | AB91: -101.6880586 | AC91: 78.31194144 | AE91: 1000000000 | AF91: 1737914.89 | AH91: 32.93410567 | AI91: -71.81961139 | AK91: 43.85968033 | AL91: -29.69183282 | AN91: 0 | AO91: 0
A92: 1445.4 | B92: 1.4454 | C92: 1.177151787 | D92: 0.5557440764 | E92: 1.000017963 | F92: 0.005993860801 | G92: 12260.68449 | H92: 1.570714765 | I92: 1.065496986 | J92: 0.3524518158 | K92: 1.000025013 | L92: 0.007072876347 | M92: 1.000000309 | N92: 0.0007864718711 | O92: 1 | P92: 0 | Q92: 1 | R92: 0 | S92: 1 | T92: 0 | U92: 1 | V92: 0 | W92: 0.9999968616 | X92: 0.009908750129 | Y92: 1.000001632 | Z92: 0.001806748034 | AA92: 32.48392882 | AB92: -102.4212487 | AC92: 77.57875132 | AE92: 1000000000 | AF92: 2089181.16 | AH92: 32.22249008 | AI92: -70.20657139 | AK92: 43.65155988 | AL92: -32.02103522 | AN92: 0 | AO92: 0
A93: 1584.9 | B93: 1.5849 | C93: 1.209845634 | D93: 0.5978428208 | E93: 1.000021598 | F93: 0.006572330819 | G93: 13444.00086 | H93: 1.570721944 | I93: 1.078265868 | J93: 0.3833547802 | K93: 1.000030074 | L93: 0.007755475232 | M93: 1.000000372 | N93: 0.0008623766546 | O93: 1 | P93: 0 | Q93: 1 | R93: 0 | S93: 1 | T93: 0 | U93: 1 | V93: 0 | W93: 0.9999962269 | X93: 0.01086511696 | Y93: 1.000001962 | Z93: 0.001981122408 | AA93: 31.54916498 | AB93: -103.1382328 | AC93: 76.86176719 | AE93: 1000000000 | AF93: 2511908.01 | AH93: 31.52564247 | AI93: -68.4754833 | AK93: 43.4136476 | AL93: -34.45041847 | AN93: 0 | AO93: 0
A94: 1737.8 | B94: 1.7378 | C94: 1.24800501 | D94: 0.6413666795 | E94: 1.000025966 | F94: 0.007206362065 | G94: 14740.98346 | H94: 1.570728489 | I94: 1.093414468 | J94: 0.4163621231 | K94: 1.000036157 | L94: 0.00850363443 | M94: 1.000000447 | N94: 0.0009455726388 | O94: 1 | P94: 0 | Q94: 1 | R94: 0 | S94: 1 | T94: 0 | U94: 1 | V94: 0 | W94: 0.9999954642 | X94: 0.01191336349 | Y94: 1.000002359 | Z94: 0.002172246583 | AA94: 30.60064588 | AB94: -103.8234763 | AC94: 76.1765237 | AE94: 1000000000 | AF94: 3019948.84 | AH94: 30.84681026 | AI94: -66.6275432 | AK94: 43.14396547 | AL94: -36.96311789 | AN94: 0 | AO94: 0
A95: 1905.5 | B95: 1.9055 | C95: 1.292404945 | D95: 0.6860547654 | E95: 1.00003122 | F95: 0.007901757869 | G95: 16163.50787 | H95: 1.570734459 | I95: 1.111359069 | J95: 0.4514872617 | K95: 1.000043472 | L95: 0.009324200937 | M95: 1.000000537 | N95: 0.001036821587 | O95: 1 | P95: 0 | Q95: 1 | R95: 0 | S95: 1 | T95: 0 | U95: 1 | V95: 0 | W95: 0.9999945473 | X95: 0.01306309333 | Y95: 1.000002837 | Z95: 0.002381870496 | AA95: 29.63819379 | AB95: -104.4620201 | AC95: 75.53797994 | AE95: 1000000000 | AF95: 3630930.25 | AH95: 30.18795515 | AI95: -64.66237807 | AK95: 42.8403742 | AL95: -39.54435986 | AN95: 0 | AO95: 0
A96: 2089.3 | B96: 2.0893 | C96: 1.343823011 | D96: 0.7315413854 | E96: 1.000037533 | F96: 0.008663906184 | G96: 17722.6014 | H96: 1.570739902 | I96: 1.132547827 | J96: 0.4886552835 | K96: 1.000052263 | L96: 0.01022353128 | M96: 1.000000646 | N96: 0.00113683085 | O96: 1 | P96: 0 | Q96: 1 | R96: 0 | S96: 1 | T96: 0 | U96: 1 | V96: 0 | W96: 0.9999934456 | X96: 0.01432322642 | Y96: 1.00000341 | Z96: 0.002611619062 | AA96: 28.66351271 | AB96: -105.0379065 | AC96: 74.96209354 | AE96: 1000000000 | AF96: 4365174.49 | AH96: 29.55208484 | AI96: -62.58464696 | AK96: 42.5015703 | AL96: -42.17335353 | AN96: 0 | AO96: 0
A97: 2290.9 | B97: 2.2909 | C97: 1.403168176 | D97: 0.7774951044 | E97: 1.000045125 | F97: 0.009499852686 | G97: 19432.68441 | H97: 1.570744867 | I97: 1.157517131 | J97: 0.5277981249 | K97: 1.000062835 | L97: 0.01120993766 | M97: 1.000000777 | N97: 0.001246525424 | O97: 1 | P97: 0 | Q97: 1 | R97: 0 | S97: 1 | T97: 0 | U97: 1 | V97: 0 | W97: 0.9999921212 | X97: 0.01570542759 | Y97: 1.0000041 | Z97: 0.002863617172 | AA97: 27.67744912 | AB97: -105.536964 | AC97: 74.46303603 | AE97: 1000000000 | AF97: 5248222.81 | AH97: 28.94130399 | AI97: -60.39872877 | AK97: 42.12629583 | AL97: -44.83132073 | AN97: 0 | AO97: 0
A98: 2511.9 | B98: 2.5119 | C98: 1.471336391 | D98: 0.8235051731 | E98: 1.000054251 | F98: 0.01041622715 | G98: 21307.32898 | H98: 1.570749395 | I98: 1.186835088 | J98: 0.5687459399 | K98: 1.000075542 | L98: 0.01229124094 | M98: 1.000000934 | N98: 0.001366775889 | O98: 1 | P98: 0 | Q98: 1 | R98: 0 | S98: 1 | T98: 0 | U98: 1 | V98: 0 | W98: 0.9999905298 | X98: 0.01722067938 | Y98: 1.000004929 | Z98: 0.003139864682 | AA98: 26.682713 | AB98: -105.9462541 | AC98: 74.05374593 | AE98: 1000000000 | AF98: 6309641.61 | AH98: 28.35852835 | AI98: -58.11480531 | AK98: 41.71434528 | AL98: -47.49492678 | AN98: 0 | AO98: 0
A99: 2754.2 | B99: 2.7542 | C99: 1.5493193 | D99: 0.8691909132 | E99: 1.000065222 | F99: 0.01142090171 | G99: 23362.65197 | H99: 1.570753523 | I99: 1.2211481 | J99: 0.6113019284 | K99: 1.000090818 | L99: 0.0134767272 | M99: 1.000001123 | N99: 0.00149861606 | O99: 1 | P99: 0 | Q99: 1 | R99: 0 | S99: 1 | T99: 0 | U99: 1 | V99: 0 | W99: 0.9999886177 | X99: 0.01888202555 | Y99: 1.000005926 | Z99: 0.003442736398 | AA99: 25.68179949 | AB99: -106.2562672 | AC99: 73.74373278 | AE99: 1000000000 | AF99: 7585617.64 | AH99: 27.80609234 | AI99: -55.7446867 | AK99: 41.26587972 | AL99: -50.1425975 | AN99: 0 | AO99: 0
A100: 3020 | B100: 3.02 | C100: 1.638208891 | D100: 0.9142021033 | E100: 1.000078418 | F100: 0.01252299026 | G100: 25617.31498 | H100: 1.570757291 | I100: 1.261184645 | J100: 0.6552340892 | K100: 1.000109192 | L100: 0.01477714678 | M100: 1.00000135 | N100: 0.00164324298 | O100: 1 | P100: 0 | Q100: 1 | R100: 0 | S100: 1 | T100: 0 | U100: 1 | V100: 0 | W100: 0.9999863191 | X100: 0.02070457263 | Y100: 1.000007125 | Z100: 0.003774982068 | AA100: 24.67717249 | AB100: -106.4614175 | AC100: 73.53858253 | AE100: 1000000000 | AF100: 9120400 | AH100: 27.2859101 | AI100: -53.3022837 | AK100: 40.78144931 | AL100: -52.75454145 | AN100: 0 | AO100: 0
A101: 3311.3 | B101: 3.3113 | C101: 1.739025102 | D101: 0.9581496093 | E101: 1.000094274 | F101: 0.01373077461 | G101: 28088.28314 | H101: 1.570760725 | I101: 1.307674991 | J101: 0.7001958404 | K101: 1.000131271 | L101: 0.01620226687 | M101: 1.000001623 | N101: 0.001801744863 | O101: 1 | P101: 0 | Q101: 1 | R101: 0 | S101: 1 | T101: 0 | U101: 1 | V101: 0 | W101: 0.9999835588 | X101: 0.02270206337 | Y101: 1.000008566 | Z101: 0.004139101363 | AA101: 23.67298725 | AB101: -106.5603465 | AC101: 73.43965355 | AE101: 1000000000 | AF101: 10964707.69 | AH101: 26.8003095 | AI101: -50.80801523 | AK101: 40.26288194 | AL101: -55.30871343 | AN101: 0 | AO101: 0
A102: 3630.8 | B102: 3.6308 | C102: 1.853018137 | D102: 1.000762977 | E102: 1.000113344 | F102: 0.01505543524 | G102: 30798.45935 | H102: 1.570763858 | I102: 1.361484252 | J102: 0.7458777631 | K102: 1.000157823 | L102: 0.01776527326 | M102: 1.000001951 | N102: 0.001975590801 | O102: 1 | P102: 0 | Q102: 1 | R102: 0 | S102: 1 | T102: 0 | U102: 1 | V102: 0 | W102: 0.9999802421 | X102: 0.02489305038 | Y102: 1.000010299 | Z102: 0.004538468839 | AA102: 22.67163692 | AB102: -106.5567439 | AC102: 73.44325605 | AE102: 1000000000 | AF102: 13182708.64 | AH102: 26.35025904 | AI102: -48.28036703 | AK102: 39.71160283 | AL102: -57.78995577 | AN102: 0 | AO102: 0
A103: 3981.1 | B103: 3.9811 | C103: 1.981396628 | D103: 1.041768262 | E103: 1.000136268 | F103: 0.01650773309 | G103: 33769.89823 | H103: 1.570766715 | I103: 1.423482997 | J103: 0.7918889428 | K103: 1.000189743 | L103: 0.0194788544 | M103: 1.000002346 | N103: 0.002166195457 | O103: 1 | P103: 0 | Q103: 1 | R103: 0 | S103: 1 | T103: 0 | U103: 1 | V103: 0 | W103: 0.9999762589 | X103: 0.02729541384 | Y103: 1.000012382 | Z103: 0.004976333922 | AA103: 21.67651494 | AB103: -106.4587154 | AC103: 73.54128463 | AE103: 1000000000 | AF103: 15849157.21 | AH103: 25.93675988 | AI103: -45.74246528 | AK103: 39.13000496 | AL103: -60.18289944 | AN103: 0 | AO103: 0
A104: 4365.2 | B104: 4.3652 | C104: 2.125502734 | D104: 1.080965143 | E104: 1.000163829 | F104: 0.01810008105 | G104: 37028.04746 | H104: 1.57076932 | I104: 1.494621903 | J104: 0.8378456025 | K104: 1.000228118 | L104: 0.02135764494 | M104: 1.000002821 | N104: 0.002375191133 | O104: 1 | P104: 0 | Q104: 1 | R104: 0 | S104: 1 | T104: 0 | U104: 1 | V104: 0 | W104: 0.9999714758 | X104: 0.02992979436 | Y104: 1.000014887 | Z104: 0.005456445848 | AA104: 20.69019172 | AB104: -106.2783916 | AC104: 73.72160836 | AE104: 1000000000 | AF104: 19054971.04 | AH104: 25.55998659 | AI104: -43.2171387 | AK104: 38.52048502 | AL104: -62.47644477 | AN104: 0 | AO104: 0
A105: 4786.3 | B105: 4.7863 | C105: 2.286743885 | D105: 1.118198781 | E105: 1.000196958 | F105: 0.01984571263 | G105: 40600.05121 | H105: 1.570771696 | I105: 1.575892996 | J105: 0.8833561431 | K105: 1.000274246 | L105: 0.02341724388 | M105: 1.000003391 | N105: 0.002604318931 | O105: 1 | P105: 0 | Q105: 1 | R105: 0 | S105: 1 | T105: 0 | U105: 1 | V105: 0 | W105: 0.9999657345 | X105: 0.03281822708 | Y105: 1.000017897 | Z105: 0.005982803616 | AA105: 19.71497272 | AB105: -106.0310663 | AC105: 73.96893368 | AE105: 1000000000 | AF105: 22908667.69 | AH105: 25.21957829 | AI105: -40.72771926 | AK105: 37.88571038 | AL105: -64.6621247 | AN105: 0 | AO105: 0
A106: 5248.1 | B106: 5.2481 | C106: 2.46671138 | D106: 1.153382094 | E106: 1.000236794 | F106: 0.0217599229 | G106: 44517.29493 | H106: 1.570773864 | I106: 1.668383523 | J106: 0.9280667853 | K106: 1.000329711 | L106: 0.02567567734 | M106: 1.000004077 | N106: 0.002855591987 | O106: 1 | P106: 0 | Q106: 1 | R106: 0 | S106: 1 | T106: 0 | U106: 1 | V106: 0 | W106: 0.9999588432 | X106: 0.03598620692 | Y106: 1.000021517 | Z106: 0.006560030897 | AA106: 18.7521829 | AB106: -105.7340188 | AC106: 74.26598123 | AE106: 1000000000 | AF106: 27542553.61 | AH106: 24.91443631 | AI106: -38.29551104 | AK106: 37.22810591 | AL106: -66.73541891 | AN106: 0 | AO106: 0
A107: 5370.3 | B107: 5.3703 | C107: 2.514798354 | D107: 1.161846256 | E107: 1.000247948 | F107: 0.02226642883 | G107: 45553.86311 | H107: 1.570774375 | I107: 1.693377378 | J107: 0.9390736903 | K107: 1.000345241 | L107: 0.0262732537 | M107: 1.000004269 | N107: 0.00292208298 | O107: 1 | P107: 0 | Q107: 1 | R107: 0 | S107: 1 | T107: 0 | U107: 1 | V107: 0 | W107: 0.9999569159 | X107: 0.03682457762 | Y107: 1.000022531 | Z107: 0.006712774169 | AA107: 18.5136829 | AB107: -105.6541739 | AC107: 74.34582614 | AE107: 1000000000 | AF107: 28840122.09 | AH107: 24.84352978 | AI107: -37.69912973 | AK107: 37.06052458 | AL107: -67.23558446 | AN107: 0 | AO107: 0
A108: 5432.85 | B108: 5.43285 | C108: 2.539480146 | D108: 1.166054585 | E108: 1.000253757 | F108: 0.02252568748 | G108: 46084.4469 | H108: 1.570774628 | I108: 1.706248499 | J108: 0.9445826344 | K108: 1.000353329 | L108: 0.02657912537 | M108: 1.000004369 | N108: 0.002956117434 | O108: 1 | P108: 0 | Q108: 1 | R108: 0 | S108: 1 | T108: 0 | U108: 1 | V108: 0 | W108: 0.9999559126 | X108: 0.03725372276 | Y108: 1.000023059 | Z108: 0.006790958105 | AA108: 18.39402052 | AB108: -105.6133572 | AC108: 74.38664284 | AE108: 1000000000 | AF108: 29515859.12 | AH108: 24.80864678 | AI108: -37.40103012 | AK108: 36.97575152 | AL108: -67.48448769 | AN108: 0 | AO108: 0
A109: 5495.4 | B109: 5.4954 | C109: 2.564206046 | D109: 1.170181827 | E109: 1.000259633 | F109: 0.02278494311 | G109: 46615.03069 | H109: 1.570774874 | I109: 1.719170626 | J109: 0.9500089253 | K109: 1.00036151 | L109: 0.02688499206 | M109: 1.000004471 | N109: 0.002990151882 | O109: 1 | P109: 0 | Q109: 1 | R109: 0 | S109: 1 | T109: 0 | U109: 1 | V109: 0 | W109: 0.999954898 | X109: 0.03768287606 | Y109: 1.000023593 | Z109: 0.006869141958 | AA109: 18.27594394 | AB109: -105.5726302 | AC109: 74.42736982 | AE109: 1000000000 | AF109: 30199421.16 | AH109: 24.77467784 | AI109: -37.10766557 | AK109: 36.89165027 | AL109: -67.7287456 | AN109: 0 | AO109: 0
A110: 5559.4 | B110: 5.5594 | C110: 2.589549465 | D110: 1.174323093 | E110: 1.000265715 | F110: 0.02305020548 | G110: 47157.91419 | H110: 1.570775121 | I110: 1.732443909 | J110: 0.9554770557 | K110: 1.000369978 | L110: 0.02719794397 | M110: 1.000004575 | N110: 0.003024975291 | O110: 1 | P110: 0 | Q110: 1 | R110: 0 | S110: 1 | T110: 0 | U110: 1 | V110: 0 | W110: 0.9999538482 | X110: 0.03812198629 | Y110: 1.000024146 | Z110: 0.006949138139 | AA110: 18.15673255 | AB110: -105.5310909 | AC110: 74.46890913 | AE110: 1000000000 | AF110: 30906928.36 | AH110: 24.74083606 | AI110: -36.81230975 | AK110: 36.80628729 | AL110: -67.97398819 | AN110: 0 | AO110: 0
A111: 5623.4 | B111: 5.6234 | C111: 2.614936433 | D111: 1.178384017 | E111: 1.000271867 | F111: 0.02331546462 | G111: 47700.79768 | H111: 1.570775363 | I111: 1.745768205 | J111: 0.9608618759 | K111: 1.000378544 | L111: 0.02751089056 | M111: 1.000004681 | N111: 0.003059798692 | O111: 1 | P111: 0 | Q111: 1 | R111: 0 | S111: 1 | T111: 0 | U111: 1 | V111: 0 | W111: 0.9999527865 | X111: 0.03856110525 | Y111: 1.000024705 | Z111: 0.007029134231 | AA111: 18.03910341 | AB111: -105.4897217 | AC111: 74.51027833 | AE111: 1000000000 | AF111: 31622627.56 | AH111: 24.70788855 | AI111: -36.52172663 | AK111: 36.72161236 | AL111: -68.21462822 | AN111: 0 | AO111: 0
A112: 5688.9 | B112: 5.6889 | C112: 2.640962191 | D112: 1.182459211 | E112: 1.000278236 | F112: 0.02358693736 | G112: 48256.40501 | H112: 1.570775604 | I112: 1.759456398 | J112: 0.9662882937 | K112: 1.000387412 | L112: 0.02783116625 | M112: 1.000004791 | N112: 0.003095438259 | O112: 1 | P112: 0 | Q112: 1 | R112: 0 | S112: 1 | T112: 0 | U112: 1 | V112: 0 | W112: 0.9999516877 | X112: 0.03901052521 | Y112: 1.000025284 | Z112: 0.007111005138 | AA112: 17.92031646 | AB112: -105.447595 | AC112: 74.55240502 | AE112: 1000000000 | AF112: 32363583.21 | AH112: 24.67506367 | AI112: -36.22918006 | AK112: 36.63565721 | AL112: -68.45627324 | AN112: 0 | AO112: 0
A113: 5754.4 | B113: 5.7544 | C113: 2.667030951 | D113: 1.186454804 | E113: 1.000284679 | F113: 0.02385840663 | G113: 48812.01234 | H113: 1.57077584 | I113: 1.7731956 | J113: 0.9716307762 | K113: 1.000396383 | L113: 0.02815143623 | M113: 1.000004902 | N113: 0.003131077818 | O113: 1 | P113: 0 | Q113: 1 | R113: 0 | S113: 1 | T113: 0 | U113: 1 | V113: 0 | W113: 0.9999505765 | X113: 0.03945995453 | Y113: 1.000025869 | Z113: 0.00719287595 | AA113: 17.80310845 | AB113: -105.4057168 | AC113: 74.59428323 | AE113: 1000000000 | AF113: 33113119.36 | AH113: 24.64311356 | AI113: -35.941442 | AK113: 36.55040633 | AL113: -68.69335825 | AN113: 0 | AO113: 0
A114: 5821.4 | B114: 5.8214 | C114: 2.693739895 | D114: 1.190461822 | E114: 1.000291346 | F114: 0.02413608911 | G114: 49380.3435 | H114: 1.570776076 | I114: 1.787300988 | J114: 0.9770104686 | K114: 1.000405665 | L114: 0.02847903466 | M114: 1.000005017 | N114: 0.003167533543 | O114: 1 | P114: 0 | Q114: 1 | R114: 0 | S114: 1 | T114: 0 | U114: 1 | V114: 0 | W114: 0.9999494271 | X114: 0.03991968592 | Y114: 1.000026475 | Z114: 0.007276621567 | AA114: 17.68481055 | AB114: -105.3631695 | AC114: 74.63683049 | AE114: 1000000000 | AF114: 33888697.96 | AH114: 24.61130609 | AI114: -35.65199184 | AK114: 36.46392315 | AL114: -68.93128536 | AN114: 0 | AO114: 0
A115: 5888.4 | B115: 5.8884 | C115: 2.72049124 | D115: 1.194390099 | E115: 1.00029809 | F115: 0.02441376787 | G115: 49948.67466 | H115: 1.570776306 | I115: 1.801457291 | J115: 0.9823057624 | K115: 1.000415054 | L115: 0.02880662698 | M115: 1.000005133 | N115: 0.003203989258 | O115: 1 | P115: 0 | Q115: 1 | R115: 0 | S115: 1 | T115: 0 | U115: 1 | V115: 0 | W115: 0.9999482648 | X115: 0.04037942734 | Y115: 1.000027088 | Z115: 0.007360367081 | AA115: 17.56808612 | AB115: -105.3209465 | AC115: 74.67905353 | AE115: 1000000000 | AF115: 34673254.56 | AH115: 24.58035282 | AI115: -35.36737672 | AK115: 36.37815934 | AL115: -69.16470166 | AN115: 0 | AO115: 0
A116: 5957 | B116: 5.957 | C116: 2.747924063 | D116: 1.198332876 | E116: 1.000305075 | F116: 0.02469807386 | G116: 50530.57791 | H116: 1.570776537 | I116: 1.816003166 | J116: 0.9876418198 | K116: 1.000424779 | L116: 0.02914203599 | M116: 1.000005253 | N116: 0.003241315549 | O116: 1 | P116: 0 | Q116: 1 | R116: 0 | S116: 1 | T116: 0 | U116: 1 | V116: 0 | W116: 0.9999470613 | X116: 0.04085015815 | Y116: 1.000027723 | Z116: 0.007446112381 | AA116: 17.45016503 | AB116: -105.278081 | AC116: 74.72191903 | AE116: 1000000000 | AF116: 35485849 | AH116: 24.54951508 | AI116: -35.08087388 | AK116: 36.29108359 | AL116: -69.39914888 | AN116: 0 | AO116: 0
A117: 6025.6 | B117: 6.0256 | C117: 2.775398759 | D117: 1.20219765 | E117: 1.000312141 | F117: 0.02498237586 | G117: 51112.48115 | H117: 1.570776762 | I117: 1.830599926 | J117: 0.992892928 | K117: 1.000434617 | L117: 0.02947743844 | M117: 1.000005375 | N117: 0.003278641831 | O117: 1 | P117: 0 | Q117: 1 | R117: 0 | S117: 1 | T117: 0 | U117: 1 | V117: 0 | W117: 0.9999458443 | X117: 0.04132089971 | Y117: 1.000028365 | Z117: 0.007531857572 | AA117: 17.33381447 | AB117: -105.2356136 | AC117: 74.76438637 | AE117: 1000000000 | AF117: 36307855.36 | AH117: 24.51951248 | AI117: -34.7992376 | AK117: 36.20474332 | AL117: -69.6291277 | AN117: 0 | AO117: 0
A118: 6095.8 | B118: 6.0958 | C118: 2.803556329 | D118: 1.206074086 | E118: 1.000319455 | F118: 0.02527330463 | G118: 51707.95649 | H118: 1.570776987 | I118: 1.845588555 | J118: 0.9981803709 | K118: 1.000444801 | L118: 0.02982065681 | M118: 1.000005501 | N118: 0.003316838688 | O118: 1 | P118: 0 | Q118: 1 | R118: 0 | S118: 1 | T118: 0 | U118: 1 | V118: 0 | W118: 0.9999445849 | X118: 0.04180263193 | Y118: 1.00002903 | Z118: 0.007619602536 | AA118: 17.21633644 | AB118: -105.1925949 | AC118: 74.80740508 | AE118: 1000000000 | AF118: 37158777.64 | AH118: 24.4896448 | AI118: -34.5159673 | AK118: 36.11714093 | AL118: -69.85997483 | AN118: 0 | AO118: 0
A119: 6166 | B119: 6.166 | C119: 2.83175519 | D119: 1.209873374 | E119: 1.000326854 | F119: 0.02556422912 | G119: 52303.43182 | H119: 1.570777208 | I119: 1.860627949 | J119: 1.003382481 | K119: 1.000455102 | L119: 0.03016386817 | M119: 1.000005628 | N119: 0.003355035535 | O119: 1 | P119: 0 | Q119: 1 | R119: 0 | S119: 1 | T119: 0 | U119: 1 | V119: 0 | W119: 0.9999433114 | X119: 0.04228437566 | Y119: 1.000029702 | Z119: 0.007707347383 | AA119: 17.10042381 | AB119: -105.1500454 | AC119: 74.84995461 | AE119: 1000000000 | AF119: 38019556 | AH119: 24.46059219 | AI119: -34.23758553 | AK119: 36.03028897 | AL119: -70.08640263 | AN119: 0 | AO119: 0
A120: 6237.8 | B120: 6.2378 | C120: 2.860638199 | D120: 1.213681716 | E120: 1.000334509 | F120: 0.02586177989 | G120: 52912.47924 | H120: 1.570777428 | I120: 1.876061362 | J120: 1.008616734 | K120: 1.00046576 | L120: 0.03051489464 | M120: 1.00000576 | N120: 0.003394102955 | O120: 1 | P120: 0 | Q120: 1 | R120: 0 | S120: 1 | T120: 0 | U120: 1 | V120: 0 | W120: 0.9999419943 | X120: 0.04277711136 | Y120: 1.000030398 | Z120: 0.007797091989 | AA120: 16.9834489 | AB120: -105.1070353 | AC120: 74.89296472 | AE120: 1000000000 | AF120: 38910148.84 | AH120: 24.43169112 | AI120: -33.95780985 | AK120: 35.94222346 | AL120: -70.31354942 | AN120: 0 | AO120: 0
A121: 6309.6 | B121: 6.3096 | C121: 2.889561867 | D121: 1.217413871 | E121: 1.000342253 | F121: 0.02615932607 | G121: 53521.52666 | H121: 1.570777643 | I121: 1.891545335 | J121: 1.013765433 | K121: 1.000476541 | L121: 0.0308659136 | M121: 1.000005893 | N121: 0.003433170364 | O121: 1 | P121: 0 | Q121: 1 | R121: 0 | S121: 1 | T121: 0 | U121: 1 | V121: 0 | W121: 0.9999406625 | X121: 0.04326985939 | Y121: 1.000031102 | Z121: 0.00788683647 | AA121: 16.86803223 | AB121: -105.0645621 | AC121: 74.93543787 | AE121: 1000000000 | AF121: 39811052.16 | AH121: 24.40358419 | AI121: -33.68293538 | AK121: 35.85492214 | AL121: -70.53633195 | AN121: 0 | AO121: 0
A122: 6383.05 | B122: 6.38305 | C122: 2.919191028 | D122: 1.221155212 | E122: 1.000350266 | F122: 0.02646370523 | G122: 54144.5703 | H122: 1.570777858 | I122: 1.90743617 | J122: 1.018945816 | K122: 1.000487698 | L122: 0.03122499127 | M122: 1.000006031 | N122: 0.003473135552 | O122: 1 | P122: 0 | Q122: 1 | R122: 0 | S122: 1 | T122: 0 | U122: 1 | V122: 0 | W122: 0.9999392848 | X122: 0.04377394392 | Y122: 1.00003183 | Z122: 0.007978643192 | AA122: 16.75153584 | AB122: -105.0216893 | AC122: 74.97831066 | AE122: 1000000000 | AF122: 40743327.3 | AH122: 24.37562414 | AI122: -33.40670726 | AK122: 35.76639453 | AL122: -70.75984748 | AN122: 0 | AO122: 0
A123: 6456.5 | B123: 6.4565 | C123: 2.948860229 | D123: 1.224821319 | E123: 1.000358372 | F123: 0.02676807948 | G123: 54767.61394 | H123: 1.570778068 | I123: 1.923377346 | J123: 1.024040462 | K123: 1.000498984 | L123: 0.03158406089 | M123: 1.000006171 | N123: 0.003513100728 | O123: 1 | P123: 0 | Q123: 1 | R123: 0 | S123: 1 | T123: 0 | U123: 1 | V123: 0 | W123: 0.9999378917 | X123: 0.04427804165 | Y123: 1.000032567 | Z123: 0.00807044978 | AA123: 16.63659076 | AB123: -104.9794185 | AC123: 75.02058146 | AE123: 1000000000 | AF123: 41686392.25 | AH123: 24.34843764 | AI123: -33.13539072 | AK123: 35.67864477 | AL123: -70.97905342 | AN123: 0 | AO123: 0
A124: 6531.7 | B124: 6.5317 | C124: 2.979276553 | D124: 1.228499075 | E124: 1.000366767 | F124: 0.02707970052 | G124: 55405.50205 | H124: 1.570778278 | I124: 1.939749193 | J124: 1.029169602 | K124: 1.000510672 | L124: 0.03195167717 | M124: 1.000006316 | N124: 0.003554018093 | O124: 1 | P124: 0 | Q124: 1 | R124: 0 | S124: 1 | T124: 0 | U124: 1 | V124: 0 | W124: 0.9999364494 | X124: 0.04479416372 | Y124: 1.00003333 | Z124: 0.008164443586 | AA124: 16.52047439 | AB124: -104.9367821 | AC124: 75.06321786 | AE124: 1000000000 | AF124: 42663104.89 | AH124: 24.32137636 | AI124: -32.86258755 | AK124: 35.58959883 | AL124: -71.19914596 | AN124: 0 | AO124: 0
A125: 6606.9 | B125: 6.6069 | C125: 3.009732361 | D125: 1.232102447 | E125: 1.000375259 | F125: 0.02739131631 | G125: 56043.39015 | H125: 1.570778483 | I125: 1.956171215 | J125: 1.034212755 | K125: 1.000522495 | L125: 0.03231928481 | M125: 1.000006462 | N125: 0.003594935445 | O125: 1 | P125: 0 | Q125: 1 | R125: 0 | S125: 1 | T125: 0 | U125: 1 | V125: 0 | W125: 0.9999349911 | X125: 0.04531029994 | Y125: 1.000034102 | Z125: 0.008258437248 | AA125: 16.4059046 | AB125: -104.8948109 | AC125: 75.10518907 | AE125: 1000000000 | AF125: 43651127.61 | AH125: 24.29506931 | AI125: -32.59471031 | AK125: 35.50134533 | AL125: -71.41497776 | AN125: 0 | AO125: 0
A126: 6683.85 | B126: 6.68385 | C126: 3.040936548 | D126: 1.23571491 | E126: 1.00038405 | F126: 0.02771017829 | G126: 56696.12273 | H126: 1.570778689 | I126: 1.973026033 | J126: 1.039286232 | K126: 1.000534734 | L126: 0.03269543809 | M126: 1.000006613 | N126: 0.003636804984 | O126: 1 | P126: 0 | Q126: 1 | R126: 0 | S126: 1 | T126: 0 | U126: 1 | V126: 0 | W126: 0.9999334822 | X126: 0.04583846214 | Y126: 1.000034901 | Z126: 0.008354618111 | AA126: 16.29022973 | AB126: -104.8525665 | AC126: 75.14743352 | AE126: 1000000000 | AF126: 44673850.82 | AH126: 24.26890287 | AI126: -32.32558526 | AK126: 35.41184647 | AL126: -71.63154971 | AN126: 0 | AO126: 0
A127: 6760.8 | B127: 6.7608 | C127: 3.072179612 | D127: 1.239253944 | E127: 1.000392942 | F127: 0.02802903463 | G127: 57348.85531 | H127: 1.57077889 | I127: 1.989930776 | J127: 1.044273636 | K127: 1.000547114 | L127: 0.03307158213 | M127: 1.000006766 | N127: 0.00367867451 | O127: 1 | P127: 0 | Q127: 1 | R127: 0 | S127: 1 | T127: 0 | U127: 1 | V127: 0 | W127: 0.9999319565 | X127: 0.04636663951 | Y127: 1.000035709 | Z127: 0.00845079882 | AA127: 16.17609466 | AB127: -104.8110468 | AC127: 75.18895316 | AE127: 1000000000 | AF127: 45708416.64 | AH127: 24.24347059 | AI127: -32.06139104 | AK127: 35.32315337 | AL127: -71.84391564 | AN127: 0 | AO127: 0
A128: 6839.55 | B128: 6.83955 | C128: 3.104192535 | D128: 1.242801957 | E128: 1.000402147 | F128: 0.02835534369 | G128: 58016.85649 | H128: 1.57077909 | I128: 2.007281325 | J128: 1.049290601 | K128: 1.00055993 | L128: 0.03345651516 | M128: 1.000006925 | N128: 0.003721523427 | O128: 1 | P128: 0 | Q128: 1 | R128: 0 | S128: 1 | T128: 0 | U128: 1 | V128: 0 | W128: 0.9999303777 | X128: 0.04690718779 | Y128: 1.000036546 | Z128: 0.008549229208 | AA128: 16.06084415 | AB128: -104.7693184 | AC128: 75.23068161 | AE128: 1000000000 | AF128: 46779444.2 | AH128: 24.21817603 | AI128: -31.79600666 | AK128: 35.23320743 | AL128: -72.0570218 | AN128: 0 | AO128: 0
A129: 6918.3 | B129: 6.9183 | C129: 3.136243737 | D129: 1.246277496 | E129: 1.000411459 | F129: 0.02868164672 | G129: 58684.85766 | H129: 1.570779287 | I129: 2.024681531 | J129: 1.054221456 | K129: 1.000572895 | L129: 0.03384143827 | M129: 1.000007085 | N129: 0.003764372331 | O129: 1 | P129: 0 | Q129: 1 | R129: 0 | S129: 1 | T129: 0 | U129: 1 | V129: 0 | W129: 0.9999287814 | X129: 0.04744775234 | Y129: 1.000037392 | Z129: 0.00864765943 | AA129: 15.94712675 | AB129: -104.7283715 | AC129: 75.27162845 | AE129: 1000000000 | AF129: 47862874.89 | AH129: 24.1935958 | AI129: -31.53555518 | AK129: 35.1440804 | AL129: -72.26597668 | AN129: 0 | AO129: 0
A130: 6998.9 | B130: 6.9989 | C130: 3.169086315 | D130: 1.24976184 | E130: 1.0004211 | F130: 0.02901560895 | G130: 59368.55157 | H130: 1.570779483 | I130: 2.0425406 | J130: 1.059181029 | K130: 1.000586317 | L130: 0.03423539364 | M130: 1.000007251 | N130: 0.003808227829 | O130: 1 | P130: 0 | Q130: 1 | R130: 0 | S130: 1 | T130: 0 | U130: 1 | V130: 0 | W130: 0.9999271294 | X130: 0.04800103288 | Y130: 1.000038268 | Z130: 0.008748401808 | AA130: 15.83228559 | AB130: -104.6872813 | AC130: 75.31271873 | AE130: 1000000000 | AF130: 48984601.21 | AH130: 24.16915085 | AI130: -31.2739758 | AK130: 35.05369468 | AL130: -72.47566821 | AN130: 0 | AO130: 0
A131: 7079.5 | B131: 7.0795 | C131: 3.201966577 | D131: 1.253174666 | E131: 1.000430853 | F131: 0.02934956471 | G131: 60052.24547 | H131: 1.570779675 | I131: 2.060449038 | J131: 1.064054508 | K131: 1.000599895 | L131: 0.03462933837 | M131: 1.000007419 | N131: 0.003852083313 | O131: 1 | P131: 0 | Q131: 1 | R131: 0 | S131: 1 | T131: 0 | U131: 1 | V131: 0 | W131: 0.9999254591 | X131: 0.04855433086 | Y131: 1.000039155 | Z131: 0.008849144008 | AA131: 15.71897086 | AB131: -104.6470266 | AC131: 75.35297341 | AE131: 1000000000 | AF131: 50119320.25 | AH131: 24.14540062 | AI131: -31.01732839 | AK131: 34.9641408 | AL131: -72.68126336 | AN131: 0 | AO131: 0
A132: 7161.95 | B132: 7.16195 | C132: 3.23563933 | D132: 1.256594017 | E132: 1.000440945 | F132: 0.02969117892 | G132: 60751.6321 | H132: 1.570779866 | I132: 2.078818277 | J132: 1.068952847 | K132: 1.000613945 | L132: 0.03503231413 | M132: 1.000007593 | N132: 0.003896945389 | O132: 1 | P132: 0 | Q132: 1 | R132: 0 | S132: 1 | T132: 0 | U132: 1 | V132: 0 | W132: 0.9999237315 | X132: 0.04912034683 | Y132: 1.000040072 | Z132: 0.008952198344 | AA132: 15.60459482 | AB132: -104.6067188 | AC132: 75.39328116 | AE132: 1000000000 | AF132: 51293527.8 | AH132: 24.12179767 | AI132: -30.75977401 | AK132: 34.87337871 | AL132: -72.8874646 | AN132: 0 | AO132: 0
A133: 7244.4 | B133: 7.2444 | C133: 3.269349135 | D133: 1.259942893 | E133: 1.000451154 | F133: 0.03003278621 | G133: 61451.01873 | H133: 1.570780054 | I133: 2.097236521 | J133: 1.073765265 | K133: 1.000628158 | L133: 0.03543527851 | M133: 1.000007769 | N133: 0.00394180745 | O133: 1 | P133: 0 | Q133: 1 | R133: 0 | S133: 1 | T133: 0 | U133: 1 | V133: 0 | W133: 0.9999219848 | X133: 0.04968638147 | Y133: 1.000041 | Z133: 0.009055252489 | AA133: 15.49173672 | AB133: -104.5672967 | AC133: 75.43270327 | AE133: 1000000000 | AF133: 52481331.36 | AH133: 24.09886926 | AI133: -30.50714169 | AK133: 34.78346012 | AL133: -73.08962943 | AN133: 0 | AO133: 0
A134: 7328.75 | B134: 7.32875 | C134: 3.303872917 | D134: 1.263298185 | E134: 1.000461718 | F134: 0.03038225833 | G134: 62166.52221 | H134: 1.570780241 | I134: 2.116128576 | J134: 1.078601776 | K134: 1.000642866 | L134: 0.03584751699 | M134: 1.000007951 | N134: 0.003987703308 | O134: 1 | P134: 0 | Q134: 1 | R134: 0 | S134: 1 | T134: 0 | U134: 1 | V134: 0 | W134: 0.999920178 | X134: 0.05026547949 | Y134: 1.000041961 | Z134: 0.009160681242 | AA134: 15.37780899 | AB134: -104.5278862 | AC134: 75.47211376 | AE134: 1000000000 | AF134: 53710576.56 | AH134: 24.07608468 | AI134: -30.25366026 | AK134: 34.69232847 | AL134: -73.29240046 | AN134: 0 | AO134: 0
A135: 7413.1 | B135: 7.4131 | C135: 3.338433124 | D135: 1.266584044 | E135: 1.000472405 | F135: 0.03073172303 | G135: 62882.02569 | H135: 1.570780424 | I135: 2.135069255 | J135: 1.083352585 | K135: 1.000657745 | L135: 0.03625974329 | M135: 1.000008135 | N135: 0.00403359915 | O135: 1 | P135: 0 | Q135: 1 | R135: 0 | S135: 1 | T135: 0 | U135: 1 | V135: 0 | W135: 0.9999183513 | X135: 0.05084459749 | Y135: 1.000042932 | Z135: 0.009266109792 | AA135: 15.26539078 | AB135: -104.4894085 | AC135: 75.5105915 | AE135: 1000000000 | AF135: 54954051.61 | AH135: 24.0539548 | AI135: -30.00508826 | AK135: 34.60205178 | AL135: -73.49119484 | AN135: 0 | AO135: 0
A136: 7499.45 | B136: 7.49945 | C136: 3.373849341 | D136: 1.269878046 | E136: 1.000483472 | F136: 0.03108946601 | G136: 63614.49428 | H136: 1.570780607 | I136: 2.154508059 | J136: 1.088129405 | K136: 1.000673152 | L136: 0.036681731 | M136: 1.000008326 | N136: 0.004080583197 | O136: 1 | P136: 0 | Q136: 1 | R136: 0 | S136: 1 | T136: 0 | U136: 1 | V136: 0 | W136: 0.9999164606 | X136: 0.05143746773 | Y136: 1.000043938 | Z136: 0.009374037917 | AA136: 15.15183108 | AB136: -104.4509855 | AC136: 75.54901445 | AE136: 1000000000 | AF136: 56241750.3 | AH136: 24.03195308 | AI136: -29.75558529 | AK136: 34.51050585 | AL136: -73.69070706 | AN136: 0 | AO136: 0
A137: 7585.8 | B137: 7.5858 | C137: 3.409301405 | D137: 1.273103576 | E137: 1.000494667 | F137: 0.03144720103 | G137: 64346.96287 | H137: 1.570780786 | I137: 2.173995145 | J137: 1.092820693 | K137: 1.000688738 | L137: 0.03710370564 | M137: 1.000008518 | N137: 0.004127567226 | O137: 1 | P137: 0 | Q137: 1 | R137: 0 | S137: 1 | T137: 0 | U137: 1 | V137: 0 | W137: 0.9999145491 | X137: 0.0520303594 | Y137: 1.000044956 | Z137: 0.009481965823 | AA137: 15.03977429 | AB137: -104.4135407 | AC137: 75.58645932 | AE137: 1000000000 | AF137: 57544361.64 | AH137: 24.01058725 | AI137: -29.51098188 | AK137: 34.41982708 | AL137: -73.88629781 | AN137: 0 | AO137: 0
A138: 7674.15 | B138: 7.67415 | C138: 3.445610543 | D138: 1.276335081 | E138: 1.000506254 | F138: 0.03181321341 | G138: 65096.39658 | H138: 1.570780965 | I138: 2.193982212 | J138: 1.097534278 | K138: 1.000704868 | L138: 0.03753544019 | M138: 1.000008718 | N138: 0.00417563946 | O138: 1 | P138: 0 | Q138: 1 | R138: 0 | S138: 1 | T138: 0 | U138: 1 | V138: 0 | W138: 0.9999125718 | X138: 0.05263700579 | Y138: 1.000046009 | Z138: 0.009592393278 | AA138: 14.9266381 | AB138: -104.3762392 | AC138: 75.62376079 | AE138: 1000000000 | AF138: 58892578.22 | AH138: 23.98935997 | AI138: -29.26566015 | AK138: 34.32793078 | AL138: -74.08248237 | AN138: 0 | AO138: 0
A139: 7762.5 | B139: 7.7625 | C139: 3.48195491 | D139: 1.279499158 | E139: 1.000517974 | F139: 0.03217921727 | G139: 65845.83028 | H139: 1.57078114 | I139: 2.214017143 | J139: 1.102162657 | K139: 1.000721186 | L139: 0.03796716073 | M139: 1.00000892 | N139: 0.004223711674 | O139: 1 | P139: 0 | Q139: 1 | R139: 0 | S139: 1 | T139: 0 | U139: 1 | V139: 0 | W139: 0.9999105728 | X139: 0.05324367513 | Y139: 1.000047074 | Z139: 0.009702820499 | AA139: 14.81499643 | AB139: -104.3399571 | AC139: 75.66004288 | AE139: 1000000000 | AF139: 60256406.25 | AH139: 23.9687493 | AI139: -29.02521935 | AK139: 34.23691254 | AL139: -74.2748054 | AN139: 0 | AO139: 0
A140: 7852.9 | B140: 7.8529 | C140: 3.51917791 | D140: 1.282668972 | E140: 1.000530106 | F140: 0.03255370465 | G140: 66612.65321 | H140: 1.570781315 | I140: 2.23456515 | J140: 1.106812421 | K140: 1.000738075 | L140: 0.03840888391 | M140: 1.000009129 | N140: 0.004272899296 | O140: 1 | P140: 0 | Q140: 1 | R140: 0 | S140: 1 | T140: 0 | U140: 1 | V140: 0 | W140: 0.9999085049 | X140: 0.05386444515 | Y140: 1.000048177 | Z140: 0.009815809736 | AA140: 14.70227188 | AB140: -104.3038842 | AC140: 75.69611582 | AE140: 1000000000 | AF140: 61668038.41 | AH140: 23.94827447 | AI140: -28.7841264 | AK140: 34.14467604 | AL140: -74.46771511 | AN140: 0 | AO140: 0
A141: 7943.3 | B141: 7.9433 | C141: =SQRT(1+(A141/pole1)^2) -> 3.556435529 | D141: =ATAN(A141/pole1) -> 1.285772403 | E141: =SQRT(1+(A141/Zero1)^2) -> 1.000542378 | F141: =ATAN(A141/Zero1) -> 0.0329281829 | G141: =SQRT(1+(A141/Pole2)^2) -> 67379.47615 | H141: =ATAN(A141/Pole2) -> 1.570781485 | I141: =SQRT(1+(A141/Zero2)^2) -> 2.255160588 | J141: =ATAN(A141/Zero2) -> 1.111377353 | K141: =SQRT(1+(A141/pole4)^2) -> 1.000755159 | L141: =ATAN(A141/pole4) -> 0.03885059208 | M141: =SQRT(1+(A141/pEA_in)^2) -> 1.00000934 | N141: =ATAN(A141/pEA_in) -> 0.004322086898 | O141: =IF(VOUT_setting<4,1,SQRT(1+(A141*zterm1)^2)) -> 1 | P141: =IF(VOUT_setting<4,0,ATAN(((A141*zterm1)))) -> 0 | Q141: =IF(VOUT_setting<4,1,SQRT((1+Afbr-pterm4*(A141)^2)^2+(A141*$Q$4)^2)) -> 1 | R141: =IF(VOUT_setting<4,0,ATAN(A141*$Q$4/(1+Afbr-$Q$5*(A141)^2))) -> 0 | S141: =IF(NO_FF_CAP=1, 1, SQRT(1+(A141/Fz_ff)^2)) -> 1 | T141: =IF(NO_FF_CAP=1, 0, ATAN(A141/Fz_ff)) -> 0 | U141: =IF(NO_FF_CAP=1, 1, SQRT(1+(A141/Fp_ff)^2)) -> 1 | V141: =IF(NO_FF_CAP=1, 0, ATAN(A141/Fp_ff)) -> 0 | W141: =SQRT((1-(AF141/pterm2))^2+(A141/pterm1)^2) -> 0.9999064143 | X141: =IF((ATAN((A141/pterm1)/(1-A141^2/pterm2))>0),ATAN((A141/pterm1)/(1-A141^2/pterm2)),PI()+ATAN((A141/pterm1)/(1-A141^2/pterm2))) -> 0.05448523975 | Y141: =SQRT(1+(A141/P_para)^2) -> 1.000049293 | Z141: =ATAN(A141/P_para) -> 0.009928798723 | AA141: =20*LOG10(((E141*I141*S141)/(C141*G141*W141*K141*Y141*M141*U141))*Adc) -> 14.5910335 | AB141: =((F141+J141+T141)-(D141+H141+X141+L141+Z141+N141+V141))*radconv -> -104.268869 | AC141: =IF(AB141>0,AB141,AB141+180) -> 75.73113097 | AE141: =IF(AA141<0,A141,1000000000) -> 1000000000 | AF141: =A141^2 -> 63096014.89 | AH141: =20*LOG10((I141/(G141*K141))*AEA) -> 23.92839726 | AI141: =(J141-(H141+L141))*radconv -> -28.54789285 | AK141: =20*LOG10((E141*M141/(C141*W141))*Acs*Am) -> 34.05332822 | AL141: =(F141+N141-(D141+X141))*radconv -> -74.65682323 | AN141: =SUM((AA142<0)*(AA141>0))*A141 -> 0 | AO141: 0
A142: 8035.8 | B142: =A142/1000 -> 8.0358 | C142: 3.594593359 | D142: 1.288881303 | E142: 1.00055508 | F142: 0.03331135074 | G142: 68164.11245 | H142: 1.570781656 | I142: 2.276282213 | J142: 1.115962725 | K142: 1.000772842 | L142: 0.03930254548 | M142: 1.000009559 | N142: 0.004372417109 | O142: 1 | P142: 0 | Q142: 1 | R142: 0 | S142: 1 | T142: 0 | U142: 1 | V142: 0 | W142: 0.9999042517 | X142: 0.0551204812 | Y142: 1.000050447 | Z142: 0.01004441219 | AA142: 14.47871015 | AB142: -104.2341289 | AC142: 75.76587113 | AE142: 1000000000 | AF142: 64574081.64 | AH142: 23.90865334 | AI142: -28.3110752 | AK142: 33.96076263 | AL142: -74.84650915 | AN142: 0 | AO142: 0
A143: 8128.3 | B143: 8.1283 | C143: 3.6327852 | D143: 1.291924864 | E143: 1.000567929 | F143: 0.03369450881 | G143: 68948.74876 | H143: 1.570781823 | I143: 2.297450817 | J143: 1.120463692 | K143: 1.00079073 | L143: 0.03975448281 | M143: 1.00000978 | N143: 0.004422747299 | O143: 1 | P143: 0 | Q143: 1 | R143: 0 | S143: 1 | T143: 0 | U143: 1 | V143: 0 | W143: 0.9999020654 | X143: 0.05575574899 | Y143: 1.000051615 | Z143: 0.01016002539 | AA143: 14.36786459 | AB143: -104.200482 | AC143: 75.79951797 | AE143: 1000000000 | AF143: 66069260.89 | AH143: 23.88948835 | AI143: -28.0790925 | AK143: 33.86909604 | AL143: -75.03245345 | AN143: 0 | AO143: 0
A144: 8222.95 | B144: 8.22295 | C144: 3.671898845 | D144: 1.294973601 | E144: 1.000581228 | F144: 0.03408656246 | G144: 69751.62255 | H144: 1.57078199 | I144: 2.319158737 | J144: 1.124984127 | K144: 1.000809245 | L144: 0.04021690782 | M144: 1.00001001 | N144: 0.004474247302 | O144: 1 | P144: 0 | Q144: 1 | R144: 0 | S144: 1 | T144: 0 | U144: 1 | V144: 0 | W144: 0.999899804 | X144: 0.05640581003 | Y144: 1.000052824 | Z144: 0.01027832554 | AA144: 14.25593327 | AB144: -104.167176 | AC144: 75.83282396 | AE144: 1000000000 | AF144: 67616906.7 | AH144: 23.8704542 | AI144: -27.84659518 | AK144: 33.77621335 | AL144: -75.21896521 | AN144: 0 | AO144: 0
A145: 8270.275 | B145: 8.270275 | C145: 3.691468262 | D145: 1.296473735 | E145: 1.000587936 | F145: 0.03428258536 | G145: 70153.05945 | H145: 1.570782072 | I145: 2.33003022 | J145: 1.127212736 | K145: 1.000818583 | L145: 0.04044811388 | M145: 1.000010125 | N145: 0.004499997295 | O145: 1 | P145: 0 | Q145: 1 | R145: 0 | S145: 1 | T145: 0 | U145: 1 | V145: 0 | W145: 0.999898664 | X145: 0.05673085112 | Y145: 1.000053434 | Z145: 0.0103374755 | AA145: 14.200521 | AB145: -104.1509459 | AC145: 75.84905407 | AE145: 1000000000 | AF145: 68397448.58 | AH145: 23.86114871 | AI145: -27.73215713 | AK145: 33.73011388 | AL145: -75.31083338 | AN145: 0 | AO145: 0
A146: 8317.6 | B146: 8.3176 | C146: 3.7110459 | D146: 1.297958044 | E146: 1.000594682 | F146: 0.03447860563 | G146: 70554.49635 | H146: 1.570782153 | I146: 2.340913168 | J146: 1.129420634 | K146: 1.000827974 | L146: 0.04067931561 | M146: 1.000010241 | N146: 0.004525747282 | O146: 1 | P146: 0 | Q146: 1 | R146: 0 | S146: 1 | T146: 0 | U146: 1 | V146: 0 | W146: 0.9998975178 | X146: 0.05705589929 | Y146: 1.000054047 | Z146: 0.01039662539 | AA146: 14.14547135 | AB146: -104.134996 | AC146: 75.86500396 | AE146: 1000000000 | AF146: 69182469.76 | AH146: 23.85198062 | AI146: -27.61890543 | AK146: 33.68423966 | AL146: -75.40179542 | AN146: 0 | AO146: 0
A147: 8366.05 | B147: 8.36605 | C147: 3.731097312 | D147: 1.299461498 | E147: 1.000601628 | F147: 0.0346792829 | G147: 70965.47612 | H147: 1.570782235 | I147: 2.352066535 | J147: 1.13165984 | K147: 1.000837644 | L147: 0.04091600892 | M147: 1.000010361 | N147: 0.004552109386 | O147: 1 | P147: 0 | Q147: 1 | R147: 0 | S147: 1 | T147: 0 | U147: 1 | V147: 0 | W147: 0.999896338 | X147: 0.05738868183 | Y147: 1.000054679 | Z147: 0.01045718131 | AA147: 14.0894839 | AB147: -104.1189559 | AC147: 75.88104413 | AE147: 1000000000 | AF147: 69990792.6 | AH147: 23.84273416 | AI147: -27.50417458 | AK147: 33.63750624 | AL147: -75.49399562 | AN147: 0 | AO147: 0
A148: 8414.5 | B148: 8.4145 | C148: 3.751157068 | D148: 1.300948875 | E148: 1.000608614 | F148: 0.03487995738 | G148: 71376.45589 | H148: 1.570782317 | I148: 2.363231583 | J148: 1.1338779 | K148: 1.00084737 | L148: 0.04115269764 | M148: 1.000010481 | N148: 0.004578471484 | O148: 1 | P148: 0 | Q148: 1 | R148: 0 | S148: 1 | T148: 0 | U148: 1 | V148: 0 | W148: 0.9998951518 | X148: 0.0577214719 | Y148: 1.000055314 | Z148: 0.01051773715 | AA148: 14.03386683 | AB148: -104.1032065 | AC148: 75.89679351 | AE148: 1000000000 | AF148: 70803810.25 | AH148: 23.83362616 | AI148: -27.39065506 | AK148: 33.59100478 | AL148: -75.5852753 | AN148: 0 | AO148: 0
A149: 8462.95 | B149: 8.46295 | C149: 3.771225035 | D149: 1.302420426 | E149: 1.000615641 | F149: 0.03508062905 | G149: 71787.43566 | H149: 1.570782397 | I149: 2.374408148 | J149: 1.136075088 | K149: 1.000857152 | L149: 0.04138938174 | M149: 1.000010602 | N149: 0.004604833575 | O149: 1 | P149: 0 | Q149: 1 | R149: 0 | S149: 1 | T149: 0 | U149: 1 | V149: 0 | W149: 0.9998939592 | X149: 0.05805426952 | Y149: 1.000055953 | Z149: 0.01057829291 | AA149: 13.97861535 | AB149: -104.0877464 | AC149: 75.91225361 | AE149: 1000000000 | AF149: 71621522.7 | AH149: 23.82465389 | AI149: -27.27833101 | AK149: 33.54473321 | AL149: -75.67564878 | AN149: 0 | AO149: 0
A150: 8511.4 | B150: 8.5114 | C150: 3.791301081 | D150: 1.303876396 | E150: 1.000622708 | F150: 0.03528129789 | G150: 72198.41543 | H150: 1.570782476 | I150: 2.385596069 | J150: 1.138251679 | K150: 1.00086699 | L150: 0.04162606121 | M150: 1.000010724 | N150: 0.00463119566 | O150: 1 | P150: 0 | Q150: 1 | R150: 0 | S150: 1 | T150: 0 | U150: 1 | V150: 0 | W150: 0.9998927601 | X150: 0.05838707476 | Y150: 1.000056595 | Z150: 0.0106388486 | AA150: 13.92372477 | AB150: -104.072574 | AC150: 75.92742599 | AE150: 1000000000 | AF150: 72443929.96 | AH150: 23.81581473 | AI150: -27.16718684 | AK150: 33.4986895 | AL150: -75.76513011 | AN150: 0 | AO150: 0
A151: 8560.95 | B151: 8.56095 | C151: 3.811841154 | D151: 1.305349556 | E151: 1.000629977 | F151: 0.03548651974 | G151: 72618.72602 | H151: 1.570782556 | I151: 2.397049577 | J151: 1.140456661 | K151: 1.00087711 | L151: 0.04186810937 | M151: 1.000010849 | N151: 0.004658156258 | O151: 1 | P151: 0 | Q151: 1 | R151: 0 | S151: 1 | T151: 0 | U151: 1 | V151: 0 | W151: 0.9998915271 | X151: 0.05872744385 | Y151: 1.000057256 | Z151: 0.01070077904 | AA151: 13.86795647 | AB151: -104.0573531 | AC151: 75.94264692 | AE151: 1000000000 | AF151: 73289864.9 | AH151: 23.80690983 | AI151: -27.05472363 | AK151: 33.451834 | AL151: -75.85573458 | AN151: 0 | AO151: 0
A152: 8610.5 | B152: 8.6105 | C152: 3.832389412 | D152: 1.306806921 | E152: 1.000637288 | F152: 0.03569173861 | G152: 73039.0366 | H152: 1.570782635 | I152: 2.408514629 | J152: 1.14264066 | K152: 1.000887288 | L152: 0.04211015263 | M152: 1.000010975 | N152: 0.004685116849 | O152: 1 | P152: 0 | Q152: 1 | R152: 0 | S152: 1 | T152: 0 | U152: 1 | V152: 0 | W152: 0.9998902875 | X152: 0.059067821 | Y152: 1.000057921 | Z152: 0.01076270941 | AA152: 13.81255599 | AB152: -104.0424297 | AC152: 75.95757033 | AE152: 1000000000 | AF152: 74140710.25 | AH152: 23.79813874 | AI152: -26.94346226 | AK152: 33.40521258 | AL152: -75.94543474 | AN152: 0 | AO152: 0
A153: 8660.05 | B153: 8.66005 | C153: 3.852945722 | D153: 1.308248739 | E153: 1.000644642 | F153: 0.03589695446 | G153: 73459.34718 | H153: 1.570782714 | I153: 2.41999106 | J153: 1.144803956 | K153: 1.000897525 | L153: 0.04235219095 | M153: 1.000011102 | N153: 0.004712077434 | O153: 1 | P153: 0 | Q153: 1 | R153: 0 | S153: 1 | T153: 0 | U153: 1 | V153: 0 | W153: 0.9998890411 | X153: 0.05940820624 | Y153: 1.000058589 | Z153: 0.0108246397 | AA153: 13.75751862 | AB153: -104.027802 | AC153: 75.97219799 | AE153: 1000000000 | AF153: 74996466 | AH153: 23.7894988 | AI153: -26.83338682 | AK153: 33.35882315 | AL153: -76.03424472 | AN153: 0 | AO153: 0
A154: 8709.6 | B154: 8.7096 | C154: 3.873509957 | D154: 1.30967525 | E154: 1.000652037 | F154: 0.03610216729 | G154: 73879.65776 | H154: 1.570782791 | I154: 2.43147871 | J154: 1.14694682 | K154: 1.00090782 | L154: 0.04259422431 | M154: 1.000011229 | N154: 0.004739038011 | O154: 1 | P154: 0 | Q154: 1 | R154: 0 | S154: 1 | T154: 0 | U154: 1 | V154: 0 | W154: 0.9998877881 | X154: 0.05974859961 | Y154: 1.000059262 | Z154: 0.0108865699 | AA154: 13.70283968 | AB154: -104.0134683 | AC154: 75.9865317 | AE154: 1000000000 | AF154: 75857132.16 | AH154: 23.78098744 | AI154: -26.72448167 | AK154: 33.31266363 | AL154: -76.12217836 | AN154: 0 | AO154: =IF(AN154>0,AC154,0) -> 0
A155: 8760.325 | B155: 8.760325 | C155: 3.894569917 | D155: 1.311119982 | E155: 1.000659652 | F155: 0.03631224326 | G155: 74309.93534 | H155: 1.57078287 | I155: 2.443250226 | J155: 1.149119616 | K155: 1.00091842 | L155: 0.04284199193 | M155: 1.000011361 | N155: 0.004766637909 | O155: 1 | P155: 0 | Q155: 1 | R155: 0 | S155: 1 | T155: 0 | U155: 1 | V155: 0 | W155: 0.9998864984 | X155: 0.06009707336 | Y155: 1.000059954 | Z155: 0.01094996859 | AA155: 13.64723063 | AB155: -103.9990973 | AC155: 76.00090274 | AE155: 1000000000 | AF155: 76743294.11 | AH155: 23.77240481 | AI155: -26.61419019 | AK155: 33.2656455 | AL155: -76.21130362 | AN155: 0 | AO155: 0
A156: 8811.05 | B156: 8.81105 | C156: 3.91563792 | D156: 1.312549169 | E156: 1.000667311 | F156: 0.03652231603 | G156: 74740.21293 | H156: 1.570782947 | I156: 2.455033167 | J156: 1.151271565 | K156: 1.000929082 | L156: 0.04308975429 | M156: 1.000011492 | N156: 0.0047942378 | O156: 1 | P156: 0 | Q156: 1 | R156: 0 | S156: 1 | T156: 0 | U156: 1 | V156: 0 | W156: 0.9998852017 | X156: 0.06044555574 | Y156: 1.00006065 | Z156: 0.01101336719 | AA156: 13.59198761 | AB156: -103.9850304 | AC156: 76.01496962 | AE156: 1000000000 | AF156: 77634602.1 | AH156: 23.76395166 | AI156: -26.50509277 | AK156: 33.21886397 | AL156: -76.29953897 | AN156: 0 | AO156: 0
A157: 8861.775 | B157: 8.861775 | C157: 3.936713834 | D157: 1.313963057 | E157: 1.000675014 | F157: 0.03673238558 | G157: 75170.49051 | H157: 1.570783024 | I157: 2.466827367 | J157: 1.153402946 | K157: 1.000939805 | L157: 0.04333751135 | M157: 1.000011625 | N157: 0.004821837684 | O157: 1 | P157: 0 | Q157: 1 | R157: 0 | S157: 1 | T157: 0 | U157: 1 | V157: 0 | W157: 0.9998838981 | X157: 0.0607940468 | Y157: 1.000061351 | Z157: 0.01107676571 | AA157: 13.53710591 | AB157: -103.9712656 | AC157: 76.02873436 | AE157: 1000000000 | AF157: 78531056.15 | AH157: 23.75562542 | AI157: -26.39717344 | AK157: 33.1723169 | AL157: -76.38689837 | AN157: 0 | AO157: 0
A158: 8912.5 | B158: 8.9125 | C158: 3.957797535 | D158: 1.315361883 | E158: 1.000682761 | F158: 0.03694245188 | G158: 75600.76809 | H158: 1.570783099 | I158: 2.478632667 | J158: 1.155514034 | K158: 1.00095059 | L158: 0.0435852631 | M158: 1.000011759 | N158: 0.00484943756 | O158: 1 | P158: 0 | Q158: 1 | R158: 0 | S158: 1 | T158: 0 | U158: 1 | V158: 0 | W158: 0.9998825874 | X158: 0.06114254659 | Y158: 1.000062055 | Z158: 0.01114016413 | AA158: 13.48258089 | AB158: -103.957801 | AC158: 76.042199 | AE158: 1000000000 | AF158: 79432656.25 | AH158: 23.74742359 | AI158: -26.29041647 | AK158: 33.12600214 | AL158: -76.47339553 | AN158: 0 | AO158: 0
A159: 8964.4 | B159: 8.9644 | C159: 3.97937755 | D159: 1.316777768 | E159: 1.000690733 | F159: 0.03715738081 | G159: 76041.01268 | H159: 1.570783176 | I159: 2.490722751 | J159: 1.157653301 | K159: 1.000961688 | L159: 0.04383874825 | M159: 1.000011896 | N159: 0.004877676755 | O159: 1 | P159: 0 | Q159: 1 | R159: 0 | S159: 1 | T159: 0 | U159: 1 | V159: 0 | W159: 0.9998812392 | X159: 0.06149912815 | Y159: 1.00006278 | Z159: 0.01120503104 | AA159: 13.42715726 | AB159: -103.9443329 | AC159: 76.05566707 | AE159: 1000000000 | AF159: 80360467.36 | AH159: 23.73915797 | AI159: -26.18237351 | AK159: 33.07885281 | AL159: -76.56101785 | AN159: 0 | AO159: 0
A160: 9016.3 | B160: 9.0163 | C160: 4.000965457 | D160: 1.318178376 | E160: 1.000698751 | F160: 0.0373723063 | G160: 76481.25726 | H160: 1.570783252 | I160: 2.502824122 | J160: 1.159771891 | K160: 1.00097285 | L160: 0.04409222776 | M160: 1.000012034 | N160: 0.004905915943 | O160: 1 | P160: 0 | Q160: 1 | R160: 0 | S160: 1 | T160: 0 | U160: 1 | V160: 0 | W160: 0.9998798837 | X160: 0.06185571896 | Y160: 1.000063509 | Z160: 0.01126989784 | AA160: 13.37209747 | AB160: -103.9311747 | AC160: 76.06882534 | AE160: 1000000000 | AF160: 81293665.69 | AH160: 23.73101747 | AI160: -26.0755149 | AK160: 33.03194225 | AL160: -76.64776562 | AN160: 0 | AO160: 0
A161: 9068.2 | B161: 9.0682 | C161: 4.022561129 | D161: 1.319563948 | E161: 1.000706816 | F161: 0.03758722833 | G161: 76921.50185 | H161: 1.570783327 | I161: 2.51493662 | J161: 1.161870083 | K161: 1.000984077 | L161: 0.04434570161 | M161: 1.000012173 | N161: 0.004934155123 | O161: 1 | P161: 0 | Q161: 1 | R161: 0 | S161: 1 | T161: 0 | U161: 1 | V161: 0 | W161: 0.999878521 | X161: 0.06221231906 | Y161: 1.000064242 | Z161: 0.01133476456 | AA161: 13.31739682 | AB161: -103.918324 | AC161: 76.08167604 | AE161: 1000000000 | AF161: 82232251.24 | AH161: 23.72299957 | AI161: -25.96982464 | AK161: 32.98526828 | AL161: -76.73365262 | AN161: 0 | AO161: 0
A162: 9120.1 | B162: 9.1201 | C162: 4.04416444 | D162: 1.32093472 | E162: 1.000714927 | F162: 0.0378021469 | G162: 77361.74643 | H162: 1.570783401 | I162: 2.527060083 | J162: 1.163948152 | K162: 1.000995368 | L162: 0.04459916975 | M162: 1.000012313 | N162: 0.004962394295 | O162: 1 | P162: 0 | Q162: 1 | R162: 0 | S162: 1 | T162: 0 | U162: 1 | V162: 0 | W162: 0.9998771509 | X162: 0.06256892851 | Y162: 1.000064979 | Z162: 0.01139963117 | AA162: 13.26305071 | AB162: -103.9057786 | AC162: 76.09422144 | AE162: 1000000000 | AF162: 83176224.01 | AH162: 23.71510185 | AI162: -25.86528695 | AK162: 32.93882873 | AL162: -76.81869235 | AN162: 0 | AO162: 0
A163: 9173.2 | B163: 9.1732 | C163: 4.066275031 | D163: 1.322322109 | E163: 1.000723273 | F163: 0.03802203106 | G163: 77812.17008 | H163: 1.570783475 | I163: 2.539475042 | J163: 1.166053724 | K163: 1.001006986 | L163: 0.04485849249 | M163: 1.000012457 | N163: 0.004991286387 | O163: 1 | P163: 0 | Q163: 1 | R163: 0 | S163: 1 | T163: 0 | U163: 1 | V163: 0 | W163: 0.9998757417 | X163: 0.062933793 | Y163: 1.000065738 | Z163: 0.0114659975 | AA163: 13.20781025 | AB163: -103.8932567 | AC163: 76.10674329 | AE163: 1000000000 | AF163: 84147598.24 | AH163: 23.70714342 | AI163: -25.75950891 | AK163: 32.89155579 | AL163: -76.90483524 | AN163: 0 | AO163: 0
A164: 9226.3 | B164: 9.2263 | C164: 4.088393363 | D164: 1.323694488 | E164: 1.000731668 | F164: 0.03824191154 | G164: 78262.59373 | H164: 1.570783549 | I164: 2.551901151 | J164: 1.1681388 | K164: 1.001018672 | L164: 0.0451178092 | M164: 1.000012601 | N164: 0.005020178471 | O164: 1 | P164: 0 | Q164: 1 | R164: 0 | S164: 1 | T164: 0 | U164: 1 | V164: 0 | W164: 0.9998743248 | X164: 0.06329866738 | Y164: 1.000066501 | Z164: 0.01153236372 | AA164: 13.15293142 | AB164: -103.8810496 | AC164: 76.11895036 | AE164: 1000000000 | AF164: 85124611.69 | AH164: 23.6993058 | AI164: -25.65490484 | AK164: 32.84452372 | AL164: -76.99011895 | AN164: 0 | AO164: 0
A165: 9279.4 | B165: 9.2794 | C165: 4.110519313 | D165: 1.325052096 | E165: 1.000740111 | F165: 0.03846178833 | G165: 78713.01738 | H165: 1.570783622 | I165: 2.564338246 | J165: 1.17020366 | K165: 1.001030426 | L165: 0.04537711983 | M165: 1.000012747 | N165: 0.005049070547 | O165: 1 | P165: 0 | Q165: 1 | R165: 0 | S165: 1 | T165: 0 | U165: 1 | V165: 0 | W165: 0.9998729004 | X165: 0.06366355173 | Y165: 1.000067269 | Z165: 0.01159872984 | AA165: 13.09840956 | AB165: -103.8691549 | AC165: 76.1308451 | AE165: 1000000000 | AF165: 86107264.36 | AH165: 23.69158658 | AI165: -25.55145868 | AK165: 32.79773027 | AL165: -77.07455708 | AN165: 0 | AO165: 0
A166: 9332.5 | B166: 9.3325 | C166: 4.132652757 | D166: 1.326395165 | E166: 1.000748602 | F166: 0.03868166139 | G166: 79163.44103 | H166: 1.570783695 | I166: 2.576786169 | J166: 1.172248579 | K166: 1.001042246 | L166: 0.04563642436 | M166: 1.000012893 | N166: 0.005077962615 | O166: 1 | P166: 0 | Q166: 1 | R166: 0 | S166: 1 | T166: 0 | U166: 1 | V166: 0 | W166: 0.9998714685 | X166: 0.06402844608 | Y166: 1.000068041 | Z166: 0.01166509586 | AA166: 13.04424007 | AB166: -103.85757 | AC166: 76.14242996 | AE166: 1000000000 | AF166: 87095556.25 | AH166: 23.68398338 | AI166: -25.44915467 | AK166: 32.75117323 | AL166: -77.15816295 | AN166: 0 | AO166: 0
A167: 9386.85 | B167: 9.38685 | C167: 4.155314871 | D167: 1.32775503 | E167: 1.000757344 | F167: 0.0389067065 | G167: 79624.46788 | H167: 1.570783768 | I167: 2.589538173 | J167: 1.174321267 | K167: 1.001054415 | L167: 0.04590182668 | M167: 1.000013044 | N167: 0.005107534807 | O167: 1 | P167: 0 | Q167: 1 | R167: 0 | S167: 1 | T167: 0 | U167: 1 | V167: 0 | W167: 0.999869995 | X167: 0.06440194066 | Y167: 1.000068836 | Z167: 0.01173302407 | AA167: 12.98915564 | AB167: -103.8460308 | AC167: 76.15396922 | AE167: 1000000000 | AF167: 88112952.92 | AH167: 23.67631894 | AI167: -25.34560899 | AK167: 32.70376275 | AL167: -77.24288866 | AN167: 0 | AO167: 0
A168: 9441.2 | B168: 9.4412 | C168: 4.177984585 | D168: 1.32910014 | E168: 1.000766136 | F168: 0.03913174767 | G168: 80085.49472 | H168: 1.57078384 | I168: 2.602301192 | J168: 1.176373633 | K168: 1.001066653 | L168: 0.04616722254 | M168: 1.000013195 | N168: 0.00513710699 | O168: 1 | P168: 0 | Q168: 1 | R168: 0 | S168: 1 | T168: 0 | U168: 1 | V168: 0 | W168: 0.9998685136 | X168: 0.06477544584 | Y168: 1.000069635 | Z168: 0.01180095216 | AA168: 12.93443093 | AB168: -103.8348109 | AC168: 76.16518906 | AE168: 1000000000 | AF168: 89136257.44 | AH168: 23.66877122 | AI168: -25.24322727 | AK168: 32.65659535 | AL168: -77.32676981 | AN168: 0 | AO168: 0
A169: 9495.55 | B169: 9.49555 | C169: 4.200661777 | D169: 1.33043073 | E169: 1.000774978 | F169: 0.03935678487 | G169: 80546.52157 | H169: 1.570783912 | I169: 2.615075066 | J169: 1.178405958 | K169: 1.001078963 | L169: 0.04643261188 | M169: 1.000013347 | N169: 0.005166679164 | O169: 1 | P169: 0 | Q169: 1 | R169: 0 | S169: 1 | T169: 0 | U169: 1 | V169: 0 | W169: 0.9998670242 | X169: 0.0651489617 | Y169: 1.000070439 | Z169: 0.01186888014 | AA169: 12.88006131 | AB169: -103.8239078 | AC169: 76.17609216 | AE169: 1000000000 | AF169: 90165469.8 | AH169: 23.66133785 | AI169: -25.14199345 | AK169: 32.60966872 | AL169: -77.40981984 | AN169: 0 | AO169: 0
A170: 9549.9 | B170: 9.5499 | C170: 4.223346327 | D170: 1.331747029 | E170: 1.000783872 | F170: 0.03958181808 | G170: 81007.54841 | H170: 1.570783982 | I170: 2.627859636 | J170: 1.180418516 | K170: 1.001091343 | L170: 0.04669799468 | M170: 1.000013501 | N170: 0.005196251329 | O170: 1 | P170: 0 | Q170: 1 | R170: 0 | S170: 1 | T170: 0 | U170: 1 | V170: 0 | W170: 0.9998655271 | X170: 0.06552248829 | Y170: 1.000071248 | Z170: 0.01193680802 | AA170: 12.82604222 | AB170: -103.8133189 | AC170: 76.18668115 | AE170: 1000000000 | AF170: 91200590.01 | AH170: 23.65401655 | AI170: -25.04189173 | AK170: 32.56298062 | AL170: -77.49205186 | AN170: 0 | AO170: 0
A171: 9605.525 | B171: 9.605525 | C171: 4.246570529 | D171: 1.333079642 | E171: 1.000793026 | F171: 0.03981212621 | G171: 81479.39051 | H171: 1.570784054 | I171: 2.640955033 | J171: 1.182458102 | K171: 1.001104086 | L171: 0.04696959629 | M171: 1.000013658 | N171: 0.00522651722 | O171: 1 | P171: 0 | Q171: 1 | R171: 0 | S171: 1 | T171: 0 | U171: 1 | V171: 0 | W171: 0.9998639866 | X171: 0.06590478864 | Y171: 1.00007208 | Z171: 0.0120063293 | AA171: 12.77111418 | AB171: -103.8028039 | AC171: 76.19719608 | AE171: 1000000000 | AF171: 92266110.53 | AH171: 23.64663717 | AI171: -24.94059777 | AK171: 32.51544192 | AL171: -77.57537939 | AN171: 0 | AO171: 0
A172: 9661.15 | B172: 9.66115 | C172: 4.269802191 | D172: 1.334397757 | E172: 1.000802234 | F172: 0.04004243011 | G172: 81951.23261 | H172: 1.570784124 | I172: 2.654061308 | J172: 1.184477553 | K172: 1.001116904 | L172: 0.04724119097 | M172: 1.000013817 | N172: 0.005256783101 | O172: 1 | P172: 0 | Q172: 1 | R172: 0 | S172: 1 | T172: 0 | U172: 1 | V172: 0 | W172: 0.9998624379 | X172: 0.06628710036 | Y172: 1.000072918 | Z172: 0.01207585047 | AA172: 12.71654392 | AB172: -103.7926124 | AC172: 76.20738763 | AE172: 1000000000 | AF172: 93337819.32 | AH172: 23.63937048 | AI172: -24.84045705 | AK172: 32.46814838 | AL172: -77.65787709 | AN172: 0 | AO172: 0
A173: 9716.775 | B173: 9.716775 | C173: 4.293041191 | D173: 1.335701603 | E173: 1.000811495 | F173: 0.04027272976 | G173: 82423.07471 | H173: 1.570784194 | I173: 2.6671783 | J173: 1.186477148 | K173: 1.001129795 | L173: 0.04751277868 | M173: 1.000013977 | N173: 0.005287048973 | O173: 1 | P173: 0 | Q173: 1 | R173: 0 | S173: 1 | T173: 0 | U173: 1 | V173: 0 | W173: 0.999860881 | X173: 0.06666942352 | Y173: 1.00007376 | Z173: 0.01214537153 | AA173: 12.66232682 | AB173: -103.7827414 | AC173: 76.21725862 | AE173: 1000000000 | AF173: 94415716.4 | AH173: 23.63221418 | AI173: -24.74145349 | AK173: 32.42109767 | AL173: -77.73955818 | AN173: 0 | AO173: 0
A174: 9772.4 | B174: 9.7724 | C174: 4.316287411 | D174: 1.336991407 | E174: 1.000820809 | F174: 0.04050302514 | G174: 82894.91681 | H174: 1.570784263 | I174: 2.680305852 | J174: 1.188457165 | K174: 1.00114276 | L174: 0.04778435937 | M174: 1.000014137 | N174: 0.005317314835 | O174: 1 | P174: 0 | Q174: 1 | R174: 0 | S174: 1 | T174: 0 | U174: 1 | V174: 0 | W174: 0.9998593159 | X174: 0.06705175817 | Y174: 1.000074606 | Z174: 0.01221489246 | AA174: 12.60845835 | AB174: -103.7731881 | AC174: 76.22681191 | AE174: 1000000000 | AF174: 95499801.76 | AH174: 23.62516603 | AI174: -24.64357128 | AK174: 32.37428749 | AL174: -77.82043562 | AN174: 0 | AO174: 0
A175: 9829.3 | B175: 9.8293 | C175: 4.340073814 | D175: 1.338296478 | E175: 1.000830391 | F175: 0.04073859475 | G175: 83377.57417 | H175: 1.570784333 | I175: 2.693745071 | J175: 1.190462591 | K175: 1.001156098 | L175: 0.04806215776 | M175: 1.000014302 | N175: 0.005348274421 | O175: 1 | P175: 0 | Q175: 1 | R175: 0 | S175: 1 | T175: 0 | U175: 1 | V175: 0 | W175: 0.9998577064 | X175: 0.06744286843 | Y175: 1.000075478 | Z175: 0.01228600679 | AA175: 12.55371122 | AB175: -103.7637416 | AC175: 76.23625841 | AE175: 1000000000 | AF175: 96615138.49 | AH175: 23.61806596 | AI175: -24.54458953 | AK175: 32.32665086 | AL175: -77.90234862 | AN175: 0 | AO175: 0
A176: 9886.2 | B176: 9.8862 | C176: 4.363867529 | D176: 1.339587319 | E176: 1.000840029 | F176: 0.04097415983 | G176: 83860.23153 | H176: 1.570784402 | I176: 2.707195015 | J176: 1.192448098 | K176: 1.001169514 | L176: 0.04833994872 | M176: 1.000014468 | N176: 0.005379233998 | O176: 1 | P176: 0 | Q176: 1 | R176: 0 | S176: 1 | T176: 0 | U176: 1 | V176: 0 | W176: 0.9998560883 | X176: 0.06783399085 | Y176: 1.000076354 | Z176: 0.01235712099 | AA176: 12.49931956 | AB176: -103.7546215 | AC176: 76.24537845 | AE176: 1000000000 | AF176: 97736950.44 | AH176: 23.61107451 | AI176: -24.44674856 | AK176: 32.27926115 | AL176: -77.9834473 | AN176: 0 | AO176: 0
A177: 9943.1 | B177: 9.9431 | C177: 4.387668436 | D177: 1.340864158 | E177: 1.000849722 | F177: 0.04120972037 | G177: 84342.88889 | H177: 1.57078447 | I177: 2.720655526 | J177: 1.194413966 | K177: 1.001183007 | L177: 0.04861773222 | M177: 1.000014635 | N177: 0.005410193563 | O177: 1 | P177: 0 | Q177: 1 | R177: 0 | S177: 1 | T177: 0 | U177: 1 | V177: 0 | W177: 0.9998544617 | X177: 0.06822512552 | Y177: 1.000077235 | Z177: 0.01242823507 | AA177: 12.44527879 | AB177: -103.745825 | AC177: 76.25417505 | AE177: 1000000000 | AF177: 98865237.61 | AH177: 23.60418947 | AI177: -24.35003236 | AK177: 32.23211599 | AL177: -78.06374466 | AN177: 0 | AO177: 0
A178: 10000 | B178: 10 | C178: 4.41147642 | D178: 1.342127217 | E178: 1.000859471 | F178: 0.04144527633 | G178: 84825.54625 | H178: 1.570784538 | I178: 2.734126448 | J178: 1.196360469 | K178: 1.001196577 | L178: 0.04889550821 | M178: 1.000014803 | N178: 0.005441153119 | O178: 1 | P178: 0 | Q178: 1 | R178: 0 | S178: 1 | T178: 0 | U178: 1 | V178: 0 | W178: 0.9998528266 | X178: 0.06861627251 | Y178: 1.000078122 | Z178: 0.01249934902 | AA178: 12.39158442 | AB178: -103.7373488 | AC178: 76.2626512 | AE178: 1000000000 | AF178: 100000000 | AH178: 23.59740865 | AI178: -24.25442516 | AK178: 32.18521305 | AL178: -78.14325348 | AN178: 0 | AO178: 0
A179: 10058.25 | B179: 10.05825 | C179: 4.435856478 | D179: 1.343406197 | E179: 1.000869508 | F179: 0.04168641628 | G179: 85319.65505 | H179: 1.570784606 | I179: 2.747927603 | J179: 1.198333379 | K179: 1.00121055 | L179: 0.04917986684 | M179: 1.000014976 | N179: 0.005472847205 | O179: 1 | P179: 0 | Q179: 1 | R179: 0 | S179: 1 | T179: 0 | U179: 1 | V179: 0 | W179: 0.9998511439 | X179: 0.06901671261 | Y179: 1.000079035 | Z179: 0.01257215008 | AA179: 12.33697032 | AB179: -103.7290004 | AC179: 76.27099964 | AE179: 1000000000 | AF179: 101168393.1 | AH179: 23.59057273 | AI179: -24.15768222 | AK179: 32.1374458 | AL179: -78.22384491 | AN179: 0 | AO179: 0
A180: 10116.5 | B180: 10.1165 | C180: 4.460243714 | D180: 1.344671192 | E180: 1.000879604 | F180: 0.04192755139 | G180: 85813.76386 | H180: 1.570784674 | I180: 2.761739347 | J180: 1.200286563 | K180: 1.001224603 | L180: 0.04946421752 | M180: 1.00001515 | N180: 0.005504541279 | O180: 1 | P180: 0 | Q180: 1 | R180: 0 | S180: 1 | T180: 0 | U180: 1 | V180: 0 | W180: 0.9998494522 | X180: 0.06941716576 | Y180: 1.000079953 | Z180: 0.012644951 | AA180: 12.28270998 | AB180: -103.7209814 | AC180: 76.27901858 | AE180: 1000000000 | AF180: 102343572.2 | AH180: 23.58384163 | AI180: -24.06206899 | AK180: 32.08992755 | AL180: -78.30363614 | AN180: 0 | AO180: 0
A181: 10174.75 | B181: 10.17475 | C181: 4.484638009 | D181: 1.345922428 | E181: 1.000889758 | F181: 0.04216868161 | G181: 86307.87267 | H181: 1.57078474 | I181: 2.775561522 | J181: 1.202220301 | K181: 1.001238737 | L181: 0.04974856019 | M181: 1.000015325 | N181: 0.005536235343 | O181: 1 | P181: 0 | Q181: 1 | R181: 0 | S181: 1 | T181: 0 | U181: 1 | V181: 0 | W181: 0.9998477516 | X181: 0.06981763204 | Y181: 1.000080876 | Z181: 0.01271775179 | AA181: 12.22879883 | AB181: -103.7132888 | AC181: 76.28671121 | AE181: 1000000000 | AF181: 103525537.6 | AH181: 23.57721321 | AI181: -23.96756944 | AK181: 32.04265589 | AL181: -78.38264001 | AN181: 0 | AO181: 0
A182: 10233 | B182: 10.233 | C182: 4.509039249 | D182: 1.347160123 | E182: 1.00089997 | F182: 0.04240980693 | G182: 86801.98147 | H182: 1.570784806 | I182: 2.789393973 | J182: 1.204134867 | K182: 1.001252952 | L182: 0.0500328948 | M182: 1.000015501 | N182: 0.005567929396 | O182: 1 | P182: 0 | Q182: 1 | R182: 0 | S182: 1 | T182: 0 | U182: 1 | V182: 0 | W182: 0.9998460422 | X182: 0.07021811153 | Y182: 1.000081805 | Z182: 0.01279055245 | AA182: 12.17523241 | AB182: -103.7059193 | AC182: 76.29408067 | AE182: 1000000000 | AF182: 104714289 | AH182: 23.57068535 | AI182: -23.87416783 | AK182: 31.99562845 | AL182: -78.46086911 | AN182: 0 | AO182: 0
A183: 10292.5 | B183: 10.2925 | C183: 4.533971175 | D183: 1.348410622 | E183: 1.000910462 | F183: 0.04265610152 | G183: 87306.69347 | H183: 1.570784873 | I183: 2.803533709 | J183: 1.206071006 | K183: 1.001267556 | L183: 0.05032332266 | M183: 1.000015682 | N183: 0.005600303567 | O183: 1 | P183: 0 | Q183: 1 | R183: 0 | S183: 1 | T183: 0 | U183: 1 | V183: 0 | W183: 0.9998442869 | X183: 0.0706271987 | Y183: 1.000082759 | Z183: 0.01286491521 | AA183: 12.12086783 | AB183: -103.6987221 | AC183: 76.30127793 | AE183: 1000000000 | AF183: 105935556.2 | AH183: 23.56411911 | AI183: -23.77987936 | AK183: 31.94784153 | AL183: -78.53998985 | AN183: 0 | AO183: 0
A184: 10352 | B184: 10.352 | C184: 4.558910113 | D184: 1.349647442 | E184: 1.000921014 | F184: 0.04290239093 | G184: 87811.40547 | H184: 1.570784939 | I184: 2.817683849 | J184: 1.207987705 | K184: 1.001282244 | L184: 0.05061374203 | M184: 1.000015864 | N184: 0.005632677726 | O184: 1 | P184: 0 | Q184: 1 | R184: 0 | S184: 1 | T184: 0 | U184: 1 | V184: 0 | W184: 0.9998425224 | X184: 0.0710362998 | Y184: 1.000083718 | Z184: 0.01293927783 | AA184: 12.06685376 | AB184: -103.6918554 | AC184: 76.30814462 | AE184: 1000000000 | AF184: 107163904 | AH184: 23.55765355 | AI184: -23.68670413 | AK184: 31.90030451 | AL184: -78.61832792 | AN184: 0 | AO184: 0
A185: 10411.5 | B185: 10.4115 | C185: 4.583855949 | D185: 1.350870802 | E185: 1.000931627 | F185: 0.04314867513 | G185: 88316.11747 | H185: 1.570785004 | I185: 2.831844236 | J185: 1.209885243 | K185: 1.001297017 | L185: 0.05090415285 | M185: 1.000016047 | N185: 0.005665051874 | O185: 1 | P185: 0 | Q185: 1 | R185: 0 | S185: 1 | T185: 0 | U185: 1 | V185: 0 | W185: 0.9998407486 | X185: 0.07144541492 | Y185: 1.000084683 | Z185: 0.01301364031 | AA185: 12.01318569 | AB185: -103.6853159 | AC185: 76.31468407 | AE185: 1000000000 | AF185: 108399332.2 | AH185: 23.55128658 | AI185: -23.59462625 | AK185: 31.85301497 | AL185: -78.69589589 | AN185: 0 | AO185: 0
A186: 10471 | B186: 10.471 | C186: 4.608808571 | D186: 1.352080916 | E186: 1.0009423 | F186: 0.0433949541 | G186: 88820.82947 | H186: 1.570785068 | I186: 2.846014719 | J186: 1.211763892 | K186: 1.001311874 | L186: 0.05119455507 | M186: 1.000016231 | N186: 0.005697426009 | O186: 1 | P186: 0 | Q186: 1 | R186: 0 | S186: 1 | T186: 0 | U186: 1 | V186: 0 | W186: 0.9998389657 | X186: 0.07185454414 | Y186: 1.000085654 | Z186: 0.01308800264 | AA186: 11.9598592 | AB186: -103.6791004 | AC186: 76.32089957 | AE186: 1000000000 | AF186: 109641841 | AH186: 23.54501618 | AI186: -23.50363011 | AK186: 31.80597051 | AL186: -78.77270608 | AN186: 0 | AO186: 0
A187: 10532 | B187: 10.532 | C187: 4.634397181 | D187: 1.353308008 | E187: 1.000953306 | F187: 0.04364743631 | G187: 89338.26531 | H187: 1.570785133 | I187: 2.860552763 | J187: 1.213670572 | K187: 1.001327193 | L187: 0.05149226939 | M187: 1.00001642 | N187: 0.005730616287 | O187: 1 | P187: 0 | Q187: 1 | R187: 0 | S187: 1 | T187: 0 | U187: 1 | V187: 0 | W187: 0.9998371282 | X187: 0.07227400225 | Y187: 1.000086655 | Z187: 0.01316423951 | AA187: 11.90553841 | AB187: -103.6730611 | AC187: 76.32693888 | AE187: 1000000000 | AF187: 110923024 | AH187: 23.53868589 | AI187: -23.41144688 | AK187: 31.75799199 | AL187: -78.85067862 | AN187: 0 | AO187: 0
A188: 10593 | B188: 10.593 | C188: 4.659992692 | D188: 1.354521622 | E188: 1.000964376 | F188: 0.04389991295 | G188: 89855.70114 | H188: 1.570785198 | I188: 2.875101102 | J188: 1.215557964 | K188: 1.001342601 | L188: 0.05178997457 | M188: 1.000016611 | N188: 0.005763806552 | O188: 1 | P188: 0 | Q188: 1 | R188: 0 | S188: 1 | T188: 0 | U188: 1 | V188: 0 | W188: 0.9998352811 | X188: 0.07269347534 | Y188: 1.000087662 | Z188: 0.01324047622 | AA188: 11.8515675 | AB188: -103.6673554 | AC188: 76.33264463 | AE188: 1000000000 | AF188: 112211649 | AH188: 23.53245297 | AI188: -23.32036828 | AK188: 31.71026607 | AL188: -78.9278801 | AN188: 0 | AO188: 0
A189: 10654 | B189: 10.654 | C189: 4.685594992 | D189: 1.355721975 | E189: 1.000975509 | F189: 0.04415238399 | G189: 90373.13697 | H189: 1.570785262 | I189: 2.889659579 | J189: 1.217426343 | K189: 1.001358098 | L189: 0.05208767057 | M189: 1.000016803 | N189: 0.005796996805 | O189: 1 | P189: 0 | Q189: 1 | R189: 0 | S189: 1 | T189: 0 | U189: 1 | V189: 0 | W189: 0.9998334244 | X189: 0.0731129635 | Y189: 1.000088674 | Z189: 0.01331671277 | AA189: 11.79794197 | AB189: -103.6619797 | AC189: 76.3380203 | AE189: 1000000000 | AF189: 113507716 | AH189: 23.52631538 | AI189: -23.23037838 | AK189: 31.66279025 | AL189: -79.00432298 | AN189: 0 | AO189: 0
A190: 10715 | B190: 10.715 | C190: 4.71120397 | D190: 1.35690928 | E190: 1.000986706 | F190: 0.0444048494 | G190: 90890.5728 | H190: 1.570785325 | I190: 2.904228042 | J190: 1.219275985 | K190: 1.001373683 | L190: 0.05238535732 | M190: 1.000016996 | N190: 0.005830187045 | O190: 1 | P190: 0 | Q190: 1 | R190: 0 | S190: 1 | T190: 0 | U190: 1 | V190: 0 | W190: 0.9998315581 | X190: 0.07353246682 | Y190: 1.000089692 | Z190: 0.01339294917 | AA190: 11.7446574 | AB190: -103.6569307 | AC190: 76.34306932 | AE190: 1000000000 | AF190: 114811225 | AH190: 23.52027117 | AI190: -23.14146153 | AK190: 31.61556209 | AL190: -79.08001946 | AN190: 0 | AO190: 0
A191: 10777.5 | B191: 10.7775 | C191: 4.737449489 | D191: 1.358112466 | E191: 1.000998245 | F191: 0.0446635171 | G191: 91420.73247 | H191: 1.570785388 | I191: 2.919164948 | J191: 1.221151955 | K191: 1.001389744 | L191: 0.0526903546 | M191: 1.000017195 | N191: 0.005864193425 | O191: 1 | P191: 0 | Q191: 1 | R191: 0 | S191: 1 | T191: 0 | U191: 1 | V191: 0 | W191: 0.9998296359 | X191: 0.0739623016 | Y191: 1.000090742 | Z191: 0.01347106008 | AA191: 11.69041166 | AB191: -103.6520927 | AC191: 76.34790729 | AE191: 1000000000 | AF191: 116154506.2 | AH191: 23.51417315 | AI191: -23.05145509 | AK191: 31.56742693 | AL191: -79.15681566 | AN191: 0 | AO191: 0
A192: 10840 | B192: 10.84 | C192: 4.763701792 | D192: 1.359302392 | E192: 1.00100985 | F192: 0.04492217881 | G192: 91950.89213 | H192: 1.570785451 | I192: 2.934112022 | J192: 1.223008818 | K192: 1.001405898 | L192: 0.05299534207 | M192: 1.000017395 | N192: 0.005898199791 | O192: 1 | P192: 0 | Q192: 1 | R192: 0 | S192: 1 | T192: 0 | U192: 1 | V192: 0 | W192: 0.9998277037 | X192: 0.07439215247 | Y192: 1.000091797 | Z192: 0.01354917082 | AA192: 11.63651474 | AB192: -103.6475904 | AC192: 76.35240958 | AE192: 1000000000 | AF192: 117505600 | AH192: 23.50816913 | AI192: -22.9625428 | AK192: 31.51954668 | AL192: -79.2328534 | AN192: 0 | AO192: 0
A193: 10902.5 | B193: 10.9025 | C193: 4.789960765 | D193: 1.360479274 | E193: 1.001021523 | F193: 0.04518083452 | G193: 92481.05179 | H193: 1.570785514 | I193: 2.94906911 | J193: 1.224846851 | K193: 1.001422145 | L193: 0.05330031967 | M193: 1.000017596 | N193: 0.005932206144 | O193: 1 | P193: 0 | Q193: 1 | R193: 0 | S193: 1 | T193: 0 | U193: 1 | V193: 0 | W193: 0.9998257615 | X193: 0.07482201952 | Y193: 1.000092859 | Z193: 0.0136272814 | AA193: 11.58296215 | AB193: -103.6434202 | AC193: 76.35657982 | AE193: 1000000000 | AF193: 118864506.2 | AH193: 23.50225713 | AI193: -22.87470872 | AK193: 31.47191879 | AL193: -79.308145 | AN193: 0 | AO193: 0
A194: 10965 | B194: 10.965 | C194: 4.8162263 | D194: 1.36164332 | E194: 1.001033262 | F194: 0.04543948417 | G194: 93011.21146 | H194: 1.570785575 | I194: 2.964036061 | J194: 1.226666329 | K194: 1.001438486 | L194: 0.05360528735 | M194: 1.000017798 | N194: 0.005966212483 | O194: 1 | P194: 0 | Q194: 1 | R194: 0 | S194: 1 | T194: 0 | U194: 1 | V194: 0 | W194: 0.9998238093 | X194: 0.07525190286 | Y194: 1.000093926 | Z194: 0.01370539181 | AA194: 11.52974948 | AB194: -103.6395784 | AC194: 76.36042158 | AE194: 1000000000 | AF194: 120231225 | AH194: 23.49643525 | AI194: -22.78793722 | AK194: 31.4245408 | AL194: -79.38270251 | AN194: 0 | AO194: 0
A195: 11028.75 | B195: 11.02875 | C195: 4.843023796 | D195: 1.362817638 | E195: 1.001045306 | F195: 0.04570330055 | G195: 93551.97431 | H195: 1.570785638 | I195: 2.979312357 | J195: 1.228503357 | K195: 1.001455249 | L195: 0.0539163441 | M195: 1.000018006 | N195: 0.006000898934 | O195: 1 | P195: 0 | Q195: 1 | R195: 0 | S195: 1 | T195: 0 | U195: 1 | V195: 0 | W195: 0.9998218077 | X195: 0.07569040072 | Y195: 1.000095022 | Z195: 0.01378506425 | AA195: 11.47581828 | AB195: -103.6359945 | AC195: 76.36400545 | AE195: 1000000000 | AF195: 121633326.6 | AH195: 23.49058783 | AI195: -22.70050906 | AK195: 31.37647013 | AL195: -79.45800712 | AN195: 0 | AO195: 0
A196: 11092.5 | B196: 11.0925 | C196: 4.869827897 | D196: 1.363979031 | E196: 1.001057419 | F196: 0.04596711056 | G196: 94092.73717 | H196: 1.570785699 | I196: 2.994598605 | J196: 1.230321637 | K196: 1.001472109 | L196: 0.05422739041 | M196: 1.000018214 | N196: 0.006035585371 | O196: 1 | P196: 0 | Q196: 1 | R196: 0 | S196: 1 | T196: 0 | U196: 1 | V196: 0 | W196: 0.9998197958 | X196: 0.07612891572 | Y196: 1.000096123 | Z196: 0.01386473652 | AA196: 11.42223174 | AB196: -103.632745 | AC196: 76.367255 | AE196: 1000000000 | AF196: 123043556.2 | AH196: 23.4848303 | AI196: -22.61415447 | AK196: 31.32865432 | AL196: -79.5325725 | AN196: 0 | AO196: 0
A197: 11156.25 | B197: 11.15625 | C197: 4.896638494 | D197: 1.365127708 | E197: 1.001069601 | F197: 0.04623091418 | G197: 94633.50003 | H197: 1.57078576 | I197: 3.009894652 | J197: 1.232121441 | K197: 1.001489065 | L197: 0.05453842621 | M197: 1.000018424 | N197: 0.006070271794 | O197: 1 | P197: 0 | Q197: 1 | R197: 0 | S197: 1 | T197: 0 | U197: 1 | V197: 0 | W197: 0.9998177735 | X197: 0.07656744794 | Y197: 1.000097231 | Z197: 0.01394440862 | AA197: 11.36898545 | AB197: -103.6298261 | AC197: 76.37017392 | AE197: 1000000000 | AF197: 124461914.1 | AH197: 23.47916077 | AI197: -22.52885778 | AK197: 31.28109083 | AL197: -79.60641064 | AN197: 0 | AO197: 0
A198: 11220 | B198: 11.22 | C198: 4.923455482 | D198: 1.366263872 | E198: 1.001081854 | F198: 0.04649471135 | G198: 95174.26289 | H198: 1.57078582 | I198: 3.025200351 | J198: 1.23390304 | K198: 1.001506119 | L198: 0.05484945145 | M198: 1.000018636 | N198: 0.006104958202 | O198: 1 | P198: 0 | Q198: 1 | R198: 0 | S198: 1 | T198: 0 | U198: 1 | V198: 0 | W198: 0.9998157409 | X198: 0.07700599748 | Y198: 1.000098345 | Z198: 0.01402408053 | AA198: 11.3160751 | AB198: -103.6272341 | AC198: 76.37276586 | AE198: 1000000000 | AF198: 125888400 | AH198: 23.47357742 | AI198: -22.44460357 | AK198: 31.23377717 | AL198: -79.67953327 | AN198: 0 | AO198: 0
A199: 11285.5 | B199: 11.2855 | C199: 4.951015169 | D199: 1.367418405 | E199: 1.001094515 | F199: 0.04676574326 | G199: 95729.87021 | H199: 1.570785881 | I199: 3.040936106 | J199: 1.23571486 | K199: 1.001523742 | L199: 0.05516900357 | M199: 1.000018854 | N199: 0.006140596771 | O199: 1 | P199: 0 | Q199: 1 | R199: 0 | S199: 1 | T199: 0 | U199: 1 | V199: 0 | W199: 0.9998136418 | X199: 0.07745660379 | Y199: 1.000099497 | Z199: 0.01410593934 | AA199: 11.26205772 | AB199: -103.6249078 | AC199: 76.3750922 | AE199: 1000000000 | AF199: 127362510.2 | AH199: 23.46792868 | AI199: -22.35910642 | AK199: 31.18542232 | AL199: -79.75393003 | AN199: 0 | AO199: 0
A200: 11351 | B200: 11.351 | C200: 4.978581383 | D200: 1.368560154 | E200: 1.001107249 | F200: 0.04703676831 | G200: 96285.47754 | H200: 1.570785941 | I200: 3.05668174 | J200: 1.237508019 | K200: 1.001541467 | L200: 0.05548854442 | M200: 1.000019073 | N200: 0.006176235324 | O200: 1 | P200: 0 | Q200: 1 | R200: 0 | S200: 1 | T200: 0 | U200: 1 | V200: 0 | W200: 0.9998115318 | X200: 0.0779072286 | Y200: 1.000100655 | Z200: 0.01418779795 | AA200: 11.20838595 | AB200: -103.6229189 | AC200: 76.37708108 | AE200: 1000000000 | AF200: 128845201 | AH200: 23.46236714 | AI200: -22.27467775 | AK200: 31.13732597 | AL200: -79.82759579 | AN200: 0 | AO200: 0
A201: 11416.5 | B201: 11.4165 | C201: 5.006154015 | D201: 1.369689327 | E201: 1.001120058 | F201: 0.04730778643 | G201: 96841.08487 | H201: 1.570786001 | I201: 3.072437102 | J201: 1.239282794 | K201: 1.001559294 | L201: 0.05580807392 | M201: 1.000019294 | N201: 0.006211873861 | O201: 1 | P201: 0 | Q201: 1 | R201: 0 | S201: 1 | T201: 0 | U201: 1 | V201: 0 | W201: 0.999809411 | X201: 0.07835787201 | Y201: 1.00010182 | Z201: 0.01426965638 | AA201: 11.15505537 | AB201: -103.6212637 | AC201: 76.37873634 | AE201: 1000000000 | AF201: 130336472.2 | AH201: 23.45689095 | AI201: -22.19130176 | AK201: 31.08948553 | AL201: -79.90054249 | AN201: 0 | AO201: 0
... 433 more rows

Sheet Bode Plot Management (hidden)
J1: Single or dual output (MODE) | N1: 3.3V or 5V fixed (FB1/2)
A2: =CHOOSE(BODE_PLOT_TYPE, "BODE_PLOT_Ch1", "BODE_PLOT_Ch2") -> BODE_PLOT_Ch1 | J2: With/without dither (DITH) | N2: With/without VOUT connected to VCCX
J3: FPWM or DEM (DEMB)
J4: Shunt or inductor DCR current sensing
F6: =INDIRECT(A2) -> 0

Sheet MOSFET parameters (hidden)
A2: MOSFET Parameters
F3: Internal Power MOSFETs
E4: High-side | F4: Low-side
D5: On-State Resistance, RDS(on) | E5: 42 | F5: 24 | G5: mΩ
D6: Total Gate Charge, QG | E6: 7.6 | F6: 13.3 | G6: nC
D7: Gate-Drain Charge, QGD | E7: 2.9 | F7: 5.08 | G7: nC
D8: Gate-Source Charge, QGS | E8: 5.43 | F8: 9.5 | G8: nC
D9: Output Charge, QOSS | E9: 6.4 | F9: 11.2 | G9: nC
D10: Output Capacitance, COSS | E10: 93.3 | F10: 163 | G10: pF
D11: Gate Resistance, RG | E11: 2.9 | F11: 2.9 | G11: Ω
D12: Transconductance, gFS | E12: 62 | F12: 62 | G12: S
D13: Gate-Source Threshold Voltage, VTH | E13: 1.7 | F13: 1.7 | G13: V
D14: Body Diode Forward Voltage, VBD | E14: 0.7 | F14: 0.7 | G14: V
D15: Body Diode Rev Recovery Charge, QRR | E15: 16.7 | F15: =CHOOSE(VARIANT, 29.2*4/8, 29.2*6/8, 29.2) -> 29.2 | G15: nC
D16: Thermal Resistance, θJA | E16: 55 | F16: 31.4 | G16: °C/W

Sheet Efficiency Calculations (hidden)
A1: BUCK CONTROLLER POWER DESIGN TOOL
H2: =AW19 -> 0.8547772591 | I2: 10% load | AI2: =Deadtime -> 5e-09
H3: =AW59 -> 0.9295087351 | I3: 50% load | AG3: =VfdSky_Q2 ->  | AP3: =IF(MODE=1, (Qg_Q1+Qg_Q2)*Fsw*Vin, (Qg_Q1+Qg_Q2+Qg_Q3+Qg_Q4)*Fsw*Vin) -> 0.20064
H4: =AW109 -> 0.9135475093 | I4: 100% load | AG4: =Vsd_Q2 -> 0.7 | AO4: I_VCC | AP4: =(Qg_Q1+Qg_Q2)*Fsw*1000 -> 8.36 | AQ4: mA | AR4: =AP4*5/1000 -> 0.0418
A6: Enter the values of your design and MOSFET datasheet specifications below. Note that thermal resistance (θJA) will change when components are placed on the PCB
G7: Operating Point Condtions | R7: Buck Inductor | V7: Cout | Y7: Cin | AB7: High-side BUCK "Control" MOSFET Losses | AH7: Low-side BUCK "Sync" MOSFET Losses | AL7: External Diode | AM7: Diode/FET | AN7: Sense Rs | AO7: Controller IC Losses | AU7: RESULTS | BA7: Consolidated Buck/Boost Efficiency & Losses
A8: Input Parameters | G8: Step | H8: Vin | I8: Mode | J8: Iout | K8: Iout/ phase | L8: Iin | M8: Duty Cycle BUCK Leg | N8: Ripple Current pk-pk | O8: Peak Inductor Current | P8: Valley Inductor Current | Q8: SW node voltage at Q1 turn-on | R8: Irms Lf | S8: DCR Loss | T8: Core Loss | U8: Total Inductor Loss | V8: Irms Cout | W8: Cout ESR Loss | X8: Total Cout Loss | Y8: Irms Cin | Z8: Cin ESR Loss | AA8: Total Cin Loss | AB8: Irms | AC8: RDS(on) Loss | AD8: Transition Loss (not including capacitive loss) | AE8: MOSFET Output Capacitance Loss | AF8: Dead Time Loss | AG8: Total Control MOSFET Loss | AH8: Irms | AI8: RDS(on) Loss | AJ8: Deadtime Loss | AK8: Total Sync MOSFET Loss | AL8: Deadtime Loss | AM8: Reverse Recovery Loss | AN8: Isense Shunt Loss | AO8: IQ Loss | AP8: Switching Current Loss | AQ8: Switching Current Diss | AR8: LDO Loss Saved from Gate Drive Current (with BIAS) | AS8: Total IC Bias Loss | AT8: Total IC Loss | AU8: Total Loss | AV8: Pout | AW8: EFF, h | AX8: =IF(Vin>Vout, "Buck ''CONTROL'' MOSFET Temp Rise", "Boost ''CONTROL'' MOSFET Temp Rise") -> Buck ''CONTROL'' MOSFET Temp Rise | AY8: =IF(Vin>Vout, "Buck ''SYNC'' MOSFET Temp Rise", "Boost ''SYNC'' MOSFET Temp Rise") -> Buck ''SYNC'' MOSFET Temp Rise | BA8: h | BB8: Inductor Cu & Core Loss | BC8: Total MOSFET Loss | BD8: High-side MOSFET Loss | BE8: Low-side MOSFET Loss | BF8: Bias Loss
A9: Design | B9: Input Value | C9: Units | D9: Description | G9: 0 | H9: =Vin -> 24 | I9: =MODE -> 1 | J9: 0 | K9: =Iout*G9/100/Number_of_Phases -> 0 | L9: =Vout*K9/(Vin*Efficiency) -> 0 | M9: =(Vout+(Rdson2+Rs+Rdcr)*K9)/(Vin+(Rs+Rdson2-Rdson1)*K9) -> 0.208375 | N9: =(Vin-(Rdson1+Rdcr)*K9-Vout)*M9/(Fsw*Lf) -> 2.999179261 | O9: =K9+N9/2 -> 1.499589631 | P9: =K9-N9/2 -> -1.499589631 | Q9: =IF(MIN(Vin, -P9/(Coss_Q1+Coss_Q2)*0.00000002)<0, 0, MIN(Vin, -P9/(Coss_Q1+Coss_Q2)*0.00000002)) -> 24 | R9: =SQRT(K9^2+(N9^2)/12) -> 0.8657884769 | S9: =R9^2*Rdcr -> 0.004422579152 | T9: =Core_Loss -> 0.54 | U9: =(T9+S9*(1+Ltc*(Ta-25)))/(1-S9*Ltc*ThetaCa) -> 0.5447037504 | V9: =N9/SQRT(12) -> 0.8657884769 | W9: =Resr_Cout*V9^2 -> 0.003747948434 | X9: =W9 -> 0.003747948434 | Y9: =SQRT(M9*(1-M9))*SQRT(K9^2+(N9^2)/12) -> 0.3516368317 | Z9: =RCinEsr*Y9^2 -> 0.0002472969228 | AA9: =Z9 -> 0.0002472969228 | AB9: =SQRT(M9)*SQRT(K9^2+(N9^2)/12) -> 0.3952160814 | AC9: =Rdson1*AB9^2 -> 0.006560221542 | AD9: =(Vin*K9/2)*Fsw*(Tr_buck+Tf_buck) -> 0 | AE9: =(0.5*Coss_Q1*(Vin-Q9)^2-0.5*Coss_Q2*(Vin-Q9)^2+(Qoss_Q2*(Vin-Q9)/Vin)*Vin)*Fsw -> 0 | AF9: =IF(K9>N9/2,0,ABS(K9-N9/2)*Vsd_Q1*Deadtime*Fsw) -> 0.002099425483 | AG9: =(AF9+AE9+AD9+AC9*(1+RdsonTopTc*Ta-RdsonTopTc*25))/(1-AC9*RdsonTopTc*ThetaJA_Q1) -> 0.008803557178 | AH9: =SQRT((1-M9))*SQRT(K9^2+(N9^2)/12) -> 0.7703206708 | AI9: =Rdson2*AH9^2 -> 0.01424145446 | AJ9: =IF(K9<N9/2, Deadtime*Fsw*Vsd_Q2*(K9+N9/2),2*Deadtime*Fsw*Vsd_Q2*K9) -> 0.002099425483 | AK9: =(AJ9+AI9*(1+RdsonBotTc*Ta-RdsonBotTc*25))/(1-AI9*RdsonBotTc*ThetaJA_Q2) -> 0.01665550117 | AL9: =2*Deadtime*Fsw*Vsd_Q2*K9 -> 0 | AM9: =Qrr_Q2*K9/(Iout/Number_of_Phases)*Fsw*Vin -> 0 | AN9: =Rs*R9^2 -> 0 | AO9: =Iq*Vin -> 5.28e-05 | AP9: =IF(Ext_BIAS=1, (Qg_Q1+Qg_Q2)*Fsw*Vout, (Qg_Q1+Qg_Q2)*Fsw*Vin) -> 0.04180836 | AQ9: =(Vin-VCC)*Fsw*(Qg_Q1+Qg_Q2)+(RdsonDRT+RdsonDRT2)*Fsw*Qg_Q1*VCC/(RdsonDRT+2*Rgate1+RdsonDRT2)+(RdsonDRB+RdsonDRB2)*Fsw*Qg_Q2*VCC/(RdsonDRB+2*Rgate2+RdsonDRB2) -> 0.1771090588 | AR9: =(Qg_Q1+Qg_Q2)*Fsw*(Vin-Vout) -> 0.15883164 | AS9: =SUM(AO9:AP9) -> 0.04186116 | AT9: =SUM(AG9,AK9,AM9,AS9) -> 0.06732021835 | AU9: =SUM(U9,X9,AA9,AG9,AK9,AL9,AM9,AS9,AN9) -> 0.6160192141 | AV9: =Vout*K9 -> 0 | AW9: =AV9/(AV9+AU9) -> 0 | AX9: =ThetaJA_Q1*BD9 -> 0.4841956448 | AY9: =ThetaJA_Q2*BE9 -> 0.5229827368 | BA9: =AW9*100 -> 0 | BB9: =U9 -> 0.5447037504 | BC9: =AG9+AK9+AM9 -> 0.02545905835 | BD9: =AG9+AM9*0.666 -> 0.008803557178 | BE9: =AK9+AM9*0.333 -> 0.01665550117 | BF9: =AP9 -> 0.04180836
G10: 1 | H10: 24 | I10: 1 | J10: =Iout*G10/100 -> 0.08 | K10: 0.08 | L10: 0.01852222222 | M10: 0.2084871759 | N10: 3.000188585 | O10: =K10+N10/2 -> 1.580094292 | P10: =K10-N10/2 -> -1.420094292 | Q10: 24 | R10: =SQRT(K10^2+(N10^2)/12) -> 0.8697668052 | S10: 0.004463316343 | T10: 0.54 | U10: 0.544747093 | V10: =N10/SQRT(12) -> 0.8660798435 | W10: 0.003750471477 | X10: =W10 -> 0.003750471477 | Y10: =SQRT(M10*(1-M10))*SQRT(K10^2+(N10^2)/12) -> 0.3533226506 | Z10: 0.0002496737909 | AA10: =Z10 -> 0.0002496737909 | AB10: =SQRT(M10)*SQRT(K10^2+(N10^2)/12) -> 0.3971389671 | AC10: 0.006624213088 | AD10: 0.003028049947 | AE10: 0 | AF10: 0.001988132009 | AG10: 0.01179006128 | AH10: 0.7738054899 | AI10: 0.01437059847 | AJ10: 0.002212132009 | AK10: 0.01690064722 | AL10: 0.000224 | AM10: 0.00084096 | AN10: 0 | AO10: 5.28e-05 | AP10: 0.04180836 | AQ10: 0.1771090588 | AR10: 0.15883164 | AS10: 0.04186116 | AT10: =SUM(AG10,AK10,AM10,AS10) -> 0.0713928285 | AU10: 0.6203640667 | AV10: 0.40008 | AW10: =AV10/(AV10+AU10) -> 0.3920646051 | AX10: 0.6792577351 | AY10: 0.5394735687 | BA10: =AW10*100 -> 39.20646051 | BB10: 0.544747093 | BC10: 0.0295316685 | BD10: 0.01235014064 | BE10: 0.0171806869 | BF10: =AP10 -> 0.04180836
A11: Vin | B11: =Vin -> 24 | C11: V | D11: Vin | G11: 2 | H11: 24 | I11: 1 | J11: 0.16 | K11: 0.16 | L11: 0.03704444444 | M11: 0.2085993653 | N11: 3.001197451 | O11: 1.660598725 | P11: -1.340598725 | Q11: 24 | R11: 0.8810214781 | S11: 0.004579573185 | T11: 0.54 | U11: 0.5448707867 | V11: 0.866371078 | W11: 0.003752994224 | X11: 0.003752994224 | Y11: 0.3579655101 | Z11: 0.0002562786128 | AA11: 0.0002562786128 | AB11: 0.402386116 | AC11: 0.006800412627 | AD11: 0.006056099894 | AE11: 0 | AF11: 0.001876838216 | AG11: 0.01489163823 | AH11: 0.7837628841 | AI11: 0.0147428222 | AJ11: 0.002324838216 | AK11: 0.01739472665 | AL11: 0.000448 | AM11: 0.00168192 | AN11: 0 | AO11: 5.28e-05 | AP11: 0.04180836 | AQ11: 0.1771090588 | AR11: 0.15883164 | AS11: 0.04186116 | AT11: 0.07582944488 | AU11: 0.6251575044 | AV11: 0.80016 | AW11: 0.5613907059 | AX11: 0.8806488323 | AY11: 0.5637809088 | BA11: 56.13907059 | BB11: 0.5448707867 | BC11: 0.03396828488 | BD11: 0.01601179695 | BE11: 0.01795480601 | BF11: 0.04180836
A12: Vout | B12: =Vout -> 5.001 | C12: V | D12: Vout | G12: 3 | H12: 24 | I12: 1 | J12: 0.24 | K12: 0.24 | L12: 0.05556666667 | M12: 0.2087115681 | N12: 3.002205859 | O12: 1.741102929 | P12: -1.261102929 | Q12: 24 | R12: 0.899279342 | S12: 0.004771349676 | T12: 0.54 | U12: 0.5450748361 | V12: 0.8666621804 | W12: 0.003755516675 | X12: 0.003755516675 | Y12: 0.3654561594 | Z12: 0.0002671164089 | AA12: 0.0002671164089 | AB12: 0.4108354186 | AC12: 0.007089001128 | AD12: 0.009084149841 | AE12: 0 | AF12: 0.001765544101 | AG12: 0.01810871709 | AH12: 0.7999484945 | AI12: 0.01535802225 | AJ12: 0.002437544101 | AK12: 0.01813771386 | AL12: 0.000672 | AM12: 0.00252288 | AN12: 0 | AO12: 5.28e-05 | AP12: 0.04180836 | AQ12: 0.1771090588 | AR12: 0.15883164 | AS12: 0.04186116 | AT12: 0.08063047095 | AU12: 0.6303999401 | AV12: 1.20024 | AW12: 0.6556395792 | AX12: 1.088392534 | AY12: 0.5959039531 | BA12: 65.56395792 | BB12: 0.5450748361 | BC12: 0.03876931095 | BD12: 0.01978895517 | BE12: 0.0189778329 | BF12: 0.04180836
A13: Fsw | B13: =Fsw/1000 -> 400 | C13: kHz | D13: Switching Frequency | G13: 4 | H13: 24 | I13: 1 | J13: 0.32 | K13: 0.32 | L13: 0.07408888889 | M13: 0.2088237844 | N13: 3.003213809 | O13: 1.821606905 | P13: -1.181606905 | Q13: 24 | R13: 0.9241254057 | S13: 0.005038645816 | T13: 0.54 | U13: 0.5453592485 | V13: 0.8669531506 | W13: 0.003758038827 | X13: 0.003758038827 | Y13: 0.375627606 | Z13: 0.0002821921967 | AA13: 0.0002821921967 | AB13: 0.4222998147 | AC13: 0.007490159605 | AD13: 0.01211219979 | AE13: 0 | AF13: 0.001654249667 | AG13: 0.02144174471 | AH13: 0.8219918685 | AI13: 0.01621609517 | AJ13: 0.002550249667 | AK13: 0.01912962885 | AL13: 0.000896 | AM13: 0.00336384 | AN13: 0 | AO13: 5.28e-05 | AP13: 0.04180836 | AQ13: 0.1771090588 | AR13: 0.15883164 | AS13: 0.04186116 | AT13: 0.08579637356 | AU13: 0.6360918531 | AV13: 1.60032 | AW13: 0.7155748159 | AX13: 1.302513418 | AY13: 0.6358433296 | BA13: 71.55748159 | BB13: 0.5453592485 | BC13: 0.04393521356 | BD13: 0.02368206215 | BE13: 0.02024978757 | BF13: 0.04180836
A14: Iout | B14: =Iout -> 8 | C14: A | D14: Max Output Current | G14: 5 | H14: 24 | I14: 1 | J14: 0.4 | K14: 0.4 | L14: 0.09261111111 | M14: 0.2089360141 | N14: 3.004221302 | O14: 1.902110651 | P14: -1.102110651 | Q14: 24 | R14: 0.9550456198 | S14: 0.005381461602 | T14: 0.54 | U14: 0.5457240343 | V14: 0.8672439887 | W14: 0.00376056068 | X14: 0.00376056068 | Y14: 0.3882724502 | Z14: 0.0003015109912 | AA14: 0.0003015109912 | AB14: 0.4365467605 | AC14: 0.008004069113 | AD14: 0.01514024974 | AE14: 0 | AF14: 0.001542954911 | AG14: 0.02489118591 | AH14: 0.8494345542 | AI14: 0.01731693748 | AJ14: 0.002662954911 | AK14: 0.02037053721 | AL14: 0.00112 | AM14: 0.0042048 | AN14: 0 | AO14: 5.28e-05 | AP14: 0.04180836 | AQ14: 0.1771090588 | AR14: 0.15883164 | AS14: 0.04186116 | AT14: 0.09132768312 | AU14: 0.6422337891 | AV14: 2.0004 | AW14: 0.7569720815 | AX14: 1.523037049 | AY14: 0.6836010982 | BA14: 75.69720815 | BB14: 0.5457240343 | BC14: 0.04946652312 | BD14: 0.02769158271 | BE14: 0.02177073561 | BF14: 0.04180836
A15: Ta | B15: =Ta -> 30 | C15: °C | D15: Ambient Temperature | G15: 6 | H15: 24 | I15: 1 | J15: 0.48 | K15: 0.48 | L15: 0.1111333333 | M15: 0.2090482574 | N15: 3.005228337 | O15: 1.982614168 | P15: -1.022614168 | Q15: 24 | R15: 0.9914718585 | S15: 0.005799797033 | T15: 0.54 | U15: 0.5461692066 | V15: 0.8675346946 | W15: 0.003763082231 | X15: 0.003763082231 | Y15: 0.403161137 | Z15: 0.0003250778048 | AA15: 0.0003250778048 | AB15: 0.4533187345 | AC15: 0.008630910752 | AD15: 0.01816829968 | AE15: 0 | AF15: 0.001431659836 | AG15: 0.02845752364 | AH15: 0.8817701351 | AI15: 0.01866044571 | AJ15: 0.002775659836 | AK15: 0.02186055017 | AL15: 0.001344 | AM15: 0.00504576 | AN15: 0 | AO15: 5.28e-05 | AP15: 0.04180836 | AQ15: 0.1771090588 | AR15: 0.15883164 | AS15: 0.04186116 | AT15: 0.09722499381 | AU15: 0.6488263605 | AV15: 2.40048 | AW15: 0.7872216551 | AX15: 1.749989989 | AY15: 0.7391807509 | BA15: 78.72216551 | BB15: 0.5461692066 | BC15: 0.05536383381 | BD15: 0.0318179998 | BE15: 0.02354078825 | BF15: 0.04180836
A16: Vcc | B16: =VCC -> 3.3 | C16: V | D16: Subregulated VCC Voltage | G16: 7 | H16: 24 | I16: 1 | J16: 0.56 | K16: 0.56 | L16: 0.1296555556 | M16: 0.2091605141 | N16: 3.006234913 | O16: 2.063117457 | P16: -0.9431174566 | Q16: 24 | R16: 1.032821716 | S16: 0.006293652107 | T16: 0.54 | U16: 0.5466947817 | V16: 0.8678252682 | W16: 0.003765603481 | X16: 0.003765603481 | Y16: 0.4200581192 | Z16: 0.0003528976469 | AA16: 0.0003528976469 | AB16: 0.4723514043 | AC16: 0.009370865666 | AD16: 0.02119634963 | AE16: 0 | AF16: 0.001320364439 | AG16: 0.03214125916 | AH16: 0.9184796388 | AI16: 0.02024651633 | AJ16: 0.002888364439 | AK16: 0.02359982456 | AL16: 0.001568 | AM16: 0.00588672 | AN16: 0 | AO16: 5.28e-05 | AP16: 0.04180836 | AQ16: 0.1771090588 | AR16: 0.15883164 | AS16: 0.04186116 | AT16: 0.1034889637 | AU16: 0.6558702465 | AV16: 2.80056 | AW16: 0.8102463525 | AX16: 1.983399807 | AY16: 0.8025872128 | BA16: 81.02463525 | BB16: 0.5466947817 | BC16: 0.06162780372 | BD16: 0.03606181468 | BE16: 0.02556010232 | BF16: 0.04180836
A17: Components | B17: Input Value | C17: Units | D17: Description | G17: 8 | H17: 24 | I17: 1 | J17: 0.64 | K17: 0.64 | L17: 0.1481777778 | M17: 0.2092727843 | N17: 3.007241032 | O17: 2.143620516 | P17: -0.8636205159 | Q17: 24 | R17: 1.078529038 | S17: 0.006863026823 | T17: 0.54 | U17: 0.5473007786 | V17: 0.8681157096 | W17: 0.003768124426 | X17: 0.003768124426 | Y17: 0.438734273 | Z17: 0.0003849755247 | AA17: 0.0003849755247 | AB17: 0.4933875865 | AC17: 0.01022411504 | AD17: 0.02422439958 | AE17: 0 | AF17: 0.001209068722 | AG17: 0.03594291222 | AH17: 0.959058692 | AI17: 0.02207504579 | AJ17: 0.003001068722 | AK17: 0.02558856294 | AL17: 0.001792 | AM17: 0.00672768 | AN17: 0 | AO17: 5.28e-05 | AP17: 0.04180836 | AQ17: 0.1771090588 | AR17: 0.15883164 | AS17: 0.04186116 | AT17: 0.1101203152 | AU17: 0.6633661937 | AV17: 3.20064 | AW17: 0.8283216536 | AX17: 2.223295091 | AY17: 0.873826844 | BA17: 82.83216536 | BB17: 0.5473007786 | BC17: 0.06825915516 | BD17: 0.0404235471 | BE17: 0.02782888038 | BF17: 0.04180836
A18: L | B18: =Lf*1000000 -> 3.3 | C18: uH | D18: Filter Inductance | G18: 9 | H18: 24 | I18: 1 | J18: 0.72 | K18: 0.72 | L18: 0.1667 | M18: 0.2093850679 | N18: 3.008246692 | O18: 2.224123346 | P18: -0.784123346 | Q18: 24 | R18: 1.128064277 | S18: 0.007507921179 | T18: 0.54 | U18: 0.5479872192 | V18: 0.8684060187 | W18: 0.003770645067 | X18: 0.003770645067 | Y18: 0.4589751858 | Z18: 0.0004213164423 | AA18: 0.0004213164423 | AB18: 0.5161865689 | AC18: 0.0111908401 | AD18: 0.02725244952 | AE18: 0 | AF18: 0.001097772684 | AG18: 0.03986302127 | AH18: 1.003035612 | AI18: 0.02414593055 | AJ18: 0.003113772684 | AK18: 0.02782701363 | AL18: 0.002016 | AM18: 0.00756864 | AN18: 0 | AO18: 5.28e-05 | AP18: 0.04180836 | AQ18: 0.1771090588 | AR18: 0.15883164 | AS18: 0.04186116 | AT18: 0.1171198349 | AU18: 0.6713150156 | AV18: 3.60072 | AW18: 0.84285826 | AX18: 2.469705453 | AY18: 0.9529074415 | BA18: 84.285826 | BB18: 0.5479872192 | BC18: 0.0752586749 | BD18: 0.04490373551 | BE18: 0.03034737075 | BF18: 0.04180836
A19: Rdcr | B19: =Rdcr*1000 -> 5.9 | C19: mW | D19: Inductor DCR at 25°C | G19: 10 | H19: 24 | I19: 1 | J19: 0.8 | K19: 0.8 | L19: 0.1852222222 | M19: 0.2094973651 | N19: 3.009251894 | O19: 2.304625947 | P19: -0.7046259471 | Q19: 24 | R19: 1.180945841 | S19: 0.008228335173 | T19: 0.54 | U19: 0.5487541285 | V19: 0.8686961956 | W19: 0.003773165401 | X19: 0.003773165401 | Y19: 0.4805857891 | Z19: 0.0004619254014 | AA19: 0.0004619254014 | AB19: 0.540529329 | AC19: 0.01227122213 | AD19: 0.03028049947 | AE19: 0 | AF19: 0.0009864763259 | AG19: 0.04390214362 | AH19: 1.049981488 | AI19: 0.02645906699 | AJ19: 0.003226476326 | AK19: 0.03031547081 | AL19: 0.00224 | AM19: 0.0084096 | AN19: 0 | AO19: 5.28e-05 | AP19: 0.04180836 | AQ19: 0.1771090588 | AR19: 0.15883164 | AS19: 0.04186116 | AT19: 0.1244883744 | AU19: 0.6797175937 | AV19: 4.0008 | AW19: 0.8547772591 | AX19: 2.722661547 | AY19: 1.039838243 | BA19: 85.47772591 | BB19: 0.5487541285 | BC19: 0.08262721444 | BD19: 0.04950293722 | BE19: 0.03311586761 | BF19: 0.04180836
A20: LTc | B20: =Ltc*1000000 -> 4000 | C20: ppm | D20: Inductor Series Resistance Temp Co | G20: 11 | H20: 24 | I20: 1 | J20: 0.88 | K20: 0.88 | L20: 0.2037444444 | M20: 0.2096096757 | N20: 3.010256638 | O20: 2.385128319 | P20: -0.6251283189 | Q20: 24 | R20: 1.236744551 | S20: 0.009024268804 | T20: 0.54 | U20: 0.5496015343 | V20: 0.8689862401 | W20: 0.003775685427 | X20: 0.003775685427 | Y20: 0.5033921935 | Z20: 0.000506807401 | AA20: 0.000506807401 | AB20: 0.5662206041 | AC20: 0.01346544244 | AD20: 0.03330854942 | AE20: 0 | AF20: 0.0008751796465 | AG20: 0.04806085571 | AH20: 1.099514126 | AI20: 0.02901435151 | AJ20: 0.003339179646 | AK20: 0.03305427466 | AL20: 0.002464 | AM20: 0.00925056 | AN20: 0 | AO20: 5.28e-05 | AP20: 0.04180836 | AQ20: 0.1771090588 | AR20: 0.15883164 | AS20: 0.04186116 | AT20: 0.1322268504 | AU20: 0.6885748775 | AV20: 4.40088 | AW20: 0.8647055738 | AX20: 2.982195077 | AY20: 1.13462993 | BA20: 86.47055738 | BB20: 0.5496015343 | BC20: 0.09036569037 | BD20: 0.05422172867 | BE20: 0.03613471114 | BF20: 0.04180836
A21: ThetaCA | B21: =ThetaCa -> 20 | C21: °C/W | D21: Core to Ambient Thermal Resistance | G21: 12 | H21: 24 | I21: 1 | J21: 0.96 | K21: 0.96 | L21: 0.2222666667 | M21: 0.2097219998 | N21: 3.011260923 | O21: 2.465630462 | P21: -0.5456304616 | Q21: 24 | R21: 1.295083406 | S21: 0.009895722071 | T21: 0.54 | U21: 0.5505294674 | V21: 0.8692761523 | W21: 0.003778205145 | X21: 0.003778205145 | Y21: 0.5272416131 | Z21: 0.0005559674372 | AA21: 0.0005559674372 | AB21: 0.5930888153 | AC21: 0.0147736824 | AD21: 0.03633659937 | AE21: 0 | AF21: 0.0007638826462 | AG21: 0.05233975325 | AH21: 1.151297827 | AI21: 0.03181168047 | AJ21: 0.003451882646 | AK21: 0.03604381147 | AL21: 0.002688 | AM21: 0.01009152 | AN21: 0 | AO21: 5.28e-05 | AP21: 0.04180836 | AQ21: 0.1771090588 | AR21: 0.15883164 | AS21: 0.04186116 | AT21: 0.1403362447 | AU21: 0.6978878847 | AV21: 4.80096 | AW21: 0.873084708 | AX21: 3.248338807 | AY21: 1.237294632 | BA21: 87.3084708 | BB21: 0.5505294674 | BC21: 0.09847508472 | BD21: 0.05906070557 | BE21: 0.03940428763 | BF21: 0.04180836
A22: Cin | B22: =Cin*1000000 -> 20 | C22: μF | D22: Input Capacitance | G22: 13 | H22: 24 | I22: 1 | J22: 1.04 | K22: 1.04 | L22: 0.2407888889 | M22: 0.2098343374 | N22: 3.01226475 | O22: 2.546132375 | P22: -0.4661323749 | Q22: 24 | R22: 1.355634505 | S22: 0.01084269497 | T22: 0.54 | U22: 0.5515379615 | V22: 0.8695659321 | W22: 0.003780724551 | X22: 0.003780724551 | Y22: 0.5520011339 | Z22: 0.0006094105036 | AA22: 0.0006094105036 | AB22: 0.6209846904 | AC22: 0.0161961234 | AD22: 0.03936464931 | AE22: 0 | AF22: 0.0006525853249 | AG22: 0.05673945152 | AH22: 1.205040632 | AI22: 0.03485095019 | AJ22: 0.003564585325 | AK22: 0.03928451381 | AL22: 0.002912 | AM22: 0.01093248 | AN22: 0 | AO22: 5.28e-05 | AP22: 0.04180836 | AQ22: 0.1771090588 | AR22: 0.15883164 | AS22: 0.04186116 | AT22: 0.1488176053 | AU22: 0.7076577019 | AV22: 5.20104 | AW22: 0.8802345732 | AX22: 3.521126576 | AY22: 1.347845931 | BA22: 88.02345732 | BB22: 0.5515379615 | BC22: 0.1069564453 | BD22: 0.0640204832 | BE22: 0.04292502965 | BF22: 0.04180836
A23: RCinEsr | B23: =RCinEsr*1000 -> 2 | C23: mW | D23: Input Capacitor ESR | G23: 14 | H23: 24 | I23: 1 | J23: 1.12 | K23: 1.12 | L23: 0.2593111111 | M23: 0.2099466886 | N23: 3.013268118 | O23: 2.626634059 | P23: -0.386634059 | Q23: 24 | R23: 1.418114498 | S23: 0.0118651875 | T23: 0.54 | U23: 0.5526270531 | V23: 0.8698555796 | W23: 0.003783243646 | X23: 0.003783243646 | Y23: 0.5775558809 | Z23: 0.0006671415911 | AA23: 0.0006671415911 | AB23: 0.6497792096 | AC23: 0.01773294689 | AD23: 0.04239269926 | AE23: 0 | AF23: 0.0005412876826 | AG23: 0.06126058553 | AH23: 1.260490265 | AI23: 0.03813205699 | AJ23: 0.003677287683 | AK23: 0.04277686073 | AL23: 0.003136 | AM23: 0.01177344 | AN23: 0 | AO23: 5.28e-05 | AP23: 0.04180836 | AQ23: 0.1771090588 | AR23: 0.15883164 | AS23: 0.04186116 | AT23: 0.1576720463 | AU23: 0.7178854846 | AV23: 5.60112 | AW23: 0.8863926473 | AX23: 3.800593311 | AY23: 1.46629887 | BA23: 88.63926473 | BB23: 0.5526270531 | BC23: 0.1158108863 | BD23: 0.06910169657 | BE23: 0.04669741625 | BF23: 0.04180836
A24: Cout | B24: =Cout*1000000 -> 132 | C24: μF | D24: Output Capcitance | G24: 15 | H24: 24 | I24: 1 | J24: 1.2 | K24: 1.2 | L24: 0.2778333333 | M24: 0.2100590531 | N24: 3.014271028 | O24: 2.707135514 | P24: -0.3071355138 | Q24: 23.96687583 | R24: 1.48227949 | S24: 0.01296319967 | T24: 0.54 | U24: 0.5537967819 | V24: 0.8701450946 | W24: 0.003785762428 | X24: 0.003785762428 | Y24: 0.6038069592 | Z24: 0.000729165688 | AA24: 0.000729165688 | AB24: 0.6793612962 | AC24: 0.01938433437 | AD24: 0.04542074921 | AE24: 0.0001483809798 | AF24: 0.0004299897193 | AG24: 0.06605282678 | AH24: 1.317429586 | AI24: 0.04165489716 | AJ24: 0.003789989719 | AK24: 0.04652137793 | AL24: 0.00336 | AM24: 0.0126144 | AN24: 0 | AO24: 5.28e-05 | AP24: 0.04180836 | AQ24: 0.1771090588 | AR24: 0.15883164 | AS24: 0.04186116 | AT24: 0.1670497647 | AU24: 0.7287214747 | AV24: 6.0012 | AW24: 0.8917191712 | AX24: 4.094970945 | AY24: 1.592669956 | BA24: 89.17191712 | BB24: 0.5537967819 | BC24: 0.1251886047 | BD24: 0.07445401718 | BE24: 0.05072197313 | BF24: 0.04180836
A25: RCoutEsr | B25: =Resr_Cout*1000 -> 5 | C25: mW | D25: Output Capacitor ESR | G25: 16 | H25: 24 | I25: 1 | J25: 1.28 | K25: 1.28 | L25: 0.2963555556 | M25: 0.2101714312 | N25: 3.015273478 | O25: 2.787636739 | P25: -0.2276367391 | Q25: 17.76330387 | R25: 1.547919952 | S25: 0.01413673146 | T25: 0.54 | U25: 0.5550471903 | V25: 0.8704344772 | W25: 0.003788280895 | X25: 0.003788280895 | Y25: 0.6306693982 | Z25: 0.0007954877797 | AA25: 0.0007954877797 | AB25: 0.7096355096 | AC25: 0.02115046737 | AD25: 0.04844879915 | AE25: 0.02739818313 | AF25: 0.0003186914348 | AG25: 0.09819606683 | AH25: 1.375672062 | AI25: 0.04541936694 | AJ25: 0.003902691435 | AK25: 0.050518638 | AL25: 0.003584 | AM25: 0.01345536 | AN25: 0 | AO25: 5.28e-05 | AP25: 0.04180836 | AQ25: 0.1771090588 | AR25: 0.15883164 | AS25: 0.04186116 | AT25: 0.2040312248 | AU25: 0.7672461838 | AV25: 6.40128 | AW25: 0.8929701637 | AX25: 5.893653512 | AY25: 1.726977168 | BA25: 89.29701637 | BB25: 0.5550471903 | BC25: 0.1621700648 | BD25: 0.1071573366 | BE25: 0.05499927288 | BF25: 0.04180836
A26: Top Driver | B26: Input Value | C26: Units | D26: Description | G26: 17 | H26: 24 | I26: 1 | J26: 1.36 | K26: 1.36 | L26: 0.3148777778 | M26: 0.2102838228 | N26: 3.01627547 | O26: 2.868137735 | P26: -0.1481377351 | Q26: 11.55971401 | R26: 1.614855972 | S26: 0.01538578288 | T26: 0.54 | U26: 0.5563783238 | V26: 0.8707237273 | W26: 0.003790799047 | X26: 0.003790799047 | Y26: 0.6580702277 | Z26: 0.0008661128491 | AA26: 0.0008661128491 | AB26: 0.7405198861 | AC26: 0.02303152747 | AD26: 0.0514768491 | AE26: 0.05357511684 | AF26: 0.0002073928291 | AG26: 0.1294072149 | AH26: 1.435057528 | AI26: 0.04942536258 | AJ26: 0.004015392829 | AK26: 0.05476926068 | AL26: 0.003808 | AM26: 0.01429632 | AN26: 0 | AO26: 5.28e-05 | AP26: 0.04180836 | AQ26: 0.1771090588 | AR26: 0.15883164 | AS26: 0.04186116 | AT26: 0.2403339556 | AU26: 0.8051771913 | AV26: 6.80136 | AW26: 0.8941466832 | AX26: 7.64107102 | AY26: 1.869239966 | BA26: 89.41466832 | BB26: 0.5563783238 | BC26: 0.1984727956 | BD26: 0.138928564 | BE26: 0.05952993524 | BF26: 0.04180836
A27: RdsonDRT | B27: 0.7 | C27: W | D27: Drain to Source Resistance of pullup Top FET Driver | G27: 18 | H27: 24 | I27: 1 | J27: 1.44 | K27: 1.44 | L27: 0.3334 | M27: 0.2103962279 | N27: 3.017277003 | O27: 2.948638502 | P27: -0.06863850157 | Q27: 5.356106248 | R27: 1.682932968 | S27: 0.01671035392 | T27: 0.54 | U27: 0.5577902308 | V27: 0.871012845 | W27: 0.003793316881 | X27: 0.003793316881 | Y27: 0.6859467458 | Z27: 0.0009410458762 | AA27: 0.0009410458762 | AB27: 0.7719439946 | AC27: 0.0250276963 | AD27: 0.05450489905 | AE27: 0.07867917285 | AF27: 9.60939022e-05 | AG27: 0.1596876712 | AH27: 1.495448376 | AI27: 0.05367278029 | AJ27: 0.004128093902 | AK27: 0.0592739131 | AL27: 0.004032 | AM27: 0.01513728 | AN27: 0 | AO27: 5.28e-05 | AP27: 0.04180836 | AQ27: 0.1771090588 | AR27: 0.15883164 | AS27: 0.04186116 | AT27: 0.2759600243 | AU27: 0.8425166178 | AV27: 7.20144 | AW27: 0.8952609197 | AX27: 9.337300484 | AY27: 2.019479298 | BA27: 89.52609197 | BB27: 0.5577902308 | BC27: 0.2340988643 | BD27: 0.1697690997 | BE27: 0.06431462734 | BF27: 0.04180836
A28: RdsonDRT2 | B28: =RdsonDRT2 -> 0.5 | C28: W | D28: Drain to Source Resistance of pulldown Top FET Driver | G28: 19 | H28: 24 | I28: 1 | J28: 1.52 | K28: 1.52 | L28: 0.3519222222 | M28: 0.2105086465 | N28: 3.018278077 | O28: 3.029139039 | P28: 0.01086096145 | Q28: 0 | R28: 1.752017945 | S28: 0.01811044459 | T28: 0.54 | U28: 0.5592829625 | V28: 0.8713018302 | W28: 0.003795834396 | X28: 0.003795834396 | Y28: 0.7142449995 | Z28: 0.001020291839 | AA28: 0.001020291839 | AB28: 0.80384723 | AC28: 0.0271391555 | AD28: 0.05753294899 | AE28: 0.09949056 | AF28: 0 | AG28: 0.1858148766 | AH28: 1.556726216 | AI28: 0.05816151624 | AJ28: 0.004256 | AK28: 0.06404862733 | AL28: 0.004256 | AM28: 0.01597824 | AN28: 0 | AO28: 5.28e-05 | AP28: 0.04180836 | AQ28: 0.1771090588 | AR28: 0.15883164 | AS28: 0.04186116 | AT28: 0.3077029039 | AU28: 0.8760579926 | AV28: 7.60152 | AW28: 0.8966617596 | AX28: 10.80510114 | AY28: 2.178198571 | BA28: 89.66617596 | BB28: 0.5592829625 | BC28: 0.2658417439 | BD28: 0.1964563844 | BE28: 0.06936938125 | BF28: 0.04180836
A29: Bottom Driver | B29: Input Value | C29: Units | D29: Description | G29: 20 | H29: 24 | I29: 1 | J29: 1.6 | K29: 1.6 | L29: 0.3704444444 | M29: 0.2106210786 | N29: 3.019278692 | O29: 3.109639346 | P29: 0.09036065402 | Q29: 0 | R29: 1.821996245 | S29: 0.01958605488 | T29: 0.54 | U29: 0.5608565734 | V29: 0.8715906828 | W29: 0.003798351592 | X29: 0.003798351592 | Y29: 0.7429184717 | Z29: 0.001103855711 | AA29: 0.001103855711 | AB29: 0.8361773395 | AC29: 0.02936608681 | AD29: 0.06056099894 | AE29: 0.09949056 | AF29: 0 | AG29: 0.1912404841 | AH29: 1.618788984 | AI29: 0.0628914666 | AJ29: 0.00448 | AK29: 0.06917572664 | AL29: 0.00448 | AM29: 0.0168192 | AN29: 0 | AO29: 5.28e-05 | AP29: 0.04180836 | AQ29: 0.1771090588 | AR29: 0.15883164 | AS29: 0.04186116 | AT29: 0.3190965708 | AU29: 0.8893353514 | AV29: 8.0016 | AW29: 0.8999728019 | AX29: 11.13431392 | AY29: 2.347982735 | BA29: 89.99728019 | BB29: 0.5608565734 | BC29: 0.2772354108 | BD29: 0.2024420713 | BE29: 0.07477652024 | BF29: 0.04180836
A30: RdsonDRB | B30: 0.7 | C30: W | D30: Drain to Source Resistance of pullup Bottom FET Driver | G30: 21 | H30: 24 | I30: 1 | J30: 1.68 | K30: 1.68 | L30: 0.3889666667 | M30: 0.2107335242 | N30: 3.020278848 | O30: 3.190139424 | P30: 0.1698605762 | Q30: 0 | R30: 1.89276879 | S30: 0.02113718479 | T30: 0.54 | U30: 0.5625111206 | V30: 0.8718794029 | W30: 0.003800868466 | X30: 0.003800868466 | Y30: 0.7719269608 | Z30: 0.001191742466 | AA30: 0.001191742466 | AB30: 0.8688891645 | AC30: 0.03170867197 | AD30: 0.06358904889 | AE30: 0.09949056 | AF30: 0 | AG30: 0.19679528 | AH30: 1.681548487 | AI30: 0.06786252751 | AJ30: 0.004704 | AK30: 0.07455928663 | AL30: 0.004704 | AM30: 0.01766016 | AN30: 0 | AO30: 5.28e-05 | AP30: 0.04180836 | AQ30: 0.1771090588 | AR30: 0.15883164 | AS30: 0.04186116 | AT30: 0.3308758867 | AU30: 0.9030836182 | AV30: 8.40168 | AW30: 0.9029439484 | AX30: 11.47063206 | AY30: 2.525819765 | BA30: 90.29439484 | BB30: 0.5625111206 | BC30: 0.2890147267 | BD30: 0.2085569466 | BE30: 0.08044011991 | BF30: 0.04180836
A31: RdsonDRB2 | B31: 0.5 | C31: W | D31: Drain to Source Resistance of pulldown Bottom FET Driver | G31: 22 | H31: 24 | I31: 1 | J31: 1.76 | K31: 1.76 | L31: 0.4074888889 | M31: 0.2108459834 | N31: 3.021278544 | O31: 3.270639272 | P31: 0.249360728 | Q31: 0 | R31: 1.96424973 | S31: 0.02276383432 | T31: 0.54 | U31: 0.5642466644 | V31: 0.8721679904 | W31: 0.003803385017 | X31: 0.003803385017 | Y31: 0.8012356306 | Z31: 0.001283957071 | AA31: 0.001283957071 | AB31: 0.901943573 | AC31: 0.03416709277 | AD31: 0.06661709884 | AE31: 0.09949056 | AF31: 0 | AG31: 0.2024800878 | AH31: 1.744928306 | AI31: 0.07307459507 | AJ31: 0.004928 | AK31: 0.08020017777 | AL31: 0.004928 | AM31: 0.01850112 | AN31: 0 | AO31: 5.28e-05 | AP31: 0.04180836 | AQ31: 0.1771090588 | AR31: 0.15883164 | AS31: 0.04186116 | AT31: 0.3430425455 | AU31: 0.917304552 | AV31: 8.80176 | AW31: 0.9056180204 | AX31: 11.81410085 | AY31: 2.711736993 | BA31: 90.56180204 | BB31: 0.5642466644 | BC31: 0.3011813855 | BD31: 0.2148018337 | BE31: 0.08636105073 | BF31: 0.04180836
A32: Deadtime | B32: Input Value | C32: Units | D32: Description | G32: 23 | H32: 24 | I32: 1 | J32: 1.84 | K32: 1.84 | L32: 0.4260111111 | M32: 0.210958456 | N32: 3.022277781 | O32: 3.351138891 | P32: 0.3288611094 | Q32: 0 | R32: 2.036364469 | S32: 0.02446600347 | T32: 0.54 | U32: 0.566063268 | V32: 0.8724564453 | W32: 0.003805901244 | X32: 0.003805901244 | Y32: 0.8308142076 | Z32: 0.001380504495 | AA32: 0.001380504495 | AB32: 0.9353065587 | AC32: 0.03674153106 | AD32: 0.06964514878 | AE32: 0.09949056 | AF32: 0 | AG32: 0.2082957535 | AH32: 1.808862043 | AI32: 0.07852756536 | AJ32: 0.005152 | AK32: 0.08609931962 | AL32: 0.005152 | AM32: 0.01934208 | AN32: 0 | AO32: 5.28e-05 | AP32: 0.04180836 | AQ32: 0.1771090588 | AR32: 0.15883164 | AS32: 0.04186116 | AT32: 0.3555983132 | AU32: 0.9319999869 | AV32: 9.20184 | AW32: 0.9080309154 | AX32: 12.16476684 | AY32: 2.905763293 | BA32: 90.80309154 | BB32: 0.566063268 | BC32: 0.3137371532 | BD32: 0.2211775788 | BE32: 0.09254023226 | BF32: 0.04180836
A33: Deadtime | B33: =Deadtime*1000000000 -> 5 | C33: ns | D33: Total Deadtime | G33: 24 | H33: 24 | I33: 1 | J33: 1.92 | K33: 1.92 | L33: 0.4445333333 | M33: 0.2110709422 | N33: 3.023276559 | O33: 3.431638279 | P33: 0.4083617206 | Q33: 0 | R33: 2.109047991 | S33: 0.02624369223 | T33: 0.54 | U33: 0.5679609976 | V33: 0.8727447675 | W33: 0.003808417146 | X33: 0.003808417146 | Y33: 0.8606363056 | Z33: 0.001481389701 | AA33: 0.001481389701 | AB33: 0.9689484817 | AC33: 0.03943216873 | AD33: 0.07267319873 | AE33: 0.09949056 | AF33: 0 | AG33: 0.2142431467 | AH33: 1.873291827 | AI33: 0.08422133446 | AJ33: 0.005376 | AK33: 0.09225768131 | AL33: 0.005376 | AM33: 0.02018304 | AN33: 0 | AO33: 5.28e-05 | AP33: 0.04180836 | AQ33: 0.1771090588 | AR33: 0.15883164 | AS33: 0.04186116 | AT33: 0.368545028 | AU33: 0.9471718324 | AV33: 9.60192 | AW33: 0.9102129503 | AX33: 12.52267782 | AY33: 3.107929096 | BA33: 91.02129503 | BB33: 0.5679609976 | BC33: 0.326683868 | BD33: 0.2276850513 | BE33: 0.09897863363 | BF33: 0.04180836
A34: IQ | B34: Input Value | C34: Units | D34: Description | G34: 25 | H34: 24 | I34: 1 | J34: 2 | K34: 2 | L34: 0.4630555556 | M34: 0.2111834418 | N34: 3.024274877 | O34: 3.512137438 | P34: 0.4878625615 | Q34: 0 | R34: 2.182243466 | S34: 0.02809690061 | T34: 0.54 | U34: 0.5699399223 | V34: 0.8730329572 | W34: 0.003810932721 | X34: 0.003810932721 | Y34: 0.8906788563 | Z34: 0.00158661765 | AA34: 0.00158661765 | AB34: 1.00284343 | AC34: 0.04223918769 | AD34: 0.07570124868 | AE34: 0.09949056 | AF34: 0 | AG34: 0.2203231598 | AH34: 1.938167072 | AI34: 0.09015579838 | AJ34: 0.0056 | AK34: 0.09867628197 | AL34: 0.0056 | AM34: 0.021024 | AN34: 0 | AO34: 5.28e-05 | AP34: 0.04180836 | AQ34: 0.1771090588 | AR34: 0.15883164 | AS34: 0.04186116 | AT34: 0.3818846018 | AU34: 0.9628220744 | AV34: 10.002 | AW34: 0.9121899044 | AX34: 12.88788291 | AY34: 3.318266403 | BA34: 91.21899044 | BB34: 0.5699399223 | BC34: 0.3400234418 | BD34: 0.2343251438 | BE34: 0.105677274 | BF34: 0.04180836
A35: IQ | B35: =Iq*1000 -> 0.0022 | C35: mA | D35: Quiescent Current Of Controller (Not Switching!) | G35: 26 | H35: 24 | I35: 1 | J35: 2.08 | K35: 2.08 | L35: 0.4815777778 | M35: 0.211295955 | N35: 3.025272736 | O35: 3.592636368 | P35: 0.5673636322 | Q35: 0 | R35: 2.25590106 | S35: 0.0300256286 | T35: 0.54 | U35: 0.5720001142 | V35: 0.8733210141 | W35: 0.003813447968 | X35: 0.003813447968 | Y35: 0.9209216311 | Z35: 0.001696193301 | AA35: 0.001696193301 | AB35: 1.036968681 | AC35: 0.04516276993 | AD35: 0.07872929862 | AE35: 0.09949056 | AF35: 0 | AG35: 0.2265367095 | AH35: 2.003443423 | AI35: 0.09633085315 | AJ35: 0.005824 | AK35: 0.1053561911 | AL35: 0.005824 | AM35: 0.02186496 | AN35: 0 | AO35: 5.28e-05 | AP35: 0.04180836 | AQ35: 0.1771090588 | AR35: 0.15883164 | AS35: 0.04186116 | AT35: 0.3956190206 | AU35: 0.9789527761 | AV35: 10.40208 | AW35: 0.9139838365 | AX35: 13.26043251 | AY35: 3.536808796 | BA35: 91.39838365 | BB35: 0.5720001142 | BC35: 0.3537578606 | BD35: 0.2410987729 | BE35: 0.1126372228 | BF35: 0.04180836
A36: High-side FET | B36: Input Value | C36: Units | D36: Description | G36: 27 | H36: 24 | I36: 1 | J36: 2.16 | K36: 2.16 | L36: 0.5001 | M36: 0.2114084817 | N36: 3.026270134 | O36: 3.673135067 | P36: 0.6468649328 | Q36: 0 | R36: 2.329976948 | S36: 0.03202987621 | T36: 0.54 | U36: 0.5741416486 | V36: 0.8736089384 | W36: 0.003815962886 | X36: 0.003815962886 | Y36: 0.9513468373 | Z36: 0.00181012161 | AA36: 0.00181012161 | AB36: 1.07130425 | AC36: 0.04820309745 | AD36: 0.08175734857 | AE36: 0.09949056 | AF36: 0 | AG36: 0.2328847364 | AH36: 2.069081869 | AI36: 0.1027463947 | AJ36: 0.006048 | AK36: 0.1122985292 | AL36: 0.006048 | AM36: 0.02270592 | AN36: 0 | AO36: 5.28e-05 | AP36: 0.04180836 | AQ36: 0.1771090588 | AR36: 0.15883164 | AS36: 0.04186116 | AT36: 0.4097503456 | AU36: 0.9955660787 | AV36: 10.80216 | AW36: 0.9156137317 | AX36: 13.64037835 | AY36: 3.763591458 | BA36: 91.56137317 | BB36: 0.5741416486 | BC36: 0.3678891856 | BD36: 0.2480068791 | BE36: 0.1198596006 | BF36: 0.04180836
A37: RdsonTop | B37: =Rdson1*1000 -> 42 | C37: mW | D37: Drain-Source Resistance of Top FET | G37: 28 | H37: 24 | I37: 1 | J37: 2.24 | K37: 2.24 | L37: 0.5186222222 | M37: 0.211521022 | N37: 3.027267074 | O37: 3.753633537 | P37: 0.7263664632 | Q37: 0 | R37: 2.404432468 | S37: 0.03410964342 | T37: 0.54 | U37: 0.5763646036 | V37: 0.8738967299 | W37: 0.003818477473 | X37: 0.003818477473 | Y37: 0.9819387784 | Z37: 0.001928407529 | AA37: 0.001928407529 | AB37: 1.105832506 | AC37: 0.05136035232 | AD37: 0.08478539852 | AE37: 0.09949056 | AF37: 0 | AG37: 0.2393682057 | AH37: 2.135048 | AI37: 0.1094023191 | AJ37: 0.006272 | AK37: 0.1195044682 | AL37: 0.006272 | AM37: 0.02354688 | AN37: 0 | AO37: 5.28e-05 | AP37: 0.04180836 | AQ37: 0.1771090588 | AR37: 0.15883164 | AS37: 0.04186116 | AT37: 0.4242807138 | AU37: 1.012664202 | AV37: 11.20224 | AW37: 0.9170960176 | AX37: 14.02777353 | AY37: 3.998651188 | BA37: 91.70960176 | BB37: 0.5763646036 | BC37: 0.3824195538 | BD37: 0.2550504277 | BE37: 0.1273455792 | BF37: 0.04180836
A38: RdsonTopTc | B38: =RdsonTopTc*1000000 -> 4000 | C38: ppm | D38: Drain to Source Resistance Temp Co | G38: 29 | H38: 24 | I38: 1 | J38: 2.32 | K38: 2.32 | L38: 0.5371444444 | M38: 0.2116335758 | N38: 3.028263553 | O38: 3.834131776 | P38: 0.8058682236 | Q38: 0 | R38: 2.479233419 | S38: 0.03626493024 | T38: 0.54 | U38: 0.5786690603 | V38: 0.8741843887 | W38: 0.003820991727 | X38: 0.003820991727 | Y38: 1.012683566 | Z38: 0.002051056009 | AA38: 0.002051056009 | AB38: 1.14053785 | AC38: 0.05463471664 | AD38: 0.08781344847 | AE38: 0.09949056 | AF38: 0 | AG38: 0.2459881074 | AH38: 2.201311373 | AI38: 0.1162985222 | AJ38: 0.006496 | AK38: 0.1269752319 | AL38: 0.006496 | AM38: 0.02438784 | AN38: 0 | AO38: 5.28e-05 | AP38: 0.04180836 | AQ38: 0.1771090588 | AR38: 0.15883164 | AS38: 0.04186116 | AT38: 0.4392123392 | AU38: 1.030249447 | AV38: 11.60232 | AW38: 0.9184449805 | AX38: 14.42267248 | AY38: 4.242026413 | BA38: 91.84449805 | BB38: 0.5786690603 | BC38: 0.3973511792 | BD38: 0.2622304088 | BE38: 0.1350963826 | BF38: 0.04180836
A39: QgTop | B39: =Qg_Q1*1000000000 -> 7.6 | C39: nC | D39: Gate Charge Of Top FET | G39: 30 | H39: 24 | I39: 1 | J39: 2.4 | K39: 2.4 | L39: 0.5556666667 | M39: 0.2117461431 | N39: 3.029259572 | O39: 3.914629786 | P39: 0.8853702139 | Q39: 0 | R39: 2.554349453 | S39: 0.03849573667 | T39: 0.54 | U39: 0.5810551029 | V39: 0.8744719147 | W39: 0.003823505648 | X39: 0.003823505648 | Y39: 1.043568876 | Z39: 0.002178071998 | AA39: 0.002178071998 | AB39: 1.17540644 | AC39: 0.05802637255 | AD39: 0.09084149841 | AE39: 0.09949056 | AF39: 0 | AG39: 0.2527454569 | AH39: 2.267844975 | AI39: 0.1234348999 | AJ39: 0.00672 | AK39: 0.1347120966 | AL39: 0.00672 | AM39: 0.0252288 | AN39: 0 | AO39: 5.28e-05 | AP39: 0.04180836 | AQ39: 0.1771090588 | AR39: 0.15883164 | AS39: 0.04186116 | AT39: 0.4545475135 | AU39: 1.048324194 | AV39: 12.0024 | AW39: 0.9196731018 | AX39: 14.82513107 | AY39: 4.493757212 | BA39: 91.96731018 | BB39: 0.5810551029 | BC39: 0.4126863535 | BD39: 0.2695478377 | BE39: 0.143113287 | BF39: 0.04180836
A40: QgdTop | B40: =Qgd_Q1*1000000000 -> 2.9 | C40: nC | D40: Gate to Drain Charge | G40: 31 | H40: 24 | I40: 1 | J40: 2.48 | K40: 2.48 | L40: 0.5741888889 | M40: 0.2118587239 | N40: 3.030255132 | O40: 3.995127566 | P40: 0.9648724342 | Q40: 0 | R40: 2.629753572 | S40: 0.0408020627 | T40: 0.54 | U40: 0.5835228187 | V40: 0.874759308 | W40: 0.003826019234 | X40: 0.003826019234 | Y40: 1.074583743 | Z40: 0.002309460441 | AA40: 0.002309460441 | AB40: 1.210425961 | AC40: 0.06153550225 | AD40: 0.09386954836 | AE40: 0.09949056 | AF40: 0 | AG40: 0.2596412953 | AH40: 2.334624775 | AI40: 0.1308113482 | AJ40: 0.006944 | AK40: 0.142716392 | AL40: 0.006944 | AM40: 0.02606976 | AN40: 0 | AO40: 5.28e-05 | AP40: 0.04180836 | AQ40: 0.1771090588 | AR40: 0.15883164 | AS40: 0.04186116 | AT40: 0.4702886073 | AU40: 1.066890906 | AV40: 12.40248 | AW40: 0.9207913337 | AX40: 15.23520655 | AY40: 4.753885332 | BA40: 92.07913337 | BB40: 0.5835228187 | BC40: 0.4284274473 | BD40: 0.2770037555 | BE40: 0.151397622 | BF40: 0.04180836
A41: QgsTop | B41: =Qgs_Q1*1000000000 -> 5.43 | C41: nC | G41: 32 | H41: =Vin -> 24 | I41: =MODE -> 1 | J41: 2.56 | K41: =Iout*G41/100/Number_of_Phases -> 2.56 | L41: =Vout*K41/(Vin*Efficiency) -> 0.5927111111 | M41: =(Vout+(Rdson2+Rs+Rdcr)*K41)/(Vin+(Rs+Rdson2-Rdson1)*K41) -> 0.2119713183 | N41: =(Vin-(Rdson1+Rdcr)*K41-Vout)*M41/(Fsw*Lf) -> 3.031250231 | O41: 4.075625115 | P41: 1.044374885 | Q41: =IF(MIN(Vin, -P41/(Coss_Q1+Coss_Q2)*0.00000002)<0, 0, MIN(Vin, -P41/(Coss_Q1+Coss_Q2)*0.00000002)) -> 0 | R41: 2.705421686 | S41: =R41^2*Rdcr -> 0.04318390833 | T41: =Core_Loss -> 0.54 | U41: =(T41+S41*(1+Ltc*(Ta-25)))/(1-S41*Ltc*ThetaCa) -> 0.5860722979 | V41: 0.8750465684 | W41: =Resr_Cout*V41^2 -> 0.003828532484 | X41: 0.003828532484 | Y41: 1.105718382 | Z41: 0.00244522628 | AA41: 0.00244522628 | AB41: 1.245585423 | AC41: =Rdson1*AB41^2 -> 0.06516228797 | AD41: =(Vin*K41/2)*Fsw*(Tr_buck+Tf_buck) -> 0.09689759831 | AE41: =(0.5*Coss_Q1*(Vin-Q41)^2-0.5*Coss_Q2*(Vin-Q41)^2+(Qoss_Q2*(Vin-Q41)/Vin)*Vin)*Fsw -> 0.09949056 | AF41: =IF(K41>N41/2,0,ABS(K41-N41/2)*Vsd_Q1*Deadtime*Fsw) -> 0 | AG41: =(AF41+AE41+AD41+AC41*(1+RdsonTopTc*Ta-RdsonTopTc*25))/(1-AC41*RdsonTopTc*ThetaJA_Q1) -> 0.26667669 | AH41: =SQRT((1-M41))*SQRT(K41^2+(N41^2)/12) -> 2.401629332 | AI41: =Rdson2*AH41^2 -> 0.1384277628 | AJ41: =IF(K41<N41/2, Deadtime*Fsw*Vsd_Q2*(K41+N41/2),2*Deadtime*Fsw*Vsd_Q2*K41) -> 0.007168 | AK41: =(AJ41+AI41*(1+RdsonBotTc*Ta-RdsonBotTc*25))/(1-AI41*RdsonBotTc*ThetaJA_Q2) -> 0.1509895011 | AL41: =2*Deadtime*Fsw*Vsd_Q2*K41 -> 0.007168 | AM41: =Qrr_Q2*K41/(Iout/Number_of_Phases)*Fsw*Vin -> 0.02691072 | AN41: =Rs*R41^2 -> 0 | AO41: =Iq*Vin -> 5.28e-05 | AP41: =IF(Ext_BIAS=1, (Qg_Q1+Qg_Q2)*Fsw*Vout, (Qg_Q1+Qg_Q2)*Fsw*Vin) -> 0.04180836 | AQ41: 0.1771090588 | AR41: =(Qg_Q1+Qg_Q2)*Fsw*(Vin-Vout) -> 0.15883164 | AS41: =SUM(AO41:AP41) -> 0.04186116 | AT41: 0.486438071 | AU41: =SUM(U41,X41,AA41,AG41,AK41,AL41,AM41,AS41,AN41) -> 1.085952128 | AV41: =Vout*K41 -> 12.80256 | AW41: 0.9218093257 | AX41: =ThetaJA_Q1*BD41 -> 15.65295762 | AY41: =ThetaJA_Q2*BE41 -> 5.022454205 | BA41: 92.18093257 | BB41: =U41 -> 0.5860722979 | BC41: =AG41+AK41+AM41 -> 0.444576911 | BD41: 0.2845992295 | BE41: 0.1599507709 | BF41: 0.04180836
A42: RGateTop | B42: =Rgate1 -> 2.9 | C42: W | D42: Gate Resistance | G42: 33 | H42: 24 | I42: 1 | J42: =Iout*G42/100 -> 2.64 | K42: 2.64 | L42: 0.6112333333 | M42: 0.2120839262 | N42: 3.03224487 | O42: 4.156122435 | P42: 1.123877565 | Q42: 0 | R42: 2.781332249 | S42: 0.04564127357 | T42: 0.54 | U42: 0.5887036337 | V42: 0.875333696 | W42: 0.003831045397 | X42: 0.003831045397 | Y42: 1.13696404 | Z42: 0.002585374455 | AA42: 0.002585374455 | AB42: 1.280874998 | AC42: 0.06890691199 | AD42: 0.09992564825 | AE42: 0.09949056 | AF42: 0 | AG42: 0.2738527347 | AH42: 2.468839468 | AI42: 0.1462840396 | AJ42: 0.007392 | AK42: 0.1595328616 | AL42: 0.007392 | AM42: 0.02775168 | AN42: 0 | AO42: 5.28e-05 | AP42: 0.04180836 | AQ42: 0.1771090588 | AR42: 0.15883164 | AS42: 0.04186116 | AT42: 0.5029984363 | AU42: 1.10551049 | AV42: 13.20264 | AW42: 0.9227356121 | AX42: 16.07844445 | AY42: 5.299508971 | BA42: 92.27356121 | BB42: 0.5887036337 | BC42: 0.4611372763 | BD42: 0.2923353535 | BE42: 0.1687741711 | BF42: 0.04180836
A43: GfsTop | B43: =Gfs_Q1 -> 62 | C43: S | D43: Transconductance of Top FET | G43: 34 | H43: 24 | I43: 1 | J43: 2.72 | K43: 2.72 | L43: 0.6297555556 | M43: 0.2121965476 | N43: 3.033239049 | O43: 4.236619524 | P43: 1.203380476 | Q43: 0 | R43: 2.857465939 | S43: 0.0481741584 | T43: 0.54 | U43: 0.5914169226 | V43: 0.8756206907 | W43: 0.00383355797 | X43: 0.00383355797 | Y43: 1.168312865 | Z43: 0.002729909902 | AA43: 0.002729909902 | AB43: 1.31628587 | AC43: 0.07276955663 | AD43: 0.1029536982 | AE43: 0.09949056 | AF43: 0 | AG43: 0.2811705503 | AH43: 2.536237982 | AI43: 0.1543800745 | AJ43: 0.007616 | AK43: 0.1683479661 | AL43: 0.007616 | AM43: 0.02859264 | AN43: 0 | AO43: 5.28e-05 | AP43: 0.04180836 | AQ43: 0.1771090588 | AR43: 0.15883164 | AS43: 0.04186116 | AT43: 0.5199723165 | AU43: 1.125568707 | AV43: 13.60272 | AW43: 0.9235777673 | AX43: 16.51172867 | AY43: 5.585096499 | BA43: 92.35777673 | BB43: 0.5914169226 | BC43: 0.4781111565 | BD43: 0.3002132486 | BE43: 0.1778693153 | BF43: 0.04180836
A44: VthTop | B44: =Vth_Q1 -> 1.7 | C44: V | D44: Threshold Voltage of Top FET | G44: 35 | H44: 24 | I44: 1 | J44: 2.8 | K44: 2.8 | L44: 0.6482777778 | M44: 0.2123091826 | N44: 3.034232767 | O44: 4.317116384 | P44: 1.282883616 | Q44: 0 | R44: 2.933805386 | S44: 0.05078256284 | T44: 0.54 | U44: 0.5942122638 | V44: 0.8759075525 | W44: 0.003836070203 | X44: 0.003836070203 | Y44: 1.1997578 | Z44: 0.002878837555 | AA44: 0.002878837555 | AB44: 1.351810112 | AC44: 0.07675040426 | AD44: 0.1059817481 | AE44: 0.09949056 | AF44: 0 | AG44: 0.2886312854 | AH44: 2.603809414 | AI44: 0.1627157631 | AJ44: 0.00784 | AK44: 0.177436363 | AL44: 0.00784 | AM44: 0.0294336 | AN44: 0 | AO44: 5.28e-05 | AP44: 0.04180836 | AQ44: 0.1771090588 | AR44: 0.15883164 | AS44: 0.04186116 | AT44: 0.5373624085 | AU44: 1.14612958 | AV44: 14.0028 | AW44: 0.9243425369 | AX44: 16.95287347 | AY44: 5.879265408 | BA44: 92.43425369 | BB44: 0.5942122638 | BC44: 0.4955012485 | BD44: 0.308234063 | BE44: 0.1872377518 | BF44: 0.04180836
A45: VspTop | B45: =Vsp_Q1 -> 1.829032258 | C45: V | G45: 36 | H45: 24 | I45: 1 | J45: 2.88 | K45: 2.88 | L45: 0.6668 | M45: 0.2124218312 | N45: 3.035226026 | O45: 4.397613013 | P45: 1.362386987 | Q45: 0 | R45: 3.010334935 | S45: 0.05346648687 | T45: 0.54 | U45: 0.59708976 | V45: 0.8761942814 | W45: 0.003838582094 | X45: 0.003838582094 | Y45: 1.231292481 | Z45: 0.003032162347 | AA45: 0.003032162347 | AB45: 1.38744058 | AC45: 0.08084963728 | AD45: 0.1090097981 | AE45: 0.09949056 | AF45: 0 | AG45: 0.2962361163 | AH45: 2.671539828 | AI45: 0.1712910013 | AJ45: 0.008064 | AK45: 0.1867996571 | AL45: 0.008064 | AM45: 0.03027456 | AN45: 0 | AO45: 5.28e-05 | AP45: 0.04180836 | AQ45: 0.1771090588 | AR45: 0.15883164 | AS45: 0.04186116 | AT45: 0.5551714934 | AU45: 1.167195998 | AV45: 14.40288 | AW45: 0.9250359473 | AX45: 17.40194353 | AY45: 6.182066089 | BA45: 92.50359473 | BB45: 0.59708976 | BC45: 0.5133103334 | BD45: 0.3163989732 | BE45: 0.1968810856 | BF45: 0.04180836
A46: VsdTop | B46: =Vsd_Q1 -> 0.7 | C46: V | G46: 37 | H46: 24 | I46: 1 | J46: 2.96 | K46: 2.96 | L46: 0.6853222222 | M46: 0.2125344932 | N46: 3.036218823 | O46: 4.478109412 | P46: 1.441890588 | Q46: 0 | R46: 3.087040448 | S46: 0.0562259305 | T46: 0.54 | U46: 0.6000495165 | V46: 0.8764808774 | W46: 0.003841093642 | X46: 0.003841093642 | Y46: 1.262911162 | Z46: 0.003189889205 | AA46: 0.003189889205 | AB46: 1.423170824 | AC46: 0.08506743815 | AD46: 0.112037848 | AE46: 0.09949056 | AF46: 0 | AG46: 0.3039862479 | AH46: 2.739416641 | AI46: 0.1801056848 | AJ46: 0.008288 | AK46: 0.1964395105 | AL46: 0.008288 | AM46: 0.03111552 | AN46: 0 | AO46: 5.28e-05 | AP46: 0.04180836 | AQ46: 0.1771090588 | AR46: 0.15883164 | AS46: 0.04186116 | AT46: 0.5734024384 | AU46: 1.188770938 | AV46: 14.80296 | AW46: 0.925663398 | AX46: 17.85900513 | AY46: 6.49355073 | BA46: 92.5663398 | BB46: 0.6000495165 | BC46: 0.5315412784 | BD46: 0.3247091842 | BE46: 0.2068009787 | BF46: 0.04180836
A47: θJATop | B47: =ThetaJA_Q1 -> 55 | C47: °C/W | D47: Junction to Ambient Resistance | G47: 38 | H47: 24 | I47: 1 | J47: 3.04 | K47: 3.04 | L47: 0.7038444444 | M47: 0.2126471689 | N47: 3.03721116 | O47: 4.55860558 | P47: 1.52139442 | Q47: 0 | R47: 3.163909128 | S47: 0.05906089372 | T47: 0.54 | U47: 0.6030916421 | V47: 0.8767673404 | W47: 0.003843604846 | X47: 0.003843604846 | Y47: 1.294608639 | Z47: 0.003352023055 | AA47: 0.003352023055 | AB47: 1.458995001 | AC47: 0.08940398937 | AD47: 0.115065898 | AE47: 0.09949056 | AF47: 0 | AG47: 0.311882914 | AH47: 2.80742846 | AI47: 0.1891597093 | AJ47: 0.008512 | AK47: 0.2063576432 | AL47: 0.008512 | AM47: 0.03195648 | AN47: 0 | AO47: 5.28e-05 | AP47: 0.04180836 | AQ47: 0.1771090588 | AR47: 0.15883164 | AS47: 0.04186116 | AT47: 0.5920581973 | AU47: 1.210857467 | AV47: 15.20304 | AW47: 0.926229741 | AX47: 18.32412613 | AY47: 6.813773344 | BA47: 92.6229741 | BB47: 0.6030916421 | BC47: 0.5501970373 | BD47: 0.3331659297 | BE47: 0.2169991511 | BF47: 0.04180836
A48: Low-side FET | B48: Input Value | C48: Units | D48: Description | G48: 39 | H48: 24 | I48: 1 | J48: 3.12 | K48: 3.12 | L48: 0.7223666667 | M48: 0.2127598581 | N48: 3.038203036 | O48: 4.639101518 | P48: 1.600898482 | Q48: 0 | R48: 3.240929364 | S48: 0.06197137653 | T48: 0.54 | U48: 0.6062162485 | V48: 0.8770536705 | W48: 0.003846115705 | X48: 0.003846115705 | Y48: 1.326380191 | Z48: 0.00351856882 | AA48: 0.00351856882 | AB48: 1.494907813 | AC48: 0.09385947348 | AD48: 0.1180939479 | AE48: 0.09949056 | AF48: 0 | AG48: 0.3199273783 | AH48: 2.875564948 | AI48: 0.1984529705 | AJ48: 0.008736 | AK48: 0.2165558342 | AL48: 0.008736 | AM48: 0.03279744 | AN48: 0 | AO48: 5.28e-05 | AP48: 0.04180836 | AQ48: 0.1771090588 | AR48: 0.15883164 | AS48: 0.04186116 | AT48: 0.6111418125 | AU48: 1.233458745 | AV48: 15.60312 | AW48: 0.9267393475 | AX48: 18.79737603 | AY48: 7.142789786 | BA48: 92.67393475 | BB48: 0.6062162485 | BC48: 0.5692806525 | BD48: 0.3417704733 | BE48: 0.2274773817 | BF48: 0.04180836
A49: RdsonBot | B49: =Rdson2*1000 -> 24 | C49: mW | D49: Drain-Source Resistance of Low-side FET | G49: 40 | H49: 24 | I49: 1 | J49: 3.2 | K49: 3.2 | L49: 0.7408888889 | M49: 0.2128725608 | N49: 3.039194452 | O49: 4.719597226 | P49: 1.680402774 | Q49: 0 | R49: 3.318090602 | S49: 0.06495737893 | T49: 0.54 | U49: 0.6094234505 | V49: 0.8773398675 | W49: 0.003848626216 | X49: 0.003848626216 | Y49: 1.358221525 | Z49: 0.003689531422 | AA49: 0.003689531422 | AB49: 1.530904441 | AC49: 0.09843407307 | AD49: 0.1211219979 | AE49: 0.09949056 | AF49: 0 | AG49: 0.328120934 | AH49: 2.943816712 | AI49: 0.2079853641 | AJ49: 0.00896 | AK49: 0.2270359221 | AL49: 0.00896 | AM49: 0.0336384 | AN49: 0 | AO49: 5.28e-05 | AP49: 0.04180836 | AQ49: 0.1771090588 | AR49: 0.15883164 | AS49: 0.04186116 | AT49: 0.6306564161 | AU49: 1.256578024 | AV49: 16.0032 | AW49: 0.9271961654 | AX49: 19.27882596 | AY49: 7.480657791 | BA49: 92.71961654 | BB49: 0.6094234505 | BC49: 0.5887952561 | BD49: 0.3505241084 | BE49: 0.2382375093 | BF49: 0.04180836
A50: RdsonBotTc | B50: =RdsonBotTc*1000000 -> 4000 | C50: ppm | D50: Drain To Source Resitance Temp Co | G50: 41 | H50: 24 | I50: 1 | J50: 3.28 | K50: 3.28 | L50: 0.7594111111 | M50: 0.2129852771 | N50: 3.040185407 | O50: 4.800092703 | P50: 1.759907297 | Q50: 0 | R50: 3.39538323 | S50: 0.06801890093 | T50: 0.54 | U50: 0.6127133661 | V50: 0.8776259315 | W50: 0.003851136378 | X50: 0.003851136378 | Y50: 1.390128731 | Z50: 0.003864915777 | AA50: 0.003864915777 | AB50: 1.566980496 | AC50: 0.1031279708 | AD50: 0.1241500478 | AE50: 0.09949056 | AF50: 0 | AG50: 0.3364649054 | AH50: 3.012175194 | AI50: 0.2177567856 | AJ50: 0.009184 | AK50: 0.237799806 | AL50: 0.009184 | AM50: 0.03447936 | AN50: 0 | AO50: 5.28e-05 | AP50: 0.04180836 | AQ50: 0.1771090588 | AR50: 0.15883164 | AS50: 0.04186116 | AT50: 0.6506052315 | AU50: 1.28021865 | AV50: 16.40328 | AW50: 0.9276037692 | AX50: 19.76854876 | AY50: 7.827436993 | BA50: 92.76037692 | BB50: 0.6127133661 | BC50: 0.6087440715 | BD50: 0.3594281592 | BE50: 0.2492814329 | BF50: 0.04180836
A51: QgBot | B51: =Qg_Q2*1000000000 -> 13.3 | C51: nC | D51: Gate Charge Of Top FET | G51: 42 | H51: 24 | I51: 1 | J51: 3.36 | K51: 3.36 | L51: 0.7779333333 | M51: 0.213098007 | N51: 3.041175901 | O51: 4.88058795 | P51: 1.83941205 | Q51: 0 | R51: 3.472798474 | S51: 0.07115594251 | T51: 0.54 | U51: 0.6160861164 | V51: 0.8779118625 | W51: 0.003853646191 | X51: 0.003853646191 | Y51: 1.422098239 | Z51: 0.004044726801 | AA51: 0.004044726801 | AB51: 1.603131973 | AC51: 0.1079413492 | AD51: 0.1271780978 | AE51: 0.09949056 | AF51: 0 | AG51: 0.3449606479 | AH51: 3.080632583 | AI51: 0.2277671307 | AJ51: 0.009408 | AK51: 0.2488494467 | AL51: 0.009408 | AM51: 0.03532032 | AN51: 0 | AO51: 5.28e-05 | AP51: 0.04180836 | AQ51: 0.1771090588 | AR51: 0.15883164 | AS51: 0.04186116 | AT51: 0.6709915746 | AU51: 1.304384064 | AV51: 16.80336 | AW51: 0.927965402 | AX51: 20.26661896 | AY51: 8.183188958 | BA51: 92.7965402 | BB51: 0.6160861164 | BC51: 0.6291304146 | BD51: 0.368483981 | BE51: 0.2606111133 | BF51: 0.04180836
A52: RGateBot | B52: =Rgate2 -> 2.9 | C52: W | D52: Gate Resistance | G52: 43 | H52: 24 | I52: 1 | J52: 3.44 | K52: 3.44 | L52: 0.7964555556 | M52: 0.2132107504 | N52: 3.042165934 | O52: 4.961082967 | P52: 1.918917033 | Q52: 0 | R52: 3.550328313 | S52: 0.07436850367 | T52: 0.54 | U52: 0.6195418256 | V52: 0.8781976603 | W52: 0.003856155653 | X52: 0.003856155653 | Y52: 1.454126784 | Z52: 0.004228969406 | AA52: 0.004228969406 | AB52: 1.63935521 | AC52: 0.1128743912 | AD52: 0.1302061477 | AE52: 0.09949056 | AF52: 0 | AG52: 0.3536095485 | AH52: 3.149181739 | AI52: 0.238016295 | AJ52: 0.009632 | AK52: 0.2601868674 | AL52: 0.009632 | AM52: 0.03616128 | AN52: 0 | AO52: 5.28e-05 | AP52: 0.04180836 | AQ52: 0.1771090588 | AR52: 0.15883164 | AS52: 0.04186116 | AT52: 0.6918188559 | AU52: 1.329077807 | AV52: 17.20344 | AW52: 0.928284013 | AX52: 20.77311285 | AY52: 8.547977214 | BA52: 92.8284013 | BB52: 0.6195418256 | BC52: 0.6499576959 | BD52: 0.3776929609 | BE52: 0.2722285737 | BF52: 0.04180836
A53: VsdBot | B53: =Vsd_Q2 -> 0.7 | C53: V | D53: Diode Forward Voltage of Bottom FET Body Diode | G53: 44 | H53: 24 | I53: 1 | J53: 3.52 | K53: 3.52 | L53: 0.8149777778 | M53: 0.2133235074 | N53: 3.043155505 | O53: 5.041577753 | P53: 1.998422247 | Q53: 0 | R53: 3.627965401 | S53: 0.07765658442 | T53: 0.54 | U53: 0.6230806211 | V53: 0.8784833251 | W53: 0.003858664762 | X53: 0.003858664762 | Y53: 1.486211375 | Z53: 0.004417648501 | AA53: 0.004417648501 | AB53: 1.67564685 | AC53: 0.1179272794 | AD53: 0.1332341977 | AE53: 0.09949056 | AF53: 0 | AG53: 0.3624130267 | AH53: 3.217816121 | AI53: 0.2485041741 | AJ53: 0.009856 | AK53: 0.2718141547 | AL53: 0.009856 | AM53: 0.03700224 | AN53: 0 | AO53: 5.28e-05 | AP53: 0.04180836 | AQ53: 0.1771090588 | AR53: 0.15883164 | AS53: 0.04186116 | AT53: 0.7130905815 | AU53: 1.354303516 | AV53: 17.60352 | AW53: 0.9285622891 | AX53: 21.28810852 | AY53: 8.92186728 | BA53: 92.85622891 | BB53: 0.6230806211 | BC53: 0.6712294215 | BD53: 0.3870565186 | BE53: 0.2841359006 | BF53: 0.04180836
A54: QrrBot | B54: =Qrr_Q2*1000000000 -> 8.76 | C54: nC | D54: Reverse Recovery Charge of Body Diode | G54: 45 | H54: 24 | I54: 1 | J54: 3.6 | K54: 3.6 | L54: 0.8335 | M54: 0.213436278 | N54: 3.044144616 | O54: 5.122072308 | P54: 2.077927692 | Q54: 0 | R54: 3.705702997 | S54: 0.08102018475 | T54: 0.54 | U54: 0.6267026335 | V54: 0.8787688567 | W54: 0.003861173518 | X54: 0.003861173518 | Y54: 1.518349267 | Z54: 0.004610768993 | AA54: 0.004610768993 | AB54: 1.712003815 | AC54: 0.1231001966 | AD54: 0.1362622476 | AE54: 0.09949056 | AF54: 0 | AG54: 0.3713725353 | AH54: 3.286529726 | AI54: 0.2592306634 | AJ54: 0.01008 | AK54: 0.2837334597 | AL54: 0.01008 | AM54: 0.0378432 | AN54: 0 | AO54: 5.28e-05 | AP54: 0.04180836 | AQ54: 0.1771090588 | AR54: 0.15883164 | AS54: 0.04186116 | AT54: 0.734810355 | AU54: 1.380064931 | AV54: 18.0036 | AW54: 0.9288026833 | AX54: 21.81168586 | AY54: 9.304926703 | BA54: 92.88026833 | BB54: 0.6267026335 | BC54: 0.692949195 | BD54: 0.3965761065 | BE54: 0.2963352453 | BF54: 0.04180836
A55: TrrBot | B55: =Trr_Q2*1000000000 -> 40 | C55: ns | D55: Reverse Recovery Time of Body Diode | G55: 46 | H55: 24 | I55: 1 | J55: 3.68 | K55: 3.68 | L55: 0.8520222222 | M55: 0.2135490621 | N55: 3.045133265 | O55: 5.202566633 | P55: 2.157433367 | Q55: 0 | R55: 3.783534906 | S55: 0.08445930466 | T55: 0.54 | U55: 0.6304079964 | V55: 0.8790542552 | W55: 0.003863681918 | X55: 0.003863681918 | Y55: 1.550537937 | Z55: 0.004808335787 | AA55: 0.004808335787 | AB55: 1.748423275 | AC55: 0.1283933258 | AD55: 0.1392902976 | AE55: 0.09949056 | AF55: 0 | AG55: 0.3804895603 | AH55: 3.355317039 | AI55: 0.2701956584 | AJ55: 0.010304 | AK55: 0.2959469991 | AL55: 0.010304 | AM55: 0.03868416 | AN55: 0 | AO55: 5.28e-05 | AP55: 0.04180836 | AQ55: 0.1771090588 | AR55: 0.15883164 | AS55: 0.04186116 | AT55: 0.7569818794 | AU55: 1.406365894 | AV55: 18.40368 | AW55: 0.9290074389 | AX55: 22.3439266 | AY55: 9.697225084 | BA55: 92.90074389 | BB55: 0.6304079964 | BC55: 0.7151207194 | BD55: 0.4062532109 | BE55: 0.3088288243 | BF55: 0.04180836
A56: θJABot | B56: =ThetaJA_Q2 -> 31.4 | C56: °C/W | D56: Junction to Ambient Resistance | G56: 47 | H56: 24 | I56: 1 | J56: 3.76 | K56: 3.76 | L56: 0.8705444444 | M56: 0.2136618598 | N56: 3.046121453 | O56: 5.283060727 | P56: 2.236939273 | Q56: 0 | R56: 3.861455424 | S56: 0.08797394415 | T56: 0.54 | U56: 0.6341968469 | V56: 0.8793395205 | W56: 0.003866189962 | X56: 0.003866189962 | Y56: 1.58277506 | Z56: 0.005010353782 | AA56: 0.005010353782 | AB56: 1.784902624 | AC56: 0.1338068498 | AD56: 0.1423183475 | AE56: 0.09949056 | AF56: 0 | AG56: 0.3897656225 | AH56: 3.424172983 | AI56: 0.2813990548 | AJ56: 0.010528 | AK56: 0.3084570561 | AL56: 0.010528 | AM56: 0.03952512 | AN56: 0 | AO56: 5.28e-05 | AP56: 0.04180836 | AQ56: 0.1771090588 | AR56: 0.15883164 | AS56: 0.04186116 | AT56: 0.7796089586 | AU56: 1.433210349 | AV56: 18.80376 | AW56: 0.929178611 | AX56: 22.88491439 | AY56: 10.09883412 | BA56: 92.9178611 | BB56: 0.6341968469 | BC56: 0.7377477986 | BD56: 0.4160893525 | BE56: 0.3216189211 | BF56: 0.04180836
A57: Controller | B57: Input Value | C57: Units | D57: Std Units | G57: 48 | H57: 24 | I57: 1 | J57: 3.84 | K57: 3.84 | L57: 0.8890666667 | M57: 0.2137746711 | N57: 3.04710918 | O57: 5.36355459 | P57: 2.31644541 | Q57: 0 | R57: 3.939459294 | S57: 0.09156410322 | T57: 0.54 | U57: 0.6380693249 | V57: 0.8796246526 | W57: 0.003868697648 | X57: 0.003868697648 | Y57: 1.615058494 | Z57: 0.005216827878 | AA57: 0.005216827878 | AB57: 1.821439459 | AC57: 0.1393409515 | AD57: 0.1453463975 | AE57: 0.09949056 | AF57: 0 | AG57: 0.3992022776 | AH57: 3.493092874 | AI57: 0.2928407478 | AJ57: 0.010752 | AK57: 0.321265982 | AL57: 0.010752 | AM57: 0.04036608 | AN57: 0 | AO57: 5.28e-05 | AP57: 0.04180836 | AQ57: 0.1771090588 | AR57: 0.15883164 | AS57: 0.04186116 | AT57: 0.8026954995 | AU57: 1.46060235 | AV57: 19.20384 | AW57: 0.9293180854 | AX57: 23.43473478 | AY57: 10.50982764 | BA57: 92.93180854 | BB57: 0.6380693249 | BC57: 0.7608343395 | BD57: 0.4260860868 | BE57: 0.3347078866 | BF57: 0.04180836
A58: θJA | B58: 30 | C58: °C/W | D58: Junction to Ambient Resistance | G58: 49 | H58: 24 | I58: 1 | J58: 3.92 | K58: 3.92 | L58: 0.9075888889 | M58: 0.2138874959 | N58: 3.048096445 | O58: 5.444048222 | P58: 2.395951778 | Q58: 0 | R58: 4.017541661 | S58: 0.09522978187 | T58: 0.54 | U58: 0.6420255739 | V58: 0.8799096515 | W58: 0.003871204974 | X58: 0.003871204974 | Y58: 1.647386259 | Z58: 0.005427762971 | AA58: 0.005427762971 | AB58: 1.858031562 | AC58: 0.144995814 | AD58: 0.1483744474 | AE58: 0.09949056 | AF58: 0 | AG58: 0.4088011168 | AH58: 3.56207239 | AI58: 0.304520633 | AJ58: 0.010976 | AK58: 0.3343761968 | AL58: 0.010976 | AM58: 0.04120704 | AN58: 0 | AO58: 5.28e-05 | AP58: 0.04180836 | AQ58: 0.1771090588 | AR58: 0.15883164 | AS58: 0.04186116 | AT58: 0.8262455136 | AU58: 1.488546055 | AV58: 19.60392 | AW58: 0.9294275951 | AX58: 23.9934753 | AY58: 10.93028163 | BA58: 92.94275951 | BB58: 0.6420255739 | BC58: 0.7843843536 | BD58: 0.4362450054 | BE58: 0.3480981411 | BF58: 0.04180836
A59: Theta Ja | B59: 2 | C59: °C/W | D59: Junction to Ambient Resistance | G59: 50 | H59: 24 | I59: 1 | J59: 4 | K59: 4 | L59: 0.9261111111 | M59: 0.2140003343 | N59: 3.049083248 | O59: 5.524541624 | P59: 2.475458376 | Q59: 0 | R59: 4.095698034 | S59: 0.09897098009 | T59: 0.54 | U59: 0.6460657405 | V59: 0.8801945171 | W59: 0.00387371194 | X59: 0.00387371194 | Y59: 1.679756523 | Z59: 0.005643163953 | AA59: 0.005643163953 | AB59: 1.89467688 | AC59: 0.1507716201 | AD59: 0.1514024974 | AE59: 0.09949056 | AF59: 0 | AG59: 0.4185637681 | AH59: 3.631107532 | AI59: 0.3164386058 | AJ59: 0.0112 | AK59: 0.3477901909 | AL59: 0.0112 | AM59: 0.042048 | AN59: 0 | AO59: 5.28e-05 | AP59: 0.04180836 | AQ59: 0.1771090588 | AR59: 0.15883164 | AS59: 0.04186116 | AT59: 0.850263119 | AU59: 1.517045735 | AV59: 20.004 | AW59: 0.9295087351 | AX59: 24.56122549 | AY59: 11.36027429 | BA59: 92.95087351 | BB59: 0.6460657405 | BC59: 0.808401959 | BD59: 0.4465677361 | BE59: 0.3617921749 | BF59: 0.04180836
G60: 51 | H60: 24 | I60: 1 | J60: 4.08 | K60: 4.08 | L60: 0.9446333333 | M60: 0.2141131864 | N60: 3.05006959 | O60: 5.605034795 | P60: 2.554965205 | Q60: 0 | R60: 4.173924258 | S60: 0.1027876979 | T60: 0.54 | U60: 0.6501899743 | V60: 0.8804792495 | W60: 0.003876218544 | X60: 0.003876218544 | Y60: 1.71216759 | Z60: 0.005863035715 | AA60: 0.005863035715 | AB60: 1.931373513 | AC60: 0.1566685531 | AD60: 0.1544305473 | AE60: 0.09949056 | AF60: 0 | AG60: 0.4284918967 | AH60: 3.700194598 | AI60: 0.3285945615 | AJ60: 0.011424 | AK60: 0.3615105261 | AL60: 0.011424 | AM60: 0.04288896 | AN60: 0 | AO60: 5.28e-05 | AP60: 0.04180836 | AQ60: 0.1771090588 | AR60: 0.15883164 | AS60: 0.04186116 | AT60: 0.8747525428 | AU60: 1.546105771 | AV60: 20.40408 | AW60: 0.9295629756 | AX60: 25.13807692 | AY60: 11.79988606 | BA60: 92.95629756 | BB60: 0.6501899743 | BC60: 0.8328913828 | BD60: 0.4570559441 | BE60: 0.3757925498 | BF60: 0.04180836
G61: 52 | H61: 24 | I61: 1 | J61: 4.16 | K61: 4.16 | L61: 0.9631555556 | M61: 0.2142260519 | N61: 3.05105547 | O61: 5.685527735 | P61: 2.634472265 | Q61: 0 | R61: 4.252216476 | S61: 0.1066799352 | T61: 0.54 | U61: 0.6543984285 | V61: 0.8807638486 | W61: 0.003878724785 | X61: 0.003878724785 | Y61: 1.744617887 | Z61: 0.006087383144 | AA61: 0.006087383144 | AB61: 1.968119698 | AC61: 0.1626867961 | AD61: 0.1574585972 | AE61: 0.09949056 | AF61: 0 | AG61: 0.4385872056 | AH61: 3.769330154 | AI61: 0.3409883955 | AJ61: 0.011648 | AK61: 0.3755398371 | AL61: 0.011648 | AM61: 0.04372992 | AN61: 0 | AO61: 5.28e-05 | AP61: 0.04180836 | AQ61: 0.1771090588 | AR61: 0.15883164 | AS61: 0.04186116 | AT61: 0.8997181227 | AU61: 1.575730659 | AV61: 20.80416 | AW61: 0.929591673 | AX61: 25.72412328 | AY61: 12.24919967 | BA61: 92.9591673 | BB61: 0.6543984285 | BC61: 0.8578569627 | BD61: 0.4677113323 | BE61: 0.3901019004 | BF61: 0.04180836
G62: 53 | H62: 24 | I62: 1 | J62: 4.24 | K62: 4.24 | L62: 0.9816777778 | M62: 0.2143389311 | N62: 3.052040889 | O62: 5.766020444 | P62: 2.713979556 | Q62: 0 | R62: 4.330571109 | S62: 0.1106476922 | T62: 0.54 | U62: 0.6586912594 | V62: 0.8810483143 | W62: 0.003881230661 | X62: 0.003881230661 | Y62: 1.777105951 | Z62: 0.006316211125 | AA62: 0.006316211125 | AB62: 2.004913797 | AC62: 0.1688265321 | AD62: 0.1604866472 | AE62: 0.09949056 | AF62: 0 | AG62: 0.4488514368 | AH62: 3.838511013 | AI62: 0.3536200031 | AJ62: 0.011872 | AK62: 0.3898808327 | AL62: 0.011872 | AM62: 0.04457088 | AN62: 0 | AO62: 5.28e-05 | AP62: 0.04180836 | AQ62: 0.1771090588 | AR62: 0.15883164 | AS62: 0.04186116 | AT62: 0.9251643095 | AU62: 1.605925011 | AV62: 21.20424 | AW62: 0.929596081 | AX62: 26.31946036 | AY62: 12.70830018 | BA62: 92.9596081 | BB62: 0.6586912594 | BC62: 0.8833031495 | BD62: 0.4785356429 | BE62: 0.4047229357 | BF62: 0.04180836
G63: 54 | H63: 24 | I63: 1 | J63: 4.32 | K63: 4.32 | L63: 1.0002 | M63: 0.2144518239 | N63: 3.053025845 | O63: 5.846512923 | P63: 2.793487077 | Q63: 0 | R63: 4.40898483 | S63: 0.1146909687 | T63: 0.54 | U63: 0.6630686267 | V63: 0.8813326467 | W63: 0.003883736171 | X63: 0.003883736171 | Y63: 1.809630424 | Z63: 0.00654952454 | AA63: 0.00654952454 | AB63: 2.04175429 | AC63: 0.1750879443 | AD63: 0.1635146971 | AE63: 0.09949056 | AF63: 0 | AG63: 0.4592863719 | AH63: 3.90773421 | AI63: 0.3664892797 | AJ63: 0.012096 | AK63: 0.4045362973 | AL63: 0.012096 | AM63: 0.04541184 | AN63: 0 | AO63: 5.28e-05 | AP63: 0.04180836 | AQ63: 0.1771090588 | AR63: 0.15883164 | AS63: 0.04186116 | AT63: 0.9510956691 | AU63: 1.636693557 | AV63: 21.60432 | AW63: 0.9295773589 | AX63: 26.92418615 | AY63: 13.17727502 | BA63: 92.95773589 | BB63: 0.6630686267 | BC63: 0.9092345091 | BD63: 0.4895306573 | BE63: 0.41965844 | BF63: 0.04180836
G64: 55 | H64: 24 | I64: 1 | J64: 4.4 | K64: 4.4 | L64: 1.018722222 | M64: 0.2145647303 | N64: 3.054010339 | O64: 5.92700517 | P64: 2.87299483 | Q64: 0 | R64: 4.487454542 | S64: 0.1188097648 | T64: 0.54 | U64: 0.6675306932 | V64: 0.8816168458 | W64: 0.003886241314 | X64: 0.003886241314 | Y64: 1.842190037 | Z64: 0.006787328267 | AA64: 0.006787328267 | AB64: 2.078639758 | AC64: 0.1814712162 | AD64: 0.1665427471 | AE64: 0.09949056 | AF64: 0 | AG64: 0.4698938327 | AH64: 3.976996985 | AI64: 0.3795961205 | AJ64: 0.01232 | AK64: 0.4195090923 | AL64: 0.01232 | AM64: 0.0462528 | AN64: 0 | AO64: 5.28e-05 | AP64: 0.04180836 | AQ64: 0.1771090588 | AR64: 0.15883164 | AS64: 0.04186116 | AT64: 0.9775168851 | AU64: 1.668041148 | AV64: 22.0044 | AW64: 0.9295365806 | AX64: 27.53840086 | AY64: 13.65621403 | BA64: 92.95365806 | BB64: 0.6675306932 | BC64: 0.9356557251 | BD64: 0.5006981975 | BE64: 0.4349112747 | BF64: 0.04180836
G65: 56 | H65: 24 | I65: 1 | J65: 4.48 | K65: 4.48 | L65: 1.037244444 | M65: 0.2146776502 | N65: 3.054994372 | O65: 6.007497186 | P65: 2.952502814 | Q65: 0 | R65: 4.565977356 | S65: 0.1230040804 | T65: 0.54 | U65: 0.6720776252 | V65: 0.8819009114 | W65: 0.003888746088 | X65: 0.003888746088 | Y65: 1.874783612 | Z65: 0.007029627184 | AA65: 0.007029627184 | AB65: 2.11556888 | AC65: 0.1879765308 | AD65: 0.169570797 | AE65: 0.09949056 | AF65: 0 | AG65: 0.4806756829 | AH65: 4.046296768 | AI65: 0.3929404208 | AJ65: 0.012544 | AK65: 0.4348021578 | AL65: 0.012544 | AM65: 0.04709376 | AN65: 0 | AO65: 5.28e-05 | AP65: 0.04180836 | AQ65: 0.1771090588 | AR65: 0.15883164 | AS65: 0.04186116 | AT65: 1.004432761 | AU65: 1.699972759 | AV65: 22.40448 | AW65: 0.9294747416 | AX65: 28.16220699 | AY65: 14.14520953 | BA65: 92.94747416 | BB65: 0.6720776252 | BC65: 0.9625716007 | BD65: 0.512040127 | BE65: 0.4504843799 | BF65: 0.04180836
A66: Outputs | G66: 57 | H66: 24 | I66: 1 | J66: 4.56 | K66: 4.56 | L66: 1.055766667 | M66: 0.2147905838 | N66: 3.055977942 | O66: 6.087988971 | P66: 3.032011029 | Q66: 0 | R66: 4.644550581 | S66: 0.1272739156 | T66: 0.54 | U66: 0.6767095923 | V66: 0.8821848436 | W66: 0.003891250492 | X66: 0.003891250492 | Y66: 1.907410046 | Z66: 0.007276426164 | AA66: 0.007276426164 | AB66: 2.152540424 | AC66: 0.1946040716 | AD66: 0.172598847 | AE66: 0.09949056 | AF66: 0 | AG66: 0.4916338278 | AH66: 4.115631157 | AI66: 0.4065220757 | AJ66: 0.012768 | AK66: 0.4504185139 | AL66: 0.012768 | AM66: 0.04793472 | AN66: 0 | AO66: 5.28e-05 | AP66: 0.04180836 | AQ66: 0.1771090588 | AR66: 0.15883164 | AS66: 0.04186116 | AT66: 1.031848222 | AU66: 1.732493491 | AV66: 22.80456 | AW66: 0.9293927655 | AX66: 28.79570932 | AY66: 14.64435636 | BA66: 92.93927655 | BB66: 0.6767095923 | BC66: 0.9899870618 | BD66: 0.5235583514 | BE66: 0.4663807757 | BF66: 0.04180836
A67: Design | B67: Value | C67: Units | G67: 58 | H67: 24 | I67: 1 | J67: 4.64 | K67: 4.64 | L67: 1.074288889 | M67: 0.214903531 | N67: 3.05696105 | O67: 6.168480525 | P67: 3.111519475 | Q67: 0 | R67: 4.7231717 | S67: 0.1316192703 | T67: 0.54 | U67: 0.6814267673 | V67: 0.8824686424 | W67: 0.003893754524 | X67: 0.003893754524 | Y67: 1.940068308 | Z67: 0.007527730078 | AA67: 0.007527730078 | AB67: 2.189553237 | AC67: 0.2013540219 | AD67: 0.1756268969 | AE67: 0.09949056 | AF67: 0 | AG67: 0.5027702164 | AH67: 4.184997912 | AI67: 0.4203409806 | AJ67: 0.012992 | AK67: 0.4663612625 | AL67: 0.012992 | AM67: 0.04877568 | AN67: 0 | AO67: 5.28e-05 | AP67: 0.04180836 | AQ67: 0.1771090588 | AR67: 0.15883164 | AS67: 0.04186116 | AT67: 1.059768319 | AU67: 1.765608571 | AV67: 23.20464 | AW67: 0.92929151 | AX67: 29.43901506 | AY67: 15.15375191 | BA67: 92.929151 | BB67: 0.6814267673 | BC67: 1.017907159 | BD67: 0.5352548193 | BE67: 0.4826035639 | BF67: 0.04180836
A68: Dmax | B68: =D1_Vinmin -> 0.41675 | C68: index | G68: 59 | H68: 24 | I68: 1 | J68: 4.72 | K68: 4.72 | L68: 1.092811111 | M68: 0.2150164917 | N68: 3.057943695 | O68: 6.248971848 | P68: 3.191028152 | Q68: 0 | R68: 4.80183836 | S68: 0.1360401447 | T68: 0.54 | U68: 0.6862293265 | V68: 0.8827523078 | W68: 0.003896258184 | X68: 0.003896258184 | Y68: 1.972757435 | Z68: 0.007783543794 | AA68: 0.007783543794 | AB68: 2.226606243 | AC68: 0.2082265652 | AD68: 0.1786549469 | AE68: 0.09949056 | AF68: 0 | AG68: 0.5140868416 | AH68: 4.254394936 | AI68: 0.4343970306 | AJ68: 0.013216 | AK68: 0.4826335887 | AL68: 0.013216 | AM68: 0.04961664 | AN68: 0 | AO68: 5.28e-05 | AP68: 0.04180836 | AQ68: 0.1771090588 | AR68: 0.15883164 | AS68: 0.04186116 | AT68: 1.08819823 | AU68: 1.799323359 | AV68: 23.60472 | AW68: 0.9291717726 | AX68: 30.09223381 | AY68: 15.6734962 | BA68: 92.91717726 | BB68: 0.6862293265 | BC68: 1.04633707 | BD68: 0.5471315238 | BE68: 0.4991559298 | BF68: 0.04180836
A69: Dprime | B69: =1-B68 -> 0.58325 | C69: index | G69: 60 | H69: 24 | I69: 1 | J69: 4.8 | K69: 4.8 | L69: 1.111333333 | M69: 0.2151294661 | N69: 3.058925878 | O69: 6.329462939 | P69: 3.270537061 | Q69: 0 | R69: 4.88054836 | S69: 0.1405365385 | T69: 0.54 | U69: 0.6911174496 | V69: 0.8830358396 | W69: 0.00389876147 | X69: 0.00389876147 | Y69: 2.005476524 | Z69: 0.008043872177 | AA69: 0.008043872177 | AB69: 2.263698432 | AC69: 0.2152218849 | AD69: 0.1816829968 | AE69: 0.09949056 | AF69: 0 | AG69: 0.5255857413 | AH69: 4.323820267 | AI69: 0.4486901208 | AJ69: 0.01344 | AK69: 0.4992387629 | AL69: 0.01344 | AM69: 0.0504576 | AN69: 0 | AO69: 5.28e-05 | AP69: 0.04180836 | AQ69: 0.1771090588 | AR69: 0.15883164 | AS69: 0.04186116 | AT69: 1.117143264 | AU69: 1.833643348 | AV69: 24.0048 | AW69: 0.929034295 | AX69: 30.75547766 | AY69: 16.20369191 | BA69: 92.9034295 | BB69: 0.6911174496 | BC69: 1.075282104 | BD69: 0.5591905029 | BE69: 0.5160411437 | BF69: 0.04180836
A70: Ipp | B70: =Iripple_Vinnom -> 3.027485852 | C70: A | G70: 61 | H70: 24 | I70: 1 | J70: 4.88 | K70: 4.88 | L70: 1.129855556 | M70: 0.215242454 | N70: 3.059907599 | O70: 6.409953799 | P70: 3.350046201 | Q70: 0 | R70: 4.959299636 | S70: 0.145108452 | T70: 0.54 | U70: 0.6960913197 | V70: 0.8833192379 | W70: 0.00390126438 | X70: 0.00390126438 | Y70: 2.038224729 | Z70: 0.00830872009 | AA70: 0.00830872009 | AB70: 2.30082886 | AC70: 0.2223401645 | AD70: 0.1847110468 | AE70: 0.09949056 | AF70: 0 | AG70: 0.5372689997 | AH70: 4.393272065 | AI70: 0.4632201464 | AJ70: 0.013664 | AK70: 0.5161801425 | AL70: 0.013664 | AM70: 0.05129856 | AN70: 0 | AO70: 5.28e-05 | AP70: 0.04180836 | AQ70: 0.1771090588 | AR70: 0.15883164 | AS70: 0.04186116 | AT70: 1.146608862 | AU70: 1.868574166 | AV70: 24.40488 | AW70: 0.9288797676 | AX70: 31.42886124 | AY70: 16.74444448 | BA70: 92.88797676 | BB70: 0.6960913197 | BC70: 1.104747702 | BD70: 0.5714338407 | BE70: 0.533262563 | BF70: 0.04180836
A71: Top FET | B71: Value | C71: Units | G71: 62 | H71: 24 | I71: 1 | J71: 4.96 | K71: 4.96 | L71: 1.148377778 | M71: 0.2153554556 | N71: 3.060888857 | O71: 6.490444428 | P71: 3.429555572 | Q71: 0 | R71: 5.038090252 | S71: 0.149755885 | T71: 0.54 | U71: 0.7011511232 | V71: 0.8836025027 | W71: 0.003903766914 | X71: 0.003903766914 | Y71: 2.071001255 | Z71: 0.008578092393 | AA71: 0.008578092393 | AB71: 2.337996638 | AC71: 0.2295815877 | AD71: 0.1877390967 | AE71: 0.09949056 | AF71: 0 | AG71: 0.5491387482 | AH71: 4.462748604 | AI71: 0.4779870025 | AJ71: 0.013888 | AK71: 0.5334611735 | AL71: 0.013888 | AM71: 0.05213952 | AN71: 0 | AO71: 5.28e-05 | AP71: 0.04180836 | AQ71: 0.1771090588 | AR71: 0.15883164 | AS71: 0.04186116 | AT71: 1.176600602 | AU71: 1.904121584 | AV71: 24.80496 | AW71: 0.9287088334 | AX71: 32.11250177 | AY71: 17.2958621 | BA71: 92.87088334 | BB71: 0.7011511232 | BC71: 1.134739442 | BD71: 0.5838636685 | BE71: 0.5508236336 | BF71: 0.04180836
A72: Tr | B72: =(Qgd_Q1+Qgs_Q1/2)*(RdsonDRT+Rgate1)/(VCC-Vsp_Q1)*1000000000 -> 12.9785307 | C72: ns | D72: Turn on of MOSFET -> Rise time of current + fall time of voltage | G72: 63 | H72: 24 | I72: 1 | J72: 5.04 | K72: 5.04 | L72: 1.1669 | M72: 0.2154684708 | N72: 3.061869652 | O72: 6.570934826 | P72: 3.509065174 | Q72: 0 | R72: 5.11691839 | S72: 0.1544788375 | T72: 0.54 | U72: 0.70629705 | V72: 0.8838856339 | W72: 0.003906269069 | X72: 0.003906269069 | Y72: 2.103805355 | Z72: 0.008851993942 | AA72: 0.008851993942 | AB72: 2.375200933 | AC72: 0.2369463379 | AD72: 0.1907671467 | AE72: 0.09949056 | AF72: 0 | AG72: 0.5611971662 | AH72: 4.532248266 | AI72: 0.4929905842 | AJ72: 0.014112 | AK72: 0.5510853925 | AL72: 0.014112 | AM72: 0.05298048 | AN72: 0 | AO72: 5.28e-05 | AP72: 0.04180836 | AQ72: 0.1771090588 | AR72: 0.15883164 | AS72: 0.04186116 | AT72: 1.207124199 | AU72: 1.940291512 | AV72: 25.20504 | AW72: 0.9285220919 | AX72: 32.80651912 | AY72: 17.85805582 | BA72: 92.85220919 | BB72: 0.70629705 | BC72: 1.165263039 | BD72: 0.5964821659 | BE72: 0.5687278923 | BF72: 0.04180836
A73: Tf | B73: =(Qgd_Q1+Qgs_Q1/2)*(RdsonDRT2+Rgate1)/(Vsp_Q1)*1000000000 -> 10.43776014 | C73: ns | D73: Turn off of MOSFET -> Fall time of current + rise time of voltage | G73: 64 | H73: =Vin -> 24 | I73: =MODE -> 1 | J73: 5.12 | K73: =Iout*G73/100/Number_of_Phases -> 5.12 | L73: =Vout*K73/(Vin*Efficiency) -> 1.185422222 | M73: =(Vout+(Rdson2+Rs+Rdcr)*K73)/(Vin+(Rs+Rdson2-Rdson1)*K73) -> 0.2155814996 | N73: =(Vin-(Rdson1+Rdcr)*K73-Vout)*M73/(Fsw*Lf) -> 3.062849985 | O73: 6.651424992 | P73: 3.588575008 | Q73: =IF(MIN(Vin, -P73/(Coss_Q1+Coss_Q2)*0.00000002)<0, 0, MIN(Vin, -P73/(Coss_Q1+Coss_Q2)*0.00000002)) -> 0 | R73: 5.195782344 | S73: =R73^2*Rdcr -> 0.1592773096 | T73: =Core_Loss -> 0.54 | U73: =(T73+S73*(1+Ltc*(Ta-25)))/(1-S73*Ltc*ThetaCa) -> 0.7115292935 | V73: 0.8841686316 | W73: =Resr_Cout*V73^2 -> 0.003908770845 | X73: 0.003908770845 | Y73: 2.136636327 | Z73: 0.009130429592 | AA73: 0.009130429592 | AB73: 2.412440963 | AC73: =Rdson1*AB73^2 -> 0.2444345988 | AD73: =(Vin*K73/2)*Fsw*(Tr_buck+Tf_buck) -> 0.1937951966 | AE73: =(0.5*Coss_Q1*(Vin-Q73)^2-0.5*Coss_Q2*(Vin-Q73)^2+(Qoss_Q2*(Vin-Q73)/Vin)*Vin)*Fsw -> 0.09949056 | AF73: =IF(K73>N73/2,0,ABS(K73-N73/2)*Vsd_Q1*Deadtime*Fsw) -> 0 | AG73: =(AF73+AE73+AD73+AC73*(1+RdsonTopTc*Ta-RdsonTopTc*25))/(1-AC73*RdsonTopTc*ThetaJA_Q1) -> 0.5734464828 | AH73: =SQRT((1-M73))*SQRT(K73^2+(N73^2)/12) -> 4.601769526 | AI73: =Rdson2*AH73^2 -> 0.5082307865 | AJ73: =IF(K73<N73/2, Deadtime*Fsw*Vsd_Q2*(K73+N73/2),2*Deadtime*Fsw*Vsd_Q2*K73) -> 0.014336 | AK73: =(AJ73+AI73*(1+RdsonBotTc*Ta-RdsonBotTc*25))/(1-AI73*RdsonBotTc*ThetaJA_Q2) -> 0.5690564289 | AL73: =2*Deadtime*Fsw*Vsd_Q2*K73 -> 0.014336 | AM73: =Qrr_Q2*K73/(Iout/Number_of_Phases)*Fsw*Vin -> 0.05382144 | AN73: =Rs*R73^2 -> 0 | AO73: =Iq*Vin -> 5.28e-05 | AP73: =IF(Ext_BIAS=1, (Qg_Q1+Qg_Q2)*Fsw*Vout, (Qg_Q1+Qg_Q2)*Fsw*Vin) -> 0.04180836 | AQ73: =(Vin-VCC)*Fsw*(Qg_Q1+Qg_Q2)+(RdsonDRT+RdsonDRT2)*Fsw*Qg_Q1*VCC/(RdsonDRT+2*Rgate1+RdsonDRT2)+(RdsonDRB+RdsonDRB2)*Fsw*Qg_Q2*VCC/(RdsonDRB+2*Rgate2+RdsonDRB2) -> 0.1771090588 | AR73: =(Qg_Q1+Qg_Q2)*Fsw*(Vin-Vout) -> 0.15883164 | AS73: 0.04186116 | AT73: 1.238185512 | AU73: =SUM(U73,X73,AA73,AG73,AK73,AL73,AM73,AS73,AN73) -> 1.977090006 | AV73: =Vout*K73 -> 25.60512 | AW73: 0.9283201018 | AX73: =ThetaJA_Q1*BD73 -> 33.5110359 | AY73: =ThetaJA_Q2*BE73 -> 18.43113961 | BA73: 92.83201018 | BB73: =U73 -> 0.7115292935 | BC73: 1.196324352 | BD73: =AG73+AM73*0.666 -> 0.6092915618 | BE73: =AK73+AM73*0.333 -> 0.5869789685 | BF73: 0.04180836
A74: Part Power | B74: Value | C74: Units | G74: 65 | H74: 24 | I74: 1 | J74: =Iout*G74/100 -> 5.2 | K74: 5.2 | L74: 1.203944444 | M74: 0.215694542 | N74: 3.063829854 | O74: =K74+N74/2 -> 6.731914927 | P74: =K74-N74/2 -> 3.668085073 | Q74: 0 | R74: =SQRT(K74^2+(N74^2)/12) -> 5.274680507 | S74: 0.1641513012 | T74: 0.54 | U74: 0.7168480505 | V74: =N74/SQRT(12) -> 0.8844514956 | W74: 0.00391127224 | X74: =W74 -> 0.00391127224 | Y74: =SQRT(M74*(1-M74))*SQRT(K74^2+(N74^2)/12) -> 2.169493512 | Z74: =RCinEsr*Y74^2 -> 0.009413404194 | AA74: =Z74 -> 0.009413404194 | AB74: =SQRT(M74)*SQRT(K74^2+(N74^2)/12) -> 2.44971599 | AC74: 0.2520465541 | AD74: 0.1968232466 | AE74: 0.09949056 | AF74: 0 | AG74: 0.5858889773 | AH74: 4.671310953 | AI74: 0.5237075044 | AJ74: 0.01456 | AK74: 0.5873780068 | AL74: 0.01456 | AM74: 0.0546624 | AN74: 0 | AO74: 5.28e-05 | AP74: 0.04180836 | AQ74: 0.1771090588 | AR74: 0.15883164 | AS74: 0.04186116 | AT74: =SUM(AG74,AK74,AM74,AS74) -> 1.269790544 | AU74: 2.014523271 | AV74: 26.0052 | AW74: =AV74/(AV74+AU74) -> 0.9281033845 | AX74: 34.22617746 | AY74: 19.0152304 | BA74: =AW74*100 -> 92.81033845 | BB74: 0.7168480505 | BC74: =AG74+AK74+AM74 -> 1.227929384 | BD74: 0.6222941357 | BE74: 0.605580586 | BF74: =AP74 -> 0.04180836
A75: Power Dis | B75: =AS9 -> 0.04186116 | C75: W | G75: 66 | H75: 24 | I75: 1 | J75: 5.28 | K75: 5.28 | L75: 1.222466667 | M75: 0.2158075981 | N75: 3.064809261 | O75: 6.812404631 | P75: 3.747595369 | Q75: 0 | R75: 5.353611365 | S75: 0.1691008124 | T75: 0.54 | U75: 0.7222535213 | V75: 0.884734226 | W75: 0.003913773253 | X75: 0.003913773253 | Y75: 2.202376284 | Z75: 0.009700922597 | AA75: 0.009700922597 | AB75: 2.48702532 | AC75: 0.2597823876 | AD75: 0.1998512965 | AE75: 0.09949056 | AF75: 0 | AG75: 0.5985269809 | AH75: 4.740871197 | AI75: 0.539420633 | AJ75: 0.014784 | AK75: 0.6060539469 | AL75: 0.014784 | AM75: 0.05550336 | AN75: 0 | AO75: 5.28e-05 | AP75: 0.04180836 | AQ75: 0.1771090588 | AR75: 0.15883164 | AS75: =SUM(AO75:AP75) -> 0.04186116 | AT75: 1.301945448 | AU75: 2.052597665 | AV75: 26.40528 | AW75: 0.9278724264 | AX75: 34.95207203 | AY75: 19.61044817 | BA75: 92.78724264 | BB75: 0.7222535213 | BC75: 1.260084288 | BD75: 0.6354922186 | BE75: 0.6245365658 | BF75: 0.04180836
A76: Temp rise | B76: =B75*B58 -> 1.2558348 | C76: °C | G76: 67 | H76: 24 | I76: 1 | J76: 5.36 | K76: 5.36 | L76: 1.240988889 | M76: 0.2159206678 | N76: 3.065788205 | O76: 6.892894103 | P76: 3.827105897 | Q76: 0 | R76: 5.432573495 | S76: 0.1741258432 | T76: 0.54 | U76: 0.7277459097 | V76: 0.8850168227 | W76: 0.003916273883 | X76: 0.003916273883 | Y76: 2.235284059 | Z76: 0.009992989646 | AA76: 0.009992989646 | AB76: 2.524368299 | AC76: 0.267642283 | AD76: 0.2028793465 | AE76: 0.09949056 | AF76: 0 | AG76: 0.6113628776 | AH76: 4.810448988 | AI76: 0.5553700672 | AJ76: 0.015008 | AK76: 0.625088169 | AL76: 0.015008 | AM76: 0.05634432 | AN76: 0 | AO76: 5.28e-05 | AP76: 0.04180836 | AQ76: 0.1771090588 | AR76: 0.15883164 | AS76: 0.04186116 | AT76: 1.334656527 | AU76: 2.0913197 | AV76: 26.80536 | AW76: 0.9276276817 | AX76: 35.68885071 | AY76: 20.21691598 | BA76: 92.76276817 | BB76: 0.7277459097 | BC76: 1.292795367 | BD76: 0.6488881947 | BE76: 0.6438508275 | BF76: 0.04180836
A77: Current (switching) | B77: =(Qg_Q1+Qg_Q2)*Fsw+Iq -> 0.0083622 | C77: A | G77: 68 | H77: 24 | I77: 1 | J77: 5.44 | K77: 5.44 | L77: 1.259511111 | M77: 0.216033751 | N77: 3.066766686 | O77: 6.973383343 | P77: 3.906616657 | Q77: 0 | R77: 5.511565551 | S77: 0.1792263935 | T77: 0.54 | U77: 0.733325423 | V77: 0.8852992858 | W77: 0.003918774127 | X77: 0.003918774127 | Y77: 2.26821628 | Z77: 0.01028961019 | AA77: 0.01028961019 | AB77: 2.56174431 | AC77: 0.2756264242 | AD77: 0.2059073964 | AE77: 0.09949056 | AF77: 0 | AG77: 0.6243991055 | AH77: 4.880043126 | AI77: 0.571555702 | AJ77: 0.015232 | AK77: 0.6444846941 | AL77: 0.015232 | AM77: 0.05718528 | AN77: 0 | AO77: 5.28e-05 | AP77: 0.04180836 | AQ77: 0.1771090588 | AR77: 0.15883164 | AS77: 0.04186116 | AT77: 1.36793024 | AU77: 2.130696047 | AV77: 27.20544 | AW77: 0.9273695744 | AX77: 36.43664761 | AY77: 20.83476012 | BA77: 92.73695744 | BB77: 0.733325423 | BC77: 1.32606908 | BD77: 0.662484502 | BE77: 0.6635273923 | BF77: 0.04180836
A78: Qrr Current | B78: =Qrr_Q2*Fsw -> 0.003504 | C78: A | G78: 69 | H78: 24 | I78: 1 | J78: 5.52 | K78: 5.52 | L78: 1.278033333 | M78: 0.216146848 | N78: 3.067744703 | O78: 7.053872352 | P78: 3.986127648 | Q78: 0 | R78: 5.590586266 | S78: 0.1844024633 | T78: 0.54 | U78: 0.7389922722 | V78: 0.8855816151 | W78: 0.003921273985 | X78: 0.003921273985 | Y78: 2.301172425 | Z78: 0.01059078905 | AA78: 0.01059078905 | AB78: 2.599152769 | AC78: 0.283734995 | AD78: 0.2089354463 | AE78: 0.09949056 | AF78: 0 | AG78: 0.6376381583 | AH78: 4.949652481 | AI78: 0.5879774323 | AJ78: 0.015456 | AK78: 0.6642476467 | AL78: 0.015456 | AM78: 0.05802624 | AN78: 0 | AO78: 5.28e-05 | AP78: 0.04180836 | AQ78: 0.1771090588 | AR78: 0.15883164 | AS78: 0.04186116 | AT78: 1.401773205 | AU78: 2.17073354 | AV78: 27.60552 | AW78: 0.9270985002 | AX78: 37.19559988 | AY78: 21.46411008 | BA78: 92.70985002 | BB78: 0.7389922722 | BC78: 1.359912045 | BD78: 0.6762836342 | BE78: 0.6835703847 | BF78: 0.04180836
A79: Diode Current | B79: =Deadtime*Fsw*(Iripple_Vinnom/2)*(Vsd_Q2)/Vin -> 8.830167069e-05 | G79: 70 | H79: 24 | I79: 1 | J79: 5.6 | K79: 5.6 | L79: 1.296555556 | M79: 0.2162599585 | N79: 3.068722258 | O79: 7.134361129 | P79: 4.065638871 | Q79: 0 | R79: 5.669634441 | S79: 0.1896540527 | T79: 0.54 | U79: 0.7447466717 | V79: 0.8858638108 | W79: 0.003923773456 | X79: 0.003923773456 | Y79: 2.334151997 | Z79: 0.01089653109 | AA79: 0.01089653109 | AB79: 2.636593127 | AC79: 0.2919681792 | AD79: 0.2119634963 | AE79: 0.09949056 | AF79: 0 | AG79: 0.6510825865 | AH79: 5.019275981 | AI79: 0.604635153 | AJ79: 0.01568 | AK79: 0.6843812575 | AL79: 0.01568 | AM79: 0.0588672 | AN79: 0 | AO79: 5.28e-05 | AP79: 0.04180836 | AQ79: 0.1771090588 | AR79: 0.15883164 | AS79: 0.04186116 | AT79: 1.436192204 | AU79: 2.21143918 | AV79: 28.0056 | AW79: 0.926814829 | AX79: 37.9658478 | AY79: 22.1050987 | BA79: 92.6814829 | BB79: 0.7447466717 | BC79: 1.394331044 | BD79: 0.6902881417 | BE79: 0.7039840351 | BF79: 0.04180836
A80: Total | B80: =SUM(B77:B79) -> 0.01195450167 | C80: A | G80: 71 | H80: 24 | I80: 1 | J80: 5.68 | K80: 5.68 | L80: 1.315077778 | M80: 0.2163730827 | N80: 3.069699349 | O80: 7.214849674 | P80: 4.145150326 | Q80: 0 | R80: 5.748708943 | S80: 0.1949811616 | T80: 0.54 | U80: 0.7505888395 | V80: 0.8861458726 | W80: 0.003926272538 | X80: 0.003926272538 | Y80: 2.367154529 | Z80: 0.01120684113 | AA80: 0.01120684113 | AB80: 2.674064861 | AC80: 0.300326161 | AD80: 0.2149915462 | AE80: 0.09949056 | AF80: 0 | AG80: 0.6647349987 | AH80: 5.088912617 | AI80: 0.621528759 | AJ80: 0.015904 | AK80: 0.7048898652 | AL80: 0.015904 | AM80: 0.05970816 | AN80: 0 | AO80: 5.28e-05 | AP80: 0.04180836 | AQ80: 0.1771090588 | AR80: 0.15883164 | AS80: 0.04186116 | AT80: 1.471194184 | AU80: 2.252820137 | AV80: 28.40568 | AW80: 0.9265189058 | AX80: 38.74753483 | AY80: 22.75786223 | BA80: 92.65189058 | BB80: 0.7505888395 | BC80: 1.429333024 | BD80: 0.7045006333 | BE80: 0.7247726825 | BF80: 0.04180836
G81: 72 | H81: 24 | I81: 1 | J81: 5.76 | K81: 5.76 | L81: 1.3336 | M81: 0.2164862205 | N81: 3.070675976 | O81: 7.295337988 | P81: 4.224662012 | Q81: 0 | R81: 5.8278087 | S81: 0.2003837901 | T81: 0.54 | U81: 0.7565189974 | V81: 0.8864278007 | W81: 0.00392877123 | X81: 0.00392877123 | Y81: 2.400179577 | Z81: 0.011521724 | AA81: 0.011521724 | AB81: 2.711567479 | AC81: 0.3088091242 | AD81: 0.2180195962 | AE81: 0.09949056 | AF81: 0 | AG81: 0.6785980631 | AH81: 5.158561432 | AI81: 0.6386581452 | AJ81: 0.016128 | AK81: 0.72577792 | AL81: 0.016128 | AM81: 0.06054912 | AN81: 0 | AO81: 5.28e-05 | AP81: 0.04180836 | AQ81: 0.1771090588 | AR81: 0.15883164 | AS81: 0.04186116 | AT81: 1.506786263 | AU81: 2.294883756 | AV81: 28.80576 | AW81: 0.9262110529 | AX81: 39.54080773 | AY81: 23.4225404 | BA81: 92.62110529 | BB81: 0.7565189974 | BC81: 1.464925103 | BD81: 0.718923777 | BE81: 0.745940777 | BF81: 0.04180836
G82: 73 | H82: 24 | I82: 1 | J82: 5.84 | K82: 5.84 | L82: 1.352122222 | M82: 0.2165993719 | N82: 3.07165214 | O82: 7.37582607 | P82: 4.30417393 | Q82: 0 | R82: 5.906932699 | S82: 0.205861938 | T82: 0.54 | U82: 0.7625373705 | V82: 0.886709595 | W82: 0.003931269529 | X82: 0.003931269529 | Y82: 2.43322672 | Z82: 0.01184118454 | AA82: 0.01184118454 | AB82: 2.749100515 | AC82: 0.3174172529 | AD82: 0.2210476461 | AE82: 0.09949056 | AF82: 0 | AG82: 0.6926745089 | AH82: 5.22822152 | AI82: 0.6560232064 | AJ82: 0.016352 | AK82: 0.7470499856 | AL82: 0.016352 | AM82: 0.06139008 | AN82: 0 | AO82: 5.28e-05 | AP82: 0.04180836 | AQ82: 0.1771090588 | AR82: 0.15883164 | AS82: 0.04186116 | AT82: 1.542975734 | AU82: 2.337637559 | AV82: 29.20584 | AW82: 0.9258915713 | AX82: 40.34581662 | AY82: 24.0992765 | BA82: 92.58915713 | BB82: 0.7625373705 | BC82: 1.501114574 | BD82: 0.7335603021 | BE82: 0.7674928823 | BF82: 0.04180836
G83: 74 | H83: 24 | I83: 1 | J83: 5.92 | K83: 5.92 | L83: 1.370644444 | M83: 0.216712537 | N83: 3.072627841 | O83: 7.45631392 | P83: 4.38368608 | Q83: 0 | R83: 5.986079977 | S83: 0.2114156056 | T83: 0.54 | U83: 0.7686441878 | V83: 0.8869912555 | W83: 0.003933767436 | X83: 0.003933767436 | Y83: 2.466295558 | Z83: 0.01216522756 | AA83: 0.01216522756 | AB83: 2.786663525 | AC83: 0.3261507312 | AD83: 0.2240756961 | AE83: 0.09949056 | AF83: 0 | AG83: 0.706967128 | AH83: 5.297892023 | AI83: 0.6736238373 | AJ83: 0.016576 | AK83: 0.7687107421 | AL83: 0.016576 | AM83: 0.06223104 | AN83: 0 | AO83: 5.28e-05 | AP83: 0.04180836 | AQ83: 0.1771090588 | AR83: 0.15883164 | AS83: 0.04186116 | AT83: 1.57977007 | AU83: 2.381089253 | AV83: 29.60592 | AW83: 0.9255607414 | AX83: 41.16271504 | AY83: 24.7882175 | BA83: 92.55607414 | BB83: 0.7686441878 | BC83: 1.53790891 | BD83: 0.7484130007 | BE83: 0.7894336785 | BF83: 0.04180836
G84: 75 | H84: 24 | I84: 1 | J84: 6 | K84: 6 | L84: 1.389166667 | M84: 0.2168257157 | N84: 3.073603077 | O84: 7.536801539 | P84: 4.463198461 | Q84: 0 | R84: 6.065249623 | S84: 0.2170447926 | T84: 0.54 | U84: 0.7748396819 | V84: 0.8872727821 | W84: 0.003936264949 | X84: 0.003936264949 | Y84: 2.499385715 | Z84: 0.0124938579 | AA84: 0.0124938579 | AB84: 2.824256089 | AC84: 0.3350097433 | AD84: 0.227103746 | AE84: 0.09949056 | AF84: 0 | AG84: 0.7214787765 | AH84: 5.367572126 | AI84: 0.6914599327 | AJ84: 0.0168 | AK84: 0.790764989 | AL84: 0.0168 | AM84: 0.063072 | AN84: 0 | AO84: 5.28e-05 | AP84: 0.04180836 | AQ84: 0.1771090588 | AR84: 0.15883164 | AS84: 0.04186116 | AT84: 1.617176926 | AU84: 2.42524673 | AV84: 30.006 | AW84: 0.9252188252 | AX84: 41.99166007 | AY84: 25.4895141 | BA84: 92.52188252 | BB84: 0.7748396819 | BC84: 1.575315766 | BD84: 0.7634847285 | BE84: 0.811767965 | BF84: 0.04180836
G85: 76 | H85: 24 | I85: 1 | J85: 6.08 | K85: 6.08 | L85: 1.407688889 | M85: 0.2169389081 | N85: 3.074577851 | O85: 7.617288925 | P85: 4.542711075 | Q85: 0 | R85: 6.144440773 | S85: 0.2227494992 | T85: 0.54 | U85: 0.7811240892 | V85: 0.8875541748 | W85: 0.003938762066 | X85: 0.003938762066 | Y85: 2.532496828 | Z85: 0.01282708037 | AA85: 0.01282708037 | AB85: 2.86187781 | AC85: 0.3439944732 | AD85: 0.230131796 | AE85: 0.09949056 | AF85: 0 | AG85: 0.7362123761 | AH85: 5.437261058 | AI85: 0.7095313875 | AJ85: 0.017024 | AK85: 0.8132176481 | AL85: 0.017024 | AM85: 0.06391296 | AN85: 0 | AO85: 5.28e-05 | AP85: 0.04180836 | AQ85: 0.1771090588 | AR85: 0.15883164 | AS85: 0.04186116 | AT85: 1.655204144 | AU85: 2.470118076 | AV85: 30.40608 | AW85: 0.9248660666 | AX85: 42.83281241 | AY85: 26.20332084 | BA85: 92.48660666 | BB85: 0.7811240892 | BC85: 1.613342984 | BD85: 0.7787784075 | BE85: 0.8345006638 | BF85: 0.04180836
G86: 77 | H86: 24 | I86: 1 | J86: 6.16 | K86: 6.16 | L86: 1.426211111 | M86: 0.2170521141 | N86: 3.07555216 | O86: 7.69777608 | P86: 4.62222392 | Q86: 0 | R86: 6.223652606 | S86: 0.2285297254 | T86: 0.54 | U86: 0.7874976496 | V86: 0.8878354337 | W86: 0.003941258786 | X86: 0.003941258786 | Y86: 2.565628558 | Z86: 0.01316489979 | AA86: 0.01316489979 | AB86: 2.899528308 | AC86: 0.3531051053 | AD86: 0.2331598459 | AE86: 0.09949056 | AF86: 0 | AG86: 0.7511709161 | AH86: 5.506958085 | AI86: 0.7278380963 | AJ86: 0.017248 | AK86: 0.8360737663 | AL86: 0.017248 | AM86: 0.06475392 | AN86: 0 | AO86: 5.28e-05 | AP86: 0.04180836 | AQ86: 0.1771090588 | AR86: 0.15883164 | AS86: 0.04186116 | AT86: 1.693859762 | AU86: 2.515711571 | AV86: 30.80616 | AW86: 0.9245026929 | AX86: 43.68633647 | AY86: 26.9297962 | BA86: 92.45026929 | BB86: 0.7874976496 | BC86: 1.651998602 | BD86: 0.7942970268 | BE86: 0.8576368217 | BF86: 0.04180836
G87: 78 | H87: 24 | I87: 1 | J87: 6.24 | K87: 6.24 | L87: 1.444733333 | M87: 0.2171653338 | N87: 3.076526005 | O87: 7.778263002 | P87: 4.701736998 | Q87: 0 | R87: 6.302884341 | S87: 0.234385471 | T87: 0.54 | U87: 0.7939606069 | V87: 0.8881165586 | W87: 0.003943755108 | X87: 0.003943755108 | Y87: 2.598780578 | Z87: 0.01350732098 | AA87: 0.01350732098 | AB87: 2.937207224 | AC87: 0.3623418237 | AD87: 0.2361878959 | AE87: 0.09949056 | AF87: 0 | AG87: 0.7663574548 | AH87: 5.576662509 | AI87: 0.7463799538 | AJ87: 0.017472 | AK87: 0.8593385193 | AL87: 0.017472 | AM87: 0.06559488 | AN87: 0 | AO87: 5.28e-05 | AP87: 0.04180836 | AQ87: 0.1771090588 | AR87: 0.15883164 | AS87: 0.04186116 | AT87: 1.733152014 | AU87: 2.562035697 | AV87: 31.20624 | AW87: 0.9241289156 | AX87: 44.55240047 | AY87: 27.66910269 | BA87: 92.41289156 | BB87: 0.7939606069 | BC87: 1.691290854 | BD87: 0.8100436448 | BE87: 0.8811816143 | BF87: 0.04180836
G88: 79 | H88: 24 | I88: 1 | J88: 6.32 | K88: 6.32 | L88: 1.463255556 | M88: 0.2172785671 | N88: 3.077499386 | O88: 7.858749693 | P88: 4.781250307 | Q88: 0 | R88: 6.382135239 | S88: 0.2403167362 | T88: 0.54 | U88: 0.8005132087 | V88: 0.8883975495 | W88: 0.00394625103 | X88: 0.00394625103 | Y88: 2.631952578 | Z88: 0.01385434875 | AA88: 0.01385434875 | AB88: 2.974914216 | AC88: 0.3717048128 | AD88: 0.2392159458 | AE88: 0.09949056 | AF88: 0 | AG88: 0.7817751215 | AH88: 5.646373669 | AI88: 0.7651568548 | AJ88: 0.017696 | AK88: 0.8830172141 | AL88: 0.017696 | AM88: 0.06643584 | AN88: 0 | AO88: 5.28e-05 | AP88: 0.04180836 | AQ88: 0.1771090588 | AR88: 0.15883164 | AS88: 0.04186116 | AT88: 1.773089336 | AU88: 2.609099144 | AV88: 31.60632 | AW88: 0.9237449311 | AX88: 45.4311765 | AY88: 28.42140695 | BA88: 92.37449311 | BB88: 0.8005132087 | BC88: 1.731228176 | BD88: 0.8260213909 | BE88: 0.9051403489 | BF88: 0.04180836
G89: 80 | H89: 24 | I89: 1 | J89: 6.4 | K89: 6.4 | L89: 1.481777778 | M89: 0.217391814 | N89: 3.078472303 | O89: 7.939236152 | P89: 4.860763848 | Q89: 0 | R89: 6.461404593 | S89: 0.2463235209 | T89: 0.54 | U89: 0.8071557062 | V89: 0.8886784065 | W89: 0.003948746551 | X89: 0.003948746551 | Y89: 2.665144265 | Z89: 0.0142059879 | AA89: 0.0142059879 | AB89: 3.012648957 | AC89: 0.381194257 | AD89: 0.2422439958 | AE89: 0.09949056 | AF89: 0 | AG89: 0.7974271182 | AH89: 5.716090935 | AI89: 0.7841686937 | AJ89: 0.01792 | AK89: 0.9071152933 | AL89: 0.01792 | AM89: 0.0672768 | AN89: 0 | AO89: 5.28e-05 | AP89: 0.04180836 | AQ89: 0.1771090588 | AR89: 0.15883164 | AS89: 0.04186116 | AT89: 1.813680372 | AU89: 2.656910812 | AV89: 32.0064 | AW89: 0.9233509221 | AX89: 46.32284069 | AY89: 29.18687988 | BA89: 92.33509221 | BB89: 0.8071557062 | BC89: 1.771819212 | BD89: 0.842233467 | BE89: 0.9295184677 | BF89: 0.04180836
G90: 81 | H90: 24 | I90: 1 | J90: 6.48 | K90: 6.48 | L90: 1.5003 | M90: 0.2175050747 | N90: 3.079444756 | O90: 8.019722378 | P90: 4.940277622 | Q90: 0 | R90: 6.540691732 | S90: 0.2524058252 | T90: 0.54 | U90: 0.8138883546 | V90: 0.8889591295 | W90: 0.00395124167 | X90: 0.00395124167 | Y90: 2.698355356 | Z90: 0.01456224325 | AA90: 0.01456224325 | AB90: 3.050411138 | AC90: 0.3908103406 | AD90: 0.2452720457 | AE90: 0.09949056 | AF90: 0 | AG90: 0.8133167219 | AH90: 5.785813705 | AI90: 0.8034153654 | AJ90: 0.018144 | AK90: 0.9316383376 | AL90: 0.018144 | AM90: 0.06811776 | AN90: 0 | AO90: 5.28e-05 | AP90: 0.04180836 | AQ90: 0.1771090588 | AR90: 0.15883164 | AS90: 0.04186116 | AT90: 1.85493398 | AU90: 2.705479819 | AV90: 32.40648 | AW90: 0.9229470576 | AX90: 47.22757325 | AY90: 29.96569672 | BA90: 92.29470576 | BB90: 0.8138883546 | BC90: 1.81307282 | BD90: 0.85868315 | BE90: 0.9543215517 | BF90: 0.04180836
G91: 82 | H91: 24 | I91: 1 | J91: 6.56 | K91: 6.56 | L91: 1.518822222 | M91: 0.2176183489 | N91: 3.080416745 | O91: 8.100208373 | P91: 5.019791627 | Q91: 0 | R91: 6.619996018 | S91: 0.2585636489 | T91: 0.54 | U91: 0.8207114129 | V91: 0.8892397185 | W91: 0.003953736385 | X91: 0.003953736385 | Y91: 2.731585583 | Z91: 0.0149231196 | AA91: 0.0149231196 | AB91: 3.088200463 | AC91: 0.4005532481 | AD91: 0.2483000957 | AE91: 0.09949056 | AF91: 0 | AG91: 0.8294472857 | AH91: 5.855541408 | AI91: 0.8228967643 | AJ91: 0.018368 | AK91: 0.9565920704 | AL91: 0.018368 | AM91: 0.06895872 | AN91: 0 | AO91: 5.28e-05 | AP91: 0.04180836 | AQ91: 0.1771090588 | AR91: 0.15883164 | AS91: 0.04186116 | AT91: 1.896859236 | AU91: 2.754815505 | AV91: 32.80656 | AW91: 0.9225334941 | AX91: 48.14555863 | AY91: 30.75803718 | BA91: 92.25334941 | BB91: 0.8207114129 | BC91: 1.854998076 | BD91: 0.8753737932 | BE91: 0.9795553242 | BF91: 0.04180836
G92: 83 | H92: 24 | I92: 1 | J92: 6.64 | K92: 6.64 | L92: 1.537344444 | M92: 0.2177316369 | N92: 3.081388269 | O92: 8.180694135 | P92: 5.099305865 | Q92: 0 | R92: 6.699316841 | S92: 0.2647969922 | T92: 0.54 | U92: 0.827625144 | V92: 0.8895201734 | W92: 0.003956230695 | X92: 0.003956230695 | Y92: 2.764834692 | Z92: 0.01528862175 | AA92: 0.01528862175 | AB92: 3.12601665 | AC92: 0.410423164 | AD92: 0.2513281456 | AE92: 0.09949056 | AF92: 0 | AG92: 0.8458222418 | AH92: 5.9252735 | AI92: 0.8426127851 | AJ92: 0.018592 | AK92: 0.9819823608 | AL92: 0.018592 | AM92: 0.06979968 | AN92: 0 | AO92: 5.28e-05 | AP92: 0.04180836 | AQ92: 0.1771090588 | AR92: 0.15883164 | AS92: 0.04186116 | AT92: 1.939465443 | AU92: 2.804927439 | AV92: 33.20664 | AW92: 0.9221103762 | AX92: 49.07698558 | AY92: 31.56408554 | BA92: 92.21103762 | BB92: 0.827625144 | BC92: 1.897604283 | BD92: 0.8923088287 | BE92: 1.005225654 | BF92: 0.04180836
G93: 84 | H93: 24 | I93: 1 | J93: 6.72 | K93: 6.72 | L93: 1.555866667 | M93: 0.2178449385 | N93: 3.082359329 | O93: 8.261179665 | P93: 5.178820335 | Q93: 0 | R93: 6.778653621 | S93: 0.271105855 | T93: 0.54 | U93: 0.8346298145 | V93: 0.8898004943 | W93: 0.003958724598 | X93: 0.003958724598 | Y93: 2.798102436 | Z93: 0.01565875449 | AA93: 0.01565875449 | AB93: 3.16385943 | AC93: 0.4204202727 | AD93: 0.2543561956 | AE93: 0.09949056 | AF93: 0 | AG93: 0.8624451029 | AH93: 5.99500946 | AI93: 0.8625633222 | AJ93: 0.018816 | AK93: 1.007815228 | AL93: 0.018816 | AM93: 0.07064064 | AN93: 0 | AO93: 5.28e-05 | AP93: 0.04180836 | AQ93: 0.1771090588 | AR93: 0.15883164 | AS93: 0.04186116 | AT93: 1.982762131 | AU93: 2.855825424 | AV93: 33.60672 | AW93: 0.9216778371 | AX93: 50.0220473 | AY93: 32.38403081 | BA93: 92.16778371 | BB93: 0.8346298145 | BC93: 1.940900971 | BD93: 0.9094917692 | BE93: 1.031338561 | BF93: 0.04180836
G94: 85 | H94: 24 | I94: 1 | J94: 6.8 | K94: 6.8 | L94: 1.574388889 | M94: 0.2179582538 | N94: 3.083329925 | O94: 8.341664962 | P94: 5.258335038 | Q94: 0 | R94: 6.858005805 | S94: 0.2774902374 | T94: 0.54 | U94: 0.8417256951 | V94: 0.8900806811 | W94: 0.003961218094 | X94: 0.003961218094 | Y94: 2.831388584 | Z94: 0.01603352263 | AA94: 0.01603352263 | AB94: 3.201728547 | AC94: 0.430544759 | AD94: 0.2573842455 | AE94: 0.09949056 | AF94: 0 | AG94: 0.8793194648 | AH94: 6.064748794 | AI94: 0.8827482703 | AJ94: 0.01904 | AK94: 1.034096844 | AL94: 0.01904 | AM94: 0.0714816 | AN94: 0 | AO94: 5.28e-05 | AP94: 0.04180836 | AQ94: 0.1771090588 | AR94: 0.15883164 | AS94: 0.04186116 | AT94: 2.026759069 | AU94: 2.907519505 | AV94: 34.0068 | AW94: 0.9212359988 | AX94: 50.98094157 | AY94: 33.21806681 | BA94: 92.12359988 | BB94: 0.8417256951 | BC94: 1.984897909 | BD94: 0.9269262104 | BE94: 1.057900217 | BF94: 0.04180836
G95: 86 | H95: 24 | I95: 1 | J95: 6.88 | K95: 6.88 | L95: 1.592911111 | M95: 0.2180715827 | N95: 3.084300056 | O95: 8.422150028 | P95: 5.337849972 | Q95: 0 | R95: 6.937372863 | S95: 0.2839501392 | T95: 0.54 | U95: 0.8489130605 | V95: 0.8903607337 | W95: 0.003963711181 | X95: 0.003963711181 | Y95: 2.864692911 | Z95: 0.01641293095 | AA95: 0.01641293095 | AB95: 3.239623756 | AC95: 0.4407968073 | AD95: 0.2604122954 | AE95: 0.09949056 | AF95: 0 | AG95: 0.8964490082 | AH95: 6.134491027 | AI95: 0.9031675238 | AJ95: 0.019264 | AK95: 1.060833541 | AL95: 0.019264 | AM95: 0.07232256 | AN95: 0 | AO95: 5.28e-05 | AP95: 0.04180836 | AQ95: 0.1771090588 | AR95: 0.15883164 | AS95: 0.04186116 | AT95: 2.071466269 | AU95: 2.960019972 | AV95: 34.40688 | AW95: 0.9207849735 | AX95: 51.95387083 | AY95: 34.06639233 | BA95: 92.07849735 | BB95: 0.8489130605 | BC95: 2.029605109 | BD95: 0.9446158332 | BE95: 1.084916953 | BF95: 0.04180836
G96: 87 | H96: 24 | I96: 1 | J96: 6.96 | K96: 6.96 | L96: 1.611433333 | M96: 0.2181849253 | N96: 3.085269722 | O96: 8.502634861 | P96: 5.417365139 | Q96: 0 | R96: 7.01675429 | S96: 0.2904855606 | T96: 0.54 | U96: 0.8561921892 | V96: 0.8906406522 | W96: 0.003966203857 | X96: 0.003966203857 | Y96: 2.898015204 | Z96: 0.01679698424 | AA96: 0.01679698424 | AB96: 3.277544821 | AC96: 0.4511766024 | AD96: 0.2634403454 | AE96: 0.09949056 | AF96: 0 | AG96: 0.9138375016 | AH96: 6.204235708 | AI96: 0.9238209772 | AJ96: 0.019488 | AK96: 1.088031811 | AL96: 0.019488 | AM96: 0.07316352 | AN96: 0 | AO96: 5.28e-05 | AP96: 0.04180836 | AQ96: 0.1771090588 | AR96: 0.15883164 | AS96: 0.04186116 | AT96: 2.116893993 | AU96: 3.01333737 | AV96: 34.80696 | AW96: 0.9203248631 | AX96: 52.94104233 | AY96: 34.92921126 | BA96: 92.03248631 | BB96: 0.8561921892 | BC96: 2.075032833 | BD96: 0.9625644059 | BE96: 1.112395263 | BF96: 0.04180836
G97: 88 | H97: 24 | I97: 1 | J97: 7.04 | K97: 7.04 | L97: 1.629955556 | M97: 0.2182982816 | N97: 3.086238923 | O97: 8.583119462 | P97: 5.496880538 | Q97: 0 | R97: 7.096149606 | S97: 0.2970965014 | T97: 0.54 | U97: 0.8635633638 | V97: 0.8909204366 | W97: 0.003968696121 | X97: 0.003968696121 | Y97: 2.931355258 | Z97: 0.0171856873 | AA97: 0.0171856873 | AB97: 3.31549152 | AC97: 0.4616843289 | AD97: 0.2664683953 | AE97: 0.09949056 | AF97: 0 | AG97: 0.9314888031 | AH97: 6.273982404 | AI97: 0.9447085249 | AJ97: 0.019712 | AK97: 1.115698315 | AL97: 0.019712 | AM97: 0.07400448 | AN97: 0 | AO97: 5.28e-05 | AP97: 0.04180836 | AQ97: 0.1771090588 | AR97: 0.15883164 | AS97: 0.04186116 | AT97: 2.163052758 | AU97: 3.067482505 | AV97: 35.20704 | AW97: 0.9198557603 | AX97: 53.94266827 | AY97: 35.80673273 | BA97: 91.98557603 | BB97: 0.8635633638 | BC97: 2.121191598 | BD97: 0.9807757868 | BE97: 1.140341807 | BF97: 0.04180836
G98: 89 | H98: 24 | I98: 1 | J98: 7.12 | K98: 7.12 | L98: 1.648477778 | M98: 0.2184116516 | N98: 3.08720766 | O98: 8.66360383 | P98: 5.57639617 | Q98: 0 | R98: 7.175558347 | S98: 0.3037829618 | T98: 0.54 | U98: 0.8710268709 | V98: 0.8912000867 | W98: 0.003971187973 | X98: 0.003971187973 | Y98: 2.964712878 | Z98: 0.0175790449 | AA98: 0.0175790449 | AB98: 3.353463638 | AC98: 0.4723201717 | AD98: 0.2694964453 | AE98: 0.09949056 | AF98: 0 | AG98: 0.9494068632 | AH98: 6.343730702 | AI98: 0.9658300613 | AJ98: 0.019936 | AK98: 1.143839884 | AL98: 0.019936 | AM98: 0.07484544 | AN98: 0 | AO98: 5.28e-05 | AP98: 0.04180836 | AQ98: 0.1771090588 | AR98: 0.15883164 | AS98: 0.04186116 | AT98: 2.209953347 | AU98: 3.122466451 | AV98: 35.60712 | AW98: 0.9193777487 | AX98: 54.95896594 | AY98: 36.69917124 | BA98: 91.93777487 | BB98: 0.8710268709 | BC98: 2.168092187 | BD98: 0.9992539262 | BE98: 1.168763415 | BF98: 0.04180836
G99: 90 | H99: 24 | I99: 1 | J99: 7.2 | K99: 7.2 | L99: 1.667 | M99: 0.2185250352 | N99: 3.088175931 | O99: 8.744087966 | P99: 5.655912034 | Q99: 0 | R99: 7.254980075 | S99: 0.3105449417 | T99: 0.54 | U99: 0.8785830011 | V99: 0.8914796026 | W99: 0.00397367941 | X99: 0.00397367941 | Y99: 2.998087876 | Z99: 0.01797706183 | AA99: 0.01797706183 | AB99: 3.39146097 | AC99: 0.4830843155 | AD99: 0.2725244952 | AE99: 0.09949056 | AF99: 0 | AG99: 0.9675957273 | AH99: 6.413480207 | AI99: 0.9871854809 | AJ99: 0.02016 | AK99: 1.172463525 | AL99: 0.02016 | AM99: 0.0756864 | AN99: 0 | AO99: 5.28e-05 | AP99: 0.04180836 | AQ99: 0.1771090588 | AR99: 0.15883164 | AS99: 0.04186116 | AT99: 2.257606812 | AU99: 3.178300555 | AV99: 36.0072 | AW99: 0.9188909033 | AX99: 55.99015783 | AY99: 37.60674682 | BA99: 91.88909033 | BB99: 0.8785830011 | BC99: 2.215745652 | BD99: 1.01800287 | BE99: 1.197667096 | BF99: 0.04180836
G100: 91 | H100: 24 | I100: 1 | J100: 7.28 | K100: 7.28 | L100: 1.685522222 | M100: 0.2186384325 | N100: 3.089143738 | O100: 8.824571869 | P100: 5.735428131 | Q100: 0 | R100: 7.334414366 | S100: 0.3173824411 | T100: 0.54 | U100: 0.8862320492 | V100: 0.8917589843 | W100: 0.003976170431 | X100: 0.003976170431 | Y100: 3.031480073 | Z100: 0.01837974286 | AA100: 0.01837974286 | AB100: 3.429483319 | AC100: 0.4939769451 | AD100: 0.2755525452 | AE100: 0.09949056 | AF100: 0 | AG100: 0.9860595384 | AH100: 6.483230541 | AI100: 1.008774678 | AJ100: 0.020384 | AK100: 1.201576428 | AL100: 0.020384 | AM100: 0.07652736 | AN100: 0 | AO100: 5.28e-05 | AP100: 0.04180836 | AQ100: 0.1771090588 | AR100: 0.15883164 | AS100: 0.04186116 | AT100: 2.306024486 | AU100: 3.234996449 | AV100: 36.40728 | AW100: 0.9183952906 | AX100: 57.03647181 | AY100: 38.52968521 | BA100: 91.83952906 | BB100: 0.8862320492 | BC100: 2.264163326 | BD100: 1.03702676 | BE100: 1.227060039 | BF100: 0.04180836
G101: 92 | H101: 24 | I101: 1 | J101: 7.36 | K101: 7.36 | L101: 1.704044444 | M101: 0.2187518435 | N101: 3.090111079 | O101: 8.90505554 | P101: 5.81494446 | Q101: 0 | R101: 7.413860817 | S101: 0.32429546 | T101: 0.54 | U101: 0.8939743141 | V101: 0.8920382318 | W101: 0.003978661035 | X101: 0.003978661035 | Y101: 3.064889295 | Z101: 0.01878709278 | AA101: 0.01878709278 | AB101: 3.467530497 | AC101: 0.5049982455 | AD101: 0.2785805951 | AE101: 0.09949056 | AF101: 0 | AG101: 1.00480254 | AH101: 6.552981341 | AI101: 1.030597547 | AJ101: 0.020608 | AK101: 1.231185967 | AL101: 0.020608 | AM101: 0.07736832 | AN101: 0 | AO101: 5.28e-05 | AP101: 0.04180836 | AQ101: 0.1771090588 | AR101: 0.15883164 | AS101: 0.04186116 | AT101: 2.355217987 | AU101: 3.292566055 | AV101: 36.80736 | AW101: 0.9178909694 | AX101: 58.09814125 | AY101: 39.46821799 | BA101: 91.78909694 | BB101: 0.8939743141 | BC101: 2.313356827 | BD101: 1.056329841 | BE101: 1.256949617 | BF101: 0.04180836
G102: 93 | H102: 24 | I102: 1 | J102: 7.44 | K102: 7.44 | L102: 1.722566667 | M102: 0.2188652682 | N102: 3.091077956 | O102: 8.985538978 | P102: 5.894461022 | Q102: 0 | R102: 7.493319041 | S102: 0.3312839984 | T102: 0.54 | U102: 0.9018100988 | V102: 0.8923173449 | W102: 0.00398115122 | X102: 0.00398115122 | Y102: 3.098315376 | Z102: 0.01919911634 | AA102: 0.01919911634 | AB102: 3.505602324 | AC102: 0.5161484015 | AD102: 0.2816086451 | AE102: 0.09949056 | AF102: 0 | AG102: 1.023829078 | AH102: 6.62273226 | AI102: 1.052653982 | AJ102: 0.020832 | AK102: 1.261299709 | AL102: 0.020832 | AM102: 0.07820928 | AN102: 0 | AO102: 5.28e-05 | AP102: 0.04180836 | AQ102: 0.1771090588 | AR102: 0.15883164 | AS102: 0.04186116 | AT102: 2.405199227 | AU102: 3.351021594 | AV102: 37.20744 | AW102: 0.9173779906 | AX102: 59.17540521 | AY102: 40.42258274 | BA102: 91.73779906 | BB102: 0.9018100988 | BC102: 2.363338067 | BD102: 1.075916458 | BE102: 1.2873434 | BF102: 0.04180836
G103: 94 | H103: 24 | I103: 1 | J103: 7.52 | K103: 7.52 | L103: 1.741088889 | M103: 0.2189787066 | N103: 3.092044367 | O103: 9.066022183 | P103: 5.973977817 | Q103: 0 | R103: 7.572788667 | S103: 0.3383480564 | T103: 0.54 | U103: 0.9097397105 | V103: 0.8925963238 | W103: 0.003983640986 | X103: 0.003983640986 | Y103: 3.131758159 | Z103: 0.01961581833 | AA103: 0.01961581833 | AB103: 3.543698627 | AC103: 0.5274275982 | AD103: 0.284636695 | AE103: 0.09949056 | AF103: 0 | AG103: 1.043143605 | AH103: 6.692482965 | AI103: 1.074943878 | AJ103: 0.021056 | AK103: 1.291925419 | AL103: 0.021056 | AM103: 0.07905024 | AN103: 0 | AO103: 5.28e-05 | AP103: 0.04180836 | AQ103: 0.1771090588 | AR103: 0.15883164 | AS103: 0.04186116 | AT103: 2.455980424 | AU103: 3.410375593 | AV103: 37.60752 | AW103: 0.9168563978 | AX103: 60.26850857 | AY103: 41.39302326 | BA103: 91.68563978 | BB103: 0.9097397105 | BC103: 2.414119264 | BD103: 1.095791065 | BE103: 1.318249149 | BF103: 0.04180836
G104: 95 | H104: 24 | I104: 1 | J104: 7.6 | K104: 7.6 | L104: 1.759611111 | M104: 0.2190921586 | N104: 3.093010313 | O104: 9.146505156 | P104: 6.053494844 | Q104: 0 | R104: 7.652269341 | S104: 0.3454876338 | T104: 0.54 | U104: 0.9177634606 | V104: 0.8928751683 | W104: 0.003986130331 | X104: 0.003986130331 | Y104: 3.165217489 | Z104: 0.02003720351 | AA104: 0.02003720351 | AB104: 3.581819239 | AC104: 0.5388360206 | AD104: 0.287664745 | AE104: 0.09949056 | AF104: 0 | AG104: 1.062750683 | AH104: 6.762233137 | AI104: 1.097467128 | AJ104: 0.02128 | AK104: 1.323071062 | AL104: 0.02128 | AM104: 0.0798912 | AN104: 0 | AO104: 5.28e-05 | AP104: 0.04180836 | AQ104: 0.1771090588 | AR104: 0.15883164 | AS104: 0.04186116 | AT104: 2.507574104 | AU104: 3.470640899 | AV104: 38.0076 | AW104: 0.9163262274 | AX104: 61.37770221 | AY104: 42.3797897 | BA104: 91.63262274 | BB104: 0.9177634606 | BC104: 2.465712944 | BD104: 1.115958222 | BE104: 1.349674831 | BF104: 0.04180836
G105: 96 | H105: 24 | I105: 1 | J105: 7.68 | K105: 7.68 | L105: =Vout*K105/(Vin*Efficiency) -> 1.778133333 | M105: 0.2192056244 | N105: =(Vin-(Rdson1+Rdcr)*K105-Vout)*M105/(Fsw*Lf) -> 3.093975793 | O105: 9.226987896 | P105: 6.133012104 | Q105: =IF(MIN(Vin, -P105/(Coss_Q1+Coss_Q2)*0.00000002)<0, 0, MIN(Vin, -P105/(Coss_Q1+Coss_Q2)*0.00000002)) -> 0 | R105: 7.731760721 | S105: =R105^2*Rdcr -> 0.3527027307 | T105: 0.54 | U105: =(T105+S105*(1+Ltc*(Ta-25)))/(1-S105*Ltc*ThetaCa) -> 0.9258816646 | V105: 0.8931538784 | W105: =Resr_Cout*V105^2 -> 0.003988619253 | X105: 0.003988619253 | Y105: 3.198693221 | Z105: 0.02046327664 | AA105: 0.02046327664 | AB105: 3.619964002 | AC105: =Rdson1*AB105^2 -> 0.5503738538 | AD105: 0.2906927949 | AE105: 0.09949056 | AF105: 0 | AG105: =(AF105+AE105+AD105+AC105*(1+RdsonTopTc*Ta-RdsonTopTc*25))/(1-AC105*RdsonTopTc*ThetaJA_Q1) -> 1.082654985 | AH105: 6.83198247 | AI105: =Rdson2*AH105^2 -> 1.120223627 | AJ105: 0.021504 | AK105: =(AJ105+AI105*(1+RdsonBotTc*Ta-RdsonBotTc*25))/(1-AI105*RdsonBotTc*ThetaJA_Q2) -> 1.354744814 | AL105: 0.021504 | AM105: 0.08073216 | AN105: 0 | AO105: 5.28e-05 | AP105: 0.04180836 | AQ105: 0.1771090588 | AR105: 0.15883164 | AS105: 0.04186116 | AT105: 2.559993119 | AU105: =SUM(U105,X105,AA105,AG105,AK105,AL105,AM105,AS105,AN105) -> 3.531830679 | AV105: 38.40768 | AW105: 0.9157875087 | AX105: 62.50324319 | AY105: 43.38313877 | BA105: 91.57875087 | BB105: 0.9258816646 | BC105: 2.518131959 | BD105: 1.136422604 | BE105: 1.381628623 | BF105: 0.04180836
G106: 97 | H106: 24 | I106: 1 | J106: 7.76 | K106: 7.76 | L106: =Vout*K106/(Vin*Efficiency) -> 1.796655556 | M106: 0.2193191039 | N106: =(Vin-(Rdson1+Rdcr)*K106-Vout)*M106/(Fsw*Lf) -> 3.094940807 | O106: 9.307470404 | P106: 6.212529596 | Q106: =IF(MIN(Vin, -P106/(Coss_Q1+Coss_Q2)*0.00000002)<0, 0, MIN(Vin, -P106/(Coss_Q1+Coss_Q2)*0.00000002)) -> 0 | R106: 7.811262481 | S106: =R106^2*Rdcr -> 0.3599933471 | T106: 0.54 | U106: =(T106+S106*(1+Ltc*(Ta-25)))/(1-S106*Ltc*ThetaCa) -> 0.9340946426 | V106: 0.8934324542 | W106: 0.003991107751 | X106: 0.003991107751 | Y106: 3.232185212 | Z106: 0.02089404249 | AA106: 0.02089404249 | AB106: 3.658132762 | AC106: =Rdson1*AB106^2 -> 0.5620412827 | AD106: 0.2937208449 | AE106: 0.09949056 | AF106: 0 | AG106: =(AF106+AE106+AD106+AC106*(1+RdsonTopTc*Ta-RdsonTopTc*25))/(1-AC106*RdsonTopTc*ThetaJA_Q1) -> 1.102861301 | AH106: 6.90173067 | AI106: =Rdson2*AH106^2 -> 1.14321327 | AJ106: 0.021728 | AK106: =(AJ106+AI106*(1+RdsonBotTc*Ta-RdsonBotTc*25))/(1-AI106*RdsonBotTc*ThetaJA_Q2) -> 1.386955066 | AL106: 0.021728 | AM106: 0.08157312 | AN106: 0 | AO106: 5.28e-05 | AP106: 0.04180836 | AQ106: 0.1771090588 | AR106: 0.15883164 | AS106: 0.04186116 | AT106: 2.613250647 | AU106: =SUM(U106,X106,AA106,AG106,AK106,AL106,AM106,AS106,AN106) -> 3.59395844 | AV106: 38.80776 | AW106: 0.9152402645 | AX106: 63.64539494 | AY106: 44.40333393 | BA106: 91.52402645 | BB106: 0.9340946426 | BC106: 2.571389487 | BD106: 1.157188999 | BE106: 1.414118915 | BF106: 0.04180836
G107: 98 | H107: 24 | I107: 1 | J107: 7.84 | K107: 7.84 | L107: =Vout*K107/(Vin*Efficiency) -> 1.815177778 | M107: 0.219432597 | N107: =(Vin-(Rdson1+Rdcr)*K107-Vout)*M107/(Fsw*Lf) -> 3.095905357 | O107: 9.387952678 | P107: 6.292047322 | Q107: =IF(MIN(Vin, -P107/(Coss_Q1+Coss_Q2)*0.00000002)<0, 0, MIN(Vin, -P107/(Coss_Q1+Coss_Q2)*0.00000002)) -> 0 | R107: 7.890774307 | S107: =R107^2*Rdcr -> 0.3673594831 | T107: 0.54 | U107: =(T107+S107*(1+Ltc*(Ta-25)))/(1-S107*Ltc*ThetaCa) -> 0.9424027188 | V107: 0.8937108955 | W107: 0.003993595824 | X107: 0.003993595824 | Y107: 3.265693327 | Z107: 0.02132950581 | AA107: 0.02132950581 | AB107: 3.696325372 | AC107: =Rdson1*AB107^2 -> 0.5738384927 | AD107: 0.2967488948 | AE107: 0.09949056 | AF107: 0 | AG107: =(AF107+AE107+AD107+AC107*(1+RdsonTopTc*Ta-RdsonTopTc*25))/(1-AC107*RdsonTopTc*ThetaJA_Q1) -> 1.123374539 | AH107: 6.971477455 | AI107: =Rdson2*AH107^2 -> 1.16643595 | AJ107: 0.021952 | AK107: =(AJ107+AI107*(1+RdsonBotTc*Ta-RdsonBotTc*25))/(1-AI107*RdsonBotTc*ThetaJA_Q2) -> 1.41971043 | AL107: 0.021952 | AM107: 0.08241408 | AN107: 0 | AO107: 5.28e-05 | AP107: 0.04180836 | AQ107: 0.1771090588 | AR107: 0.15883164 | AS107: 0.04186116 | AT107: 2.667360209 | AU107: =SUM(U107,X107,AA107,AG107,AK107,AL107,AM107,AS107,AN107) -> 3.657038029 | AV107: 39.20784 | AW107: 0.914684511 | AX107: 64.80442739 | AY107: 45.44064561 | BA107: 91.4684511 | BB107: 0.9424027188 | BC107: 2.625499049 | BD107: 1.178262316 | BE107: 1.447154319 | BF107: 0.04180836
G108: 99 | H108: 24 | I108: 1 | J108: 7.92 | K108: 7.92 | L108: =Vout*K108/(Vin*Efficiency) -> 1.8337 | M108: 0.2195461039 | N108: =(Vin-(Rdson1+Rdcr)*K108-Vout)*M108/(Fsw*Lf) -> 3.09686944 | O108: 9.46843472 | P108: 6.37156528 | Q108: =IF(MIN(Vin, -P108/(Coss_Q1+Coss_Q2)*0.00000002)<0, 0, MIN(Vin, -P108/(Coss_Q1+Coss_Q2)*0.00000002)) -> 0 | R108: 7.970295898 | S108: =R108^2*Rdcr -> 0.3748011385 | T108: 0.54 | U108: =(T108+S108*(1+Ltc*(Ta-25)))/(1-S108*Ltc*ThetaCa) -> 0.9508062216 | V108: 0.8939892024 | W108: 0.00399608347 | X108: 0.00399608347 | Y108: 3.299217434 | Z108: 0.02176967136 | AA108: 0.02176967136 | AB108: 3.734541691 | AC108: =Rdson1*AB108^2 -> 0.5857656689 | AD108: 0.2997769448 | AE108: 0.09949056 | AF108: 0 | AG108: =(AF108+AE108+AD108+AC108*(1+RdsonTopTc*Ta-RdsonTopTc*25))/(1-AC108*RdsonTopTc*ThetaJA_Q1) -> 1.144199729 | AH108: 7.041222554 | AI108: =Rdson2*AH108^2 -> 1.189891561 | AJ108: 0.022176 | AK108: =(AJ108+AI108*(1+RdsonBotTc*Ta-RdsonBotTc*25))/(1-AI108*RdsonBotTc*ThetaJA_Q2) -> 1.453019746 | AL108: 0.022176 | AM108: 0.08325504 | AN108: 0 | AO108: 5.28e-05 | AP108: 0.04180836 | AQ108: 0.1771090588 | AR108: 0.15883164 | AS108: 0.04186116 | AT108: 2.722335675 | AU108: =SUM(U108,X108,AA108,AG108,AK108,AL108,AM108,AS108,AN108) -> 3.721083652 | AV108: 39.60792 | AW108: 0.9141202581 | AX108: 65.98061723 | AY108: 46.49535137 | BA108: 91.41202581 | BB108: 0.9508062216 | BC108: 2.680474515 | BD108: 1.199647586 | BE108: 1.480743674 | BF108: 0.04180836
G109: 100 | H109: 24 | I109: 1 | J109: 8 | K109: 8 | L109: =Vout*K109/(Vin*Efficiency) -> 1.852222222 | M109: 0.2196596244 | N109: =(Vin-(Rdson1+Rdcr)*K109-Vout)*M109/(Fsw*Lf) -> 3.097833058 | O109: 9.548916529 | P109: 6.451083471 | Q109: =IF(MIN(Vin, -P109/(Coss_Q1+Coss_Q2)*0.00000002)<0, 0, MIN(Vin, -P109/(Coss_Q1+Coss_Q2)*0.00000002)) -> 0 | R109: 8.049826963 | S109: =R109^2*Rdcr -> 0.3823183134 | T109: 0.54 | U109: =(T109+S109*(1+Ltc*(Ta-25)))/(1-S109*Ltc*ThetaCa) -> 0.9593054841 | V109: 0.8942673749 | W109: 0.003998570689 | X109: 0.003998570689 | Y109: 3.332757408 | Z109: 0.02221454389 | AA109: 0.02221454389 | AB109: 3.772781583 | AC109: =Rdson1*AB109^2 -> 0.5978229965 | AD109: 0.3028049947 | AE109: 0.09949056 | AF109: 0 | AG109: =(AF109+AE109+AD109+AC109*(1+RdsonTopTc*Ta-RdsonTopTc*25))/(1-AC109*RdsonTopTc*ThetaJA_Q1) -> 1.165342029 | AH109: 7.110965706 | AI109: =Rdson2*AH109^2 -> 1.213579998 | AJ109: 0.0224 | AK109: =(AJ109+AI109*(1+RdsonBotTc*Ta-RdsonBotTc*25))/(1-AI109*RdsonBotTc*ThetaJA_Q2) -> 1.486892088 | AL109: 0.0224 | AM109: 0.084096 | AN109: 0 | AO109: 5.28e-05 | AP109: 0.04180836 | AQ109: 0.1771090588 | AR109: 0.15883164 | AS109: 0.04186116 | AT109: 2.778191277 | AU109: =SUM(U109,X109,AA109,AG109,AK109,AL109,AM109,AS109,AN109) -> 3.786109876 | AV109: 40.008 | AW109: 0.9135475093 | AX109: 67.17424809 | AY109: 47.56773616 | BA109: 91.35475093 | BB109: 0.9593054841 | BC109: 2.736330117 | BD109: =AG109+AM109*0.666 -> 1.221349965 | BE109: =AK109+AM109*0.333 -> 1.514896056 | BF109: 0.04180836

Sheet Efficiency Plot Management (hidden)
A2: ="EFF_Ch2" -> EFF_Ch2

Sheet Input Filter Calculations (hidden)
AD2: AEF comparison Values
D3: =L_infilter*0.000001 ->  | L3: Lfilter Passive | M3: ='Input Filters'!O9*0.000001 -> 6.8e-07 | AD3: Lfilter | AE3: ='Input Filters'!G9*0.000001 -> 1e-06
L4: Cfilter Passive | M4: ='Input Filters'!O10*0.000001 -> 4.7e-07 | AD4: Cinj | AE4: ='Input Filters'!G10*0.000001 -> 1e-06
L5: Cdamp passive | M5: ='Input Filters'!O11*0.000001 -> 1e-06 | AD5: Cdamp | AE5: ='Input Filters'!G11*0.000001 -> 1e-06
L6: Rdamp passive | M6: ='Input Filters'!O12 -> 0.35 | AD6: Rdamp | AE6: ='Input Filters'!G12 -> 10
A10: Freq (Hz) | B10: (kHz) | W10: AEF | AA10: Passive | AD10: AEFCompare
I11: AEF Numerator | L11: AEF Denominator | Q11: Passive | W11: Magnitude | X11: Phase | AA11: Magnitude | AB11: Phase | AD11: AEF Numerator | AF11: AEF Denominator
C12: jω | D12: -ω^2 | E12: -jω^3 | G12: Gop | Q12: Numerator | R12: Denominator | AM12: Magnitude | AN12: Phase
A13: 1 | B13: =A13/1000 -> 0.001 | C13: =COMPLEX(0,2*Pi*A13) -> 6.2831853i | D13: =COMPLEX(-POWER(2*Pi*A13,2),0) -> -39.4784175141361 | E13: =COMPLEX(0,-POWER(2*Pi*A13,3)) -> -248.050212592082i | G13: =IMSUM(IMPRODUCT(C13,Rcomp_AEF*Csen_AEF),Csen_AEF/Ccomp_AEF) ->  | I13: =IMPRODUCT((RdampSel*CdampSel+RdampSel*CinjSel),C13) ->  | J13: =IMSUM(1,I13) ->  | L13: =IMPRODUCT(G13,L_infilterStd*RdampSel*CinjSel*CdampSel,E13) ->  | M13: =IMPRODUCT(G13,L_infilterStd*CinjSel,D13) ->  | N13: =J13 ->  | O13: =IMSUM(L13:N13) ->  | P13: 0 | Q13: =IMSUM(IMPRODUCT(C13,RdampPssv*CdampPssv),1) -> 1+0.000002199114855i | R13: =IMPRODUCT(RdampPssv*CdampPssv*CfilterPssv*LinfilterPssv,E13) -> -2.77468967805503E-17i | S13: =IMPRODUCT(D13,LinfilterPssv*(CfilterPssv+CdampPssv)) -> -3.94626261471304E-11 | T13: =IMSUM(S13,R13,Q13) -> 0.999999999960537+2.19911485497225E-06i | U13: 1 | V13: =CHOOSE(INFILTER_TYPE,U13,IMDIV(J13,O13)) -> 1 | W13: =20*LOG10(IMABS(V13)) -> 0 | X13: =IMARGUMENT(V13)*180/Pi -> 0 | Z13: =IMDIV(Q13,T13) -> 1.00000000003946-5.9033537744459E-17i | AA13: =20*LOG10(IMABS(Z13)) -> 3.427451255e-10 | AB13: =IMARGUMENT(Z13)*180/Pi -> -3.382372566e-15 | AD13: =IMPRODUCT((RdampCom*CdampCom+RdampCom*CinjCom),C13) -> 0.000125663706i | AE13: =IMSUM(1,AD13) -> 1+0.000125663706i | AF13: =IMPRODUCT(G13,L_infilterStd*RdampSel*CinjSel*CdampSel,E13) ->  | AG13: =IMPRODUCT(G13,LAEFCom*CinjCom,D13) ->  | AH13: =AE13 -> 1+0.000125663706i | AI13: =IMSUM(AF13:AH13) ->  | AK13: =IMDIV(AE13,AI13) ->  | AM13: =20*LOG10(IMABS(AK13)) ->  | AN13: =IMARGUMENT(AK13)*180/Pi -> 
A14: 2 | B14: =A14/1000 -> 0.002 | C14: 12.5663706i | D14: -157.913670056544 | E14: -1984.40170073666i | J14: =IMSUM(1,I14) ->  | N14: =J14 ->  | O14: =IMSUM(L14:N14) ->  | P14: 0 | Q14: 1+0.00000439822971i | R14: -2.21975174244403E-16i | S14: -1.57850504588521E-10 | T14: =IMSUM(S14,R14,Q14) -> 0.999999999842149+4.39822970977802E-06i | U14: 1 | V14: =CHOOSE(INFILTER_TYPE,U14,IMDIV(J14,O14),IMDIV(Q14,T14)) -> 1 | W14: =20*LOG10(IMABS(V14)) -> 0 | X14: 0 | Z14: 1.00000000015785-4.72284395630731E-16i | AA14: =20*LOG10(IMABS(Z14)) -> 1.371067291e-09 | AB14: -2.705990263e-14 | AD14: 0.000251327412i | AE14: =IMSUM(1,AD14) -> 1+0.000251327412i | AH14: =AE14 -> 1+0.000251327412i | AI14: =IMSUM(AF14:AH14) ->  | AK14: =IMDIV(AE14,AI14) ->  | AM14: =20*LOG10(IMABS(AK14)) -> 
A15: 3 | B15: 0.003 | C15: 18.8495559i | D15: -355.305757627225 | E15: -6697.35573998623i | P15: 0 | Q15: 1+0.000006597344565i | R15: -7.4916621307486E-16i | S15: -3.55163635324174E-10 | T15: 0.999999999644836+6.59734456425083E-06i | U15: 1 | V15: 1 | W15: 0 | X15: 0 | Z15: 1.00000000035516-1.59396947052946E-15i | AA15: 3.084879708e-09 | AB15: -9.132772341e-14 | AD15: 0.000376991118i | AE15: 1+0.000376991118i | AH15: 1+0.000376991118i
A16: 4 | B16: 0.004 | C16: 25.1327412i | D16: -631.654680226178 | E16: -15875.2136058933i | P16: 0 | Q16: 1+0.00000879645942i | R16: -1.77580139395522E-15i | S16: -6.31402018354088E-10 | T16: 0.999999999368598+0.0000087964594182242i | U16: 1 | V16: 1 | W16: 0 | X16: 0 | Z16: 1.0000000006314-3.77830227167012E-15i | AA16: 5.484271092e-09 | AB16: -2.16480774e-13 | AD16: 0.000502654824i | AE16: 1+0.000502654824i | AH16: 1+0.000502654824i
A17: 5 | B17: 0.005 | C17: 31.4159265i | D17: -986.960437853402 | E17: -31006.2765740103i | P17: 0 | Q17: 1+0.000010995574275i | R17: -3.46836209756879E-15i | S17: -9.86565653678261E-10 | T17: 0.999999999013434+0.0000109955742715316i | U17: 1 | V17: 1 | W17: 0 | X17: 0 | Z17: 1.00000000098657-7.37945946308484E-15i | AA17: 8.569237588e-09 | AB17: -4.228118824e-13 | AD17: 0.00062831853i | AE17: 1+0.00062831853i | AH17: 1+0.00062831853i
A18: 6 | B18: 0.006 | C18: 37.6991118i | D18: -1421.2230305089 | E18: -53578.8459198898i | P18: 0 | Q18: 1+0.00001319468913i | R18: -5.99332970459887E-15i | S18: -1.4206545412967E-09 | T18: 0.999999998579345+0.0000131946891240067i | U18: 1 | V18: 1 | W18: 0 | X18: 0 | Z18: 1.00000000142066-1.27518015159367E-14i | AA18: 1.233969626e-08 | AB18: -7.306244078e-13 | AD18: 0.000753982236i | AE18: 1+0.000753982236i | AH18: 1+0.000753982236i
A19: 7 | B19: 0.007 | C19: 43.9822971i | D19: -1934.44245819267 | E19: -85081.2229190843i | P19: 0 | Q19: 1+0.000015393803985i | R19: -9.51718559572877E-15i | S19: -1.93366868120939E-09 | T19: 0.999999998066331+0.0000153938039754828i | U19: 1 | V19: 1 | W19: 0 | X19: 0 | Z19: 1.00000000193367-2.02493221373488E-14i | AA19: 1.679564325e-08 | AB19: -1.160200696e-12 | AD19: 0.000879645942i | AE19: 1+0.000879645942i | AH19: 1+0.000879645942i
A20: 8 | B20: 0.008 | C20: 50.2654824i | D20: -2526.61872090471 | E20: -127001.708847146i | P20: 0 | Q20: 1+0.00001759291884i | R20: -1.42064111516417E-14i | S20: -2.52560807341635E-09 | T20: 0.999999997474392+0.0000175929188257936i | U20: 1 | V20: 1 | W20: 0 | X20: 0 | Z20: 1.00000000252561-3.02264148354676E-14i | AA20: 2.193716921e-08 | AB20: -1.731845997e-12 | AD20: 0.001005309648i | AE20: 1+0.001005309648i | AH20: 1+0.001005309648i
A21: 9 | B21: 0.009 | C21: 56.5486677i | D21: -3197.75181864502 | E21: -180828.604979628i | P21: 0 | Q21: 1+0.000019792033695i | R21: -2.02274877530212E-14i | S21: -3.19647271791756E-09 | T21: 0.999999996803527+0.0000197920336747725i | U21: 1 | V21: 1 | W21: 0 | X21: 0 | Z21: 1.00000000319647-4.30372020696133E-14i | AA21: 2.776418541e-08 | AB21: -2.465850036e-12 | AD21: 0.001130973354i | AE21: 1+0.001130973354i | AH21: 1+0.001130973354i
A22: 10 | B22: 0.01 | C22: 62.831853i | D22: -3947.84175141361 | E22: -248050.212592082i | P22: 0 | Q22: 1+0.00002199114855i | R22: -2.77468967805503E-14i | S22: -3.94626261471304E-09 | T22: 0.999999996053737+0.0000219911485222531i | U22: 1 | V22: 1 | W22: 0 | X22: 0 | Z22: 1.00000000394626-5.90359570729332E-14i | AA22: 3.427677865e-08 | AB22: -3.38251117e-12 | AD22: 0.00125663706i | AE22: 1+0.00125663706i | AH22: 1+0.00125663706i
A23: 20 | B23: 0.02 | C23: 125.663706i | D23: -15791.3670056544 | E23: -1984401.70073666i | P23: 0 | Q23: 1+0.0000439822971i | R23: -2.21975174244403E-13i | S23: -1.57850504588521E-08 | T23: 0.99999998421495+0.0000439822968780248i | U23: 1 | V23: 1 | W23: 0 | X23: 0 | Z23: 1.00000001578505-4.72287580174405E-13i | AA23: 1.371072006e-07 | AB23: -2.706008466e-11 | AD23: 0.00251327412i | AE23: 1+0.00251327412i | AH23: 1+0.00251327412i
A24: 30 | B24: 0.03 | C24: 188.495559i | D24: -35530.5757627225 | E24: -6697355.73998623i | P24: 0 | Q24: 1+0.00006597344565i | R24: -7.4916621307486E-13i | S24: -3.55163635324174E-08 | T24: 0.999999964483636+0.0000659734449008338i | U24: 1 | V24: 1 | W24: 0 | X24: 0 | Z24: 1.00000003551637-1.59397081397336E-12i | AA24: 3.084912653e-07 | AB24: -9.132779717e-11 | AD24: 0.00376991118i | AE24: 1+0.00376991118i | AH24: 1+0.00376991118i
A25: 40 | B25: 0.04 | C25: 251.327412i | D25: -63165.4680226178 | E25: -15875213.6058933i | P25: 0 | Q25: 1+0.0000879645942i | R25: -1.77580139395522E-12i | S25: -6.31402018354088E-08 | T25: 0.999999936859798+0.0000879645924241986i | U25: 1 | V25: 1 | W25: 0 | X25: 0 | Z25: 1.00000006314021-3.77830129983406E-12i | AA25: 5.48428878e-07 | AB25: -2.164807048e-10 | AD25: 0.00502654824i | AE25: 1+0.00502654824i | AH25: 1+0.00502654824i
A26: 50 | B26: 0.05 | C26: 314.159265i | D26: -98696.0437853402 | E26: -31006276.5740103i | P26: 0 | Q26: 1+0.00010995574275i | R26: -3.46836209756879E-12i | S26: -9.86565653678261E-08 | T26: 0.999999901343435+0.000109955739281638i | U26: 1 | V26: 1 | W26: 0 | X26: 0 | Z26: 1.00000009865657-7.37949525076775E-12i | AA26: 8.56920037e-07 | AB26: -4.228138916e-10 | AD26: 0.0062831853i | AE26: 1+0.0062831853i | AH26: 1+0.0062831853i
A27: 60 | B27: 0.06 | C27: 376.991118i | D27: -142122.30305089 | E27: -53578845.9198898i | P27: 0 | Q27: 1+0.0001319468913i | R27: -5.99332970459887E-12i | S27: -1.4206545412967E-07 | T27: 0.999999857934546+0.00013194688530667i | U27: 1 | V27: 1 | W27: 0 | X27: 0 | Z27: 1.00000014206547-1.27517683815965E-11i | AA27: 1.233964907e-06 | AB27: -7.306224066e-10 | AD27: 0.00753982236i | AE27: 1+0.00753982236i | AH27: 1+0.00753982236i
A28: 70 | B28: 0.07 | C28: 439.822971i | D28: -193444.245819267 | E28: -85081222.9190843i | P28: 0 | Q28: 1+0.00015393803985i | R28: -9.51718559572877E-12i | S28: -1.93366868120939E-07 | T28: 0.999999806633132+0.000153938030332814i | U28: 1 | V28: 1 | W28: 0 | X28: 0 | Z28: 1.0000001933669-2.02493379799158E-11i | AA28: 1.679563391e-06 | AB28: -1.160201381e-09 | AD28: 0.00879645942i | AE28: 1+0.00879645942i | AH28: 1+0.00879645942i
A29: 80 | B29: 0.08 | C29: 502.654824i | D29: -252661.872090471 | E29: -127001708.847146i | P29: 0 | Q29: 1+0.0001759291884i | R29: -1.42064111516417E-11i | S29: -2.52560807341635E-07 | T29: 0.999999747439193+0.000175929174193589i | U29: 1 | V29: 1 | W29: 0 | X29: 0 | Z29: 1.00000025256087-3.02264211687963E-11i | AA29: 2.193715567e-06 | AB29: -1.731845927e-09 | AD29: 0.01005309648i | AE29: 1+0.01005309648i | AH29: 1+0.01005309648i
A30: 90 | B30: 0.09 | C30: 565.486677i | D30: -319775.181864502 | E30: -180828604.979628i | P30: 0 | Q30: 1+0.00019792033695i | R30: -2.02274877530212E-11i | S30: -3.19647271791756E-07 | T30: 0.999999680352728+0.000197920316722512i | U30: 1 | V30: 1 | W30: 0 | X30: 0 | Z30: 1.00000031964737-4.30372335896138E-11i | AA30: 2.776421334e-06 | AB30: -2.465851061e-09 | AD30: 0.01130973354i | AE30: 1+0.01130973354i | AH30: 1+0.01130973354i
A31: 100 | B31: 0.1 | C31: 628.31853i | D31: -394784.175141361 | E31: -248050212.592082i | P31: 0 | Q31: 1+0.0002199114855i | R31: -2.77468967805503E-11i | S31: -3.94626261471305E-07 | T31: 0.999999605373739+0.000219911457753103i | U31: 1 | V31: 1 | W31: 0 | X31: 0 | Z31: 1.0000003946264-5.90359940073355E-11i | AA31: 3.427680682e-06 | AB31: -3.382511965e-09 | AD31: 0.0125663706i | AE31: 1+0.0125663706i | AH31: 1+0.0125663706i
A32: 200 | B32: 0.2 | C32: 1256.63706i | D32: -1579136.70056544 | E32: -1984401700.73666i | P32: 0 | Q32: 1+0.000439822971i | R32: -2.21975174244403E-10i | S32: -1.57850504588521E-06 | T32: 0.999998421494954+0.000439822749024826i | U32: 1 | V32: 1 | W32: 0 | X32: 0 | Z32: 1.00000157850733-4.72289004721146E-10i | AA32: 1.371072964e-05 | AB32: -2.7060124e-08 | AD32: 0.0251327412i | AE32: 1+0.0251327412i | AH32: 1+0.0251327412i
A33: 300 | B33: 0.3 | C33: 1884.95559i | D33: -3553057.57627225 | E33: -6697355739.98623i | P33: 0 | Q33: 1+0.0006597344565i | R33: -7.4916621307486E-10i | S33: -3.55163635324174E-06 | T33: 0.999996448363647+0.000659733707333787i | U33: 1 | V33: 1 | W33: 0 | X33: 0 | Z33: 1.00000355164792-1.59398129480179E-09i | AA33: 3.084916708e-05 | AB33: -9.132807655e-08 | AD33: 0.0376991118i | AE33: 1+0.0376991118i | AH33: 1+0.0376991118i
A34: 400 | B34: 0.4 | C34: 2513.27412i | D34: -6316546.80226177 | E34: -15875213605.8933i | P34: 0 | Q34: 1+0.000879645942i | R34: -1.77580139395522E-09i | S34: -6.31402018354087E-06 | T34: 0.999993685979816+0.000879644166198606i | U34: 1 | V34: 1 | W34: 0 | X34: 0 | Z34: 1.00000631405673-3.77834562794476E-09i | AA34: 5.484302678e-05 | AB34: -2.164818914e-07 | AD34: 0.0502654824i | AE34: 1+0.0502654824i | AH34: 1+0.0502654824i
A35: 500 | B35: 0.5 | C35: 3141.59265i | D35: -9869604.37853402 | E35: -31006276574.0103i | P35: 0 | Q35: 1+0.0010995574275i | R35: -3.46836209756879E-09i | S35: -9.86565653678261E-06 | T35: 0.999990134343463+0.0010995539591379i | U35: 1 | V35: 1 | W35: 0 | X35: 0 | Z35: 1.00000986574575-7.37963050952798E-09i | AA35: 8.569235607e-05 | AB35: -4.228175116e-07 | AD35: 0.062831853i | AE35: 1+0.062831853i | AH35: 1+0.062831853i
A36: 600 | B36: 0.6 | C36: 3769.91118i | D36: -14212230.305089 | E36: -53578845919.8898i | P36: 0 | Q36: 1+0.001319468913i | R36: -5.99332970459887E-09i | S36: -0.000014206545412967 | T36: 0.999985793454587+0.0013194629196703i | U36: 1 | V36: 1 | W36: 0 | X36: 0 | Z36: 1.00001420673042-1.27521054564846E-08i | AA36: 0.000123397216 | AB36: -7.306314435e-07 | AD36: 0.0753982236i | AE36: 1+0.0753982236i | AH36: 1+0.0753982236i
A37: 700 | B37: 0.7 | C37: 4398.22971i | D37: -19344424.5819267 | E37: -85081222919.0843i | P37: 0 | Q37: 1+0.0015393803985i | R37: -9.51718559572877E-09i | S37: -0.0000193366868120939 | T37: 0.999980663313188+0.0015393708813144i | U37: 1 | V37: 1 | W37: 0 | X37: 0 | Z37: 1.00001933702955-2.02500661951286E-08i | AA37: 0.0001679576807 | AB37: -1.160220894e-06 | AD37: 0.0879645942i | AE37: 1+0.0879645942i | AH37: 1+0.0879645942i
A38: 800 | B38: 0.8 | C38: 5026.54824i | D38: -25266187.2090471 | E38: -127001708847.146i | P38: 0 | Q38: 1+0.001759291884i | R38: -1.42064111516417E-08i | S38: -0.0000252560807341635 | T38: 0.999974743919266+0.00175927767758885i | U38: 1 | V38: 1 | W38: 0 | X38: 0 | Z38: 1.00002525666544-3.02278400042037E-08i | AA38: 0.0002193738383 | AB38: -1.731883916e-06 | AD38: 0.1005309648i | AE38: 1+0.1005309648i | AH38: 1+0.1005309648i
A39: 900 | B39: 0.9 | C39: 5654.86677i | D39: -31977518.1864502 | E39: -180828604979.628i | P39: 0 | Q39: 1+0.0019792033695i | R39: -2.02274877530212E-08i | S39: -0.0000319647271791756 | T39: 0.999968035272821+0.00197918314201225i | U39: 1 | V39: 1 | W39: 0 | X39: 0 | Z39: 1.00003196566377-4.30397908600739E-08i | AA39: 0.0002776457902 | AB39: -2.465919545e-06 | AD39: 0.1130973354i | AE39: 1+0.1130973354i | AH39: 1+0.1130973354i
A40: 1000 | B40: 1 | C40: 6283.1853i | D40: -39478417.5141361 | E40: -248050212592.082i | P40: 0 | Q40: 1+0.002199114855i | R40: -2.77468967805503E-08i | S40: -0.0000394626261471304 | T40: 0.999960537373853+0.00219908710810322i | U40: 1 | V40: 1 | W40: 0 | X40: 0 | Z40: 1.00003946405367-5.90403247598128E-08i | AA40: 0.0003427736513 | AB40: -3.382627941e-06 | AD40: 0.125663706i | AE40: 1+0.125663706i | AH40: 1+0.125663706i
A41: 2000 | B41: 2 | C41: 12566.3706i | D41: -157913670.056544 | E41: -1984401700736.66i | P41: 0 | Q41: 1+0.00439822971i | R41: -2.21975174244403E-07i | S41: -0.000157850504588521 | T41: 0.999842149495412+0.00439800773482576i | U41: 1 | V41: 1 | W41: 0 | X41: 0 | Z41: 1.00015787334724-4.72427600959129E-07i | AA41: 0.00137116224 | AB41: -2.706383503e-05 | AD41: 0.251327412i | AE41: 1+0.251327412i | AH41: 1+0.251327412i
A42: 3000 | B42: 3 | C42: 18849.5559i | D42: -355305757.627225 | E42: -6697355739986.23i | P42: 0 | Q42: 1+0.006597344565i | R42: -7.4916621307486E-07i | S42: -0.000355163635324174 | T42: 0.999644836364676+0.00659659539878692i | U42: 1 | V42: 1 | W42: 0 | X42: 0 | Z42: 1.00035527929582-1.59503405307709E-06i | AA42: 0.003085368714 | AB42: -9.135626254e-05 | AD42: 0.376991118i | AE42: 1+0.376991118i | AH42: 1+0.376991118i
A43: 4000 | B43: 4 | C43: 25132.7412i | D43: -631654680.226177 | E43: -15875213605893.3i | P43: 0 | Q43: 1+0.00879645942i | R43: -1.77580139395522E-06i | S43: -0.000631402018354087 | T43: 0.999368597981646+0.00879468361860604i | U43: 1 | V43: 1 | W43: 0 | X43: 0 | Z43: 1.00063176764934-3.78278365967147E-06i | AA43: 0.00548573147 | AB43: -0.0002166006974 | AD43: 0.502654824i | AE43: 1+0.502654824i | AH43: 1+0.502654824i
A44: 5000 | B44: 5 | C44: 31415.9265i | D44: -986960437.853402 | E44: -31006276574010.3i | P44: 0 | Q44: 1+0.010995574275i | R44: -3.46836209756879E-06i | S44: -0.000986565653678261 | T44: 0.999013434346322+0.0109921059129024i | U44: 1 | V44: 1 | W44: 0 | X44: 0 | Z44: 1.00098745857977-7.39318105431537E-06i | AA44: 0.008572724574 | AB44: -0.0004231801991 | AD44: 0.62831853i | AE44: 1+0.62831853i | AH44: 1+0.62831853i
A45: 6000 | B45: 6 | C45: =COMPLEX(0,2*Pi*A45) -> 37699.1118i | D45: =COMPLEX(-POWER(2*Pi*A45,2),0) -> -1421223030.5089 | E45: =COMPLEX(0,-POWER(2*Pi*A45,3)) -> -53578845919889.8i | G45: =IMSUM(IMPRODUCT(C45,Rcomp_AEF*Csen_AEF),Csen_AEF/Ccomp_AEF) ->  | I45: =IMPRODUCT((RdampSel*CdampSel+RdampSel*CinjSel),C45) ->  | L45: =IMPRODUCT(G45,L_infilterStd*RdampSel*CinjSel*CdampSel,E45) ->  | M45: =IMPRODUCT(G45,L_infilterStd*CinjSel,D45) ->  | P45: 0 | Q45: =IMSUM(IMPRODUCT(C45,RdampPssv*CdampPssv),1) -> 1+0.01319468913i | R45: =IMPRODUCT(RdampPssv*CdampPssv*CfilterPssv*LinfilterPssv,E45) -> -5.99332970459887E-06i | S45: =IMPRODUCT(D45,LinfilterPssv*(CfilterPssv+CdampPssv)) -> -0.0014206545412967 | T45: 0.998579345458703+0.0131886958002954i | U45: 1 | V45: =CHOOSE(INFILTER_TYPE,U45,IMDIV(J45,O45),IMDIV(Q45,T45)) -> 1 | W45: 0 | X45: =IMARGUMENT(V45)*180/Pi -> 0 | Z45: =IMDIV(Q45,T45) -> 1.00142250680344-0.000012785844067251i | AA45: 0.01234695808 | AB45: =IMARGUMENT(Z45)*180/Pi -> -0.0007315342909 | AD45: =IMPRODUCT((RdampCom*CdampCom+RdampCom*CinjCom),C45) -> 0.753982236i | AE45: 1+0.753982236i | AF45: =IMPRODUCT(G45,L_infilterStd*RdampSel*CinjSel*CdampSel,E45) ->  | AG45: =IMPRODUCT(G45,LAEFCom*CinjCom,D45) ->  | AH45: 1+0.753982236i | AN45: =IMARGUMENT(AK45)*180/Pi -> 
A46: 7000 | B46: 7 | C46: 43982.2971i | D46: -1934442458.19267 | E46: -85081222919084.3i | P46: 0 | Q46: 1+0.015393803985i | R46: -9.51718559572877E-06i | S46: -0.00193366868120939 | T46: 0.998066331318791+0.0153842867994043i | U46: 1 | V46: 1 | W46: 0 | X46: 0 | Z46: 1.00193710173868-0.0000203230411399365i | AA46: 0.01680917842 | AB46: -0.001162173238 | AD46: 0.879645942i | AE46: 1+0.879645942i | AH46: 1+0.879645942i
A47: 8000 | B47: 8 | C47: 50265.4824i | D47: -2526618720.90471 | E47: -127001708847146i | P47: 0 | Q47: 1+0.01759291884i | R47: -0.0000142064111516418i | S47: -0.00252560807341635 | T47: 0.997474391926584+0.0175787124288484i | U47: 1 | V47: 1 | W47: 0 | X47: 0 | Z47: 1.00253146769905-0.0000303702348632679i | AA47: 0.0219602689 | AB47: -0.001735692433 | AD47: 1.005309648i | AE47: 1+1.005309648i | AH47: 1+1.005309648i
A48: 9000 | B48: 9 | C48: 56548.6677i | D48: -3197751818.64502 | E48: -180828604979628i | P48: 0 | Q48: 1+0.019792033695i | R48: -0.0000202274877530212i | S48: -0.00319647271791756 | T48: 0.996803527282082+0.019771806207247i | U48: 1 | V48: 1 | W48: 0 | X48: 0 | Z48: 1.00320586412249-0.0000432966329094656i | AA48: 0.02780125032 | AB48: -0.002472786915 | AD48: 1.130973354i | AE48: 1+1.130973354i | AH48: 1+1.130973354i
A49: 10000 | B49: 10 | C49: 62831.853i | D49: -3947841751.41361 | E49: -248050212592082i | P49: 0 | Q49: 1+0.02199114855i | R49: -0.0000277468967805503i | S49: -0.00394626261471305 | T49: 0.996053737385287+0.0219634016532194i | U49: 1 | V49: 1 | W49: 0 | X49: 0 | Z49: 1.0039605858368-0.0000594757476545141i | AA49: 0.03433328159 | AB49: -0.003394266042 | AD49: 1.25663706i | AE49: 1+1.25663706i | AH49: 1+1.25663706i
A50: 11000 | B50: 11 | C50: 69115.0383i | D50: -4776888519.21047 | E50: -330154832960062i | N50: =J50 ->  | O50: =IMSUM(L50:N50) ->  | P50: 0 | Q50: 1+0.024190263405i | R50: -0.0000369311196149125i | S50: -0.00477497776380279 | T50: =IMSUM(S50,R50,Q50) -> 0.995225022236197+0.0241533322853851i | U50: 1 | V50: 1 | W50: 0 | X50: 0 | Z50: 1.00479596336193-0.0000792859658181959i | AA50: 0.04155766053 | AB50: -0.004521068334 | AD50: 1.382300766i | AE50: 1+1.382300766i | AH50: 1+1.382300766i
A51: 12000 | B51: 12 | C51: 75398.2236i | D51: -5684892122.0356 | E51: -428630767359119i | N51: =J51 ->  | O51: =IMSUM(L51:N51) ->  | P51: 0 | Q51: 1+0.02638937826i | R51: -0.000047946637636791i | S51: -0.00568261816518679 | T51: =IMSUM(S51,R51,Q51) -> 0.994317381834813+0.0263414316223632i | U51: 1 | V51: 1 | W51: 0 | X51: 0 | Z51: 1.00571236324959-0.000103111129481765i | AA51: 0.04947582475 | AB51: -0.005874276525 | AD51: 1.507964472i | AE51: 1+1.507964472i | AH51: 1+1.507964472i
A52: 13000 | B52: 13 | C52: 81681.4089i | D52: -6671852559.889 | E52: -544966317064805i | N52: =J52 ->  | O52: =IMSUM(L52:N52) ->  | P52: 0 | Q52: 1+0.028588493115i | R52: -0.0000609599322268691i | S52: -0.00666918381886504 | T52: =IMSUM(S52,R52,Q52) -> 0.993330816181135+0.0285275331827731i | U52: 1 | V52: 1 | W52: 0 | X52: 0 | Z52: 1.00671018846073-0.00013134112988737i | AA52: 0.05808935257 | AB52: -0.007475132835 | AD52: 1.633628178i | AE52: 1+1.633628178i | AH52: 1+1.633628178i
A53: 15000 | B53: 15 | C53: 94247.7795i | D53: -8882643940.68062 | E53: -837169467498278i | N53: =J53 ->  | O53: =IMSUM(L53:N53) ->  | P53: 0 | Q53: 1+0.032986722825i | R53: -0.0000936457766343574i | S53: -0.00887909088310435 | T53: =IMSUM(S53,R53,Q53) -> 0.991120909116896+0.0328930770483656i | U53: 1 | V53: 1 | W53: 0 | X53: 0 | Z53: 1.00895191127968-0.00020260911556929i | AA53: 0.07740952239 | AB53: -0.01150564952 | AD53: 1.88495559i | AE53: 1+1.88495559i | AH53: 1+1.88495559i
A54: 16000 | B54: 16 | C54: 100530.9648i | D54: -10106474883.6188 | E54: -1016013670777170i | N54: =J54 ->  | O54: =IMSUM(L54:N54) ->  | P54: 0 | Q54: 1+0.03518583768i | R54: -0.000113651289213134i | S54: -0.0101024322936654 | T54: =IMSUM(S54,R54,Q54) -> 0.989897567706335+0.0350721863907869i | U54: 1 | V54: 1 | W54: 0 | X54: 0 | Z54: 1.01019680079824-0.000246462681525396i | AA54: 0.08812003465 | AB54: -0.01397873284 | AD54: 2.010619296i | AE54: 1+2.010619296i | AH54: 1+2.010619296i
A55: 17500 | B55: 17.5 | C55: 109955.74275i | D55: -12090265363.7042 | E55: -1329394108110690i | P55: 0 | Q55: 1+0.0384845099625i | R55: -0.000148706024933262i | S55: -0.0120854292575587 | T55: 0.987914570742441+0.0383358039375667i | U55: 1 | V55: 1 | W55: 0 | X55: 0 | Z55: 1.01222071263725-0.000323696833892721i | AA55: 0.105504841 | AB55: -0.01832254723 | AD55: 2.199114855i | AE55: 1+2.199114855i | AH55: 1+2.199114855i
A56: 19000 | B56: 19 | C56: 119380.5207i | D56: -14251708722.6031 | E56: -1701376408169090i | P56: 0 | Q56: 1+0.041783182245i | R56: -0.000190315965017794i | S56: -0.0142460080391141 | T56: 0.985753991960886+0.0415928662799822i | U56: 1 | V56: 1 | W56: 0 | X56: 0 | Z56: 1.01443433812182-0.000415975520938413i | AA56: 0.1244795592 | AB56: -0.02349451268 | AD56: 2.387610414i | AE56: 1+2.387610414i | AH56: 1+2.387610414i
A57: 20000 | B57: 20 | C57: 125663.706i | D57: -15791367005.6544 | E57: -1984401700736660i | P57: 0 | Q57: 1+0.0439822971i | R57: -0.000221975174244403i | S57: -0.0157850504588521 | T57: 0.984214949541148+0.0437603219257556i | U57: 1 | V57: 1 | W57: 0 | X57: 0 | Z57: 1.01601657935512-0.000486596443905099i | AA57: 0.1380168926 | AB57: -0.02744041882 | AD57: 2.51327412i | AE57: 1+2.51327412i | AH57: 1+2.51327412i
A58: 25000 | B58: 25 | C58: 157079.6325i | D58: -24674010946.3351 | E58: -3875784571751290i | P58: 0 | Q58: 1+0.054977871375i | R58: -0.000433545262196099i | S58: -0.0246641413419566 | T58: 0.975335858658043+0.0545443261128039i | U58: 1 | V58: 1 | W58: 0 | X58: 0 | Z58: 1.02523378537434-0.000966656304033977i | AA58: 0.2164620491 | AB58: -0.05402212734 | AD58: 3.14159265i | AE58: 1+3.14159265i | AH58: 1+3.14159265i
A59: 30000 | B59: 30 | C59: 188495.559i | D59: -35530575762.7225 | E59: -6697355739986230i | P59: 0 | Q59: 1+0.06597344565i | R59: -0.00074916621307486i | S59: -0.0355163635324174 | T59: 0.964483636467583+0.0652242794369251i | U59: 1 | V59: 1 | W59: 0 | X59: 0 | Z59: 1.03670887459481-0.00170572482425677i | AA59: 0.3131480821 | AB59: -0.09427019268 | AD59: 3.76991118i | AE59: 1+3.76991118i | AH59: 1+3.76991118i
A60: 35000 | B60: 35 | C60: 219911.4855i | D60: -48361061454.8167 | E60: -10635152864885500i | P60: 0 | Q60: 1+0.076969019925i | R60: -0.00118964819946609i | S60: -0.0483417170302348 | T60: 0.951658282969765+0.0757793717255339i | U60: 1 | V60: 1 | W60: 0 | X60: 0 | Z60: 1.05057619978726-0.00277724104542023i | AA60: 0.4285815074 | AB60: -0.151463378 | AD60: 4.39822971i | AE60: 1+4.39822971i | AH60: 1+4.39822971i
A61: 40000 | B61: 40 | C61: 251327.412i | D61: -63165468022.6178 | E61: -15875213605893300i | P61: 0 | Q61: 1+0.0879645942i | R61: -0.00177580139395522i | S61: -0.0631402018354088 | T61: 0.936859798164591+0.0861887928060448i | U61: 1 | V61: 1 | W61: 0 | X61: 0 | Z61: 1.06700286965865-0.00426861635465528i | AA61: 0.5633812551 | AB61: -0.229214376 | AD61: 5.02654824i | AE61: 1+5.02654824i | AH61: 1+5.02654824i
A62: 45000 | B62: 45 | C62: 282743.3385i | D62: -79943795466.1256 | E62: -22603575622453500i | P62: 0 | Q62: 1+0.098960168475i | R62: -0.00252843596912765i | S62: -0.0799118179479392 | T62: 0.920088182052061+0.0964317325058724i | U62: 1 | V62: 1 | W62: 0 | X62: 0 | Z62: 1.08619356566251-0.00628565719175738i | AA62: 0.7182899496 | AB62: -0.3315593282 | AD62: 5.65486677i | AE62: 1+5.65486677i | AH62: 1+5.65486677i
A63: 50000 | B63: 50 | C63: 314159.265i | D63: -98696043785.3402 | E63: -31006276574010300i | P63: 0 | Q63: 1+0.10995574275i | R63: -0.00346836209756879i | S63: -0.0986565653678261 | T63: 0.901343434632174+0.106487380652431i | U63: 1 | V63: 1 | W63: 0 | X63: 0 | Z63: 1.10839666057698-0.00895831050462997i | AA63: 0.8941878551 | AB63: -0.4630672635 | AD63: 6.2831853i | AE63: 1+6.2831853i | AH63: 1+6.2831853i
A64: 55000 | B64: 55 | C64: 345575.1915i | D64: -119422212980.262 | E64: -41269354120007700i | P64: 0 | Q64: 1+0.120951317025i | R64: -0.00461638995186406i | S64: -0.11937444409507 | T64: 0.88062555590493+0.116334927073136i | U64: 1 | V64: 1 | W64: 0 | X64: 0 | Z64: 1.1339119415625-0.0124482487823856i | AA64: 1.092109959 | AB64: -0.628976062 | AD64: 6.91150383i | AE64: 1+6.91150383i | AH64: 1+6.91150383i
A65: 60000 | B65: 60 | C65: 376991.118i | D65: -142122303050.89 | E65: -53578845919889800i | P65: 0 | Q65: 1+0.1319468913i | R65: -0.00599332970459887i | S65: -0.14206545412967 | T65: 0.85793454587033+0.125953561595401i | U65: 1 | V65: 1 | W65: 0 | X65: 0 | Z65: 1.1631003258263-0.0169590294511739i | AA65: 1.313266769 | AB65: -0.8353638461 | AD65: 7.53982236i | AE65: 1+7.53982236i | AH65: 1+7.53982236i
A66: 65000 | B66: 65 | C66: 408407.0445i | D66: -166796313997.225 | E66: -68120789633100600i | P66: 0 | Q66: 1+0.142942465575i | R66: -0.00761999152835863i | S66: -0.166729595471626 | T66: 0.833270404528374+0.135322474046641i | U66: 1 | V66: 1 | W66: 0 | X66: 0 | Z66: 1.19639605981863-0.0227498889631618i | AA66: 1.559069535 | AB66: -1.089367975 | AD66: 8.16814089i | AE66: 1+8.16814089i | AH66: 1+8.16814089i
A67: 70000 | B67: 70 | C67: 439822.971i | D67: -193444245819.267 | E67: -85081222919084300i | P67: 0 | Q67: 1+0.15393803985i | R67: -0.00951718559572877i | S67: -0.193366868120939 | T67: 0.806633131879061+0.144420854254271i | U67: 1 | V67: 1 | W67: 0 | X67: 0 | Z67: 1.23432201043572-0.0301547238275632i | AA67: 1.831160713 | AB67: -1.399468529 | AD67: 8.79645942i | AE67: 1+8.79645942i | AH67: 1+8.79645942i
A68: 75000 | B68: 75 | C68: 471238.8975i | D68: -222066098517.016 | E68: -104646183437285000i | P68: 0 | Q68: 1+0.164933614125i | R68: -0.0117057220792947i | S68: -0.221977272077609 | T68: 0.778022727922391+0.153227892045705i | U68: 1 | V68: 1 | W68: 0 | X68: 0 | Z68: 1.27750877655212-0.0396085636961541i | AA68: 2.131450634 | AB68: -1.775860031 | AD68: 9.42477795i | AE68: 1+9.42477795i | AH68: 1+9.42477795i
